{"text_format":"1","workbook":"xlsx","n_sheets":10,"sheets":["BCEP_Assessment","Privacy_Information","Assessment","GRAFICI","db_GRAFICI","db_Domande","db_Risposte","DATABASE","db_etichette","CONTROLLO"],"not_rendered":{"charts":18,"images":4,"macros":1,"external_links":3,"defined_names":25,"comments":0,"pivot_tables":18},"unopened":[],"bounds":{"document_bytes":16777216,"sheet_cells":100000,"rows_first":2000,"rows_last":500,"rows_between":2000,"halvings":0,"cell_chars":16384,"cell_head_chars":4096},"cells_cut":0,"cells_raw":0,"read":"whole","date_system":"1900"}

{"sheet":"BCEP_Assessment","index":0,"n_rows":9,"n_cols":15,"rows_kept":9,"cut":false,"hidden":false,"merged":[[8,6,8,8],[6,3,6,8],[2,14,2,18],[2,3,2,8],[3,3,3,8],[4,3,4,8],[5,3,5,8]]}
[null,null,"BUSINESS CONTINUITY EMERGENCY PLAN - Assessment "]
[]
[null,"azienda",null,null,null,null,null,null,null,null,null,null,null,null,"istruzioni per compilazione"]
[null,"nome"]
[null,"cognome"]
[null,"ruolo"]
[null,"e-mail"]
[]
[null,"Accettazione informativa Privacy"]

{"sheet":"Privacy_Information","index":1,"n_rows":2,"n_cols":2,"rows_kept":2,"cut":false,"hidden":false,"merged":[]}
[]
["Informativa ai ​sensi dell’articolo 13 del GDPR 2016/679​ ​(General Data Protection Regulation)",{"$f":"IF(BCEP_Assessment!$G$9=\"\",\"\",BCEP_Assessment!$G$9)","v":""}]

{"sheet":"Assessment","index":2,"n_rows":1001,"n_cols":7,"rows_kept":1001,"cut":false,"hidden":true,"merged":[]}
[null,"BUSINESS CONTINUITY EMERGENCY PLAN - Assessment ",null,null,null,null,{"$f":"IF(COUNTA($C$3:$C$200)-COUNTA($F$3:$F$200)=0,CONCATENATE(\"Complimenti:\",CHAR(10),\"hai risposto a tutte le domande\"),CONCATENATE(\"Le domande senza risposta sono:\",CHAR(10),COUNTA($C$3:$C$200)-COUNTA($F$3:$F$200)))","v":"Le domande senza risposta sono:\n100"}]
["SEZIONE\nnr","PILLAR","DOMANDA\nriferimento","DOMANDA","RISPOSTA\npossibile","RISPOSTA","NOTE"]
[1,"Market","D1_01","L'azienda ha attivato misure di monitoring sullo stato di salute dei suoi clienti?",{"$f":"IF($A3=\"\",\"\",IF(INDEX(db_Risposte!$H:$H,MATCH($C3,db_Risposte!$D:$D,0),1)=0,\"\",INDEX(db_Risposte!$H:$H,MATCH($C3,db_Risposte!$D:$D,0),1)))","v":"SI  ;  NO  ;  NON_APPLICABILE"}]
[1,"Market","D1_02","L'azienda ha valutato l'impatto nel tempo causato dagli effetti di una significativa diminuzione del proprio fatturato e/o dal fallimento di un suo cliente strategico ?",{"$f":"IF($A4=\"\",\"\",IF(INDEX(db_Risposte!$H:$H,MATCH($C4,db_Risposte!$D:$D,0),1)=0,\"\",INDEX(db_Risposte!$H:$H,MATCH($C4,db_Risposte!$D:$D,0),1)))","v":"SI  ;  NO  ;  NON_APPLICABILE"}]
[1,"Market","D1_03","L'azienda ha identificato piani strutturati di continuità operativa per rispondere all'emergenza in corso? ",{"$f":"IF($A5=\"\",\"\",IF(INDEX(db_Risposte!$H:$H,MATCH($C5,db_Risposte!$D:$D,0),1)=0,\"\",INDEX(db_Risposte!$H:$H,MATCH($C5,db_Risposte!$D:$D,0),1)))","v":"SI  ;  NO  ;  NON_APPLICABILE"}]
[1,"Market","D1_04","I piani includono la scelta dei business e delle attività fondamentali, incluse le attività di individuazione di clienti e partner strategici, nonché delle regole di comunicazione?  ",{"$f":"IF($A6=\"\",\"\",IF(INDEX(db_Risposte!$H:$H,MATCH($C6,db_Risposte!$D:$D,0),1)=0,\"\",INDEX(db_Risposte!$H:$H,MATCH($C6,db_Risposte!$D:$D,0),1)))","v":"SI  ;  NO  ;  NON_APPLICABILE"}]
[1,"Market","D1_05","L'azienda ha pianificato un programma di verifica periodica dei piani di continuità operativa ed una successiva attività di riesame dei risultati ? ",{"$f":"IF($A7=\"\",\"\",IF(INDEX(db_Risposte!$H:$H,MATCH($C7,db_Risposte!$D:$D,0),1)=0,\"\",INDEX(db_Risposte!$H:$H,MATCH($C7,db_Risposte!$D:$D,0),1)))","v":"SI  ;  NO  ;  NON_APPLICABILE"}]
[1,"Market","D1_06","Avete revisionato i contratti con i clienti alla luce dell’attuale situazione di crisi, introducendo o verificando la presenza di eventuali clausole a vostra tutela?",{"$f":"IF($A8=\"\",\"\",IF(INDEX(db_Risposte!$H:$H,MATCH($C8,db_Risposte!$D:$D,0),1)=0,\"\",INDEX(db_Risposte!$H:$H,MATCH($C8,db_Risposte!$D:$D,0),1)))","v":"SI  ;  NO  ;  NON_APPLICABILE"}]
[1,"Market","D1_07","Avete implementato un sistema per l’analisi, la gestione e la valutazione di eventuali reclami da parte della clientela? ",{"$f":"IF($A9=\"\",\"\",IF(INDEX(db_Risposte!$H:$H,MATCH($C9,db_Risposte!$D:$D,0),1)=0,\"\",INDEX(db_Risposte!$H:$H,MATCH($C9,db_Risposte!$D:$D,0),1)))","v":"SI  ;  NO  ;  NON_APPLICABILE"}]
[1,"Market","D1_08","L’azienda tiene in considerazione i rischi ambientali e sociali nella gestione del proprio business e monitora le prorie performance sulle tematiche ambeintali e sociali ?",{"$f":"IF($A10=\"\",\"\",IF(INDEX(db_Risposte!$H:$H,MATCH($C10,db_Risposte!$D:$D,0),1)=0,\"\",INDEX(db_Risposte!$H:$H,MATCH($C10,db_Risposte!$D:$D,0),1)))","v":"SI  ;  NO  ;  NON_APPLICABILE"}]
[1,"Market","D1_09","L’azienda ha identificato le aree ad alto potenziale di business e ha identificato un posizionamento di sostenibilità?",{"$f":"IF($A11=\"\",\"\",IF(INDEX(db_Risposte!$H:$H,MATCH($C11,db_Risposte!$D:$D,0),1)=0,\"\",INDEX(db_Risposte!$H:$H,MATCH($C11,db_Risposte!$D:$D,0),1)))","v":"SI  ;  NO  ;  NON_APPLICABILE"}]
[1,"Market","D1_10","L’azienda ha identificato le variabili chiave per guidare l’innovazione e ne ha valutato gli impatti economici, sociali e ambientali?",{"$f":"IF($A12=\"\",\"\",IF(INDEX(db_Risposte!$H:$H,MATCH($C12,db_Risposte!$D:$D,0),1)=0,\"\",INDEX(db_Risposte!$H:$H,MATCH($C12,db_Risposte!$D:$D,0),1)))","v":"SI  ;  NO  ;  NON_APPLICABILE"}]
[1,"Market","D1_11","L’azienda rendiconta e comunica le proprie performance e i propri impatti agli stakeholder chiave?",{"$f":"IF($A13=\"\",\"\",IF(INDEX(db_Risposte!$H:$H,MATCH($C13,db_Risposte!$D:$D,0),1)=0,\"\",INDEX(db_Risposte!$H:$H,MATCH($C13,db_Risposte!$D:$D,0),1)))","v":"SI  ;  NO  ;  NON_APPLICABILE"}]
[null,null,null,null,{"$f":"IF($A14=\"\",\"\",IF(INDEX(db_Risposte!$H:$H,MATCH($C14,db_Risposte!$D:$D,0),1)=0,\"\",INDEX(db_Risposte!$H:$H,MATCH($C14,db_Risposte!$D:$D,0),1)))","v":""}]
[2,"Supply Chain","D2_01","L'azienda ha attivato misure di monitoring constante sullo stato di salute dei suoi fornitori?",{"$f":"IF($A15=\"\",\"\",IF(INDEX(db_Risposte!$H:$H,MATCH($C15,db_Risposte!$D:$D,0),1)=0,\"\",INDEX(db_Risposte!$H:$H,MATCH($C15,db_Risposte!$D:$D,0),1)))","v":"SI  ;  NO  ;  NON_APPLICABILE"}]
[2,"Supply Chain","D2_02","L'azienda ha valutato l'impatto di un'eventuale interruzione o limitazione della catena di fornitura aziendale?",{"$f":"IF($A16=\"\",\"\",IF(INDEX(db_Risposte!$H:$H,MATCH($C16,db_Risposte!$D:$D,0),1)=0,\"\",INDEX(db_Risposte!$H:$H,MATCH($C16,db_Risposte!$D:$D,0),1)))","v":"SI  ;  NO  ;  NON_APPLICABILE"}]
[2,"Supply Chain","D2_03","L'azienda ha definito dipendenze ed interdipendenze delle proprie attività critiche, incluse quelle legate a partner e fornitori?",{"$f":"IF($A17=\"\",\"\",IF(INDEX(db_Risposte!$H:$H,MATCH($C17,db_Risposte!$D:$D,0),1)=0,\"\",INDEX(db_Risposte!$H:$H,MATCH($C17,db_Risposte!$D:$D,0),1)))","v":"SI  ;  NO  ;  NON_APPLICABILE"}]
[2,"Supply Chain","D2_04","L'azienda sta pianificando azioni e contromisure per ridurre possibili effetti indesiderati causati dall'emergenza (es. Soluzioni di automazione industry 4.0, sistemi IT e di telecomunicazione per gestioni in remoto, forniture alternative, logistiche alternative, ecc.)?",{"$f":"IF($A18=\"\",\"\",IF(INDEX(db_Risposte!$H:$H,MATCH($C18,db_Risposte!$D:$D,0),1)=0,\"\",INDEX(db_Risposte!$H:$H,MATCH($C18,db_Risposte!$D:$D,0),1)))","v":"SI  ;  NO  ;  NON_APPLICABILE"}]
[2,"Supply Chain","D2_05","L'azienda ha individuato le catene logistiche alternative per garantire la continuità del business nel breve-medio termine?",{"$f":"IF($A19=\"\",\"\",IF(INDEX(db_Risposte!$H:$H,MATCH($C19,db_Risposte!$D:$D,0),1)=0,\"\",INDEX(db_Risposte!$H:$H,MATCH($C19,db_Risposte!$D:$D,0),1)))","v":"SI  ;  NO  ;  NON_APPLICABILE"}]
[2,"Supply Chain","D2_06","L'azienda ha definito processi e responsabili incaricati di comunicare con i fornitori, al fine di garantire lo scambio delle corrette informazioni anche nell’attuale situazione di emergenza?",{"$f":"IF($A20=\"\",\"\",IF(INDEX(db_Risposte!$H:$H,MATCH($C20,db_Risposte!$D:$D,0),1)=0,\"\",INDEX(db_Risposte!$H:$H,MATCH($C20,db_Risposte!$D:$D,0),1)))","v":"SI  ;  NO  ;  NON_APPLICABILE"}]
[2,"Supply Chain","D2_07","L'azienda ha identificato eventuali rischi legali e di compliance che potrebbero evidenziarsi per l'inadempimento dei contratti di fornitura in essere?",{"$f":"IF($A21=\"\",\"\",IF(INDEX(db_Risposte!$H:$H,MATCH($C21,db_Risposte!$D:$D,0),1)=0,\"\",INDEX(db_Risposte!$H:$H,MATCH($C21,db_Risposte!$D:$D,0),1)))","v":"SI  ;  NO  ;  NON_APPLICABILE"}]
[2,"Supply Chain","D2_08","I fornitori dell'azienda si avvalgono di un piano di continuità operativa?",{"$f":"IF($A22=\"\",\"\",IF(INDEX(db_Risposte!$H:$H,MATCH($C22,db_Risposte!$D:$D,0),1)=0,\"\",INDEX(db_Risposte!$H:$H,MATCH($C22,db_Risposte!$D:$D,0),1)))","v":"SI  ;  NO  ;  NON_APPLICABILE"}]
[2,"Supply Chain","D2_09","Avete visibilità sulla salute dei vostri fornitori chiave, sui propri subfornitori e sulla capacità degli stessi di continuare ad operare sul mercato?",{"$f":"IF($A23=\"\",\"\",IF(INDEX(db_Risposte!$H:$H,MATCH($C23,db_Risposte!$D:$D,0),1)=0,\"\",INDEX(db_Risposte!$H:$H,MATCH($C23,db_Risposte!$D:$D,0),1)))","v":"SI  ;  NO  ;  NON_APPLICABILE"}]
[2,"Supply Chain","D2_10","Avete revisionato i contratti con i fornitori alla luce della situazione odierna, introducendo o verificando la presenza di clausole a vostra tutela, o connesse al tema delle c.d. “cause di forza maggiore” ed “eccessiva onerosità sopravvenuta”?",{"$f":"IF($A24=\"\",\"\",IF(INDEX(db_Risposte!$H:$H,MATCH($C24,db_Risposte!$D:$D,0),1)=0,\"\",INDEX(db_Risposte!$H:$H,MATCH($C24,db_Risposte!$D:$D,0),1)))","v":"SI  ;  NO  ;  NON_APPLICABILE"}]
[2,"Supply Chain","D2_11","Avete in essere claim/contenziosi con i vostri fornitori su temi connessi all’applicazione di clausole di “forza maggiore” od “eccessiva onerosità sopravvenuta”?",{"$f":"IF($A25=\"\",\"\",IF(INDEX(db_Risposte!$H:$H,MATCH($C25,db_Risposte!$D:$D,0),1)=0,\"\",INDEX(db_Risposte!$H:$H,MATCH($C25,db_Risposte!$D:$D,0),1)))","v":"SI  ;  NO  ;  NON_APPLICABILE"}]
[2,"Supply Chain","D2_12","Avete previsto, precedentemente alla crisi, l’immagazzinamento di scorte dei prodotti potenzialmente “critici” per clienti e fornitori?",{"$f":"IF($A26=\"\",\"\",IF(INDEX(db_Risposte!$H:$H,MATCH($C26,db_Risposte!$D:$D,0),1)=0,\"\",INDEX(db_Risposte!$H:$H,MATCH($C26,db_Risposte!$D:$D,0),1)))","v":"SI  ;  NO  ;  NON_APPLICABILE"}]
[2,"Supply Chain","D2_13","L'azienda ha un sistema di qualifica dei fornitori che tiene in considerazione gli aspetti ambientali e sociali, diritti umani e altri aspetti di sostenibilità significativi per il settore?",{"$f":"IF($A27=\"\",\"\",IF(INDEX(db_Risposte!$H:$H,MATCH($C27,db_Risposte!$D:$D,0),1)=0,\"\",INDEX(db_Risposte!$H:$H,MATCH($C27,db_Risposte!$D:$D,0),1)))","v":"SI  ;  NO  ;  NON_APPLICABILE"}]
[2,"Supply Chain","D2_14","L'azienda ha identificato le variabili chiave di sostenibilità dei propri fornitori che consentono di aumentare la propria competitività o profittabilità? ",{"$f":"IF($A28=\"\",\"\",IF(INDEX(db_Risposte!$H:$H,MATCH($C28,db_Risposte!$D:$D,0),1)=0,\"\",INDEX(db_Risposte!$H:$H,MATCH($C28,db_Risposte!$D:$D,0),1)))","v":"SI  ;  NO  ;  NON_APPLICABILE"}]
[null,null,null,null,{"$f":"IF($A29=\"\",\"\",IF(INDEX(db_Risposte!$H:$H,MATCH($C29,db_Risposte!$D:$D,0),1)=0,\"\",INDEX(db_Risposte!$H:$H,MATCH($C29,db_Risposte!$D:$D,0),1)))","v":""}]
[3,"Operations","D3_01","L'azienda ha individuato le attività produttive critiche e fondamentali per garantire l'operatività durante l'emergenza?",{"$f":"IF($A30=\"\",\"\",IF(INDEX(db_Risposte!$H:$H,MATCH($C30,db_Risposte!$D:$D,0),1)=0,\"\",INDEX(db_Risposte!$H:$H,MATCH($C30,db_Risposte!$D:$D,0),1)))","v":"SI  ;  NO  ;  NON_APPLICABILE"}]
[3,"Operations","D3_02","L'azienda ha definito strumenti di pianificazione e riorganizzazione del personale che permettano una maggior flessibilità organizzativa?",{"$f":"IF($A31=\"\",\"\",IF(INDEX(db_Risposte!$H:$H,MATCH($C31,db_Risposte!$D:$D,0),1)=0,\"\",INDEX(db_Risposte!$H:$H,MATCH($C31,db_Risposte!$D:$D,0),1)))","v":"SI  ;  NO  ;  NON_APPLICABILE"}]
[3,"Operations","D3_03","L'azienda ha rivisto le proprie modalità operative al fine di garantire una maggior sicurezza degli operatori sulle postazioni di lavoro?",{"$f":"IF($A32=\"\",\"\",IF(INDEX(db_Risposte!$H:$H,MATCH($C32,db_Risposte!$D:$D,0),1)=0,\"\",INDEX(db_Risposte!$H:$H,MATCH($C32,db_Risposte!$D:$D,0),1)))","v":"SI  ;  NO  ;  NON_APPLICABILE"}]
[3,"Operations","D3_04","L'azienda ha valutato l'impatto di un'eventuale chiusura o limitazione della propria linea produttiva?",{"$f":"IF($A33=\"\",\"\",IF(INDEX(db_Risposte!$H:$H,MATCH($C33,db_Risposte!$D:$D,0),1)=0,\"\",INDEX(db_Risposte!$H:$H,MATCH($C33,db_Risposte!$D:$D,0),1)))","v":"SI  ;  NO  ;  NON_APPLICABILE"}]
[3,"Operations","D3_05","L'azienda ha definito protocolli e responsabilità di comunicazione con le funzioni interne (manutenzioni, sicurezza, qualità ecc.), che garantiscono la corretta comunicazione delle informazioni anche nell’attuale situazione di emergenza?",{"$f":"IF($A34=\"\",\"\",IF(INDEX(db_Risposte!$H:$H,MATCH($C34,db_Risposte!$D:$D,0),1)=0,\"\",INDEX(db_Risposte!$H:$H,MATCH($C34,db_Risposte!$D:$D,0),1)))","v":"SI  ;  NO  ;  NON_APPLICABILE"}]
[3,"Operations","D3_06","L'azienda ha identificato piani strutturati (es. procedure processi interni, trasferimento di competenze, ecc.) di continuità operativa per rispondere all'emergenza in corso?",{"$f":"IF($A35=\"\",\"\",IF(INDEX(db_Risposte!$H:$H,MATCH($C35,db_Risposte!$D:$D,0),1)=0,\"\",INDEX(db_Risposte!$H:$H,MATCH($C35,db_Risposte!$D:$D,0),1)))","v":"SI  ;  NO  ;  NON_APPLICABILE"}]
[3,"Operations","D3_07","L'azienda si è dotata di nuove metodologie di Visual Management per facilitare il trasferimento delle informazioni nei vari reparti?",{"$f":"IF($A36=\"\",\"\",IF(INDEX(db_Risposte!$H:$H,MATCH($C36,db_Risposte!$D:$D,0),1)=0,\"\",INDEX(db_Risposte!$H:$H,MATCH($C36,db_Risposte!$D:$D,0),1)))","v":"SI  ;  NO  ;  NON_APPLICABILE"}]
[3,"Operations","D3_08","L'azienda si è dotata di strumenti di misurazione in grado di evidenziare la reale performance anche in situazione di emergenza?",{"$f":"IF($A37=\"\",\"\",IF(INDEX(db_Risposte!$H:$H,MATCH($C37,db_Risposte!$D:$D,0),1)=0,\"\",INDEX(db_Risposte!$H:$H,MATCH($C37,db_Risposte!$D:$D,0),1)))","v":"SI  ;  NO  ;  NON_APPLICABILE"}]
[3,"Operations","D3_09","L'azienda tiene in considerazione l'evoluzione dei rischi ambientali e sociali nella gestione e sviluppo delle sue operations (es. robotizzazione e rischi di emergenze sanitarie globali, oppure rischi derivanti dal cambiamento climatico)?",{"$f":"IF($A38=\"\",\"\",IF(INDEX(db_Risposte!$H:$H,MATCH($C38,db_Risposte!$D:$D,0),1)=0,\"\",INDEX(db_Risposte!$H:$H,MATCH($C38,db_Risposte!$D:$D,0),1)))","v":"SI  ;  NO  ;  NON_APPLICABILE"}]
[null,null,null,null,{"$f":"IF($A39=\"\",\"\",IF(INDEX(db_Risposte!$H:$H,MATCH($C39,db_Risposte!$D:$D,0),1)=0,\"\",INDEX(db_Risposte!$H:$H,MATCH($C39,db_Risposte!$D:$D,0),1)))","v":""}]
[4,"People & Organization","D4_01","Avete aggiornato il Modello dei processi aziendali e il sistema delle deleghe per i rischi aziendali?",{"$f":"IF($A40=\"\",\"\",IF(INDEX(db_Risposte!$H:$H,MATCH($C40,db_Risposte!$D:$D,0),1)=0,\"\",INDEX(db_Risposte!$H:$H,MATCH($C40,db_Risposte!$D:$D,0),1)))","v":"SI  ;  NO  ;  NON_APPLICABILE"}]
[4,"People & Organization","D4_02","Avete aggiornato Mansionari/Job Description?",{"$f":"IF($A41=\"\",\"\",IF(INDEX(db_Risposte!$H:$H,MATCH($C41,db_Risposte!$D:$D,0),1)=0,\"\",INDEX(db_Risposte!$H:$H,MATCH($C41,db_Risposte!$D:$D,0),1)))","v":"SI  ;  NO  ;  NON_APPLICABILE"}]
[4,"People & Organization","D4_03","Avete adeguato le vostre policy di controlli interni per evitare o diminuire il rischio di azioni fraudolente da parte dei collaboratori?",{"$f":"IF($A42=\"\",\"\",IF(INDEX(db_Risposte!$H:$H,MATCH($C42,db_Risposte!$D:$D,0),1)=0,\"\",INDEX(db_Risposte!$H:$H,MATCH($C42,db_Risposte!$D:$D,0),1)))","v":"SI  ;  NO  ;  NON_APPLICABILE"}]
[4,"People & Organization","D4_04","Nel corso della recente crisi avete avuto la percezione di aver ridotto il vostro controllo sulla segregation of duties o sull’operato del management?",{"$f":"IF($A43=\"\",\"\",IF(INDEX(db_Risposte!$H:$H,MATCH($C43,db_Risposte!$D:$D,0),1)=0,\"\",INDEX(db_Risposte!$H:$H,MATCH($C43,db_Risposte!$D:$D,0),1)))","v":"SI  ;  NO  ;  NON_APPLICABILE"}]
[4,"People & Organization","D4_05","Avete nuove esigenze formative e/o mappato gap di competenze?",{"$f":"IF($A44=\"\",\"\",IF(INDEX(db_Risposte!$H:$H,MATCH($C44,db_Risposte!$D:$D,0),1)=0,\"\",INDEX(db_Risposte!$H:$H,MATCH($C44,db_Risposte!$D:$D,0),1)))","v":"SI  ;  NO  ;  NON_APPLICABILE"}]
[4,"People & Organization","D4_06","Avete differito tutti gli eventi formativi, i programmi formativi su larga scala e le riunioni interne?",{"$f":"IF($A45=\"\",\"\",IF(INDEX(db_Risposte!$H:$H,MATCH($C45,db_Risposte!$D:$D,0),1)=0,\"\",INDEX(db_Risposte!$H:$H,MATCH($C45,db_Risposte!$D:$D,0),1)))","v":"SI  ;  NO  ;  NON_APPLICABILE"}]
[4,"People & Organization","D4_07","Avete abilitato il lavoro a distanza nella propria regione e per filiali uffici esteri?",{"$f":"IF($A46=\"\",\"\",IF(INDEX(db_Risposte!$H:$H,MATCH($C46,db_Risposte!$D:$D,0),1)=0,\"\",INDEX(db_Risposte!$H:$H,MATCH($C46,db_Risposte!$D:$D,0),1)))","v":"SI  ;  NO  ;  NON_APPLICABILE"}]
[4,"People & Organization","D4_08","Sono state definite linee guida che impongono restrizioni di viaggi e trasferte, sia internazionali che nazionali in linea con le linee guida nazionali e locali?",{"$f":"IF($A47=\"\",\"\",IF(INDEX(db_Risposte!$H:$H,MATCH($C47,db_Risposte!$D:$D,0),1)=0,\"\",INDEX(db_Risposte!$H:$H,MATCH($C47,db_Risposte!$D:$D,0),1)))","v":"SI  ;  NO  ;  NON_APPLICABILE"}]
[4,"People & Organization","D4_09","Avete individuato e formato delle piattaforme di smart working e canali appropriati di comunicazione per i propri dipendenti?",{"$f":"IF($A48=\"\",\"\",IF(INDEX(db_Risposte!$H:$H,MATCH($C48,db_Risposte!$D:$D,0),1)=0,\"\",INDEX(db_Risposte!$H:$H,MATCH($C48,db_Risposte!$D:$D,0),1)))","v":"SI  ;  NO  ;  NON_APPLICABILE"}]
[4,"People & Organization","D4_10","Avete un programma a rotazione per provare/testare lo smart working?",{"$f":"IF($A49=\"\",\"\",IF(INDEX(db_Risposte!$H:$H,MATCH($C49,db_Risposte!$D:$D,0),1)=0,\"\",INDEX(db_Risposte!$H:$H,MATCH($C49,db_Risposte!$D:$D,0),1)))","v":"SI  ;  NO  ;  NON_APPLICABILE"}]
[4,"People & Organization","D4_11","Garantite una comunicazione positiva e proattiva in merito alle misure adottate per promuovere il benessere dei dipendenti e il contenimento delle malattie?",{"$f":"IF($A50=\"\",\"\",IF(INDEX(db_Risposte!$H:$H,MATCH($C50,db_Risposte!$D:$D,0),1)=0,\"\",INDEX(db_Risposte!$H:$H,MATCH($C50,db_Risposte!$D:$D,0),1)))","v":"SI  ;  NO  ;  NON_APPLICABILE"}]
[4,"People & Organization","D4_12","Avete creato un meccanismo per rispondere a domande o dubbi dei dipendenti sull’emergenza in corso?",{"$f":"IF($A51=\"\",\"\",IF(INDEX(db_Risposte!$H:$H,MATCH($C51,db_Risposte!$D:$D,0),1)=0,\"\",INDEX(db_Risposte!$H:$H,MATCH($C51,db_Risposte!$D:$D,0),1)))","v":"SI  ;  NO  ;  NON_APPLICABILE"}]
[4,"People & Organization","D4_13","Avete inserito un supporto coaching ai vostri dipendenti e collaboratori sulla gestione dell'emotività in situazioni di emergenza?",{"$f":"IF($A52=\"\",\"\",IF(INDEX(db_Risposte!$H:$H,MATCH($C52,db_Risposte!$D:$D,0),1)=0,\"\",INDEX(db_Risposte!$H:$H,MATCH($C52,db_Risposte!$D:$D,0),1)))","v":"SI  ;  NO  ;  NON_APPLICABILE"}]
[null,null,null,null,{"$f":"IF($A53=\"\",\"\",IF(INDEX(db_Risposte!$H:$H,MATCH($C53,db_Risposte!$D:$D,0),1)=0,\"\",INDEX(db_Risposte!$H:$H,MATCH($C53,db_Risposte!$D:$D,0),1)))","v":""}]
[5,"Health & Safety","D5_01","L’azienda ha previsto una adeguata informativa a tutti i lavoratori e chiunque entri in azienda circa le disposizioni aggiornate delle Autorità, consegnando e/o affiggendo all’ingresso e nei luoghi maggiormente visibili dei locali aziendali, appositi depliants informativi? ",{"$f":"IF($A54=\"\",\"\",IF(INDEX(db_Risposte!$H:$H,MATCH($C54,db_Risposte!$D:$D,0),1)=0,\"\",INDEX(db_Risposte!$H:$H,MATCH($C54,db_Risposte!$D:$D,0),1)))","v":"SI  ;  NO  ;  NON_APPLICABILE"}]
[5,"Health & Safety","D5_02","L’Azienda ha definito una procedura per le modalità di accesso in azienda di personale interno, fornitori e visitatori esterni? ",{"$f":"IF($A55=\"\",\"\",IF(INDEX(db_Risposte!$H:$H,MATCH($C55,db_Risposte!$D:$D,0),1)=0,\"\",INDEX(db_Risposte!$H:$H,MATCH($C55,db_Risposte!$D:$D,0),1)))","v":"SI  ;  NO  ;  NON_APPLICABILE"}]
[5,"Health & Safety","D5_03","L’Azienda ha definito le corrette modalità di pulizia e sanificazione degli ambienti, compresi i sistemi di aerazione, anche mediante revisione dei contratti con le ditte terze?",{"$f":"IF($A56=\"\",\"\",IF(INDEX(db_Risposte!$H:$H,MATCH($C56,db_Risposte!$D:$D,0),1)=0,\"\",INDEX(db_Risposte!$H:$H,MATCH($C56,db_Risposte!$D:$D,0),1)))","v":"SI  ;  NO  ;  NON_APPLICABILE"}]
[5,"Health & Safety","D5_04","L’Azienda ha definito una procedura per la scelta, consegna, e formazione sull’utilizzo dei Dispositivi di Protezione Individuale? ",{"$f":"IF($A57=\"\",\"\",IF(INDEX(db_Risposte!$H:$H,MATCH($C57,db_Risposte!$D:$D,0),1)=0,\"\",INDEX(db_Risposte!$H:$H,MATCH($C57,db_Risposte!$D:$D,0),1)))","v":"SI  ;  NO  ;  NON_APPLICABILE"}]
[5,"Health & Safety","D5_05","L’Azienda ha definito una procedura per la gestione degli spazi comuni? (mensa, spogliatoi, aree bevande ecc.) ",{"$f":"IF($A58=\"\",\"\",IF(INDEX(db_Risposte!$H:$H,MATCH($C58,db_Risposte!$D:$D,0),1)=0,\"\",INDEX(db_Risposte!$H:$H,MATCH($C58,db_Risposte!$D:$D,0),1)))","v":"SI  ;  NO  ;  NON_APPLICABILE"}]
[5,"Health & Safety","D5_06","L’Azienda ha definito una procedura per la gestione delle trasferte del personale? ",{"$f":"IF($A59=\"\",\"\",IF(INDEX(db_Risposte!$H:$H,MATCH($C59,db_Risposte!$D:$D,0),1)=0,\"\",INDEX(db_Risposte!$H:$H,MATCH($C59,db_Risposte!$D:$D,0),1)))","v":"SI  ;  NO  ;  NON_APPLICABILE"}]
[5,"Health & Safety","D5_07","L’Azienda ha definito una procedura per la gestione di spostamenti interni, formazione, riunioni ed eventi? ",{"$f":"IF($A60=\"\",\"\",IF(INDEX(db_Risposte!$H:$H,MATCH($C60,db_Risposte!$D:$D,0),1)=0,\"\",INDEX(db_Risposte!$H:$H,MATCH($C60,db_Risposte!$D:$D,0),1)))","v":"SI  ;  NO  ;  NON_APPLICABILE"}]
[5,"Health & Safety","D5_08","L’Azienda ha definito le misure di primo soccorso ed emergenza connesse ad eventuali eventi infortunistici/sintomi di contagio? ",{"$f":"IF($A61=\"\",\"\",IF(INDEX(db_Risposte!$H:$H,MATCH($C61,db_Risposte!$D:$D,0),1)=0,\"\",INDEX(db_Risposte!$H:$H,MATCH($C61,db_Risposte!$D:$D,0),1)))","v":"SI  ;  NO  ;  NON_APPLICABILE"}]
[5,"Health & Safety","D5_09","L’Azienda ha definito le modalità di svolgimento della sorveglianza sanitaria ed il coordinamento con il medico competente? ",{"$f":"IF($A62=\"\",\"\",IF(INDEX(db_Risposte!$H:$H,MATCH($C62,db_Risposte!$D:$D,0),1)=0,\"\",INDEX(db_Risposte!$H:$H,MATCH($C62,db_Risposte!$D:$D,0),1)))","v":"SI  ;  NO  ;  NON_APPLICABILE"}]
[5,"Health & Safety","D5_10","L’Azienda ha istituito un Comitato di Sicurezza? ",{"$f":"IF($A63=\"\",\"\",IF(INDEX(db_Risposte!$H:$H,MATCH($C63,db_Risposte!$D:$D,0),1)=0,\"\",INDEX(db_Risposte!$H:$H,MATCH($C63,db_Risposte!$D:$D,0),1)))","v":"SI  ;  NO  ;  NON_APPLICABILE"}]
[5,"Health & Safety","D5_11","L’Azienda ha verificato la necessità di modifica del layout e delle postazioni di lavoro? ",{"$f":"IF($A64=\"\",\"\",IF(INDEX(db_Risposte!$H:$H,MATCH($C64,db_Risposte!$D:$D,0),1)=0,\"\",INDEX(db_Risposte!$H:$H,MATCH($C64,db_Risposte!$D:$D,0),1)))","v":"SI  ;  NO  ;  NON_APPLICABILE"}]
[5,"Health & Safety","D5_12","L’Azienda ha valutato i nuovi rischi per la salute e sicurezza derivanti dalle modifiche organizzative e li ha recepiti nel DVR aziendale?  ",{"$f":"IF($A65=\"\",\"\",IF(INDEX(db_Risposte!$H:$H,MATCH($C65,db_Risposte!$D:$D,0),1)=0,\"\",INDEX(db_Risposte!$H:$H,MATCH($C65,db_Risposte!$D:$D,0),1)))","v":"SI  ;  NO  ;  NON_APPLICABILE"}]
[5,"Health & Safety","D5_13","L’Azienda ha verificato eventuali rischi legali e di compliance dei processi interni che potrebbero evidenziarsi per l'emergenza? ",{"$f":"IF($A66=\"\",\"\",IF(INDEX(db_Risposte!$H:$H,MATCH($C66,db_Risposte!$D:$D,0),1)=0,\"\",INDEX(db_Risposte!$H:$H,MATCH($C66,db_Risposte!$D:$D,0),1)))","v":"SI  ;  NO  ;  NON_APPLICABILE"}]
[5,"Health & Safety","D5_14","L’Azienda ha verificato la necessità di aggiornamento delle parti speciali del MOG 231, con particolare riferimento ai reati connessi alla salute e sicurezza nei luoghi di lavoro? ",{"$f":"IF($A67=\"\",\"\",IF(INDEX(db_Risposte!$H:$H,MATCH($C67,db_Risposte!$D:$D,0),1)=0,\"\",INDEX(db_Risposte!$H:$H,MATCH($C67,db_Risposte!$D:$D,0),1)))","v":"SI  ;  NO  ;  NON_APPLICABILE"}]
[5,"Health & Safety","D5_15","L’Azienda ha implementato un sistema di controlli/audit interni per la verifica di completezza ed efficacia delle misure adottate? ",{"$f":"IF($A68=\"\",\"\",IF(INDEX(db_Risposte!$H:$H,MATCH($C68,db_Risposte!$D:$D,0),1)=0,\"\",INDEX(db_Risposte!$H:$H,MATCH($C68,db_Risposte!$D:$D,0),1)))","v":"SI  ;  NO  ;  NON_APPLICABILE"}]
[null,null,null,null,{"$f":"IF($A69=\"\",\"\",IF(INDEX(db_Risposte!$H:$H,MATCH($C69,db_Risposte!$D:$D,0),1)=0,\"\",INDEX(db_Risposte!$H:$H,MATCH($C69,db_Risposte!$D:$D,0),1)))","v":""}]
[6,"Information Technology","D6_01","L’azienda ha piani e strumenti per il Disaster Recovery?",{"$f":"IF($A70=\"\",\"\",IF(INDEX(db_Risposte!$H:$H,MATCH($C70,db_Risposte!$D:$D,0),1)=0,\"\",INDEX(db_Risposte!$H:$H,MATCH($C70,db_Risposte!$D:$D,0),1)))","v":"SI  ;  NO  ;  NON_APPLICABILE"}]
[6,"Information Technology","D6_02","L'azienda ha identificato eventuali rischi legali e di compliance (es. GDPR) che potrebbero evidenziarsi per l'emergenza?",{"$f":"IF($A71=\"\",\"\",IF(INDEX(db_Risposte!$H:$H,MATCH($C71,db_Risposte!$D:$D,0),1)=0,\"\",INDEX(db_Risposte!$H:$H,MATCH($C71,db_Risposte!$D:$D,0),1)))","v":"SI  ;  NO  ;  NON_APPLICABILE"}]
[6,"Information Technology","D6_03","L'azienda ha definito policy interne per i dipendenti che chiariscono limiti e responsabilità nell’uso delle risorse informatiche?",{"$f":"IF($A72=\"\",\"\",IF(INDEX(db_Risposte!$H:$H,MATCH($C72,db_Risposte!$D:$D,0),1)=0,\"\",INDEX(db_Risposte!$H:$H,MATCH($C72,db_Risposte!$D:$D,0),1)))","v":"SI  ;  NO  ;  NON_APPLICABILE"}]
[6,"Information Technology","D6_04","Ha piani di formazione/sensibilizzazione a riguardo?",{"$f":"IF($A73=\"\",\"\",IF(INDEX(db_Risposte!$H:$H,MATCH($C73,db_Risposte!$D:$D,0),1)=0,\"\",INDEX(db_Risposte!$H:$H,MATCH($C73,db_Risposte!$D:$D,0),1)))","v":"SI  ;  NO  ;  NON_APPLICABILE"}]
[6,"Information Technology","D6_05","L’azienda ha un piano per procurarsi e fornire in tempi rapidi i dispositivi informatici necessari a lavorare da remoto (pc, telefono con connsessione intenet, ecc.) almeno per il personale reputato essenziale?",{"$f":"IF($A74=\"\",\"\",IF(INDEX(db_Risposte!$H:$H,MATCH($C74,db_Risposte!$D:$D,0),1)=0,\"\",INDEX(db_Risposte!$H:$H,MATCH($C74,db_Risposte!$D:$D,0),1)))","v":"SI  ;  NO  ;  NON_APPLICABILE"}]
[6,"Information Technology","D6_06","L'azienda ha un responsabile della sicurezza informatica distinto dal responsabile IT?",{"$f":"IF($A75=\"\",\"\",IF(INDEX(db_Risposte!$H:$H,MATCH($C75,db_Risposte!$D:$D,0),1)=0,\"\",INDEX(db_Risposte!$H:$H,MATCH($C75,db_Risposte!$D:$D,0),1)))","v":"SI  ;  NO  ;  NON_APPLICABILE"}]
[6,"Information Technology","D6_07"," L’azienda effettua assessment periodici di terze parti per la valutazione della bontà del proprio sistema di sicurezza?",{"$f":"IF($A76=\"\",\"\",IF(INDEX(db_Risposte!$H:$H,MATCH($C76,db_Risposte!$D:$D,0),1)=0,\"\",INDEX(db_Risposte!$H:$H,MATCH($C76,db_Risposte!$D:$D,0),1)))","v":"SI  ;  NO  ;  NON_APPLICABILE"}]
[6,"Information Technology","D6_08","L’accesso da remoto dei dipendenti avviene con sistemi di autenticazione forte?",{"$f":"IF($A77=\"\",\"\",IF(INDEX(db_Risposte!$H:$H,MATCH($C77,db_Risposte!$D:$D,0),1)=0,\"\",INDEX(db_Risposte!$H:$H,MATCH($C77,db_Risposte!$D:$D,0),1)))","v":"SI  ;  NO  ;  NON_APPLICABILE"}]
[6,"Information Technology","D6_09","I fornitori accedono alla rete aziendale da remoto?",{"$f":"IF($A78=\"\",\"\",IF(INDEX(db_Risposte!$H:$H,MATCH($C78,db_Risposte!$D:$D,0),1)=0,\"\",INDEX(db_Risposte!$H:$H,MATCH($C78,db_Risposte!$D:$D,0),1)))","v":"SI  ;  NO  ;  NON_APPLICABILE"}]
[6,"Information Technology","D6_10","Sono presenti procedure formalizzate di backup dei sistemi?",{"$f":"IF($A79=\"\",\"\",IF(INDEX(db_Risposte!$H:$H,MATCH($C79,db_Risposte!$D:$D,0),1)=0,\"\",INDEX(db_Risposte!$H:$H,MATCH($C79,db_Risposte!$D:$D,0),1)))","v":"SI  ;  NO  ;  NON_APPLICABILE"}]
[6,"Information Technology","D6_11","L’azienda ha un meccanismo di verifica periodica della sicurezza dei propri fornitori IT presso cui sono mantenute informazioni dell’azienda?",{"$f":"IF($A80=\"\",\"\",IF(INDEX(db_Risposte!$H:$H,MATCH($C80,db_Risposte!$D:$D,0),1)=0,\"\",INDEX(db_Risposte!$H:$H,MATCH($C80,db_Risposte!$D:$D,0),1)))","v":"SI  ;  NO  ;  NON_APPLICABILE"}]
[6,"Information Technology","D6_12","L'azienda gestisce in modo strutturato e formalizzato l’on boarding e l’off boarding dei dipendenti e collaboratori?",{"$f":"IF($A81=\"\",\"\",IF(INDEX(db_Risposte!$H:$H,MATCH($C81,db_Risposte!$D:$D,0),1)=0,\"\",INDEX(db_Risposte!$H:$H,MATCH($C81,db_Risposte!$D:$D,0),1)))","v":"SI  ;  NO  ;  NON_APPLICABILE"}]
[6,"Information Technology","D6_13","L’azienda ha un piano di gestione degli incidenti?",{"$f":"IF($A82=\"\",\"\",IF(INDEX(db_Risposte!$H:$H,MATCH($C82,db_Risposte!$D:$D,0),1)=0,\"\",INDEX(db_Risposte!$H:$H,MATCH($C82,db_Risposte!$D:$D,0),1)))","v":"SI  ;  NO  ;  NON_APPLICABILE"}]
[6,"Information Technology","D6_14","Si è mai trovata a gestire un incidente?",{"$f":"IF($A83=\"\",\"\",IF(INDEX(db_Risposte!$H:$H,MATCH($C83,db_Risposte!$D:$D,0),1)=0,\"\",INDEX(db_Risposte!$H:$H,MATCH($C83,db_Risposte!$D:$D,0),1)))","v":"SI  ;  NO  ;  NON_APPLICABILE"}]
[6,"Information Technology","D6_15","La distribuzione e l’aggiornamento dell’antivirus è centralizzato?",{"$f":"IF($A84=\"\",\"\",IF(INDEX(db_Risposte!$H:$H,MATCH($C84,db_Risposte!$D:$D,0),1)=0,\"\",INDEX(db_Risposte!$H:$H,MATCH($C84,db_Risposte!$D:$D,0),1)))","v":"SI  ;  NO  ;  NON_APPLICABILE"}]
[null,null,null,null,{"$f":"IF($A85=\"\",\"\",IF(INDEX(db_Risposte!$H:$H,MATCH($C85,db_Risposte!$D:$D,0),1)=0,\"\",INDEX(db_Risposte!$H:$H,MATCH($C85,db_Risposte!$D:$D,0),1)))","v":""}]
[7,"Cash & Liquidity","D7_01","La finanza aziendale rappresenta un area critica per l’azienda anche prima del Coronavirus?",{"$f":"IF($A86=\"\",\"\",IF(INDEX(db_Risposte!$H:$H,MATCH($C86,db_Risposte!$D:$D,0),1)=0,\"\",INDEX(db_Risposte!$H:$H,MATCH($C86,db_Risposte!$D:$D,0),1)))","v":"SI  ;  NO  ;  NON_APPLICABILE"}]
[7,"Cash & Liquidity","D7_02","A quanto ammonta l'incidenza dei debiti bancari a M/L periodo sul fatturato al 31/12/2019?  (risposta  a sezioni multiple)",{"$f":"IF($A87=\"\",\"\",IF(INDEX(db_Risposte!$H:$H,MATCH($C87,db_Risposte!$D:$D,0),1)=0,\"\",INDEX(db_Risposte!$H:$H,MATCH($C87,db_Risposte!$D:$D,0),1)))","v":"0 - 30 %  ;  31 -70 %  ;  71 - 100 %  ;  NON_APPLICABILE"}]
[7,"Cash & Liquidity","D7_03","A quanto ammonta l'incidenza dei debiti bancari complessivi sul fatturato al 31/12/2019?  (risposta a sezioni  multiple)",{"$f":"IF($A88=\"\",\"\",IF(INDEX(db_Risposte!$H:$H,MATCH($C88,db_Risposte!$D:$D,0),1)=0,\"\",INDEX(db_Risposte!$H:$H,MATCH($C88,db_Risposte!$D:$D,0),1)))","v":"0 - 30 %  ;  31 -70 %  ;  71 - 100 %  ;  NON_APPLICABILE"}]
[7,"Cash & Liquidity","D7_04","L'azienda ha richiesto l'attivazione delle misure di sostegno previste dal Decreto Cura Italia (in termini di moratorie e conferma degli affidamenti ) ?",{"$f":"IF($A89=\"\",\"\",IF(INDEX(db_Risposte!$H:$H,MATCH($C89,db_Risposte!$D:$D,0),1)=0,\"\",INDEX(db_Risposte!$H:$H,MATCH($C89,db_Risposte!$D:$D,0),1)))","v":"SI  ;  NO  ;  NON_APPLICABILE"}]
[7,"Cash & Liquidity","D7_05","Quanto prevedete possa impattare l'emergenza in corso in termini di incremento della percentuale di insoluto dei clienti rispetto agli standard ?  (risposta a sezioni  multiple)",{"$f":"IF($A90=\"\",\"\",IF(INDEX(db_Risposte!$H:$H,MATCH($C90,db_Risposte!$D:$D,0),1)=0,\"\",INDEX(db_Risposte!$H:$H,MATCH($C90,db_Risposte!$D:$D,0),1)))","v":"0 - 30 %  ;  31 -70 %  ;  71 - 100 %  ;  NON_APPLICABILE"}]
[7,"Cash & Liquidity","D7_06","L'azienda ritiene di aver la necessità di richiedere nuovi finanziamenti per sopperire nel 2020 a crisi di liquidità ?",{"$f":"IF($A91=\"\",\"\",IF(INDEX(db_Risposte!$H:$H,MATCH($C91,db_Risposte!$D:$D,0),1)=0,\"\",INDEX(db_Risposte!$H:$H,MATCH($C91,db_Risposte!$D:$D,0),1)))","v":"SI  ;  NO  ;  NON_APPLICABILE"}]
[7,"Cash & Liquidity","D7_07","L'azienda ha segnalazioni in centrale rischi per posizioni in sofferenza/posizioni scadute ?  ",{"$f":"IF($A92=\"\",\"\",IF(INDEX(db_Risposte!$H:$H,MATCH($C92,db_Risposte!$D:$D,0),1)=0,\"\",INDEX(db_Risposte!$H:$H,MATCH($C92,db_Risposte!$D:$D,0),1)))","v":"SI  ;  NO  ;  NON_APPLICABILE"}]
[7,"Cash & Liquidity","D7_08","L'azienda ha un plafond residuo presso Medio Credito Centrale? ",{"$f":"IF($A93=\"\",\"\",IF(INDEX(db_Risposte!$H:$H,MATCH($C93,db_Risposte!$D:$D,0),1)=0,\"\",INDEX(db_Risposte!$H:$H,MATCH($C93,db_Risposte!$D:$D,0),1)))","v":"SI  ;  NO  ;  NON_APPLICABILE"}]
[7,"Cash & Liquidity","D7_09","L'azienda prevede di apportare capitale proprio nel breve periodo?   ",{"$f":"IF($A94=\"\",\"\",IF(INDEX(db_Risposte!$H:$H,MATCH($C94,db_Risposte!$D:$D,0),1)=0,\"\",INDEX(db_Risposte!$H:$H,MATCH($C94,db_Risposte!$D:$D,0),1)))","v":"SI  ;  NO  ;  NON_APPLICABILE"}]
[7,"Cash & Liquidity","D7_10","L'azienda ha un sistema di gestione della tesoreria integrato nel/con il gestionale aziendale o gestisce la tesoreria con strumenti excel based?",{"$f":"IF($A95=\"\",\"\",IF(INDEX(db_Risposte!$H:$H,MATCH($C95,db_Risposte!$D:$D,0),1)=0,\"\",INDEX(db_Risposte!$H:$H,MATCH($C95,db_Risposte!$D:$D,0),1)))","v":"SI  ;  NO  ;  NON_APPLICABILE"}]
[7,"Cash & Liquidity","D7_11","L'azienda ha un budget economico - finanziario per il 2020 ?",{"$f":"IF($A96=\"\",\"\",IF(INDEX(db_Risposte!$H:$H,MATCH($C96,db_Risposte!$D:$D,0),1)=0,\"\",INDEX(db_Risposte!$H:$H,MATCH($C96,db_Risposte!$D:$D,0),1)))","v":"SI  ;  NO  ;  NON_APPLICABILE"}]
[7,"Cash & Liquidity","D7_12","L’azienda  utilizza sistemi di  previsione della Tesorieria a scenari  multipli? ",{"$f":"IF($A97=\"\",\"\",IF(INDEX(db_Risposte!$H:$H,MATCH($C97,db_Risposte!$D:$D,0),1)=0,\"\",INDEX(db_Risposte!$H:$H,MATCH($C97,db_Risposte!$D:$D,0),1)))","v":"SI  ;  NO  ;  NON_APPLICABILE"}]
[7,"Cash & Liquidity","D7_13","Il livello di comprimibilità dei costi fissi aziendali è ?  (risposta a sezioni multiple) ",{"$f":"IF($A98=\"\",\"\",IF(INDEX(db_Risposte!$H:$H,MATCH($C98,db_Risposte!$D:$D,0),1)=0,\"\",INDEX(db_Risposte!$H:$H,MATCH($C98,db_Risposte!$D:$D,0),1)))","v":"alta  ;  media  ;  bassa  ;  NON_APPLICABILE"}]
[null,null,null,null,{"$f":"IF($A99=\"\",\"\",IF(INDEX(db_Risposte!$H:$H,MATCH($C99,db_Risposte!$D:$D,0),1)=0,\"\",INDEX(db_Risposte!$H:$H,MATCH($C99,db_Risposte!$D:$D,0),1)))","v":""}]
[8,"Investments","D8_01","L'azienda ha fatto recentemente acquisizioni di società e/o rami d'azienda?  ",{"$f":"IF($A100=\"\",\"\",IF(INDEX(db_Risposte!$H:$H,MATCH($C100,db_Risposte!$D:$D,0),1)=0,\"\",INDEX(db_Risposte!$H:$H,MATCH($C100,db_Risposte!$D:$D,0),1)))","v":"SI  ;  NO  ;  NON_APPLICABILE"}]
[8,"Investments","D8_02","In che percentuale del fatturato l'azienda intende effettuare investimenti nell'esercizio in corso?  (risposta  multipla) ",{"$f":"IF($A101=\"\",\"\",IF(INDEX(db_Risposte!$H:$H,MATCH($C101,db_Risposte!$D:$D,0),1)=0,\"\",INDEX(db_Risposte!$H:$H,MATCH($C101,db_Risposte!$D:$D,0),1)))","v":"0 - 30 %  ;  31 -70 %  ;  71 - 100 %  ;  NON_APPLICABILE"}]
[8,"Investments","D8_03","L’azienda ha investimenti nell'esercizio in corso di importi significativi?",{"$f":"IF($A102=\"\",\"\",IF(INDEX(db_Risposte!$H:$H,MATCH($C102,db_Risposte!$D:$D,0),1)=0,\"\",INDEX(db_Risposte!$H:$H,MATCH($C102,db_Risposte!$D:$D,0),1)))","v":"SI  ;  NO  ;  NON_APPLICABILE"}]
[8,"Investments","D8_04","L’azienda  deve sostenere  investimenti  ricorrenti  per  garantire  la continuità del business?  ",{"$f":"IF($A103=\"\",\"\",IF(INDEX(db_Risposte!$H:$H,MATCH($C103,db_Risposte!$D:$D,0),1)=0,\"\",INDEX(db_Risposte!$H:$H,MATCH($C103,db_Risposte!$D:$D,0),1)))","v":"SI  ;  NO  ;  NON_APPLICABILE"}]
[8,"Investments","D8_05","Negli SPA sottoscritti, o in via di sottoscrizione, sono previste clausole di price adjustment che tengano conto dei possibili effetti derivanti dall’evoluzione del fenomeno Covid 19? ",{"$f":"IF($A104=\"\",\"\",IF(INDEX(db_Risposte!$H:$H,MATCH($C104,db_Risposte!$D:$D,0),1)=0,\"\",INDEX(db_Risposte!$H:$H,MATCH($C104,db_Risposte!$D:$D,0),1)))","v":"SI  ;  NO  ;  NON_APPLICABILE"}]
[8,"Investments","D8_06","E’ stata svolta una review contrattuale per verificare la presenza di eventuali clausole di price adjustment potenzialmente negative per i vostri investimenti? ",{"$f":"IF($A105=\"\",\"\",IF(INDEX(db_Risposte!$H:$H,MATCH($C105,db_Risposte!$D:$D,0),1)=0,\"\",INDEX(db_Risposte!$H:$H,MATCH($C105,db_Risposte!$D:$D,0),1)))","v":"SI  ;  NO  ;  NON_APPLICABILE"}]
[8,"Investments","D8_07","Gli investimenti definiti dall'azienda sono funzionali ad aumentare la sostenibilità del proprio modello di business? ",{"$f":"IF($A106=\"\",\"\",IF(INDEX(db_Risposte!$H:$H,MATCH($C106,db_Risposte!$D:$D,0),1)=0,\"\",INDEX(db_Risposte!$H:$H,MATCH($C106,db_Risposte!$D:$D,0),1)))","v":"SI  ;  NO  ;  NON_APPLICABILE"}]
[8,"Investments","D8_08","L'azienda ha valutato gli impatti economici, sociali e ambientali dei suoi investimenti?",{"$f":"IF($A107=\"\",\"\",IF(INDEX(db_Risposte!$H:$H,MATCH($C107,db_Risposte!$D:$D,0),1)=0,\"\",INDEX(db_Risposte!$H:$H,MATCH($C107,db_Risposte!$D:$D,0),1)))","v":"SI  ;  NO  ;  NON_APPLICABILE"}]
[8,"Investments","D8_09","L'azienda ha tenuto in considerazione quanto gli investimenti concorrono positivamente nella comunità locale di riferimento?",{"$f":"IF($A108=\"\",\"\",IF(INDEX(db_Risposte!$H:$H,MATCH($C108,db_Risposte!$D:$D,0),1)=0,\"\",INDEX(db_Risposte!$H:$H,MATCH($C108,db_Risposte!$D:$D,0),1)))","v":"SI  ;  NO  ;  NON_APPLICABILE"}]
[8,"Investments","D8_10","L’azienda ha identificato metriche adeguate per monitorare gli impatti dei suoi investimenti?",{"$f":"IF($A109=\"\",\"\",IF(INDEX(db_Risposte!$H:$H,MATCH($C109,db_Risposte!$D:$D,0),1)=0,\"\",INDEX(db_Risposte!$H:$H,MATCH($C109,db_Risposte!$D:$D,0),1)))","v":"SI  ;  NO  ;  NON_APPLICABILE"}]
[null,null,null,null,{"$f":"IF($A110=\"\",\"\",IF(INDEX(db_Risposte!$H:$H,MATCH($C110,db_Risposte!$D:$D,0),1)=0,\"\",INDEX(db_Risposte!$H:$H,MATCH($C110,db_Risposte!$D:$D,0),1)))","v":""}]
[null,null,null,null,{"$f":"IF($A111=\"\",\"\",IF(INDEX(db_Risposte!$H:$H,MATCH($C111,db_Risposte!$D:$D,0),1)=0,\"\",INDEX(db_Risposte!$H:$H,MATCH($C111,db_Risposte!$D:$D,0),1)))","v":""}]
[null,null,null,null,{"$f":"IF($A112=\"\",\"\",IF(INDEX(db_Risposte!$H:$H,MATCH($C112,db_Risposte!$D:$D,0),1)=0,\"\",INDEX(db_Risposte!$H:$H,MATCH($C112,db_Risposte!$D:$D,0),1)))","v":""}]
[null,null,null,null,{"$f":"IF($A113=\"\",\"\",IF(INDEX(db_Risposte!$H:$H,MATCH($C113,db_Risposte!$D:$D,0),1)=0,\"\",INDEX(db_Risposte!$H:$H,MATCH($C113,db_Risposte!$D:$D,0),1)))","v":""}]
[null,null,null,null,{"$f":"IF($A114=\"\",\"\",IF(INDEX(db_Risposte!$H:$H,MATCH($C114,db_Risposte!$D:$D,0),1)=0,\"\",INDEX(db_Risposte!$H:$H,MATCH($C114,db_Risposte!$D:$D,0),1)))","v":""}]
[null,null,null,null,{"$f":"IF($A115=\"\",\"\",IF(INDEX(db_Risposte!$H:$H,MATCH($C115,db_Risposte!$D:$D,0),1)=0,\"\",INDEX(db_Risposte!$H:$H,MATCH($C115,db_Risposte!$D:$D,0),1)))","v":""}]
[null,null,null,null,{"$f":"IF($A116=\"\",\"\",IF(INDEX(db_Risposte!$H:$H,MATCH($C116,db_Risposte!$D:$D,0),1)=0,\"\",INDEX(db_Risposte!$H:$H,MATCH($C116,db_Risposte!$D:$D,0),1)))","v":""}]
[null,null,null,null,{"$f":"IF($A117=\"\",\"\",IF(INDEX(db_Risposte!$H:$H,MATCH($C117,db_Risposte!$D:$D,0),1)=0,\"\",INDEX(db_Risposte!$H:$H,MATCH($C117,db_Risposte!$D:$D,0),1)))","v":""}]
[null,null,null,null,{"$f":"IF($A118=\"\",\"\",IF(INDEX(db_Risposte!$H:$H,MATCH($C118,db_Risposte!$D:$D,0),1)=0,\"\",INDEX(db_Risposte!$H:$H,MATCH($C118,db_Risposte!$D:$D,0),1)))","v":""}]
[null,null,null,null,{"$f":"IF($A119=\"\",\"\",IF(INDEX(db_Risposte!$H:$H,MATCH($C119,db_Risposte!$D:$D,0),1)=0,\"\",INDEX(db_Risposte!$H:$H,MATCH($C119,db_Risposte!$D:$D,0),1)))","v":""}]
[null,null,null,null,{"$f":"IF($A120=\"\",\"\",IF(INDEX(db_Risposte!$H:$H,MATCH($C120,db_Risposte!$D:$D,0),1)=0,\"\",INDEX(db_Risposte!$H:$H,MATCH($C120,db_Risposte!$D:$D,0),1)))","v":""}]
[null,null,null,null,{"$f":"IF($A121=\"\",\"\",IF(INDEX(db_Risposte!$H:$H,MATCH($C121,db_Risposte!$D:$D,0),1)=0,\"\",INDEX(db_Risposte!$H:$H,MATCH($C121,db_Risposte!$D:$D,0),1)))","v":""}]
[null,null,null,null,{"$f":"IF($A122=\"\",\"\",IF(INDEX(db_Risposte!$H:$H,MATCH($C122,db_Risposte!$D:$D,0),1)=0,\"\",INDEX(db_Risposte!$H:$H,MATCH($C122,db_Risposte!$D:$D,0),1)))","v":""}]
[null,null,null,null,{"$f":"IF($A123=\"\",\"\",IF(INDEX(db_Risposte!$H:$H,MATCH($C123,db_Risposte!$D:$D,0),1)=0,\"\",INDEX(db_Risposte!$H:$H,MATCH($C123,db_Risposte!$D:$D,0),1)))","v":""}]
[null,null,null,null,{"$f":"IF($A124=\"\",\"\",IF(INDEX(db_Risposte!$H:$H,MATCH($C124,db_Risposte!$D:$D,0),1)=0,\"\",INDEX(db_Risposte!$H:$H,MATCH($C124,db_Risposte!$D:$D,0),1)))","v":""}]
[null,null,null,null,{"$f":"IF($A125=\"\",\"\",IF(INDEX(db_Risposte!$H:$H,MATCH($C125,db_Risposte!$D:$D,0),1)=0,\"\",INDEX(db_Risposte!$H:$H,MATCH($C125,db_Risposte!$D:$D,0),1)))","v":""}]
[null,null,null,null,{"$f":"IF($A126=\"\",\"\",IF(INDEX(db_Risposte!$H:$H,MATCH($C126,db_Risposte!$D:$D,0),1)=0,\"\",INDEX(db_Risposte!$H:$H,MATCH($C126,db_Risposte!$D:$D,0),1)))","v":""}]
[null,null,null,null,{"$f":"IF($A127=\"\",\"\",IF(INDEX(db_Risposte!$H:$H,MATCH($C127,db_Risposte!$D:$D,0),1)=0,\"\",INDEX(db_Risposte!$H:$H,MATCH($C127,db_Risposte!$D:$D,0),1)))","v":""}]
[null,null,null,null,{"$f":"IF($A128=\"\",\"\",IF(INDEX(db_Risposte!$H:$H,MATCH($C128,db_Risposte!$D:$D,0),1)=0,\"\",INDEX(db_Risposte!$H:$H,MATCH($C128,db_Risposte!$D:$D,0),1)))","v":""}]
[null,null,null,null,{"$f":"IF($A129=\"\",\"\",IF(INDEX(db_Risposte!$H:$H,MATCH($C129,db_Risposte!$D:$D,0),1)=0,\"\",INDEX(db_Risposte!$H:$H,MATCH($C129,db_Risposte!$D:$D,0),1)))","v":""}]
[null,null,null,null,{"$f":"IF($A130=\"\",\"\",IF(INDEX(db_Risposte!$H:$H,MATCH($C130,db_Risposte!$D:$D,0),1)=0,\"\",INDEX(db_Risposte!$H:$H,MATCH($C130,db_Risposte!$D:$D,0),1)))","v":""}]
[null,null,null,null,{"$f":"IF($A131=\"\",\"\",IF(INDEX(db_Risposte!$H:$H,MATCH($C131,db_Risposte!$D:$D,0),1)=0,\"\",INDEX(db_Risposte!$H:$H,MATCH($C131,db_Risposte!$D:$D,0),1)))","v":""}]
[null,null,null,null,{"$f":"IF($A132=\"\",\"\",IF(INDEX(db_Risposte!$H:$H,MATCH($C132,db_Risposte!$D:$D,0),1)=0,\"\",INDEX(db_Risposte!$H:$H,MATCH($C132,db_Risposte!$D:$D,0),1)))","v":""}]
[null,null,null,null,{"$f":"IF($A133=\"\",\"\",IF(INDEX(db_Risposte!$H:$H,MATCH($C133,db_Risposte!$D:$D,0),1)=0,\"\",INDEX(db_Risposte!$H:$H,MATCH($C133,db_Risposte!$D:$D,0),1)))","v":""}]
[null,null,null,null,{"$f":"IF($A134=\"\",\"\",IF(INDEX(db_Risposte!$H:$H,MATCH($C134,db_Risposte!$D:$D,0),1)=0,\"\",INDEX(db_Risposte!$H:$H,MATCH($C134,db_Risposte!$D:$D,0),1)))","v":""}]
[null,null,null,null,{"$f":"IF($A135=\"\",\"\",IF(INDEX(db_Risposte!$H:$H,MATCH($C135,db_Risposte!$D:$D,0),1)=0,\"\",INDEX(db_Risposte!$H:$H,MATCH($C135,db_Risposte!$D:$D,0),1)))","v":""}]
[null,null,null,null,{"$f":"IF($A136=\"\",\"\",IF(INDEX(db_Risposte!$H:$H,MATCH($C136,db_Risposte!$D:$D,0),1)=0,\"\",INDEX(db_Risposte!$H:$H,MATCH($C136,db_Risposte!$D:$D,0),1)))","v":""}]
[null,null,null,null,{"$f":"IF($A137=\"\",\"\",IF(INDEX(db_Risposte!$H:$H,MATCH($C137,db_Risposte!$D:$D,0),1)=0,\"\",INDEX(db_Risposte!$H:$H,MATCH($C137,db_Risposte!$D:$D,0),1)))","v":""}]
[null,null,null,null,{"$f":"IF($A138=\"\",\"\",IF(INDEX(db_Risposte!$H:$H,MATCH($C138,db_Risposte!$D:$D,0),1)=0,\"\",INDEX(db_Risposte!$H:$H,MATCH($C138,db_Risposte!$D:$D,0),1)))","v":""}]
[null,null,null,null,{"$f":"IF($A139=\"\",\"\",IF(INDEX(db_Risposte!$H:$H,MATCH($C139,db_Risposte!$D:$D,0),1)=0,\"\",INDEX(db_Risposte!$H:$H,MATCH($C139,db_Risposte!$D:$D,0),1)))","v":""}]
[null,null,null,null,{"$f":"IF($A140=\"\",\"\",IF(INDEX(db_Risposte!$H:$H,MATCH($C140,db_Risposte!$D:$D,0),1)=0,\"\",INDEX(db_Risposte!$H:$H,MATCH($C140,db_Risposte!$D:$D,0),1)))","v":""}]
[null,null,null,null,{"$f":"IF($A141=\"\",\"\",IF(INDEX(db_Risposte!$H:$H,MATCH($C141,db_Risposte!$D:$D,0),1)=0,\"\",INDEX(db_Risposte!$H:$H,MATCH($C141,db_Risposte!$D:$D,0),1)))","v":""}]
[null,null,null,null,{"$f":"IF($A142=\"\",\"\",IF(INDEX(db_Risposte!$H:$H,MATCH($C142,db_Risposte!$D:$D,0),1)=0,\"\",INDEX(db_Risposte!$H:$H,MATCH($C142,db_Risposte!$D:$D,0),1)))","v":""}]
[null,null,null,null,{"$f":"IF($A143=\"\",\"\",IF(INDEX(db_Risposte!$H:$H,MATCH($C143,db_Risposte!$D:$D,0),1)=0,\"\",INDEX(db_Risposte!$H:$H,MATCH($C143,db_Risposte!$D:$D,0),1)))","v":""}]
[null,null,null,null,{"$f":"IF($A144=\"\",\"\",IF(INDEX(db_Risposte!$H:$H,MATCH($C144,db_Risposte!$D:$D,0),1)=0,\"\",INDEX(db_Risposte!$H:$H,MATCH($C144,db_Risposte!$D:$D,0),1)))","v":""}]
[null,null,null,null,{"$f":"IF($A145=\"\",\"\",IF(INDEX(db_Risposte!$H:$H,MATCH($C145,db_Risposte!$D:$D,0),1)=0,\"\",INDEX(db_Risposte!$H:$H,MATCH($C145,db_Risposte!$D:$D,0),1)))","v":""}]
[null,null,null,null,{"$f":"IF($A146=\"\",\"\",IF(INDEX(db_Risposte!$H:$H,MATCH($C146,db_Risposte!$D:$D,0),1)=0,\"\",INDEX(db_Risposte!$H:$H,MATCH($C146,db_Risposte!$D:$D,0),1)))","v":""}]
[null,null,null,null,{"$f":"IF($A147=\"\",\"\",IF(INDEX(db_Risposte!$H:$H,MATCH($C147,db_Risposte!$D:$D,0),1)=0,\"\",INDEX(db_Risposte!$H:$H,MATCH($C147,db_Risposte!$D:$D,0),1)))","v":""}]
[null,null,null,null,{"$f":"IF($A148=\"\",\"\",IF(INDEX(db_Risposte!$H:$H,MATCH($C148,db_Risposte!$D:$D,0),1)=0,\"\",INDEX(db_Risposte!$H:$H,MATCH($C148,db_Risposte!$D:$D,0),1)))","v":""}]
[null,null,null,null,{"$f":"IF($A149=\"\",\"\",IF(INDEX(db_Risposte!$H:$H,MATCH($C149,db_Risposte!$D:$D,0),1)=0,\"\",INDEX(db_Risposte!$H:$H,MATCH($C149,db_Risposte!$D:$D,0),1)))","v":""}]
[null,null,null,null,{"$f":"IF($A150=\"\",\"\",IF(INDEX(db_Risposte!$H:$H,MATCH($C150,db_Risposte!$D:$D,0),1)=0,\"\",INDEX(db_Risposte!$H:$H,MATCH($C150,db_Risposte!$D:$D,0),1)))","v":""}]
[null,null,null,null,{"$f":"IF($A151=\"\",\"\",IF(INDEX(db_Risposte!$H:$H,MATCH($C151,db_Risposte!$D:$D,0),1)=0,\"\",INDEX(db_Risposte!$H:$H,MATCH($C151,db_Risposte!$D:$D,0),1)))","v":""}]
[null,null,null,null,{"$f":"IF($A152=\"\",\"\",IF(INDEX(db_Risposte!$H:$H,MATCH($C152,db_Risposte!$D:$D,0),1)=0,\"\",INDEX(db_Risposte!$H:$H,MATCH($C152,db_Risposte!$D:$D,0),1)))","v":""}]
[null,null,null,null,{"$f":"IF($A153=\"\",\"\",IF(INDEX(db_Risposte!$H:$H,MATCH($C153,db_Risposte!$D:$D,0),1)=0,\"\",INDEX(db_Risposte!$H:$H,MATCH($C153,db_Risposte!$D:$D,0),1)))","v":""}]
[null,null,null,null,{"$f":"IF($A154=\"\",\"\",IF(INDEX(db_Risposte!$H:$H,MATCH($C154,db_Risposte!$D:$D,0),1)=0,\"\",INDEX(db_Risposte!$H:$H,MATCH($C154,db_Risposte!$D:$D,0),1)))","v":""}]
[null,null,null,null,{"$f":"IF($A155=\"\",\"\",IF(INDEX(db_Risposte!$H:$H,MATCH($C155,db_Risposte!$D:$D,0),1)=0,\"\",INDEX(db_Risposte!$H:$H,MATCH($C155,db_Risposte!$D:$D,0),1)))","v":""}]
[null,null,null,null,{"$f":"IF($A156=\"\",\"\",IF(INDEX(db_Risposte!$H:$H,MATCH($C156,db_Risposte!$D:$D,0),1)=0,\"\",INDEX(db_Risposte!$H:$H,MATCH($C156,db_Risposte!$D:$D,0),1)))","v":""}]
[null,null,null,null,{"$f":"IF($A157=\"\",\"\",IF(INDEX(db_Risposte!$H:$H,MATCH($C157,db_Risposte!$D:$D,0),1)=0,\"\",INDEX(db_Risposte!$H:$H,MATCH($C157,db_Risposte!$D:$D,0),1)))","v":""}]
[null,null,null,null,{"$f":"IF($A158=\"\",\"\",IF(INDEX(db_Risposte!$H:$H,MATCH($C158,db_Risposte!$D:$D,0),1)=0,\"\",INDEX(db_Risposte!$H:$H,MATCH($C158,db_Risposte!$D:$D,0),1)))","v":""}]
[null,null,null,null,{"$f":"IF($A159=\"\",\"\",IF(INDEX(db_Risposte!$H:$H,MATCH($C159,db_Risposte!$D:$D,0),1)=0,\"\",INDEX(db_Risposte!$H:$H,MATCH($C159,db_Risposte!$D:$D,0),1)))","v":""}]
[null,null,null,null,{"$f":"IF($A160=\"\",\"\",IF(INDEX(db_Risposte!$H:$H,MATCH($C160,db_Risposte!$D:$D,0),1)=0,\"\",INDEX(db_Risposte!$H:$H,MATCH($C160,db_Risposte!$D:$D,0),1)))","v":""}]
[null,null,null,null,{"$f":"IF($A161=\"\",\"\",IF(INDEX(db_Risposte!$H:$H,MATCH($C161,db_Risposte!$D:$D,0),1)=0,\"\",INDEX(db_Risposte!$H:$H,MATCH($C161,db_Risposte!$D:$D,0),1)))","v":""}]
[null,null,null,null,{"$f":"IF($A162=\"\",\"\",IF(INDEX(db_Risposte!$H:$H,MATCH($C162,db_Risposte!$D:$D,0),1)=0,\"\",INDEX(db_Risposte!$H:$H,MATCH($C162,db_Risposte!$D:$D,0),1)))","v":""}]
[null,null,null,null,{"$f":"IF($A163=\"\",\"\",IF(INDEX(db_Risposte!$H:$H,MATCH($C163,db_Risposte!$D:$D,0),1)=0,\"\",INDEX(db_Risposte!$H:$H,MATCH($C163,db_Risposte!$D:$D,0),1)))","v":""}]
[null,null,null,null,{"$f":"IF($A164=\"\",\"\",IF(INDEX(db_Risposte!$H:$H,MATCH($C164,db_Risposte!$D:$D,0),1)=0,\"\",INDEX(db_Risposte!$H:$H,MATCH($C164,db_Risposte!$D:$D,0),1)))","v":""}]
[null,null,null,null,{"$f":"IF($A165=\"\",\"\",IF(INDEX(db_Risposte!$H:$H,MATCH($C165,db_Risposte!$D:$D,0),1)=0,\"\",INDEX(db_Risposte!$H:$H,MATCH($C165,db_Risposte!$D:$D,0),1)))","v":""}]
[null,null,null,null,{"$f":"IF($A166=\"\",\"\",IF(INDEX(db_Risposte!$H:$H,MATCH($C166,db_Risposte!$D:$D,0),1)=0,\"\",INDEX(db_Risposte!$H:$H,MATCH($C166,db_Risposte!$D:$D,0),1)))","v":""}]
[null,null,null,null,{"$f":"IF($A167=\"\",\"\",IF(INDEX(db_Risposte!$H:$H,MATCH($C167,db_Risposte!$D:$D,0),1)=0,\"\",INDEX(db_Risposte!$H:$H,MATCH($C167,db_Risposte!$D:$D,0),1)))","v":""}]
[null,null,null,null,{"$f":"IF($A168=\"\",\"\",IF(INDEX(db_Risposte!$H:$H,MATCH($C168,db_Risposte!$D:$D,0),1)=0,\"\",INDEX(db_Risposte!$H:$H,MATCH($C168,db_Risposte!$D:$D,0),1)))","v":""}]
[null,null,null,null,{"$f":"IF($A169=\"\",\"\",IF(INDEX(db_Risposte!$H:$H,MATCH($C169,db_Risposte!$D:$D,0),1)=0,\"\",INDEX(db_Risposte!$H:$H,MATCH($C169,db_Risposte!$D:$D,0),1)))","v":""}]
[null,null,null,null,{"$f":"IF($A170=\"\",\"\",IF(INDEX(db_Risposte!$H:$H,MATCH($C170,db_Risposte!$D:$D,0),1)=0,\"\",INDEX(db_Risposte!$H:$H,MATCH($C170,db_Risposte!$D:$D,0),1)))","v":""}]
[null,null,null,null,{"$f":"IF($A171=\"\",\"\",IF(INDEX(db_Risposte!$H:$H,MATCH($C171,db_Risposte!$D:$D,0),1)=0,\"\",INDEX(db_Risposte!$H:$H,MATCH($C171,db_Risposte!$D:$D,0),1)))","v":""}]
[null,null,null,null,{"$f":"IF($A172=\"\",\"\",IF(INDEX(db_Risposte!$H:$H,MATCH($C172,db_Risposte!$D:$D,0),1)=0,\"\",INDEX(db_Risposte!$H:$H,MATCH($C172,db_Risposte!$D:$D,0),1)))","v":""}]
[null,null,null,null,{"$f":"IF($A173=\"\",\"\",IF(INDEX(db_Risposte!$H:$H,MATCH($C173,db_Risposte!$D:$D,0),1)=0,\"\",INDEX(db_Risposte!$H:$H,MATCH($C173,db_Risposte!$D:$D,0),1)))","v":""}]
[null,null,null,null,{"$f":"IF($A174=\"\",\"\",IF(INDEX(db_Risposte!$H:$H,MATCH($C174,db_Risposte!$D:$D,0),1)=0,\"\",INDEX(db_Risposte!$H:$H,MATCH($C174,db_Risposte!$D:$D,0),1)))","v":""}]
[null,null,null,null,{"$f":"IF($A175=\"\",\"\",IF(INDEX(db_Risposte!$H:$H,MATCH($C175,db_Risposte!$D:$D,0),1)=0,\"\",INDEX(db_Risposte!$H:$H,MATCH($C175,db_Risposte!$D:$D,0),1)))","v":""}]
[null,null,null,null,{"$f":"IF($A176=\"\",\"\",IF(INDEX(db_Risposte!$H:$H,MATCH($C176,db_Risposte!$D:$D,0),1)=0,\"\",INDEX(db_Risposte!$H:$H,MATCH($C176,db_Risposte!$D:$D,0),1)))","v":""}]
[null,null,null,null,{"$f":"IF($A177=\"\",\"\",IF(INDEX(db_Risposte!$H:$H,MATCH($C177,db_Risposte!$D:$D,0),1)=0,\"\",INDEX(db_Risposte!$H:$H,MATCH($C177,db_Risposte!$D:$D,0),1)))","v":""}]
[null,null,null,null,{"$f":"IF($A178=\"\",\"\",IF(INDEX(db_Risposte!$H:$H,MATCH($C178,db_Risposte!$D:$D,0),1)=0,\"\",INDEX(db_Risposte!$H:$H,MATCH($C178,db_Risposte!$D:$D,0),1)))","v":""}]
[null,null,null,null,{"$f":"IF($A179=\"\",\"\",IF(INDEX(db_Risposte!$H:$H,MATCH($C179,db_Risposte!$D:$D,0),1)=0,\"\",INDEX(db_Risposte!$H:$H,MATCH($C179,db_Risposte!$D:$D,0),1)))","v":""}]
[null,null,null,null,{"$f":"IF($A180=\"\",\"\",IF(INDEX(db_Risposte!$H:$H,MATCH($C180,db_Risposte!$D:$D,0),1)=0,\"\",INDEX(db_Risposte!$H:$H,MATCH($C180,db_Risposte!$D:$D,0),1)))","v":""}]
[null,null,null,null,{"$f":"IF($A181=\"\",\"\",IF(INDEX(db_Risposte!$H:$H,MATCH($C181,db_Risposte!$D:$D,0),1)=0,\"\",INDEX(db_Risposte!$H:$H,MATCH($C181,db_Risposte!$D:$D,0),1)))","v":""}]
[null,null,null,null,{"$f":"IF($A182=\"\",\"\",IF(INDEX(db_Risposte!$H:$H,MATCH($C182,db_Risposte!$D:$D,0),1)=0,\"\",INDEX(db_Risposte!$H:$H,MATCH($C182,db_Risposte!$D:$D,0),1)))","v":""}]
[null,null,null,null,{"$f":"IF($A183=\"\",\"\",IF(INDEX(db_Risposte!$H:$H,MATCH($C183,db_Risposte!$D:$D,0),1)=0,\"\",INDEX(db_Risposte!$H:$H,MATCH($C183,db_Risposte!$D:$D,0),1)))","v":""}]
[null,null,null,null,{"$f":"IF($A184=\"\",\"\",IF(INDEX(db_Risposte!$H:$H,MATCH($C184,db_Risposte!$D:$D,0),1)=0,\"\",INDEX(db_Risposte!$H:$H,MATCH($C184,db_Risposte!$D:$D,0),1)))","v":""}]
[null,null,null,null,{"$f":"IF($A185=\"\",\"\",IF(INDEX(db_Risposte!$H:$H,MATCH($C185,db_Risposte!$D:$D,0),1)=0,\"\",INDEX(db_Risposte!$H:$H,MATCH($C185,db_Risposte!$D:$D,0),1)))","v":""}]
[null,null,null,null,{"$f":"IF($A186=\"\",\"\",IF(INDEX(db_Risposte!$H:$H,MATCH($C186,db_Risposte!$D:$D,0),1)=0,\"\",INDEX(db_Risposte!$H:$H,MATCH($C186,db_Risposte!$D:$D,0),1)))","v":""}]
[null,null,null,null,{"$f":"IF($A187=\"\",\"\",IF(INDEX(db_Risposte!$H:$H,MATCH($C187,db_Risposte!$D:$D,0),1)=0,\"\",INDEX(db_Risposte!$H:$H,MATCH($C187,db_Risposte!$D:$D,0),1)))","v":""}]
[null,null,null,null,{"$f":"IF($A188=\"\",\"\",IF(INDEX(db_Risposte!$H:$H,MATCH($C188,db_Risposte!$D:$D,0),1)=0,\"\",INDEX(db_Risposte!$H:$H,MATCH($C188,db_Risposte!$D:$D,0),1)))","v":""}]
[null,null,null,null,{"$f":"IF($A189=\"\",\"\",IF(INDEX(db_Risposte!$H:$H,MATCH($C189,db_Risposte!$D:$D,0),1)=0,\"\",INDEX(db_Risposte!$H:$H,MATCH($C189,db_Risposte!$D:$D,0),1)))","v":""}]
[null,null,null,null,{"$f":"IF($A190=\"\",\"\",IF(INDEX(db_Risposte!$H:$H,MATCH($C190,db_Risposte!$D:$D,0),1)=0,\"\",INDEX(db_Risposte!$H:$H,MATCH($C190,db_Risposte!$D:$D,0),1)))","v":""}]
[null,null,null,null,{"$f":"IF($A191=\"\",\"\",IF(INDEX(db_Risposte!$H:$H,MATCH($C191,db_Risposte!$D:$D,0),1)=0,\"\",INDEX(db_Risposte!$H:$H,MATCH($C191,db_Risposte!$D:$D,0),1)))","v":""}]
[null,null,null,null,{"$f":"IF($A192=\"\",\"\",IF(INDEX(db_Risposte!$H:$H,MATCH($C192,db_Risposte!$D:$D,0),1)=0,\"\",INDEX(db_Risposte!$H:$H,MATCH($C192,db_Risposte!$D:$D,0),1)))","v":""}]
[null,null,null,null,{"$f":"IF($A193=\"\",\"\",IF(INDEX(db_Risposte!$H:$H,MATCH($C193,db_Risposte!$D:$D,0),1)=0,\"\",INDEX(db_Risposte!$H:$H,MATCH($C193,db_Risposte!$D:$D,0),1)))","v":""}]
[null,null,null,null,{"$f":"IF($A194=\"\",\"\",IF(INDEX(db_Risposte!$H:$H,MATCH($C194,db_Risposte!$D:$D,0),1)=0,\"\",INDEX(db_Risposte!$H:$H,MATCH($C194,db_Risposte!$D:$D,0),1)))","v":""}]
[null,null,null,null,{"$f":"IF($A195=\"\",\"\",IF(INDEX(db_Risposte!$H:$H,MATCH($C195,db_Risposte!$D:$D,0),1)=0,\"\",INDEX(db_Risposte!$H:$H,MATCH($C195,db_Risposte!$D:$D,0),1)))","v":""}]
[null,null,null,null,{"$f":"IF($A196=\"\",\"\",IF(INDEX(db_Risposte!$H:$H,MATCH($C196,db_Risposte!$D:$D,0),1)=0,\"\",INDEX(db_Risposte!$H:$H,MATCH($C196,db_Risposte!$D:$D,0),1)))","v":""}]
[null,null,null,null,{"$f":"IF($A197=\"\",\"\",IF(INDEX(db_Risposte!$H:$H,MATCH($C197,db_Risposte!$D:$D,0),1)=0,\"\",INDEX(db_Risposte!$H:$H,MATCH($C197,db_Risposte!$D:$D,0),1)))","v":""}]
[null,null,null,null,{"$f":"IF($A198=\"\",\"\",IF(INDEX(db_Risposte!$H:$H,MATCH($C198,db_Risposte!$D:$D,0),1)=0,\"\",INDEX(db_Risposte!$H:$H,MATCH($C198,db_Risposte!$D:$D,0),1)))","v":""}]
[null,null,null,null,{"$f":"IF($A199=\"\",\"\",IF(INDEX(db_Risposte!$H:$H,MATCH($C199,db_Risposte!$D:$D,0),1)=0,\"\",INDEX(db_Risposte!$H:$H,MATCH($C199,db_Risposte!$D:$D,0),1)))","v":""}]
[null,null,null,null,{"$f":"IF($A200=\"\",\"\",IF(INDEX(db_Risposte!$H:$H,MATCH($C200,db_Risposte!$D:$D,0),1)=0,\"\",INDEX(db_Risposte!$H:$H,MATCH($C200,db_Risposte!$D:$D,0),1)))","v":""}]
[null,null,null,null,{"$f":"IF($A201=\"\",\"\",IF(INDEX(db_Risposte!$H:$H,MATCH($C201,db_Risposte!$D:$D,0),1)=0,\"\",INDEX(db_Risposte!$H:$H,MATCH($C201,db_Risposte!$D:$D,0),1)))","v":""}]
[null,null,null,null,{"$f":"IF($A202=\"\",\"\",IF(INDEX(db_Risposte!$H:$H,MATCH($C202,db_Risposte!$D:$D,0),1)=0,\"\",INDEX(db_Risposte!$H:$H,MATCH($C202,db_Risposte!$D:$D,0),1)))","v":""}]
[null,null,null,null,{"$f":"IF($A203=\"\",\"\",IF(INDEX(db_Risposte!$H:$H,MATCH($C203,db_Risposte!$D:$D,0),1)=0,\"\",INDEX(db_Risposte!$H:$H,MATCH($C203,db_Risposte!$D:$D,0),1)))","v":""}]
[null,null,null,null,{"$f":"IF($A204=\"\",\"\",IF(INDEX(db_Risposte!$H:$H,MATCH($C204,db_Risposte!$D:$D,0),1)=0,\"\",INDEX(db_Risposte!$H:$H,MATCH($C204,db_Risposte!$D:$D,0),1)))","v":""}]
[null,null,null,null,{"$f":"IF($A205=\"\",\"\",IF(INDEX(db_Risposte!$H:$H,MATCH($C205,db_Risposte!$D:$D,0),1)=0,\"\",INDEX(db_Risposte!$H:$H,MATCH($C205,db_Risposte!$D:$D,0),1)))","v":""}]
[null,null,null,null,{"$f":"IF($A206=\"\",\"\",IF(INDEX(db_Risposte!$H:$H,MATCH($C206,db_Risposte!$D:$D,0),1)=0,\"\",INDEX(db_Risposte!$H:$H,MATCH($C206,db_Risposte!$D:$D,0),1)))","v":""}]
[null,null,null,null,{"$f":"IF($A207=\"\",\"\",IF(INDEX(db_Risposte!$H:$H,MATCH($C207,db_Risposte!$D:$D,0),1)=0,\"\",INDEX(db_Risposte!$H:$H,MATCH($C207,db_Risposte!$D:$D,0),1)))","v":""}]
[null,null,null,null,{"$f":"IF($A208=\"\",\"\",IF(INDEX(db_Risposte!$H:$H,MATCH($C208,db_Risposte!$D:$D,0),1)=0,\"\",INDEX(db_Risposte!$H:$H,MATCH($C208,db_Risposte!$D:$D,0),1)))","v":""}]
[null,null,null,null,{"$f":"IF($A209=\"\",\"\",IF(INDEX(db_Risposte!$H:$H,MATCH($C209,db_Risposte!$D:$D,0),1)=0,\"\",INDEX(db_Risposte!$H:$H,MATCH($C209,db_Risposte!$D:$D,0),1)))","v":""}]
[null,null,null,null,{"$f":"IF($A210=\"\",\"\",IF(INDEX(db_Risposte!$H:$H,MATCH($C210,db_Risposte!$D:$D,0),1)=0,\"\",INDEX(db_Risposte!$H:$H,MATCH($C210,db_Risposte!$D:$D,0),1)))","v":""}]
[null,null,null,null,{"$f":"IF($A211=\"\",\"\",IF(INDEX(db_Risposte!$H:$H,MATCH($C211,db_Risposte!$D:$D,0),1)=0,\"\",INDEX(db_Risposte!$H:$H,MATCH($C211,db_Risposte!$D:$D,0),1)))","v":""}]
[null,null,null,null,{"$f":"IF($A212=\"\",\"\",IF(INDEX(db_Risposte!$H:$H,MATCH($C212,db_Risposte!$D:$D,0),1)=0,\"\",INDEX(db_Risposte!$H:$H,MATCH($C212,db_Risposte!$D:$D,0),1)))","v":""}]
[null,null,null,null,{"$f":"IF($A213=\"\",\"\",IF(INDEX(db_Risposte!$H:$H,MATCH($C213,db_Risposte!$D:$D,0),1)=0,\"\",INDEX(db_Risposte!$H:$H,MATCH($C213,db_Risposte!$D:$D,0),1)))","v":""}]
[null,null,null,null,{"$f":"IF($A214=\"\",\"\",IF(INDEX(db_Risposte!$H:$H,MATCH($C214,db_Risposte!$D:$D,0),1)=0,\"\",INDEX(db_Risposte!$H:$H,MATCH($C214,db_Risposte!$D:$D,0),1)))","v":""}]
[null,null,null,null,{"$f":"IF($A215=\"\",\"\",IF(INDEX(db_Risposte!$H:$H,MATCH($C215,db_Risposte!$D:$D,0),1)=0,\"\",INDEX(db_Risposte!$H:$H,MATCH($C215,db_Risposte!$D:$D,0),1)))","v":""}]
[null,null,null,null,{"$f":"IF($A216=\"\",\"\",IF(INDEX(db_Risposte!$H:$H,MATCH($C216,db_Risposte!$D:$D,0),1)=0,\"\",INDEX(db_Risposte!$H:$H,MATCH($C216,db_Risposte!$D:$D,0),1)))","v":""}]
[null,null,null,null,{"$f":"IF($A217=\"\",\"\",IF(INDEX(db_Risposte!$H:$H,MATCH($C217,db_Risposte!$D:$D,0),1)=0,\"\",INDEX(db_Risposte!$H:$H,MATCH($C217,db_Risposte!$D:$D,0),1)))","v":""}]
[null,null,null,null,{"$f":"IF($A218=\"\",\"\",IF(INDEX(db_Risposte!$H:$H,MATCH($C218,db_Risposte!$D:$D,0),1)=0,\"\",INDEX(db_Risposte!$H:$H,MATCH($C218,db_Risposte!$D:$D,0),1)))","v":""}]
[null,null,null,null,{"$f":"IF($A219=\"\",\"\",IF(INDEX(db_Risposte!$H:$H,MATCH($C219,db_Risposte!$D:$D,0),1)=0,\"\",INDEX(db_Risposte!$H:$H,MATCH($C219,db_Risposte!$D:$D,0),1)))","v":""}]
[null,null,null,null,{"$f":"IF($A220=\"\",\"\",IF(INDEX(db_Risposte!$H:$H,MATCH($C220,db_Risposte!$D:$D,0),1)=0,\"\",INDEX(db_Risposte!$H:$H,MATCH($C220,db_Risposte!$D:$D,0),1)))","v":""}]
[null,null,null,null,{"$f":"IF($A221=\"\",\"\",IF(INDEX(db_Risposte!$H:$H,MATCH($C221,db_Risposte!$D:$D,0),1)=0,\"\",INDEX(db_Risposte!$H:$H,MATCH($C221,db_Risposte!$D:$D,0),1)))","v":""}]
[null,null,null,null,{"$f":"IF($A222=\"\",\"\",IF(INDEX(db_Risposte!$H:$H,MATCH($C222,db_Risposte!$D:$D,0),1)=0,\"\",INDEX(db_Risposte!$H:$H,MATCH($C222,db_Risposte!$D:$D,0),1)))","v":""}]
[null,null,null,null,{"$f":"IF($A223=\"\",\"\",IF(INDEX(db_Risposte!$H:$H,MATCH($C223,db_Risposte!$D:$D,0),1)=0,\"\",INDEX(db_Risposte!$H:$H,MATCH($C223,db_Risposte!$D:$D,0),1)))","v":""}]
[null,null,null,null,{"$f":"IF($A224=\"\",\"\",IF(INDEX(db_Risposte!$H:$H,MATCH($C224,db_Risposte!$D:$D,0),1)=0,\"\",INDEX(db_Risposte!$H:$H,MATCH($C224,db_Risposte!$D:$D,0),1)))","v":""}]
[null,null,null,null,{"$f":"IF($A225=\"\",\"\",IF(INDEX(db_Risposte!$H:$H,MATCH($C225,db_Risposte!$D:$D,0),1)=0,\"\",INDEX(db_Risposte!$H:$H,MATCH($C225,db_Risposte!$D:$D,0),1)))","v":""}]
[null,null,null,null,{"$f":"IF($A226=\"\",\"\",IF(INDEX(db_Risposte!$H:$H,MATCH($C226,db_Risposte!$D:$D,0),1)=0,\"\",INDEX(db_Risposte!$H:$H,MATCH($C226,db_Risposte!$D:$D,0),1)))","v":""}]
[null,null,null,null,{"$f":"IF($A227=\"\",\"\",IF(INDEX(db_Risposte!$H:$H,MATCH($C227,db_Risposte!$D:$D,0),1)=0,\"\",INDEX(db_Risposte!$H:$H,MATCH($C227,db_Risposte!$D:$D,0),1)))","v":""}]
[null,null,null,null,{"$f":"IF($A228=\"\",\"\",IF(INDEX(db_Risposte!$H:$H,MATCH($C228,db_Risposte!$D:$D,0),1)=0,\"\",INDEX(db_Risposte!$H:$H,MATCH($C228,db_Risposte!$D:$D,0),1)))","v":""}]
[null,null,null,null,{"$f":"IF($A229=\"\",\"\",IF(INDEX(db_Risposte!$H:$H,MATCH($C229,db_Risposte!$D:$D,0),1)=0,\"\",INDEX(db_Risposte!$H:$H,MATCH($C229,db_Risposte!$D:$D,0),1)))","v":""}]
[null,null,null,null,{"$f":"IF($A230=\"\",\"\",IF(INDEX(db_Risposte!$H:$H,MATCH($C230,db_Risposte!$D:$D,0),1)=0,\"\",INDEX(db_Risposte!$H:$H,MATCH($C230,db_Risposte!$D:$D,0),1)))","v":""}]
[null,null,null,null,{"$f":"IF($A231=\"\",\"\",IF(INDEX(db_Risposte!$H:$H,MATCH($C231,db_Risposte!$D:$D,0),1)=0,\"\",INDEX(db_Risposte!$H:$H,MATCH($C231,db_Risposte!$D:$D,0),1)))","v":""}]
[null,null,null,null,{"$f":"IF($A232=\"\",\"\",IF(INDEX(db_Risposte!$H:$H,MATCH($C232,db_Risposte!$D:$D,0),1)=0,\"\",INDEX(db_Risposte!$H:$H,MATCH($C232,db_Risposte!$D:$D,0),1)))","v":""}]
[null,null,null,null,{"$f":"IF($A233=\"\",\"\",IF(INDEX(db_Risposte!$H:$H,MATCH($C233,db_Risposte!$D:$D,0),1)=0,\"\",INDEX(db_Risposte!$H:$H,MATCH($C233,db_Risposte!$D:$D,0),1)))","v":""}]
[null,null,null,null,{"$f":"IF($A234=\"\",\"\",IF(INDEX(db_Risposte!$H:$H,MATCH($C234,db_Risposte!$D:$D,0),1)=0,\"\",INDEX(db_Risposte!$H:$H,MATCH($C234,db_Risposte!$D:$D,0),1)))","v":""}]
[null,null,null,null,{"$f":"IF($A235=\"\",\"\",IF(INDEX(db_Risposte!$H:$H,MATCH($C235,db_Risposte!$D:$D,0),1)=0,\"\",INDEX(db_Risposte!$H:$H,MATCH($C235,db_Risposte!$D:$D,0),1)))","v":""}]
[null,null,null,null,{"$f":"IF($A236=\"\",\"\",IF(INDEX(db_Risposte!$H:$H,MATCH($C236,db_Risposte!$D:$D,0),1)=0,\"\",INDEX(db_Risposte!$H:$H,MATCH($C236,db_Risposte!$D:$D,0),1)))","v":""}]
[null,null,null,null,{"$f":"IF($A237=\"\",\"\",IF(INDEX(db_Risposte!$H:$H,MATCH($C237,db_Risposte!$D:$D,0),1)=0,\"\",INDEX(db_Risposte!$H:$H,MATCH($C237,db_Risposte!$D:$D,0),1)))","v":""}]
[null,null,null,null,{"$f":"IF($A238=\"\",\"\",IF(INDEX(db_Risposte!$H:$H,MATCH($C238,db_Risposte!$D:$D,0),1)=0,\"\",INDEX(db_Risposte!$H:$H,MATCH($C238,db_Risposte!$D:$D,0),1)))","v":""}]
[null,null,null,null,{"$f":"IF($A239=\"\",\"\",IF(INDEX(db_Risposte!$H:$H,MATCH($C239,db_Risposte!$D:$D,0),1)=0,\"\",INDEX(db_Risposte!$H:$H,MATCH($C239,db_Risposte!$D:$D,0),1)))","v":""}]
[null,null,null,null,{"$f":"IF($A240=\"\",\"\",IF(INDEX(db_Risposte!$H:$H,MATCH($C240,db_Risposte!$D:$D,0),1)=0,\"\",INDEX(db_Risposte!$H:$H,MATCH($C240,db_Risposte!$D:$D,0),1)))","v":""}]
[null,null,null,null,{"$f":"IF($A241=\"\",\"\",IF(INDEX(db_Risposte!$H:$H,MATCH($C241,db_Risposte!$D:$D,0),1)=0,\"\",INDEX(db_Risposte!$H:$H,MATCH($C241,db_Risposte!$D:$D,0),1)))","v":""}]
[null,null,null,null,{"$f":"IF($A242=\"\",\"\",IF(INDEX(db_Risposte!$H:$H,MATCH($C242,db_Risposte!$D:$D,0),1)=0,\"\",INDEX(db_Risposte!$H:$H,MATCH($C242,db_Risposte!$D:$D,0),1)))","v":""}]
[null,null,null,null,{"$f":"IF($A243=\"\",\"\",IF(INDEX(db_Risposte!$H:$H,MATCH($C243,db_Risposte!$D:$D,0),1)=0,\"\",INDEX(db_Risposte!$H:$H,MATCH($C243,db_Risposte!$D:$D,0),1)))","v":""}]
[null,null,null,null,{"$f":"IF($A244=\"\",\"\",IF(INDEX(db_Risposte!$H:$H,MATCH($C244,db_Risposte!$D:$D,0),1)=0,\"\",INDEX(db_Risposte!$H:$H,MATCH($C244,db_Risposte!$D:$D,0),1)))","v":""}]
[null,null,null,null,{"$f":"IF($A245=\"\",\"\",IF(INDEX(db_Risposte!$H:$H,MATCH($C245,db_Risposte!$D:$D,0),1)=0,\"\",INDEX(db_Risposte!$H:$H,MATCH($C245,db_Risposte!$D:$D,0),1)))","v":""}]
[null,null,null,null,{"$f":"IF($A246=\"\",\"\",IF(INDEX(db_Risposte!$H:$H,MATCH($C246,db_Risposte!$D:$D,0),1)=0,\"\",INDEX(db_Risposte!$H:$H,MATCH($C246,db_Risposte!$D:$D,0),1)))","v":""}]
[null,null,null,null,{"$f":"IF($A247=\"\",\"\",IF(INDEX(db_Risposte!$H:$H,MATCH($C247,db_Risposte!$D:$D,0),1)=0,\"\",INDEX(db_Risposte!$H:$H,MATCH($C247,db_Risposte!$D:$D,0),1)))","v":""}]
[null,null,null,null,{"$f":"IF($A248=\"\",\"\",IF(INDEX(db_Risposte!$H:$H,MATCH($C248,db_Risposte!$D:$D,0),1)=0,\"\",INDEX(db_Risposte!$H:$H,MATCH($C248,db_Risposte!$D:$D,0),1)))","v":""}]
[null,null,null,null,{"$f":"IF($A249=\"\",\"\",IF(INDEX(db_Risposte!$H:$H,MATCH($C249,db_Risposte!$D:$D,0),1)=0,\"\",INDEX(db_Risposte!$H:$H,MATCH($C249,db_Risposte!$D:$D,0),1)))","v":""}]
[null,null,null,null,{"$f":"IF($A250=\"\",\"\",IF(INDEX(db_Risposte!$H:$H,MATCH($C250,db_Risposte!$D:$D,0),1)=0,\"\",INDEX(db_Risposte!$H:$H,MATCH($C250,db_Risposte!$D:$D,0),1)))","v":""}]
[]
[]
[]
[]
[]
[]
[]
[]
[]
[]
[]
[]
[]
[]
[]
[]
[]
[]
[]
[]
[]
[]
[]
[]
[]
[]
[]
[]
[]
[]
[]
[]
[]
[]
[]
[]
[]
[]
[]
[]
[]
[]
[]
[]
[]
[]
[]
[]
[]
[]
[]
[]
[]
[]
[]
[]
[]
[]
[]
[]
[]
[]
[]
[]
[]
[]
[]
[]
[]
[]
[]
[]
[]
[]
[]
[]
[]
[]
[]
[]
[]
[]
[]
[]
[]
[]
[]
[]
[]
[]
[]
[]
[]
[]
[]
[]
[]
[]
[]
[]
[]
[]
[]
[]
[]
[]
[]
[]
[]
[]
[]
[]
[]
[]
[]
[]
[]
[]
[]
[]
[]
[]
[]
[]
[]
[]
[]
[]
[]
[]
[]
[]
[]
[]
[]
[]
[]
[]
[]
[]
[]
[]
[]
[]
[]
[]
[]
[]
[]
[]
[]
[]
[]
[]
[]
[]
[]
[]
[]
[]
[]
[]
[]
[]
[]
[]
[]
[]
[]
[]
[]
[]
[]
[]
[]
[]
[]
[]
[]
[]
[]
[]
[]
[]
[]
[]
[]
[]
[]
[]
[]
[]
[]
[]
[]
[]
[]
[]
[]
[]
[]
[]
[]
[]
[]
[]
[]
[]
[]
[]
[]
[]
[]
[]
[]
[]
[]
[]
[]
[]
[]
[]
[]
[]
[]
[]
[]
[]
[]
[]
[]
[]
[]
[]
[]
[]
[]
[]
[]
[]
[]
[]
[]
[]
[]
[]
[]
[]
[]
[]
[]
[]
[]
[]
[]
[]
[]
[]
[]
[]
[]
[]
[]
[]
[]
[]
[]
[]
[]
[]
[]
[]
[]
[]
[]
[]
[]
[]
[]
[]
[]
[]
[]
[]
[]
[]
[]
[]
[]
[]
[]
[]
[]
[]
[]
[]
[]
[]
[]
[]
[]
[]
[]
[]
[]
[]
[]
[]
[]
[]
[]
[]
[]
[]
[]
[]
[]
[]
[]
[]
[]
[]
[]
[]
[]
[]
[]
[]
[]
[]
[]
[]
[]
[]
[]
[]
[]
[]
[]
[]
[]
[]
[]
[]
[]
[]
[]
[]
[]
[]
[]
[]
[]
[]
[]
[]
[]
[]
[]
[]
[]
[]
[]
[]
[]
[]
[]
[]
[]
[]
[]
[]
[]
[]
[]
[]
[]
[]
[]
[]
[]
[]
[]
[]
[]
[]
[]
[]
[]
[]
[]
[]
[]
[]
[]
[]
[]
[]
[]
[]
[]
[]
[]
[]
[]
[]
[]
[]
[]
[]
[]
[]
[]
[]
[]
[]
[]
[]
[]
[]
[]
[]
[]
[]
[]
[]
[]
[]
[]
[]
[]
[]
[]
[]
[]
[]
[]
[]
[]
[]
[]
[]
[]
[]
[]
[]
[]
[]
[]
[]
[]
[]
[]
[]
[]
[]
[]
[]
[]
[]
[]
[]
[]
[]
[]
[]
[]
[]
[]
[]
[]
[]
[]
[]
[]
[]
[]
[]
[]
[]
[]
[]
[]
[]
[]
[]
[]
[]
[]
[]
[]
[]
[]
[]
[]
[]
[]
[]
[]
[]
[]
[]
[]
[]
[]
[]
[]
[]
[]
[]
[]
[]
[]
[]
[]
[]
[]
[]
[]
[]
[]
[]
[]
[]
[]
[]
[]
[]
[]
[]
[]
[]
[]
[]
[]
[]
[]
[]
[]
[]
[]
[]
[]
[]
[]
[]
[]
[]
[]
[]
[]
[]
[]
[]
[]
[]
[]
[]
[]
[]
[]
[]
[]
[]
[]
[]
[]
[]
[]
[]
[]
[]
[]
[]
[]
[]
[]
[]
[]
[]
[]
[]
[]
[]
[]
[]
[]
[]
[]
[]
[]
[]
[]
[]
[]
[]
[]
[]
[]
[]
[]
[]
[]
[]
[]
[]
[]
[]
[]
[]
[]
[]
[]
[]
[]
[]
[]
[]
[]
[]
[]
[]
[]
[]
[]
[]
[]
[]
[]
[]
[]
[]
[]
[]
[]
[]
[]
[]
[]
[]
[]
[]
[]
[]
[]
[]
[]
[]
[]
[]
[]
[]
[]
[]
[]
[]
[]
[]
[]
[]
[]
[]
[]
[]
[]
[]
[]
[]
[]
[]
[]
[]
[]
[]
[]
[]
[]
[]
[]
[]
[]
[]
[]
[]
[]
[]
[]
[]
[]
[]
[]
[]
[]
[]
[]
[]
[]
[]
[]
[]
[]
[]
[]
[]
[]
[]
[]
[]
[]
[]
[]
[]
[]
[]
[]
[]
[]
[]
[]
[]
[]
[]
[]
[]
[]
[]
[]
[]
[]
[]
[]
[]
[]
[]
[]
[]
[]
[]
[]
[]
[]
[]
[]
[]
[]
[]
[]
[]
[null,null,null,null,{"$f":"IF($A999=\"\",\"\",IF(INDEX(#REF!,MATCH($C999,#REF!,0),1)=0,\"\",INDEX(#REF!,MATCH($C999,#REF!,0),1)))","v":""}]
[null,null,null,null,{"$f":"IF($A1000=\"\",\"\",IF(INDEX(#REF!,MATCH($C1000,#REF!,0),1)=0,\"\",INDEX(#REF!,MATCH($C1000,#REF!,0),1)))","v":""}]
[null,null,null,null,{"$f":"IF($A1001=\"\",\"\",IF(INDEX(#REF!,MATCH($C1001,#REF!,0),1)=0,\"\",INDEX(#REF!,MATCH($C1001,#REF!,0),1)))","v":""}]

{"sheet":"GRAFICI","index":3,"n_rows":93,"n_cols":22,"rows_kept":93,"cut":false,"hidden":true,"merged":[[6,1,6,7],[6,10,6,16],[29,1,29,16],[2,1,2,16],[93,1,105,16],[31,14,36,16],[45,14,50,16],[59,14,64,16],[66,14,71,16],[38,14,43,16],[52,14,57,16],[80,14,85,16],[73,14,78,16],[92,1,92,16]]}
[null,"BUSINESS CONTINUITY EMERGENCY PLAN - Assessment ",null,null,null,null,null,null,null,null,null,null,null,null,null,null,null,null,null,null,"check",{"$f":"db_GRAFICI!N4","v":"Ok"}]
[]
[null,{"$f":"IF(BCEP_Assessment!$D$3=\"\",\"\",BCEP_Assessment!$D$3)","v":""}]
[]
[]
[]
[null,"risultato GENERALE",null,null,null,null,null,null,null,null,"risultato PILLAR"]
[]
[]
[]
[]
[]
[]
[]
[]
[]
[]
[]
[]
[]
[]
[]
[]
[]
[]
[]
[]
[]
[]
[null,"dettaglio PILLAR"]
[]
[]
[]
[]
[]
[]
[]
[]
[]
[]
[]
[]
[]
[]
[]
[]
[]
[]
[]
[]
[]
[]
[]
[]
[]
[]
[]
[]
[]
[]
[]
[]
[]
[]
[]
[]
[]
[]
[]
[]
[]
[]
[]
[]
[]
[]
[]
[]
[]
[]
[]
[]
[]
[]
[]
[]
[]
[]
[]
[]
[]
[]
[null,"considerazioni generali"]

{"sheet":"db_GRAFICI","index":4,"n_rows":184,"n_cols":15,"rows_kept":184,"cut":false,"hidden":true,"merged":[]}
["risultato GENERALE"]
[null,null,null,null,null,null,null,null,null,null,null,null,null,"check"]
[null,"Valori",null,null,null,null,null,null,null,null,null,null,null,"finale","riga con errore"]
[null,"Somma di RISPOSTA_punteggio","Somma di RISPOSTA_punteggio_max",null,null,"area presidiata","area di miglioramento",null,null,"check",null,null,null,{"$f":"IF(ISERROR(MATCH(\"Err\",$J:$J,0)),\"Ok\",\"Err\")","v":"Ok"},{"$f":"IF($N$4=\"Err\",MATCH(\"Err\",$J:$J,0),\"\")","v":""}]
["Totale",92,103,null,null,{"$f":"IFERROR(B5/C5,0)","v":0.89320388349514568},{"$f":"1-F5","v":0.10679611650485432},null,null,{"$f":"IF(AND($B5=0,$C5=0),\"Ok\",IF(ISERROR(B5/C5),\"Err\",\"Ok\"))","v":"Ok"}]
[]
[]
[]
[]
[]
["risultato PILLAR"]
[]
[null,"Valori"]
["PILLAR_desc","Somma di RISPOSTA_punteggio","Somma di RISPOSTA_punteggio_max",null,"pillar","area presidiata","area di miglioramento",null,null,"check"]
["Market",11,11,null,{"$f":"A15","v":"Market"},{"$f":"IFERROR(INDEX($B$13:$B$23,MATCH(E15,$A$13:$A$23,0),1)/INDEX($C$13:$C$23,MATCH(E15,$A$13:$A$23,0),1),0)","v":1},{"$f":"1-F15","v":0},null,null,{"$f":"IF(AND($B15=0,$C15=0),\"Ok\",IF(ISERROR(INDEX($B$13:$B$23,MATCH(E15,$A$13:$A$23,0),1)/INDEX($C$13:$C$23,MATCH(E15,$A$13:$A$23,0),1)),\"Err\",\"Ok\"))","v":"Ok"}]
["Supply Chain",14,14,null,{"$f":"A16","v":"Supply Chain"},{"$f":"IFERROR(INDEX($B$13:$B$23,MATCH(E16,$A$13:$A$23,0),1)/INDEX($C$13:$C$23,MATCH(E16,$A$13:$A$23,0),1),0)","v":1},{"$f":"1-F16","v":0},null,null,"Ok"]
["Operations",9,9,null,"Operations",1,0,null,null,"Ok"]
["People & Organization",13,13,null,"People & Organization",1,0,null,null,"Ok"]
["Health & Safety",15,15,null,"Health & Safety",1,0,null,null,"Ok"]
["Information Technology",15,15,null,"Information Technology",1,0,null,null,"Ok"]
["Cash & Liquidity",9,17,null,"Cash & Liquidity",0.52941176470588236,0.47058823529411764,null,null,"Ok"]
["Investments",6,9,null,"Investments",0.66666666666666663,0.33333333333333337,null,null,"Ok"]
[]
[]
[]
[]
["risultato DETTAGLIO PILLAR"]
[]
[]
[]
[null,"Valori"]
["PILLAR_desc","Somma di RISPOSTA_punteggio","Somma di RISPOSTA_punteggio_max",null,null,"area presidiata","area di miglioramento",null,null,"check"]
["Market",11,11,null,null,{"$f":"IFERROR(B33/C33,0)","v":1},{"$f":"1-F33","v":0},null,null,{"$f":"IF(AND($B33=0,$C33=0),\"Ok\",IF(ISERROR(B33/C33),\"Err\",\"Ok\"))","v":"Ok"}]
[]
[]
[]
["PILLAR_desc","Market"]
[]
[null,"Valori"]
["DOMANDA_L01","Somma di RISPOSTA_punteggio","Somma di RISPOSTA_punteggio_max",null,"intervento","area presidiata","area di miglioramento",null,null,"check"]
["Continuity",4,4,null,"Continuity",{"$f":"IFERROR(INDEX($B$39:$B$45,MATCH(E41,$A$39:$A$45,0),1)/INDEX($C$39:$C$45,MATCH(E41,$A$39:$A$45,0),1),0)","v":1},{"$f":"1-F41","v":0},null,null,{"$f":"IF(AND($B41=0,$C41=0),\"Ok\",IF(ISERROR(INDEX($B$39:$B$45,MATCH(E41,$A$39:$A$45,0),1)/INDEX($C$39:$C$45,MATCH(E41,$A$39:$A$45,0),1)),\"Err\",\"Ok\"))","v":"Ok"}]
["Emergency",3,3,null,"Emergency",{"$f":"IFERROR(INDEX($B$39:$B$45,MATCH(E42,$A$39:$A$45,0),1)/INDEX($C$39:$C$45,MATCH(E42,$A$39:$A$45,0),1),0)","v":1},0,null,null,{"$f":"IF(AND($B42=0,$C42=0),\"Ok\",IF(ISERROR(INDEX($B$39:$B$45,MATCH(E42,$A$39:$A$45,0),1)/INDEX($C$39:$C$45,MATCH(E42,$A$39:$A$45,0),1)),\"Err\",\"Ok\"))","v":"Ok"}]
["Monitoring",2,2,null,"Monitoring",1,0,null,null,{"$f":"IF(AND($B43=0,$C43=0),\"Ok\",IF(ISERROR(INDEX($B$39:$B$45,MATCH(E43,$A$39:$A$45,0),1)/INDEX($C$39:$C$45,MATCH(E43,$A$39:$A$45,0),1)),\"Err\",\"Ok\"))","v":"Ok"}]
["Planning",2,2,null,"Planning",1,0,null,null,{"$f":"IF(AND($B44=0,$C44=0),\"Ok\",IF(ISERROR(INDEX($B$39:$B$45,MATCH(E44,$A$39:$A$45,0),1)/INDEX($C$39:$C$45,MATCH(E44,$A$39:$A$45,0),1)),\"Err\",\"Ok\"))","v":"Ok"}]
[]
[]
[]
[]
[]
[]
[null,"Valori"]
["PILLAR_desc","Somma di RISPOSTA_punteggio","Somma di RISPOSTA_punteggio_max",null,null,"area presidiata","area di miglioramento",null,null,"check"]
["Supply Chain",14,14,null,null,{"$f":"IFERROR(B53/C53,0)","v":1},{"$f":"1-F53","v":0},null,null,{"$f":"IF(AND($B53=0,$C53=0),\"Ok\",IF(ISERROR(B53/C53),\"Err\",\"Ok\"))","v":"Ok"}]
[]
[]
[]
["PILLAR_desc","Supply Chain"]
[]
[null,"Valori"]
["DOMANDA_L01","Somma di RISPOSTA_punteggio","Somma di RISPOSTA_punteggio_max",null,"intervento","area presidiata","area di miglioramento",null,null,"check"]
["Continuity",3,3,null,"Continuity",{"$f":"IFERROR(INDEX($B$59:$B$65,MATCH(E61,$A$59:$A$65,0),1)/INDEX($C$59:$C$65,MATCH(E61,$A$59:$A$65,0),1),0)","v":1},{"$f":"1-F61","v":0},null,null,{"$f":"IF(AND($B61=0,$C61=0),\"Ok\",IF(ISERROR(INDEX($B$59:$B$65,MATCH(E61,$A$59:$A$65,0),1)/INDEX($C$59:$C$65,MATCH(E61,$A$59:$A$65,0),1)),\"Err\",\"Ok\"))","v":"Ok"}]
["Emergency",5,5,null,"Emergency",{"$f":"IFERROR(INDEX($B$59:$B$65,MATCH(E62,$A$59:$A$65,0),1)/INDEX($C$59:$C$65,MATCH(E62,$A$59:$A$65,0),1),0)","v":1},0,null,null,{"$f":"IF(AND($B62=0,$C62=0),\"Ok\",IF(ISERROR(INDEX($B$59:$B$65,MATCH(E62,$A$59:$A$65,0),1)/INDEX($C$59:$C$65,MATCH(E62,$A$59:$A$65,0),1)),\"Err\",\"Ok\"))","v":"Ok"}]
["Monitoring",3,3,null,"Monitoring",1,0,null,null,{"$f":"IF(AND($B63=0,$C63=0),\"Ok\",IF(ISERROR(INDEX($B$59:$B$65,MATCH(E63,$A$59:$A$65,0),1)/INDEX($C$59:$C$65,MATCH(E63,$A$59:$A$65,0),1)),\"Err\",\"Ok\"))","v":"Ok"}]
["Planning",3,3,null,"Planning",1,0,null,null,{"$f":"IF(AND($B64=0,$C64=0),\"Ok\",IF(ISERROR(INDEX($B$59:$B$65,MATCH(E64,$A$59:$A$65,0),1)/INDEX($C$59:$C$65,MATCH(E64,$A$59:$A$65,0),1)),\"Err\",\"Ok\"))","v":"Ok"}]
[]
[]
[]
[]
[]
[]
[null,"Valori"]
["PILLAR_desc","Somma di RISPOSTA_punteggio","Somma di RISPOSTA_punteggio_max",null,null,"area presidiata","area di miglioramento",null,null,"check"]
["Operations",9,9,null,null,{"$f":"IFERROR(B73/C73,0)","v":1},{"$f":"1-F73","v":0},null,null,{"$f":"IF(AND($B73=0,$C73=0),\"Ok\",IF(ISERROR(B73/C73),\"Err\",\"Ok\"))","v":"Ok"}]
[]
[]
[]
["PILLAR_desc","Operations"]
[]
[null,"Valori"]
["DOMANDA_L01","Somma di RISPOSTA_punteggio","Somma di RISPOSTA_punteggio_max",null,"intervento","area presidiata","area di miglioramento",null,null,"check"]
["Continuity",2,2,null,"Continuity",{"$f":"IFERROR(INDEX($B$79:$B$85,MATCH(E81,$A$79:$A$85,0),1)/INDEX($C$79:$C$85,MATCH(E81,$A$79:$A$85,0),1),0)","v":1},{"$f":"1-F81","v":0},null,null,{"$f":"IF(AND($B81=0,$C81=0),\"Ok\",IF(ISERROR(INDEX($B$79:$B$85,MATCH(E81,$A$79:$A$85,0),1)/INDEX($C$79:$C$85,MATCH(E81,$A$79:$A$85,0),1)),\"Err\",\"Ok\"))","v":"Ok"}]
["Emergency",2,2,null,"Emergency",{"$f":"IFERROR(INDEX($B$79:$B$85,MATCH(E82,$A$79:$A$85,0),1)/INDEX($C$79:$C$85,MATCH(E82,$A$79:$A$85,0),1),0)","v":1},0,null,null,{"$f":"IF(AND($B82=0,$C82=0),\"Ok\",IF(ISERROR(INDEX($B$79:$B$85,MATCH(E82,$A$79:$A$85,0),1)/INDEX($C$79:$C$85,MATCH(E82,$A$79:$A$85,0),1)),\"Err\",\"Ok\"))","v":"Ok"}]
["Monitoring",2,2,null,"Monitoring",1,0,null,null,{"$f":"IF(AND($B83=0,$C83=0),\"Ok\",IF(ISERROR(INDEX($B$79:$B$85,MATCH(E83,$A$79:$A$85,0),1)/INDEX($C$79:$C$85,MATCH(E83,$A$79:$A$85,0),1)),\"Err\",\"Ok\"))","v":"Ok"}]
["Planning",3,3,null,"Planning",1,0,null,null,{"$f":"IF(AND($B84=0,$C84=0),\"Ok\",IF(ISERROR(INDEX($B$79:$B$85,MATCH(E84,$A$79:$A$85,0),1)/INDEX($C$79:$C$85,MATCH(E84,$A$79:$A$85,0),1)),\"Err\",\"Ok\"))","v":"Ok"}]
[]
[]
[]
[]
[]
[]
[null,"Valori"]
["PILLAR_desc","Somma di RISPOSTA_punteggio","Somma di RISPOSTA_punteggio_max",null,null,"area presidiata","area di miglioramento",null,null,"check"]
["People & Organization",13,13,null,null,{"$f":"IFERROR(B93/C93,0)","v":1},{"$f":"1-F93","v":0},null,null,{"$f":"IF(AND($B93=0,$C93=0),\"Ok\",IF(ISERROR(B93/C93),\"Err\",\"Ok\"))","v":"Ok"}]
[]
[]
[]
["PILLAR_desc","People & Organization"]
[]
[null,"Valori"]
["DOMANDA_L01","Somma di RISPOSTA_punteggio","Somma di RISPOSTA_punteggio_max",null,"intervento","area presidiata","area di miglioramento",null,null,"check"]
["Continuity",4,4,null,"Continuity",{"$f":"IFERROR(INDEX($B$99:$B$105,MATCH(E101,$A$99:$A$105,0),1)/INDEX($C$99:$C$105,MATCH(E101,$A$99:$A$105,0),1),0)","v":1},{"$f":"1-F101","v":0},null,null,{"$f":"IF(AND($B101=0,$C101=0),\"Ok\",IF(ISERROR(INDEX($B$99:$B$105,MATCH(E101,$A$99:$A$105,0),1)/INDEX($C$99:$C$105,MATCH(E101,$A$99:$A$105,0),1)),\"Err\",\"Ok\"))","v":"Ok"}]
["Emergency",3,3,null,"Emergency",{"$f":"IFERROR(INDEX($B$99:$B$105,MATCH(E102,$A$99:$A$105,0),1)/INDEX($C$99:$C$105,MATCH(E102,$A$99:$A$105,0),1),0)","v":1},0,null,null,{"$f":"IF(AND($B102=0,$C102=0),\"Ok\",IF(ISERROR(INDEX($B$99:$B$105,MATCH(E102,$A$99:$A$105,0),1)/INDEX($C$99:$C$105,MATCH(E102,$A$99:$A$105,0),1)),\"Err\",\"Ok\"))","v":"Ok"}]
["Monitoring",3,3,null,"Monitoring",1,0,null,null,{"$f":"IF(AND($B103=0,$C103=0),\"Ok\",IF(ISERROR(INDEX($B$99:$B$105,MATCH(E103,$A$99:$A$105,0),1)/INDEX($C$99:$C$105,MATCH(E103,$A$99:$A$105,0),1)),\"Err\",\"Ok\"))","v":"Ok"}]
["Planning",3,3,null,"Planning",1,0,null,null,{"$f":"IF(AND($B104=0,$C104=0),\"Ok\",IF(ISERROR(INDEX($B$99:$B$105,MATCH(E104,$A$99:$A$105,0),1)/INDEX($C$99:$C$105,MATCH(E104,$A$99:$A$105,0),1)),\"Err\",\"Ok\"))","v":"Ok"}]
[]
[]
[]
[]
[]
[]
[null,"Valori"]
["PILLAR_desc","Somma di RISPOSTA_punteggio","Somma di RISPOSTA_punteggio_max",null,null,"area presidiata","area di miglioramento",null,null,"check"]
["Health & Safety",15,15,null,null,{"$f":"IFERROR(B113/C113,0)","v":1},{"$f":"1-F113","v":0},null,null,{"$f":"IF(AND($B113=0,$C113=0),\"Ok\",IF(ISERROR(B113/C113),\"Err\",\"Ok\"))","v":"Ok"}]
[]
[]
[]
["PILLAR_desc","Health & Safety"]
[]
[null,"Valori"]
["DOMANDA_L01","Somma di RISPOSTA_punteggio","Somma di RISPOSTA_punteggio_max",null,"intervento","%","area di miglioramento",null,null,"check"]
["Continuity",7,7,null,"Continuity",{"$f":"IFERROR(INDEX($B$119:$B$125,MATCH(E121,$A$119:$A$125,0),1)/INDEX($C$119:$C$125,MATCH(E121,$A$119:$A$125,0),1),0)","v":1},{"$f":"1-F121","v":0},null,null,{"$f":"IF(AND($B121=0,$C121=0),\"Ok\",IF(ISERROR(INDEX($B$119:$B$125,MATCH(E121,$A$119:$A$125,0),1)/INDEX($C$119:$C$125,MATCH(E121,$A$119:$A$125,0),1)),\"Err\",\"Ok\"))","v":"Ok"}]
["Emergency",3,3,null,"Emergency",{"$f":"IFERROR(INDEX($B$119:$B$125,MATCH(E122,$A$119:$A$125,0),1)/INDEX($C$119:$C$125,MATCH(E122,$A$119:$A$125,0),1),0)","v":1},0,null,null,{"$f":"IF(AND($B122=0,$C122=0),\"Ok\",IF(ISERROR(INDEX($B$119:$B$125,MATCH(E122,$A$119:$A$125,0),1)/INDEX($C$119:$C$125,MATCH(E122,$A$119:$A$125,0),1)),\"Err\",\"Ok\"))","v":"Ok"}]
["Monitoring",2,2,null,"Monitoring",1,0,null,null,{"$f":"IF(AND($B123=0,$C123=0),\"Ok\",IF(ISERROR(INDEX($B$119:$B$125,MATCH(E123,$A$119:$A$125,0),1)/INDEX($C$119:$C$125,MATCH(E123,$A$119:$A$125,0),1)),\"Err\",\"Ok\"))","v":"Ok"}]
["Planning",3,3,null,"Planning",1,0,null,null,{"$f":"IF(AND($B124=0,$C124=0),\"Ok\",IF(ISERROR(INDEX($B$119:$B$125,MATCH(E124,$A$119:$A$125,0),1)/INDEX($C$119:$C$125,MATCH(E124,$A$119:$A$125,0),1)),\"Err\",\"Ok\"))","v":"Ok"}]
[]
[]
[]
[]
[]
[]
[null,"Valori"]
["PILLAR_desc","Somma di RISPOSTA_punteggio","Somma di RISPOSTA_punteggio_max",null,null,"area presidiata","area di miglioramento",null,null,"check"]
["Information Technology",15,15,null,null,{"$f":"IFERROR(B133/C133,0)","v":1},{"$f":"1-F133","v":0},null,null,{"$f":"IF(AND($B133=0,$C133=0),\"Ok\",IF(ISERROR(B133/C133),\"Err\",\"Ok\"))","v":"Ok"}]
[]
[]
[]
["PILLAR_desc","Information Technology"]
[]
[null,"Valori"]
["DOMANDA_L01","Somma di RISPOSTA_punteggio","Somma di RISPOSTA_punteggio_max",null,"intervento","%","area di miglioramento",null,null,"check"]
["Continuity",6,6,null,"Continuity",{"$f":"IFERROR(INDEX($B$139:$B$145,MATCH(E141,$A$139:$A$145,0),1)/INDEX($C$139:$C$145,MATCH(E141,$A$139:$A$145,0),1),0)","v":1},{"$f":"1-F141","v":0},null,null,{"$f":"IF(AND($B141=0,$C141=0),\"Ok\",IF(ISERROR(INDEX($B$139:$B$145,MATCH(E141,$A$139:$A$145,0),1)/INDEX($C$139:$C$145,MATCH(E141,$A$139:$A$145,0),1)),\"Err\",\"Ok\"))","v":"Ok"}]
["Emergency",2,2,null,"Emergency",{"$f":"IFERROR(INDEX($B$139:$B$145,MATCH(E142,$A$139:$A$145,0),1)/INDEX($C$139:$C$145,MATCH(E142,$A$139:$A$145,0),1),0)","v":1},0,null,null,{"$f":"IF(AND($B142=0,$C142=0),\"Ok\",IF(ISERROR(INDEX($B$139:$B$145,MATCH(E142,$A$139:$A$145,0),1)/INDEX($C$139:$C$145,MATCH(E142,$A$139:$A$145,0),1)),\"Err\",\"Ok\"))","v":"Ok"}]
["Monitoring",2,2,null,"Monitoring",1,0,null,null,{"$f":"IF(AND($B143=0,$C143=0),\"Ok\",IF(ISERROR(INDEX($B$139:$B$145,MATCH(E143,$A$139:$A$145,0),1)/INDEX($C$139:$C$145,MATCH(E143,$A$139:$A$145,0),1)),\"Err\",\"Ok\"))","v":"Ok"}]
["Planning",5,5,null,"Planning",1,0,null,null,{"$f":"IF(AND($B144=0,$C144=0),\"Ok\",IF(ISERROR(INDEX($B$139:$B$145,MATCH(E144,$A$139:$A$145,0),1)/INDEX($C$139:$C$145,MATCH(E144,$A$139:$A$145,0),1)),\"Err\",\"Ok\"))","v":"Ok"}]
[]
[]
[]
[]
[]
[]
[null,"Valori"]
["PILLAR_desc","Somma di RISPOSTA_punteggio","Somma di RISPOSTA_punteggio_max",null,null,"area presidiata","area di miglioramento",null,null,"check"]
["Cash & Liquidity",9,17,null,null,{"$f":"IFERROR(B153/C153,0)","v":0.52941176470588236},{"$f":"1-F153","v":0.47058823529411764},null,null,{"$f":"IF(AND($B153=0,$C153=0),\"Ok\",IF(ISERROR(B153/C153),\"Err\",\"Ok\"))","v":"Ok"}]
[]
[]
[]
["PILLAR_desc","Cash & Liquidity"]
[]
[null,"Valori"]
["DOMANDA_L01","Somma di RISPOSTA_punteggio","Somma di RISPOSTA_punteggio_max",null,"intervento","%","area di miglioramento",null,null,"check"]
["Continuity",5,7,null,"Continuity",{"$f":"IFERROR(INDEX($B$159:$B$165,MATCH(E161,$A$159:$A$165,0),1)/INDEX($C$159:$C$165,MATCH(E161,$A$159:$A$165,0),1),0)","v":0.7142857142857143},{"$f":"1-F161","v":0.2857142857142857},null,null,{"$f":"IF(AND($B161=0,$C161=0),\"Ok\",IF(ISERROR(INDEX($B$159:$B$165,MATCH(E161,$A$159:$A$165,0),1)/INDEX($C$159:$C$165,MATCH(E161,$A$159:$A$165,0),1)),\"Err\",\"Ok\"))","v":"Ok"}]
["Emergency",0,4,null,"Emergency",{"$f":"IFERROR(INDEX($B$159:$B$165,MATCH(E162,$A$159:$A$165,0),1)/INDEX($C$159:$C$165,MATCH(E162,$A$159:$A$165,0),1),0)","v":0},1,null,null,{"$f":"IF(AND($B162=0,$C162=0),\"Ok\",IF(ISERROR(INDEX($B$159:$B$165,MATCH(E162,$A$159:$A$165,0),1)/INDEX($C$159:$C$165,MATCH(E162,$A$159:$A$165,0),1)),\"Err\",\"Ok\"))","v":"Ok"}]
["Monitoring",2,2,null,"Monitoring",1,0,null,null,{"$f":"IF(AND($B163=0,$C163=0),\"Ok\",IF(ISERROR(INDEX($B$159:$B$165,MATCH(E163,$A$159:$A$165,0),1)/INDEX($C$159:$C$165,MATCH(E163,$A$159:$A$165,0),1)),\"Err\",\"Ok\"))","v":"Ok"}]
["Planning",2,4,null,"Planning",0.5,0.5,null,null,{"$f":"IF(AND($B164=0,$C164=0),\"Ok\",IF(ISERROR(INDEX($B$159:$B$165,MATCH(E164,$A$159:$A$165,0),1)/INDEX($C$159:$C$165,MATCH(E164,$A$159:$A$165,0),1)),\"Err\",\"Ok\"))","v":"Ok"}]
[]
[]
[]
[]
[]
[]
[null,"Valori"]
["PILLAR_desc","Somma di RISPOSTA_punteggio","Somma di RISPOSTA_punteggio_max",null,null,"area presidiata","area di miglioramento",null,null,"check"]
["Investments",6,9,null,null,{"$f":"IFERROR(B173/C173,0)","v":0.66666666666666663},{"$f":"1-F173","v":0.33333333333333337},null,null,{"$f":"IF(AND($B173=0,$C173=0),\"Ok\",IF(ISERROR(B173/C173),\"Err\",\"Ok\"))","v":"Ok"}]
[]
[]
[]
["PILLAR_desc","Investments"]
[]
[null,"Valori"]
["DOMANDA_L01","Somma di RISPOSTA_punteggio","Somma di RISPOSTA_punteggio_max",null,"intervento","%","area di miglioramento",null,null,"check"]
["Continuity",0,2,null,"Continuity",{"$f":"IFERROR(INDEX($B$179:$B$185,MATCH(E181,$A$179:$A$185,0),1)/INDEX($C$179:$C$185,MATCH(E181,$A$179:$A$185,0),1),0)","v":0},{"$f":"1-F181","v":1},null,null,{"$f":"IF(AND($B181=0,$C181=0),\"Ok\",IF(ISERROR(INDEX($B$179:$B$185,MATCH(E181,$A$179:$A$185,0),1)/INDEX($C$179:$C$185,MATCH(E181,$A$179:$A$185,0),1)),\"Err\",\"Ok\"))","v":"Ok"}]
["Emergency",1,1,null,"Emergency",{"$f":"IFERROR(INDEX($B$179:$B$185,MATCH(E182,$A$179:$A$185,0),1)/INDEX($C$179:$C$185,MATCH(E182,$A$179:$A$185,0),1),0)","v":1},0,null,null,{"$f":"IF(AND($B182=0,$C182=0),\"Ok\",IF(ISERROR(INDEX($B$179:$B$185,MATCH(E182,$A$179:$A$185,0),1)/INDEX($C$179:$C$185,MATCH(E182,$A$179:$A$185,0),1)),\"Err\",\"Ok\"))","v":"Ok"}]
["Monitoring",3,3,null,"Monitoring",1,0,null,null,{"$f":"IF(AND($B183=0,$C183=0),\"Ok\",IF(ISERROR(INDEX($B$179:$B$185,MATCH(E183,$A$179:$A$185,0),1)/INDEX($C$179:$C$185,MATCH(E183,$A$179:$A$185,0),1)),\"Err\",\"Ok\"))","v":"Ok"}]
["Planning",2,3,null,"Planning",0.66666666666666663,0.33333333333333337,null,null,{"$f":"IF(AND($B184=0,$C184=0),\"Ok\",IF(ISERROR(INDEX($B$179:$B$185,MATCH(E184,$A$179:$A$185,0),1)/INDEX($C$179:$C$185,MATCH(E184,$A$179:$A$185,0),1)),\"Err\",\"Ok\"))","v":"Ok"}]

{"sheet":"db_Domande","index":5,"n_rows":111,"n_cols":6,"rows_kept":111,"cut":false,"hidden":true,"merged":[]}
[]
[]
[]
["SEZIONE_cod","SEZIONE_desc","DOMANDA_cod","DOMANDA_desc","DOMANDA_L01","DOMANDA_L02"]
[1,"Market","D1_01","L'azienda ha attivato misure di monitoring sullo stato di salute dei suoi clienti?","Emergency"]
[1,"Market","D1_02","L'azienda ha valutato l'impatto nel tempo causato dagli effetti di una significativa diminuzione del proprio fatturato e/o dal fallimento di un suo cliente strategico ?","Continuity"]
[1,"Market","D1_03","L'azienda ha identificato piani strutturati di continuità operativa per rispondere all'emergenza in corso? ","Emergency"]
[1,"Market","D1_04","I piani includono la scelta dei business e delle attività fondamentali, incluse le attività di individuazione di clienti e partner strategici, nonché delle regole di comunicazione?  ","Continuity"]
[1,"Market","D1_05","L'azienda ha pianificato un programma di verifica periodica dei piani di continuità operativa ed una successiva attività di riesame dei risultati ? ","Planning"]
[1,"Market","D1_06","Avete revisionato i contratti con i clienti alla luce dell’attuale situazione di crisi, introducendo o verificando la presenza di eventuali clausole a vostra tutela?","Monitoring"]
[1,"Market","D1_07","Avete implementato un sistema per l’analisi, la gestione e la valutazione di eventuali reclami da parte della clientela? ","Monitoring"]
[1,"Market","D1_08","L’azienda tiene in considerazione i rischi ambientali e sociali nella gestione del proprio business e monitora le prorie performance sulle tematiche ambeintali e sociali ?","Continuity"]
[1,"Market","D1_09","L’azienda ha identificato le aree ad alto potenziale di business e ha identificato un posizionamento di sostenibilità?","Continuity"]
[1,"Market","D1_10","L’azienda ha identificato le variabili chiave per guidare l’innovazione e ne ha valutato gli impatti economici, sociali e ambientali?","Planning"]
[1,"Market","D1_11","L’azienda rendiconta e comunica le proprie performance e i propri impatti agli stakeholder chiave?","Monitoring"]
[]
[2,"Supply Chain","D2_01","L'azienda ha attivato misure di monitoring constante sullo stato di salute dei suoi fornitori?","Monitoring"]
[2,"Supply Chain","D2_02","L'azienda ha valutato l'impatto di un'eventuale interruzione o limitazione della catena di fornitura aziendale?","Emergency"]
[2,"Supply Chain","D2_03","L'azienda ha definito dipendenze ed interdipendenze delle proprie attività critiche, incluse quelle legate a partner e fornitori?","Emergency"]
[2,"Supply Chain","D2_04","L'azienda sta pianificando azioni e contromisure per ridurre possibili effetti indesiderati causati dall'emergenza (es. Soluzioni di automazione industry 4.0, sistemi IT e di telecomunicazione per gestioni in remoto, forniture alternative, logistiche alternative, ecc.)?","Planning"]
[2,"Supply Chain","D2_05","L'azienda ha individuato le catene logistiche alternative per garantire la continuità del business nel breve-medio termine?","Planning"]
[2,"Supply Chain","D2_06","L'azienda ha definito processi e responsabili incaricati di comunicare con i fornitori, al fine di garantire lo scambio delle corrette informazioni anche nell’attuale situazione di emergenza?","Emergency"]
[2,"Supply Chain","D2_07","L'azienda ha identificato eventuali rischi legali e di compliance che potrebbero evidenziarsi per l'inadempimento dei contratti di fornitura in essere?","Emergency"]
[2,"Supply Chain","D2_08","I fornitori dell'azienda si avvalgono di un piano di continuità operativa?","Continuity"]
[2,"Supply Chain","D2_09","Avete visibilità sulla salute dei vostri fornitori chiave, sui propri subfornitori e sulla capacità degli stessi di continuare ad operare sul mercato?","Continuity"]
[2,"Supply Chain","D2_10","Avete revisionato i contratti con i fornitori alla luce della situazione odierna, introducendo o verificando la presenza di clausole a vostra tutela, o connesse al tema delle c.d. “cause di forza maggiore” ed “eccessiva onerosità sopravvenuta”?","Planning"]
[2,"Supply Chain","D2_11","Avete in essere claim/contenziosi con i vostri fornitori su temi connessi all’applicazione di clausole di “forza maggiore” od “eccessiva onerosità sopravvenuta”?","Emergency"]
[2,"Supply Chain","D2_12","Avete previsto, precedentemente alla crisi, l’immagazzinamento di scorte dei prodotti potenzialmente “critici” per clienti e fornitori?","Continuity"]
[2,"Supply Chain","D2_13","L'azienda ha un sistema di qualifica dei fornitori che tiene in considerazione gli aspetti ambientali e sociali, diritti umani e altri aspetti di sostenibilità significativi per il settore?","Monitoring"]
[2,"Supply Chain","D2_14","L'azienda ha identificato le variabili chiave di sostenibilità dei propri fornitori che consentono di aumentare la propria competitività o profittabilità? ","Monitoring"]
[]
[3,"Operations","D3_01","L'azienda ha individuato le attività produttive critiche e fondamentali per garantire l'operatività durante l'emergenza?","Emergency"]
[3,"Operations","D3_02","L'azienda ha definito strumenti di pianificazione e riorganizzazione del personale che permettano una maggior flessibilità organizzativa?","Planning"]
[3,"Operations","D3_03","L'azienda ha rivisto le proprie modalità operative al fine di garantire una maggior sicurezza degli operatori sulle postazioni di lavoro?","Continuity"]
[3,"Operations","D3_04","L'azienda ha valutato l'impatto di un'eventuale chiusura o limitazione della propria linea produttiva?","Emergency"]
[3,"Operations","D3_05","L'azienda ha definito protocolli e responsabilità di comunicazione con le funzioni interne (manutenzioni, sicurezza, qualità ecc.), che garantiscono la corretta comunicazione delle informazioni anche nell’attuale situazione di emergenza?","Planning"]
[3,"Operations","D3_06","L'azienda ha identificato piani strutturati (es. procedure processi interni, trasferimento di competenze, ecc.) di continuità operativa per rispondere all'emergenza in corso?","Planning"]
[3,"Operations","D3_07","L'azienda si è dotata di nuove metodologie di Visual Management per facilitare il trasferimento delle informazioni nei vari reparti?","Monitoring"]
[3,"Operations","D3_08","L'azienda si è dotata di strumenti di misurazione in grado di evidenziare la reale performance anche in situazione di emergenza?","Monitoring"]
[3,"Operations","D3_09","L'azienda tiene in considerazione l'evoluzione dei rischi ambientali e sociali nella gestione e sviluppo delle sue operations (es. robotizzazione e rischi di emergenze sanitarie globali, oppure rischi derivanti dal cambiamento climatico)?","Continuity"]
[]
[4,"People & Organization","D4_01","Avete aggiornato il Modello dei processi aziendali e il sistema delle deleghe per i rischi aziendali?","Emergency"]
[4,"People & Organization","D4_02","Avete aggiornato Mansionari/Job Description?","Emergency"]
[4,"People & Organization","D4_03","Avete adeguato le vostre policy di controlli interni per evitare o diminuire il rischio di azioni fraudolente da parte dei collaboratori?","Emergency"]
[4,"People & Organization","D4_04","Nel corso della recente crisi avete avuto la percezione di aver ridotto il vostro controllo sulla segregation of duties o sull’operato del management?","Monitoring"]
[4,"People & Organization","D4_05","Avete nuove esigenze formative e/o mappato gap di competenze?","Planning"]
[4,"People & Organization","D4_06","Avete differito tutti gli eventi formativi, i programmi formativi su larga scala e le riunioni interne?","Planning"]
[4,"People & Organization","D4_07","Avete abilitato il lavoro a distanza nella propria regione e per filiali uffici esteri?","Continuity"]
[4,"People & Organization","D4_08","Sono state definite linee guida che impongono restrizioni di viaggi e trasferte, sia internazionali che nazionali in linea con le linee guida nazionali e locali?","Continuity"]
[4,"People & Organization","D4_09","Avete individuato e formato delle piattaforme di smart working e canali appropriati di comunicazione per i propri dipendenti?","Continuity"]
[4,"People & Organization","D4_10","Avete un programma a rotazione per provare/testare lo smart working?","Monitoring"]
[4,"People & Organization","D4_11","Garantite una comunicazione positiva e proattiva in merito alle misure adottate per promuovere il benessere dei dipendenti e il contenimento delle malattie?","Continuity"]
[4,"People & Organization","D4_12","Avete creato un meccanismo per rispondere a domande o dubbi dei dipendenti sull’emergenza in corso?","Monitoring"]
[4,"People & Organization","D4_13","Avete inserito un supporto coaching ai vostri dipendenti e collaboratori sulla gestione dell'emotività in situazioni di emergenza?","Planning"]
[]
[5,"Health & Safety","D5_01","L’azienda ha previsto una adeguata informativa a tutti i lavoratori e chiunque entri in azienda circa le disposizioni aggiornate delle Autorità, consegnando e/o affiggendo all’ingresso e nei luoghi maggiormente visibili dei locali aziendali, appositi depliants informativi? ","Continuity"]
[5,"Health & Safety","D5_02","L’Azienda ha definito una procedura per le modalità di accesso in azienda di personale interno, fornitori e visitatori esterni? ","Continuity"]
[5,"Health & Safety","D5_03","L’Azienda ha definito le corrette modalità di pulizia e sanificazione degli ambienti, compresi i sistemi di aerazione, anche mediante revisione dei contratti con le ditte terze?","Continuity"]
[5,"Health & Safety","D5_04","L’Azienda ha definito una procedura per la scelta, consegna, e formazione sull’utilizzo dei Dispositivi di Protezione Individuale? ","Monitoring"]
[5,"Health & Safety","D5_05","L’Azienda ha definito una procedura per la gestione degli spazi comuni? (mensa, spogliatoi, aree bevande ecc.) ","Continuity"]
[5,"Health & Safety","D5_06","L’Azienda ha definito una procedura per la gestione delle trasferte del personale? ","Continuity"]
[5,"Health & Safety","D5_07","L’Azienda ha definito una procedura per la gestione di spostamenti interni, formazione, riunioni ed eventi? ","Continuity"]
[5,"Health & Safety","D5_08","L’Azienda ha definito le misure di primo soccorso ed emergenza connesse ad eventuali eventi infortunistici/sintomi di contagio? ","Continuity"]
[5,"Health & Safety","D5_09","L’Azienda ha definito le modalità di svolgimento della sorveglianza sanitaria ed il coordinamento con il medico competente? ","Emergency"]
[5,"Health & Safety","D5_10","L’Azienda ha istituito un Comitato di Sicurezza? ","Emergency"]
[5,"Health & Safety","D5_11","L’Azienda ha verificato la necessità di modifica del layout e delle postazioni di lavoro? ","Emergency"]
[5,"Health & Safety","D5_12","L’Azienda ha valutato i nuovi rischi per la salute e sicurezza derivanti dalle modifiche organizzative e li ha recepiti nel DVR aziendale?  ","Planning"]
[5,"Health & Safety","D5_13","L’Azienda ha verificato eventuali rischi legali e di compliance dei processi interni che potrebbero evidenziarsi per l'emergenza? ","Planning"]
[5,"Health & Safety","D5_14","L’Azienda ha verificato la necessità di aggiornamento delle parti speciali del MOG 231, con particolare riferimento ai reati connessi alla salute e sicurezza nei luoghi di lavoro? ","Planning"]
[5,"Health & Safety","D5_15","L’Azienda ha implementato un sistema di controlli/audit interni per la verifica di completezza ed efficacia delle misure adottate? ","Monitoring"]
[]
[6,"Information Technology","D6_01","L’azienda ha piani e strumenti per il Disaster Recovery?","Continuity"]
[6,"Information Technology","D6_02","L'azienda ha identificato eventuali rischi legali e di compliance (es. GDPR) che potrebbero evidenziarsi per l'emergenza?","Emergency"]
[6,"Information Technology","D6_03","L'azienda ha definito policy interne per i dipendenti che chiariscono limiti e responsabilità nell’uso delle risorse informatiche?","Planning"]
[6,"Information Technology","D6_04","Ha piani di formazione/sensibilizzazione a riguardo?","Planning"]
[6,"Information Technology","D6_05","L’azienda ha un piano per procurarsi e fornire in tempi rapidi i dispositivi informatici necessari a lavorare da remoto (pc, telefono con connsessione intenet, ecc.) almeno per il personale reputato essenziale?","Emergency"]
[6,"Information Technology","D6_06","L'azienda ha un responsabile della sicurezza informatica distinto dal responsabile IT?","Continuity"]
[6,"Information Technology","D6_07"," L’azienda effettua assessment periodici di terze parti per la valutazione della bontà del proprio sistema di sicurezza?","Monitoring"]
[6,"Information Technology","D6_08","L’accesso da remoto dei dipendenti avviene con sistemi di autenticazione forte?","Continuity"]
[6,"Information Technology","D6_09","I fornitori accedono alla rete aziendale da remoto?","Continuity"]
[6,"Information Technology","D6_10","Sono presenti procedure formalizzate di backup dei sistemi?","Planning"]
[6,"Information Technology","D6_11","L’azienda ha un meccanismo di verifica periodica della sicurezza dei propri fornitori IT presso cui sono mantenute informazioni dell’azienda?","Monitoring"]
[6,"Information Technology","D6_12","L'azienda gestisce in modo strutturato e formalizzato l’on boarding e l’off boarding dei dipendenti e collaboratori?","Planning"]
[6,"Information Technology","D6_13","L’azienda ha un piano di gestione degli incidenti?","Continuity"]
[6,"Information Technology","D6_14","Si è mai trovata a gestire un incidente?","Planning"]
[6,"Information Technology","D6_15","La distribuzione e l’aggiornamento dell’antivirus è centralizzato?","Continuity"]
[]
[7,"Cash & Liquidity","D7_01","La finanza aziendale rappresenta un area critica per l’azienda anche prima del Coronavirus?","Emergency"]
[7,"Cash & Liquidity","D7_02","A quanto ammonta l'incidenza dei debiti bancari a M/L periodo sul fatturato al 31/12/2019?  (risposta  a sezioni multiple)","Continuity"]
[7,"Cash & Liquidity","D7_03","A quanto ammonta l'incidenza dei debiti bancari complessivi sul fatturato al 31/12/2019?  (risposta a sezioni  multiple)","Continuity"]
[7,"Cash & Liquidity","D7_04","L'azienda ha richiesto l'attivazione delle misure di sostegno previste dal Decreto Cura Italia (in termini di moratorie e conferma degli affidamenti ) ?","Emergency"]
[7,"Cash & Liquidity","D7_05","Quanto prevedete possa impattare l'emergenza in corso in termini di incremento della percentuale di insoluto dei clienti rispetto agli standard ?  (risposta a sezioni  multiple)","Emergency"]
[7,"Cash & Liquidity","D7_06","L'azienda ritiene di aver la necessità di richiedere nuovi finanziamenti per sopperire nel 2020 a crisi di liquidità ?","Planning"]
[7,"Cash & Liquidity","D7_07","L'azienda ha segnalazioni in centrale rischi per posizioni in sofferenza/posizioni scadute ?  ","Planning"]
[7,"Cash & Liquidity","D7_08","L'azienda ha un plafond residuo presso Medio Credito Centrale? ","Continuity"]
[7,"Cash & Liquidity","D7_09","L'azienda prevede di apportare capitale proprio nel breve periodo?   ","Planning"]
[7,"Cash & Liquidity","D7_10","L'azienda ha un sistema di gestione della tesoreria integrato nel/con il gestionale aziendale o gestisce la tesoreria con strumenti excel based?","Monitoring"]
[7,"Cash & Liquidity","D7_11","L'azienda ha un budget economico - finanziario per il 2020 ?","Planning"]
[7,"Cash & Liquidity","D7_12","L’azienda  utilizza sistemi di  previsione della Tesorieria a scenari  multipli? ","Monitoring"]
[7,"Cash & Liquidity","D7_13","Il livello di comprimibilità dei costi fissi aziendali è ?  (risposta a sezioni multiple) ","Continuity"]
[]
[8,"Investments","D8_01","L'azienda ha fatto recentemente acquisizioni di società e/o rami d'azienda?  ","Continuity"]
[8,"Investments","D8_02","In che percentuale del fatturato l'azienda intende effettuare investimenti nell'esercizio in corso?  (risposta  multipla) ","Emergency"]
[8,"Investments","D8_03","L’azienda ha investimenti nell'esercizio in corso di importi significativi?","Planning"]
[8,"Investments","D8_04","L’azienda  deve sostenere  investimenti  ricorrenti  per  garantire  la continuità del business?  ","Continuity"]
[8,"Investments","D8_05","Negli SPA sottoscritti, o in via di sottoscrizione, sono previste clausole di price adjustment che tengano conto dei possibili effetti derivanti dall’evoluzione del fenomeno Covid 19? ","Emergency"]
[8,"Investments","D8_06","E’ stata svolta una review contrattuale per verificare la presenza di eventuali clausole di price adjustment potenzialmente negative per i vostri investimenti? ","Planning"]
[8,"Investments","D8_07","Gli investimenti definiti dall'azienda sono funzionali ad aumentare la sostenibilità del proprio modello di business? ","Planning"]
[8,"Investments","D8_08","L'azienda ha valutato gli impatti economici, sociali e ambientali dei suoi investimenti?","Monitoring"]
[8,"Investments","D8_09","L'azienda ha tenuto in considerazione quanto gli investimenti concorrono positivamente nella comunità locale di riferimento?","Monitoring"]
[8,"Investments","D8_10","L’azienda ha identificato metriche adeguate per monitorare gli impatti dei suoi investimenti?","Monitoring"]

{"sheet":"db_Risposte","index":6,"n_rows":808,"n_cols":10,"rows_kept":808,"cut":false,"hidden":true,"merged":[]}
["PK","SEZIONE_cod","SEZIONE_desc","DOMANDA_cod","DOMANDA_desc","RISPOSTA_cod","RISPOSTA_desc","RISPOSTA_possibile_rif","RISPOSTA_possibile_nr","RISPOSTA_punteggio"]
[{"$f":"IF($B2=\"\",\"\",$D2&\"_\"&$G2)","v":"D1_01_SI"},1,"Market","D1_01",{"$f":"IF($B2=\"\",\"\",IFERROR(INDEX(db_Domande!$D:$D,MATCH($D2,db_Domande!$C:$C,0),1),\"\"))","v":"L'azienda ha attivato misure di monitoring sullo stato di salute dei suoi clienti?"},{"$f":"IF($B2=\"\",\"\",\"R\"&RIGHT($D2,4)&\"_\"&TEXT(ROW()-MATCH($D2,$D:$D,0)+1,\"00\"))","v":"R1_01_01"},"SI","SI  ;  NO  ;  NON_APPLICABILE",3,1]
[{"$f":"IF($B3=\"\",\"\",$D3&\"_\"&$G3)","v":"D1_01_NO"},1,"Market","D1_01",{"$f":"IF($B3=\"\",\"\",IFERROR(INDEX(db_Domande!$D:$D,MATCH($D3,db_Domande!$C:$C,0),1),\"\"))","v":"L'azienda ha attivato misure di monitoring sullo stato di salute dei suoi clienti?"},"R1_01_02","NO",null,null,0]
["D1_01_NON_APPLICABILE",1,"Market","D1_01",{"$f":"IF($B4=\"\",\"\",IFERROR(INDEX(db_Domande!$D:$D,MATCH($D4,db_Domande!$C:$C,0),1),\"\"))","v":"L'azienda ha attivato misure di monitoring sullo stato di salute dei suoi clienti?"},"R1_01_03","NON_APPLICABILE",null,null,0]
["D1_01_",1,"Market","D1_01",{"$f":"IF($B5=\"\",\"\",IFERROR(INDEX(db_Domande!$D:$D,MATCH($D5,db_Domande!$C:$C,0),1),\"\"))","v":"L'azienda ha attivato misure di monitoring sullo stato di salute dei suoi clienti?"},"R1_01_04"]
["D1_01_",1,"Market","D1_01",{"$f":"IF($B6=\"\",\"\",IFERROR(INDEX(db_Domande!$D:$D,MATCH($D6,db_Domande!$C:$C,0),1),\"\"))","v":"L'azienda ha attivato misure di monitoring sullo stato di salute dei suoi clienti?"},"R1_01_05"]
["D1_02_SI",1,"Market","D1_02",{"$f":"IF($B7=\"\",\"\",IFERROR(INDEX(db_Domande!$D:$D,MATCH($D7,db_Domande!$C:$C,0),1),\"\"))","v":"L'azienda ha valutato l'impatto nel tempo causato dagli effetti di una significativa diminuzione del proprio fatturato e/o dal fallimento di un suo cliente strategico ?"},"R1_02_01","SI","SI  ;  NO  ;  NON_APPLICABILE",3,1]
["D1_02_NO",1,"Market","D1_02",{"$f":"IF($B8=\"\",\"\",IFERROR(INDEX(db_Domande!$D:$D,MATCH($D8,db_Domande!$C:$C,0),1),\"\"))","v":"L'azienda ha valutato l'impatto nel tempo causato dagli effetti di una significativa diminuzione del proprio fatturato e/o dal fallimento di un suo cliente strategico ?"},"R1_02_02","NO",null,null,0]
["D1_02_NON_APPLICABILE",1,"Market","D1_02",{"$f":"IF($B9=\"\",\"\",IFERROR(INDEX(db_Domande!$D:$D,MATCH($D9,db_Domande!$C:$C,0),1),\"\"))","v":"L'azienda ha valutato l'impatto nel tempo causato dagli effetti di una significativa diminuzione del proprio fatturato e/o dal fallimento di un suo cliente strategico ?"},"R1_02_03","NON_APPLICABILE",null,null,0]
["D1_02_",1,"Market","D1_02",{"$f":"IF($B10=\"\",\"\",IFERROR(INDEX(db_Domande!$D:$D,MATCH($D10,db_Domande!$C:$C,0),1),\"\"))","v":"L'azienda ha valutato l'impatto nel tempo causato dagli effetti di una significativa diminuzione del proprio fatturato e/o dal fallimento di un suo cliente strategico ?"},"R1_02_04"]
["D1_02_",1,"Market","D1_02",{"$f":"IF($B11=\"\",\"\",IFERROR(INDEX(db_Domande!$D:$D,MATCH($D11,db_Domande!$C:$C,0),1),\"\"))","v":"L'azienda ha valutato l'impatto nel tempo causato dagli effetti di una significativa diminuzione del proprio fatturato e/o dal fallimento di un suo cliente strategico ?"},"R1_02_05"]
["D1_03_SI",1,"Market","D1_03",{"$f":"IF($B12=\"\",\"\",IFERROR(INDEX(db_Domande!$D:$D,MATCH($D12,db_Domande!$C:$C,0),1),\"\"))","v":"L'azienda ha identificato piani strutturati di continuità operativa per rispondere all'emergenza in corso? "},"R1_03_01","SI","SI  ;  NO  ;  NON_APPLICABILE",3,1]
["D1_03_NO",1,"Market","D1_03",{"$f":"IF($B13=\"\",\"\",IFERROR(INDEX(db_Domande!$D:$D,MATCH($D13,db_Domande!$C:$C,0),1),\"\"))","v":"L'azienda ha identificato piani strutturati di continuità operativa per rispondere all'emergenza in corso? "},"R1_03_02","NO",null,null,0]
["D1_03_NON_APPLICABILE",1,"Market","D1_03",{"$f":"IF($B14=\"\",\"\",IFERROR(INDEX(db_Domande!$D:$D,MATCH($D14,db_Domande!$C:$C,0),1),\"\"))","v":"L'azienda ha identificato piani strutturati di continuità operativa per rispondere all'emergenza in corso? "},"R1_03_03","NON_APPLICABILE",null,null,0]
["D1_03_",1,"Market","D1_03",{"$f":"IF($B15=\"\",\"\",IFERROR(INDEX(db_Domande!$D:$D,MATCH($D15,db_Domande!$C:$C,0),1),\"\"))","v":"L'azienda ha identificato piani strutturati di continuità operativa per rispondere all'emergenza in corso? "},"R1_03_04"]
["D1_03_",1,"Market","D1_03",{"$f":"IF($B16=\"\",\"\",IFERROR(INDEX(db_Domande!$D:$D,MATCH($D16,db_Domande!$C:$C,0),1),\"\"))","v":"L'azienda ha identificato piani strutturati di continuità operativa per rispondere all'emergenza in corso? "},"R1_03_05"]
["D1_04_SI",1,"Market","D1_04",{"$f":"IF($B17=\"\",\"\",IFERROR(INDEX(db_Domande!$D:$D,MATCH($D17,db_Domande!$C:$C,0),1),\"\"))","v":"I piani includono la scelta dei business e delle attività fondamentali, incluse le attività di individuazione di clienti e partner strategici, nonché delle regole di comunicazione?  "},"R1_04_01","SI","SI  ;  NO  ;  NON_APPLICABILE",3,1]
["D1_04_NO",1,"Market","D1_04",{"$f":"IF($B18=\"\",\"\",IFERROR(INDEX(db_Domande!$D:$D,MATCH($D18,db_Domande!$C:$C,0),1),\"\"))","v":"I piani includono la scelta dei business e delle attività fondamentali, incluse le attività di individuazione di clienti e partner strategici, nonché delle regole di comunicazione?  "},"R1_04_02","NO",null,null,0]
["D1_04_NON_APPLICABILE",1,"Market","D1_04",{"$f":"IF($B19=\"\",\"\",IFERROR(INDEX(db_Domande!$D:$D,MATCH($D19,db_Domande!$C:$C,0),1),\"\"))","v":"I piani includono la scelta dei business e delle attività fondamentali, incluse le attività di individuazione di clienti e partner strategici, nonché delle regole di comunicazione?  "},"R1_04_03","NON_APPLICABILE",null,null,0]
["D1_04_",1,"Market","D1_04",{"$f":"IF($B20=\"\",\"\",IFERROR(INDEX(db_Domande!$D:$D,MATCH($D20,db_Domande!$C:$C,0),1),\"\"))","v":"I piani includono la scelta dei business e delle attività fondamentali, incluse le attività di individuazione di clienti e partner strategici, nonché delle regole di comunicazione?  "},"R1_04_04"]
["D1_04_",1,"Market","D1_04",{"$f":"IF($B21=\"\",\"\",IFERROR(INDEX(db_Domande!$D:$D,MATCH($D21,db_Domande!$C:$C,0),1),\"\"))","v":"I piani includono la scelta dei business e delle attività fondamentali, incluse le attività di individuazione di clienti e partner strategici, nonché delle regole di comunicazione?  "},"R1_04_05"]
["D1_05_SI",1,"Market","D1_05",{"$f":"IF($B22=\"\",\"\",IFERROR(INDEX(db_Domande!$D:$D,MATCH($D22,db_Domande!$C:$C,0),1),\"\"))","v":"L'azienda ha pianificato un programma di verifica periodica dei piani di continuità operativa ed una successiva attività di riesame dei risultati ? "},"R1_05_01","SI","SI  ;  NO  ;  NON_APPLICABILE",3,1]
["D1_05_NO",1,"Market","D1_05",{"$f":"IF($B23=\"\",\"\",IFERROR(INDEX(db_Domande!$D:$D,MATCH($D23,db_Domande!$C:$C,0),1),\"\"))","v":"L'azienda ha pianificato un programma di verifica periodica dei piani di continuità operativa ed una successiva attività di riesame dei risultati ? "},"R1_05_02","NO",null,null,0]
["D1_05_NON_APPLICABILE",1,"Market","D1_05",{"$f":"IF($B24=\"\",\"\",IFERROR(INDEX(db_Domande!$D:$D,MATCH($D24,db_Domande!$C:$C,0),1),\"\"))","v":"L'azienda ha pianificato un programma di verifica periodica dei piani di continuità operativa ed una successiva attività di riesame dei risultati ? "},"R1_05_03","NON_APPLICABILE",null,null,0]
["D1_05_",1,"Market","D1_05",{"$f":"IF($B25=\"\",\"\",IFERROR(INDEX(db_Domande!$D:$D,MATCH($D25,db_Domande!$C:$C,0),1),\"\"))","v":"L'azienda ha pianificato un programma di verifica periodica dei piani di continuità operativa ed una successiva attività di riesame dei risultati ? "},"R1_05_04"]
["D1_05_",1,"Market","D1_05",{"$f":"IF($B26=\"\",\"\",IFERROR(INDEX(db_Domande!$D:$D,MATCH($D26,db_Domande!$C:$C,0),1),\"\"))","v":"L'azienda ha pianificato un programma di verifica periodica dei piani di continuità operativa ed una successiva attività di riesame dei risultati ? "},"R1_05_05"]
["D1_06_SI",1,"Market","D1_06",{"$f":"IF($B27=\"\",\"\",IFERROR(INDEX(db_Domande!$D:$D,MATCH($D27,db_Domande!$C:$C,0),1),\"\"))","v":"Avete revisionato i contratti con i clienti alla luce dell’attuale situazione di crisi, introducendo o verificando la presenza di eventuali clausole a vostra tutela?"},"R1_06_01","SI","SI  ;  NO  ;  NON_APPLICABILE",3,1]
["D1_06_NO",1,"Market","D1_06",{"$f":"IF($B28=\"\",\"\",IFERROR(INDEX(db_Domande!$D:$D,MATCH($D28,db_Domande!$C:$C,0),1),\"\"))","v":"Avete revisionato i contratti con i clienti alla luce dell’attuale situazione di crisi, introducendo o verificando la presenza di eventuali clausole a vostra tutela?"},"R1_06_02","NO",null,null,0]
["D1_06_NON_APPLICABILE",1,"Market","D1_06",{"$f":"IF($B29=\"\",\"\",IFERROR(INDEX(db_Domande!$D:$D,MATCH($D29,db_Domande!$C:$C,0),1),\"\"))","v":"Avete revisionato i contratti con i clienti alla luce dell’attuale situazione di crisi, introducendo o verificando la presenza di eventuali clausole a vostra tutela?"},"R1_06_03","NON_APPLICABILE",null,null,0]
["D1_06_",1,"Market","D1_06",{"$f":"IF($B30=\"\",\"\",IFERROR(INDEX(db_Domande!$D:$D,MATCH($D30,db_Domande!$C:$C,0),1),\"\"))","v":"Avete revisionato i contratti con i clienti alla luce dell’attuale situazione di crisi, introducendo o verificando la presenza di eventuali clausole a vostra tutela?"},"R1_06_04"]
["D1_06_",1,"Market","D1_06",{"$f":"IF($B31=\"\",\"\",IFERROR(INDEX(db_Domande!$D:$D,MATCH($D31,db_Domande!$C:$C,0),1),\"\"))","v":"Avete revisionato i contratti con i clienti alla luce dell’attuale situazione di crisi, introducendo o verificando la presenza di eventuali clausole a vostra tutela?"},"R1_06_05"]
["D1_07_SI",1,"Market","D1_07",{"$f":"IF($B32=\"\",\"\",IFERROR(INDEX(db_Domande!$D:$D,MATCH($D32,db_Domande!$C:$C,0),1),\"\"))","v":"Avete implementato un sistema per l’analisi, la gestione e la valutazione di eventuali reclami da parte della clientela? "},"R1_07_01","SI","SI  ;  NO  ;  NON_APPLICABILE",3,1]
["D1_07_NO",1,"Market","D1_07",{"$f":"IF($B33=\"\",\"\",IFERROR(INDEX(db_Domande!$D:$D,MATCH($D33,db_Domande!$C:$C,0),1),\"\"))","v":"Avete implementato un sistema per l’analisi, la gestione e la valutazione di eventuali reclami da parte della clientela? "},"R1_07_02","NO",null,null,0]
["D1_07_NON_APPLICABILE",1,"Market","D1_07",{"$f":"IF($B34=\"\",\"\",IFERROR(INDEX(db_Domande!$D:$D,MATCH($D34,db_Domande!$C:$C,0),1),\"\"))","v":"Avete implementato un sistema per l’analisi, la gestione e la valutazione di eventuali reclami da parte della clientela? "},"R1_07_03","NON_APPLICABILE",null,null,0]
["D1_07_",1,"Market","D1_07",{"$f":"IF($B35=\"\",\"\",IFERROR(INDEX(db_Domande!$D:$D,MATCH($D35,db_Domande!$C:$C,0),1),\"\"))","v":"Avete implementato un sistema per l’analisi, la gestione e la valutazione di eventuali reclami da parte della clientela? "},"R1_07_04"]
["D1_07_",1,"Market","D1_07",{"$f":"IF($B36=\"\",\"\",IFERROR(INDEX(db_Domande!$D:$D,MATCH($D36,db_Domande!$C:$C,0),1),\"\"))","v":"Avete implementato un sistema per l’analisi, la gestione e la valutazione di eventuali reclami da parte della clientela? "},"R1_07_05"]
["D1_08_SI",1,"Market","D1_08",{"$f":"IF($B37=\"\",\"\",IFERROR(INDEX(db_Domande!$D:$D,MATCH($D37,db_Domande!$C:$C,0),1),\"\"))","v":"L’azienda tiene in considerazione i rischi ambientali e sociali nella gestione del proprio business e monitora le prorie performance sulle tematiche ambeintali e sociali ?"},"R1_08_01","SI","SI  ;  NO  ;  NON_APPLICABILE",3,1]
["D1_08_NO",1,"Market","D1_08",{"$f":"IF($B38=\"\",\"\",IFERROR(INDEX(db_Domande!$D:$D,MATCH($D38,db_Domande!$C:$C,0),1),\"\"))","v":"L’azienda tiene in considerazione i rischi ambientali e sociali nella gestione del proprio business e monitora le prorie performance sulle tematiche ambeintali e sociali ?"},"R1_08_02","NO",null,null,0]
["D1_08_NON_APPLICABILE",1,"Market","D1_08",{"$f":"IF($B39=\"\",\"\",IFERROR(INDEX(db_Domande!$D:$D,MATCH($D39,db_Domande!$C:$C,0),1),\"\"))","v":"L’azienda tiene in considerazione i rischi ambientali e sociali nella gestione del proprio business e monitora le prorie performance sulle tematiche ambeintali e sociali ?"},"R1_08_03","NON_APPLICABILE",null,null,0]
["D1_08_",1,"Market","D1_08",{"$f":"IF($B40=\"\",\"\",IFERROR(INDEX(db_Domande!$D:$D,MATCH($D40,db_Domande!$C:$C,0),1),\"\"))","v":"L’azienda tiene in considerazione i rischi ambientali e sociali nella gestione del proprio business e monitora le prorie performance sulle tematiche ambeintali e sociali ?"},"R1_08_04"]
["D1_08_",1,"Market","D1_08",{"$f":"IF($B41=\"\",\"\",IFERROR(INDEX(db_Domande!$D:$D,MATCH($D41,db_Domande!$C:$C,0),1),\"\"))","v":"L’azienda tiene in considerazione i rischi ambientali e sociali nella gestione del proprio business e monitora le prorie performance sulle tematiche ambeintali e sociali ?"},"R1_08_05"]
["D1_09_SI",1,"Market","D1_09",{"$f":"IF($B42=\"\",\"\",IFERROR(INDEX(db_Domande!$D:$D,MATCH($D42,db_Domande!$C:$C,0),1),\"\"))","v":"L’azienda ha identificato le aree ad alto potenziale di business e ha identificato un posizionamento di sostenibilità?"},"R1_09_01","SI","SI  ;  NO  ;  NON_APPLICABILE",3,1]
["D1_09_NO",1,"Market","D1_09",{"$f":"IF($B43=\"\",\"\",IFERROR(INDEX(db_Domande!$D:$D,MATCH($D43,db_Domande!$C:$C,0),1),\"\"))","v":"L’azienda ha identificato le aree ad alto potenziale di business e ha identificato un posizionamento di sostenibilità?"},"R1_09_02","NO",null,null,0]
["D1_09_NON_APPLICABILE",1,"Market","D1_09",{"$f":"IF($B44=\"\",\"\",IFERROR(INDEX(db_Domande!$D:$D,MATCH($D44,db_Domande!$C:$C,0),1),\"\"))","v":"L’azienda ha identificato le aree ad alto potenziale di business e ha identificato un posizionamento di sostenibilità?"},"R1_09_03","NON_APPLICABILE",null,null,0]
["D1_09_",1,"Market","D1_09",{"$f":"IF($B45=\"\",\"\",IFERROR(INDEX(db_Domande!$D:$D,MATCH($D45,db_Domande!$C:$C,0),1),\"\"))","v":"L’azienda ha identificato le aree ad alto potenziale di business e ha identificato un posizionamento di sostenibilità?"},"R1_09_04"]
["D1_09_",1,"Market","D1_09",{"$f":"IF($B46=\"\",\"\",IFERROR(INDEX(db_Domande!$D:$D,MATCH($D46,db_Domande!$C:$C,0),1),\"\"))","v":"L’azienda ha identificato le aree ad alto potenziale di business e ha identificato un posizionamento di sostenibilità?"},"R1_09_05"]
["D1_10_SI",1,"Market","D1_10",{"$f":"IF($B47=\"\",\"\",IFERROR(INDEX(db_Domande!$D:$D,MATCH($D47,db_Domande!$C:$C,0),1),\"\"))","v":"L’azienda ha identificato le variabili chiave per guidare l’innovazione e ne ha valutato gli impatti economici, sociali e ambientali?"},"R1_10_01","SI","SI  ;  NO  ;  NON_APPLICABILE",3,1]
["D1_10_NO",1,"Market","D1_10",{"$f":"IF($B48=\"\",\"\",IFERROR(INDEX(db_Domande!$D:$D,MATCH($D48,db_Domande!$C:$C,0),1),\"\"))","v":"L’azienda ha identificato le variabili chiave per guidare l’innovazione e ne ha valutato gli impatti economici, sociali e ambientali?"},"R1_10_02","NO",null,null,0]
["D1_10_NON_APPLICABILE",1,"Market","D1_10",{"$f":"IF($B49=\"\",\"\",IFERROR(INDEX(db_Domande!$D:$D,MATCH($D49,db_Domande!$C:$C,0),1),\"\"))","v":"L’azienda ha identificato le variabili chiave per guidare l’innovazione e ne ha valutato gli impatti economici, sociali e ambientali?"},"R1_10_03","NON_APPLICABILE",null,null,0]
["D1_10_",1,"Market","D1_10",{"$f":"IF($B50=\"\",\"\",IFERROR(INDEX(db_Domande!$D:$D,MATCH($D50,db_Domande!$C:$C,0),1),\"\"))","v":"L’azienda ha identificato le variabili chiave per guidare l’innovazione e ne ha valutato gli impatti economici, sociali e ambientali?"},"R1_10_04"]
["D1_10_",1,"Market","D1_10",{"$f":"IF($B51=\"\",\"\",IFERROR(INDEX(db_Domande!$D:$D,MATCH($D51,db_Domande!$C:$C,0),1),\"\"))","v":"L’azienda ha identificato le variabili chiave per guidare l’innovazione e ne ha valutato gli impatti economici, sociali e ambientali?"},"R1_10_05"]
["D1_11_SI",1,"Market","D1_11",{"$f":"IF($B52=\"\",\"\",IFERROR(INDEX(db_Domande!$D:$D,MATCH($D52,db_Domande!$C:$C,0),1),\"\"))","v":"L’azienda rendiconta e comunica le proprie performance e i propri impatti agli stakeholder chiave?"},"R1_11_01","SI","SI  ;  NO  ;  NON_APPLICABILE",3,1]
["D1_11_NO",1,"Market","D1_11",{"$f":"IF($B53=\"\",\"\",IFERROR(INDEX(db_Domande!$D:$D,MATCH($D53,db_Domande!$C:$C,0),1),\"\"))","v":"L’azienda rendiconta e comunica le proprie performance e i propri impatti agli stakeholder chiave?"},"R1_11_02","NO",null,null,0]
["D1_11_NON_APPLICABILE",1,"Market","D1_11",{"$f":"IF($B54=\"\",\"\",IFERROR(INDEX(db_Domande!$D:$D,MATCH($D54,db_Domande!$C:$C,0),1),\"\"))","v":"L’azienda rendiconta e comunica le proprie performance e i propri impatti agli stakeholder chiave?"},"R1_11_03","NON_APPLICABILE",null,null,0]
["D1_11_",1,"Market","D1_11",{"$f":"IF($B55=\"\",\"\",IFERROR(INDEX(db_Domande!$D:$D,MATCH($D55,db_Domande!$C:$C,0),1),\"\"))","v":"L’azienda rendiconta e comunica le proprie performance e i propri impatti agli stakeholder chiave?"},"R1_11_04"]
["D1_11_",1,"Market","D1_11",{"$f":"IF($B56=\"\",\"\",IFERROR(INDEX(db_Domande!$D:$D,MATCH($D56,db_Domande!$C:$C,0),1),\"\"))","v":"L’azienda rendiconta e comunica le proprie performance e i propri impatti agli stakeholder chiave?"},"R1_11_05"]
["D1_12_",1,"Market","D1_12",{"$f":"IF($B57=\"\",\"\",IFERROR(INDEX(db_Domande!$D:$D,MATCH($D57,db_Domande!$C:$C,0),1),\"\"))","v":""},"R1_12_01",null,null,null,1]
["D1_12_",1,"Market","D1_12",{"$f":"IF($B58=\"\",\"\",IFERROR(INDEX(db_Domande!$D:$D,MATCH($D58,db_Domande!$C:$C,0),1),\"\"))","v":""},"R1_12_02",null,null,null,0]
["D1_12_",1,"Market","D1_12",{"$f":"IF($B59=\"\",\"\",IFERROR(INDEX(db_Domande!$D:$D,MATCH($D59,db_Domande!$C:$C,0),1),\"\"))","v":""},"R1_12_03"]
["D1_12_",1,"Market","D1_12",{"$f":"IF($B60=\"\",\"\",IFERROR(INDEX(db_Domande!$D:$D,MATCH($D60,db_Domande!$C:$C,0),1),\"\"))","v":""},"R1_12_04"]
["D1_12_",1,"Market","D1_12",{"$f":"IF($B61=\"\",\"\",IFERROR(INDEX(db_Domande!$D:$D,MATCH($D61,db_Domande!$C:$C,0),1),\"\"))","v":""},"R1_12_05"]
["D1_13_",1,"Market","D1_13",{"$f":"IF($B62=\"\",\"\",IFERROR(INDEX(db_Domande!$D:$D,MATCH($D62,db_Domande!$C:$C,0),1),\"\"))","v":""},"R1_13_01"]
["D1_13_",1,"Market","D1_13",{"$f":"IF($B63=\"\",\"\",IFERROR(INDEX(db_Domande!$D:$D,MATCH($D63,db_Domande!$C:$C,0),1),\"\"))","v":""},"R1_13_02"]
["D1_13_",1,"Market","D1_13",{"$f":"IF($B64=\"\",\"\",IFERROR(INDEX(db_Domande!$D:$D,MATCH($D64,db_Domande!$C:$C,0),1),\"\"))","v":""},"R1_13_03"]
["D1_13_",1,"Market","D1_13",{"$f":"IF($B65=\"\",\"\",IFERROR(INDEX(db_Domande!$D:$D,MATCH($D65,db_Domande!$C:$C,0),1),\"\"))","v":""},"R1_13_04"]
["D1_13_",1,"Market","D1_13",{"$f":"IF($B66=\"\",\"\",IFERROR(INDEX(db_Domande!$D:$D,MATCH($D66,db_Domande!$C:$C,0),1),\"\"))","v":""},{"$f":"IF($B66=\"\",\"\",\"R\"&RIGHT($D66,4)&\"_\"&TEXT(ROW()-MATCH($D66,$D:$D,0)+1,\"00\"))","v":"R1_13_05"}]
[{"$f":"IF($B67=\"\",\"\",$D67&\"_\"&$G67)","v":"D1_14_"},1,"Market","D1_14",{"$f":"IF($B67=\"\",\"\",IFERROR(INDEX(db_Domande!$D:$D,MATCH($D67,db_Domande!$C:$C,0),1),\"\"))","v":""},"R1_14_01"]
["D1_14_",1,"Market","D1_14",{"$f":"IF($B68=\"\",\"\",IFERROR(INDEX(db_Domande!$D:$D,MATCH($D68,db_Domande!$C:$C,0),1),\"\"))","v":""},"R1_14_02"]
["D1_14_",1,"Market","D1_14",{"$f":"IF($B69=\"\",\"\",IFERROR(INDEX(db_Domande!$D:$D,MATCH($D69,db_Domande!$C:$C,0),1),\"\"))","v":""},"R1_14_03"]
["D1_14_",1,"Market","D1_14",{"$f":"IF($B70=\"\",\"\",IFERROR(INDEX(db_Domande!$D:$D,MATCH($D70,db_Domande!$C:$C,0),1),\"\"))","v":""},"R1_14_04"]
["D1_14_",1,"Market","D1_14",{"$f":"IF($B71=\"\",\"\",IFERROR(INDEX(db_Domande!$D:$D,MATCH($D71,db_Domande!$C:$C,0),1),\"\"))","v":""},"R1_14_05"]
["D1_15_",1,"Market","D1_15",{"$f":"IF($B72=\"\",\"\",IFERROR(INDEX(db_Domande!$D:$D,MATCH($D72,db_Domande!$C:$C,0),1),\"\"))","v":""},"R1_15_01"]
["D1_15_",1,"Market","D1_15",{"$f":"IF($B73=\"\",\"\",IFERROR(INDEX(db_Domande!$D:$D,MATCH($D73,db_Domande!$C:$C,0),1),\"\"))","v":""},"R1_15_02"]
["D1_15_",1,"Market","D1_15",{"$f":"IF($B74=\"\",\"\",IFERROR(INDEX(db_Domande!$D:$D,MATCH($D74,db_Domande!$C:$C,0),1),\"\"))","v":""},"R1_15_03"]
["D1_15_",1,"Market","D1_15",{"$f":"IF($B75=\"\",\"\",IFERROR(INDEX(db_Domande!$D:$D,MATCH($D75,db_Domande!$C:$C,0),1),\"\"))","v":""},"R1_15_04"]
["D1_15_",1,"Market","D1_15",{"$f":"IF($B76=\"\",\"\",IFERROR(INDEX(db_Domande!$D:$D,MATCH($D76,db_Domande!$C:$C,0),1),\"\"))","v":""},"R1_15_05"]
["D1_16_",1,"Market","D1_16",{"$f":"IF($B77=\"\",\"\",IFERROR(INDEX(db_Domande!$D:$D,MATCH($D77,db_Domande!$C:$C,0),1),\"\"))","v":""},"R1_16_01"]
["D1_16_",1,"Market","D1_16",{"$f":"IF($B78=\"\",\"\",IFERROR(INDEX(db_Domande!$D:$D,MATCH($D78,db_Domande!$C:$C,0),1),\"\"))","v":""},"R1_16_02"]
["D1_16_",1,"Market","D1_16",{"$f":"IF($B79=\"\",\"\",IFERROR(INDEX(db_Domande!$D:$D,MATCH($D79,db_Domande!$C:$C,0),1),\"\"))","v":""},"R1_16_03"]
["D1_16_",1,"Market","D1_16",{"$f":"IF($B80=\"\",\"\",IFERROR(INDEX(db_Domande!$D:$D,MATCH($D80,db_Domande!$C:$C,0),1),\"\"))","v":""},"R1_16_04"]
["D1_16_",1,"Market","D1_16",{"$f":"IF($B81=\"\",\"\",IFERROR(INDEX(db_Domande!$D:$D,MATCH($D81,db_Domande!$C:$C,0),1),\"\"))","v":""},"R1_16_05"]
["D1_17_",1,"Market","D1_17",{"$f":"IF($B82=\"\",\"\",IFERROR(INDEX(db_Domande!$D:$D,MATCH($D82,db_Domande!$C:$C,0),1),\"\"))","v":""},"R1_17_01"]
["D1_17_",1,"Market","D1_17",{"$f":"IF($B83=\"\",\"\",IFERROR(INDEX(db_Domande!$D:$D,MATCH($D83,db_Domande!$C:$C,0),1),\"\"))","v":""},"R1_17_02"]
["D1_17_",1,"Market","D1_17",{"$f":"IF($B84=\"\",\"\",IFERROR(INDEX(db_Domande!$D:$D,MATCH($D84,db_Domande!$C:$C,0),1),\"\"))","v":""},"R1_17_03"]
["D1_17_",1,"Market","D1_17",{"$f":"IF($B85=\"\",\"\",IFERROR(INDEX(db_Domande!$D:$D,MATCH($D85,db_Domande!$C:$C,0),1),\"\"))","v":""},"R1_17_04"]
["D1_17_",1,"Market","D1_17",{"$f":"IF($B86=\"\",\"\",IFERROR(INDEX(db_Domande!$D:$D,MATCH($D86,db_Domande!$C:$C,0),1),\"\"))","v":""},"R1_17_05"]
["D1_18_",1,"Market","D1_18",{"$f":"IF($B87=\"\",\"\",IFERROR(INDEX(db_Domande!$D:$D,MATCH($D87,db_Domande!$C:$C,0),1),\"\"))","v":""},"R1_18_01"]
["D1_18_",1,"Market","D1_18",{"$f":"IF($B88=\"\",\"\",IFERROR(INDEX(db_Domande!$D:$D,MATCH($D88,db_Domande!$C:$C,0),1),\"\"))","v":""},"R1_18_02"]
["D1_18_",1,"Market","D1_18",{"$f":"IF($B89=\"\",\"\",IFERROR(INDEX(db_Domande!$D:$D,MATCH($D89,db_Domande!$C:$C,0),1),\"\"))","v":""},"R1_18_03"]
["D1_18_",1,"Market","D1_18",{"$f":"IF($B90=\"\",\"\",IFERROR(INDEX(db_Domande!$D:$D,MATCH($D90,db_Domande!$C:$C,0),1),\"\"))","v":""},"R1_18_04"]
["D1_18_",1,"Market","D1_18",{"$f":"IF($B91=\"\",\"\",IFERROR(INDEX(db_Domande!$D:$D,MATCH($D91,db_Domande!$C:$C,0),1),\"\"))","v":""},"R1_18_05"]
["D1_19_",1,"Market","D1_19",{"$f":"IF($B92=\"\",\"\",IFERROR(INDEX(db_Domande!$D:$D,MATCH($D92,db_Domande!$C:$C,0),1),\"\"))","v":""},"R1_19_01"]
["D1_19_",1,"Market","D1_19",{"$f":"IF($B93=\"\",\"\",IFERROR(INDEX(db_Domande!$D:$D,MATCH($D93,db_Domande!$C:$C,0),1),\"\"))","v":""},"R1_19_02"]
["D1_19_",1,"Market","D1_19",{"$f":"IF($B94=\"\",\"\",IFERROR(INDEX(db_Domande!$D:$D,MATCH($D94,db_Domande!$C:$C,0),1),\"\"))","v":""},"R1_19_03"]
["D1_19_",1,"Market","D1_19",{"$f":"IF($B95=\"\",\"\",IFERROR(INDEX(db_Domande!$D:$D,MATCH($D95,db_Domande!$C:$C,0),1),\"\"))","v":""},"R1_19_04"]
["D1_19_",1,"Market","D1_19",{"$f":"IF($B96=\"\",\"\",IFERROR(INDEX(db_Domande!$D:$D,MATCH($D96,db_Domande!$C:$C,0),1),\"\"))","v":""},"R1_19_05"]
["D1_20_",1,"Market","D1_20",{"$f":"IF($B97=\"\",\"\",IFERROR(INDEX(db_Domande!$D:$D,MATCH($D97,db_Domande!$C:$C,0),1),\"\"))","v":""},"R1_20_01"]
["D1_20_",1,"Market","D1_20",{"$f":"IF($B98=\"\",\"\",IFERROR(INDEX(db_Domande!$D:$D,MATCH($D98,db_Domande!$C:$C,0),1),\"\"))","v":""},"R1_20_02"]
["D1_20_",1,"Market","D1_20",{"$f":"IF($B99=\"\",\"\",IFERROR(INDEX(db_Domande!$D:$D,MATCH($D99,db_Domande!$C:$C,0),1),\"\"))","v":""},"R1_20_03"]
["D1_20_",1,"Market","D1_20",{"$f":"IF($B100=\"\",\"\",IFERROR(INDEX(db_Domande!$D:$D,MATCH($D100,db_Domande!$C:$C,0),1),\"\"))","v":""},"R1_20_04"]
["D1_20_",1,"Market","D1_20",{"$f":"IF($B101=\"\",\"\",IFERROR(INDEX(db_Domande!$D:$D,MATCH($D101,db_Domande!$C:$C,0),1),\"\"))","v":""},"R1_20_05"]
["",null,null,null,{"$f":"IF($B102=\"\",\"\",IFERROR(INDEX(db_Domande!$D:$D,MATCH($D102,db_Domande!$C:$C,0),1),\"\"))","v":""},""]
["D2_01_SI",2,"Supply Chain","D2_01",{"$f":"IF($B103=\"\",\"\",IFERROR(INDEX(db_Domande!$D:$D,MATCH($D103,db_Domande!$C:$C,0),1),\"\"))","v":"L'azienda ha attivato misure di monitoring constante sullo stato di salute dei suoi fornitori?"},"R2_01_01","SI","SI  ;  NO  ;  NON_APPLICABILE",3,1]
["D2_01_NO",2,"Supply Chain","D2_01",{"$f":"IF($B104=\"\",\"\",IFERROR(INDEX(db_Domande!$D:$D,MATCH($D104,db_Domande!$C:$C,0),1),\"\"))","v":"L'azienda ha attivato misure di monitoring constante sullo stato di salute dei suoi fornitori?"},"R2_01_02","NO",null,null,0]
["D2_01_NON_APPLICABILE",2,"Supply Chain","D2_01",{"$f":"IF($B105=\"\",\"\",IFERROR(INDEX(db_Domande!$D:$D,MATCH($D105,db_Domande!$C:$C,0),1),\"\"))","v":"L'azienda ha attivato misure di monitoring constante sullo stato di salute dei suoi fornitori?"},"R2_01_03","NON_APPLICABILE",null,null,0]
["D2_01_",2,"Supply Chain","D2_01",{"$f":"IF($B106=\"\",\"\",IFERROR(INDEX(db_Domande!$D:$D,MATCH($D106,db_Domande!$C:$C,0),1),\"\"))","v":"L'azienda ha attivato misure di monitoring constante sullo stato di salute dei suoi fornitori?"},"R2_01_04"]
["D2_01_",2,"Supply Chain","D2_01",{"$f":"IF($B107=\"\",\"\",IFERROR(INDEX(db_Domande!$D:$D,MATCH($D107,db_Domande!$C:$C,0),1),\"\"))","v":"L'azienda ha attivato misure di monitoring constante sullo stato di salute dei suoi fornitori?"},"R2_01_05"]
["D2_02_SI",2,"Supply Chain","D2_02",{"$f":"IF($B108=\"\",\"\",IFERROR(INDEX(db_Domande!$D:$D,MATCH($D108,db_Domande!$C:$C,0),1),\"\"))","v":"L'azienda ha valutato l'impatto di un'eventuale interruzione o limitazione della catena di fornitura aziendale?"},"R2_02_01","SI","SI  ;  NO  ;  NON_APPLICABILE",3,1]
["D2_02_NO",2,"Supply Chain","D2_02",{"$f":"IF($B109=\"\",\"\",IFERROR(INDEX(db_Domande!$D:$D,MATCH($D109,db_Domande!$C:$C,0),1),\"\"))","v":"L'azienda ha valutato l'impatto di un'eventuale interruzione o limitazione della catena di fornitura aziendale?"},"R2_02_02","NO",null,null,0]
["D2_02_NON_APPLICABILE",2,"Supply Chain","D2_02",{"$f":"IF($B110=\"\",\"\",IFERROR(INDEX(db_Domande!$D:$D,MATCH($D110,db_Domande!$C:$C,0),1),\"\"))","v":"L'azienda ha valutato l'impatto di un'eventuale interruzione o limitazione della catena di fornitura aziendale?"},"R2_02_03","NON_APPLICABILE",null,null,0]
["D2_02_",2,"Supply Chain","D2_02",{"$f":"IF($B111=\"\",\"\",IFERROR(INDEX(db_Domande!$D:$D,MATCH($D111,db_Domande!$C:$C,0),1),\"\"))","v":"L'azienda ha valutato l'impatto di un'eventuale interruzione o limitazione della catena di fornitura aziendale?"},"R2_02_04"]
["D2_02_",2,"Supply Chain","D2_02",{"$f":"IF($B112=\"\",\"\",IFERROR(INDEX(db_Domande!$D:$D,MATCH($D112,db_Domande!$C:$C,0),1),\"\"))","v":"L'azienda ha valutato l'impatto di un'eventuale interruzione o limitazione della catena di fornitura aziendale?"},"R2_02_05"]
["D2_03_SI",2,"Supply Chain","D2_03",{"$f":"IF($B113=\"\",\"\",IFERROR(INDEX(db_Domande!$D:$D,MATCH($D113,db_Domande!$C:$C,0),1),\"\"))","v":"L'azienda ha definito dipendenze ed interdipendenze delle proprie attività critiche, incluse quelle legate a partner e fornitori?"},"R2_03_01","SI","SI  ;  NO  ;  NON_APPLICABILE",3,1]
["D2_03_NO",2,"Supply Chain","D2_03",{"$f":"IF($B114=\"\",\"\",IFERROR(INDEX(db_Domande!$D:$D,MATCH($D114,db_Domande!$C:$C,0),1),\"\"))","v":"L'azienda ha definito dipendenze ed interdipendenze delle proprie attività critiche, incluse quelle legate a partner e fornitori?"},"R2_03_02","NO",null,null,0]
["D2_03_NON_APPLICABILE",2,"Supply Chain","D2_03",{"$f":"IF($B115=\"\",\"\",IFERROR(INDEX(db_Domande!$D:$D,MATCH($D115,db_Domande!$C:$C,0),1),\"\"))","v":"L'azienda ha definito dipendenze ed interdipendenze delle proprie attività critiche, incluse quelle legate a partner e fornitori?"},"R2_03_03","NON_APPLICABILE",null,null,0]
["D2_03_",2,"Supply Chain","D2_03",{"$f":"IF($B116=\"\",\"\",IFERROR(INDEX(db_Domande!$D:$D,MATCH($D116,db_Domande!$C:$C,0),1),\"\"))","v":"L'azienda ha definito dipendenze ed interdipendenze delle proprie attività critiche, incluse quelle legate a partner e fornitori?"},"R2_03_04"]
["D2_03_",2,"Supply Chain","D2_03",{"$f":"IF($B117=\"\",\"\",IFERROR(INDEX(db_Domande!$D:$D,MATCH($D117,db_Domande!$C:$C,0),1),\"\"))","v":"L'azienda ha definito dipendenze ed interdipendenze delle proprie attività critiche, incluse quelle legate a partner e fornitori?"},"R2_03_05"]
["D2_04_SI",2,"Supply Chain","D2_04",{"$f":"IF($B118=\"\",\"\",IFERROR(INDEX(db_Domande!$D:$D,MATCH($D118,db_Domande!$C:$C,0),1),\"\"))","v":"L'azienda sta pianificando azioni e contromisure per ridurre possibili effetti indesiderati causati dall'emergenza (es. Soluzioni di automazione industry 4.0, sistemi IT e di telecomunicazione per gestioni in remoto, forniture alternative, logistiche alternative, ecc.)?"},"R2_04_01","SI","SI  ;  NO  ;  NON_APPLICABILE",3,1]
["D2_04_NO",2,"Supply Chain","D2_04",{"$f":"IF($B119=\"\",\"\",IFERROR(INDEX(db_Domande!$D:$D,MATCH($D119,db_Domande!$C:$C,0),1),\"\"))","v":"L'azienda sta pianificando azioni e contromisure per ridurre possibili effetti indesiderati causati dall'emergenza (es. Soluzioni di automazione industry 4.0, sistemi IT e di telecomunicazione per gestioni in remoto, forniture alternative, logistiche alternative, ecc.)?"},"R2_04_02","NO",null,null,0]
["D2_04_NON_APPLICABILE",2,"Supply Chain","D2_04",{"$f":"IF($B120=\"\",\"\",IFERROR(INDEX(db_Domande!$D:$D,MATCH($D120,db_Domande!$C:$C,0),1),\"\"))","v":"L'azienda sta pianificando azioni e contromisure per ridurre possibili effetti indesiderati causati dall'emergenza (es. Soluzioni di automazione industry 4.0, sistemi IT e di telecomunicazione per gestioni in remoto, forniture alternative, logistiche alternative, ecc.)?"},"R2_04_03","NON_APPLICABILE",null,null,0]
["D2_04_",2,"Supply Chain","D2_04",{"$f":"IF($B121=\"\",\"\",IFERROR(INDEX(db_Domande!$D:$D,MATCH($D121,db_Domande!$C:$C,0),1),\"\"))","v":"L'azienda sta pianificando azioni e contromisure per ridurre possibili effetti indesiderati causati dall'emergenza (es. Soluzioni di automazione industry 4.0, sistemi IT e di telecomunicazione per gestioni in remoto, forniture alternative, logistiche alternative, ecc.)?"},"R2_04_04"]
["D2_04_",2,"Supply Chain","D2_04",{"$f":"IF($B122=\"\",\"\",IFERROR(INDEX(db_Domande!$D:$D,MATCH($D122,db_Domande!$C:$C,0),1),\"\"))","v":"L'azienda sta pianificando azioni e contromisure per ridurre possibili effetti indesiderati causati dall'emergenza (es. Soluzioni di automazione industry 4.0, sistemi IT e di telecomunicazione per gestioni in remoto, forniture alternative, logistiche alternative, ecc.)?"},"R2_04_05"]
["D2_05_SI",2,"Supply Chain","D2_05",{"$f":"IF($B123=\"\",\"\",IFERROR(INDEX(db_Domande!$D:$D,MATCH($D123,db_Domande!$C:$C,0),1),\"\"))","v":"L'azienda ha individuato le catene logistiche alternative per garantire la continuità del business nel breve-medio termine?"},"R2_05_01","SI","SI  ;  NO  ;  NON_APPLICABILE",3,1]
["D2_05_NO",2,"Supply Chain","D2_05",{"$f":"IF($B124=\"\",\"\",IFERROR(INDEX(db_Domande!$D:$D,MATCH($D124,db_Domande!$C:$C,0),1),\"\"))","v":"L'azienda ha individuato le catene logistiche alternative per garantire la continuità del business nel breve-medio termine?"},"R2_05_02","NO",null,null,0]
["D2_05_NON_APPLICABILE",2,"Supply Chain","D2_05",{"$f":"IF($B125=\"\",\"\",IFERROR(INDEX(db_Domande!$D:$D,MATCH($D125,db_Domande!$C:$C,0),1),\"\"))","v":"L'azienda ha individuato le catene logistiche alternative per garantire la continuità del business nel breve-medio termine?"},"R2_05_03","NON_APPLICABILE",null,null,0]
["D2_05_",2,"Supply Chain","D2_05",{"$f":"IF($B126=\"\",\"\",IFERROR(INDEX(db_Domande!$D:$D,MATCH($D126,db_Domande!$C:$C,0),1),\"\"))","v":"L'azienda ha individuato le catene logistiche alternative per garantire la continuità del business nel breve-medio termine?"},"R2_05_04"]
["D2_05_",2,"Supply Chain","D2_05",{"$f":"IF($B127=\"\",\"\",IFERROR(INDEX(db_Domande!$D:$D,MATCH($D127,db_Domande!$C:$C,0),1),\"\"))","v":"L'azienda ha individuato le catene logistiche alternative per garantire la continuità del business nel breve-medio termine?"},"R2_05_05"]
["D2_06_SI",2,"Supply Chain","D2_06",{"$f":"IF($B128=\"\",\"\",IFERROR(INDEX(db_Domande!$D:$D,MATCH($D128,db_Domande!$C:$C,0),1),\"\"))","v":"L'azienda ha definito processi e responsabili incaricati di comunicare con i fornitori, al fine di garantire lo scambio delle corrette informazioni anche nell’attuale situazione di emergenza?"},"R2_06_01","SI","SI  ;  NO  ;  NON_APPLICABILE",3,1]
["D2_06_NO",2,"Supply Chain","D2_06",{"$f":"IF($B129=\"\",\"\",IFERROR(INDEX(db_Domande!$D:$D,MATCH($D129,db_Domande!$C:$C,0),1),\"\"))","v":"L'azienda ha definito processi e responsabili incaricati di comunicare con i fornitori, al fine di garantire lo scambio delle corrette informazioni anche nell’attuale situazione di emergenza?"},"R2_06_02","NO",null,null,0]
["D2_06_NON_APPLICABILE",2,"Supply Chain","D2_06",{"$f":"IF($B130=\"\",\"\",IFERROR(INDEX(db_Domande!$D:$D,MATCH($D130,db_Domande!$C:$C,0),1),\"\"))","v":"L'azienda ha definito processi e responsabili incaricati di comunicare con i fornitori, al fine di garantire lo scambio delle corrette informazioni anche nell’attuale situazione di emergenza?"},{"$f":"IF($B130=\"\",\"\",\"R\"&RIGHT($D130,4)&\"_\"&TEXT(ROW()-MATCH($D130,$D:$D,0)+1,\"00\"))","v":"R2_06_03"},"NON_APPLICABILE",null,null,0]
[{"$f":"IF($B131=\"\",\"\",$D131&\"_\"&$G131)","v":"D2_06_"},2,"Supply Chain","D2_06",{"$f":"IF($B131=\"\",\"\",IFERROR(INDEX(db_Domande!$D:$D,MATCH($D131,db_Domande!$C:$C,0),1),\"\"))","v":"L'azienda ha definito processi e responsabili incaricati di comunicare con i fornitori, al fine di garantire lo scambio delle corrette informazioni anche nell’attuale situazione di emergenza?"},"R2_06_04"]
["D2_06_",2,"Supply Chain","D2_06",{"$f":"IF($B132=\"\",\"\",IFERROR(INDEX(db_Domande!$D:$D,MATCH($D132,db_Domande!$C:$C,0),1),\"\"))","v":"L'azienda ha definito processi e responsabili incaricati di comunicare con i fornitori, al fine di garantire lo scambio delle corrette informazioni anche nell’attuale situazione di emergenza?"},"R2_06_05"]
["D2_07_SI",2,"Supply Chain","D2_07",{"$f":"IF($B133=\"\",\"\",IFERROR(INDEX(db_Domande!$D:$D,MATCH($D133,db_Domande!$C:$C,0),1),\"\"))","v":"L'azienda ha identificato eventuali rischi legali e di compliance che potrebbero evidenziarsi per l'inadempimento dei contratti di fornitura in essere?"},"R2_07_01","SI","SI  ;  NO  ;  NON_APPLICABILE",3,1]
["D2_07_NO",2,"Supply Chain","D2_07",{"$f":"IF($B134=\"\",\"\",IFERROR(INDEX(db_Domande!$D:$D,MATCH($D134,db_Domande!$C:$C,0),1),\"\"))","v":"L'azienda ha identificato eventuali rischi legali e di compliance che potrebbero evidenziarsi per l'inadempimento dei contratti di fornitura in essere?"},"R2_07_02","NO",null,null,0]
["D2_07_NON_APPLICABILE",2,"Supply Chain","D2_07",{"$f":"IF($B135=\"\",\"\",IFERROR(INDEX(db_Domande!$D:$D,MATCH($D135,db_Domande!$C:$C,0),1),\"\"))","v":"L'azienda ha identificato eventuali rischi legali e di compliance che potrebbero evidenziarsi per l'inadempimento dei contratti di fornitura in essere?"},"R2_07_03","NON_APPLICABILE",null,null,0]
["D2_07_",2,"Supply Chain","D2_07",{"$f":"IF($B136=\"\",\"\",IFERROR(INDEX(db_Domande!$D:$D,MATCH($D136,db_Domande!$C:$C,0),1),\"\"))","v":"L'azienda ha identificato eventuali rischi legali e di compliance che potrebbero evidenziarsi per l'inadempimento dei contratti di fornitura in essere?"},"R2_07_04"]
["D2_07_",2,"Supply Chain","D2_07",{"$f":"IF($B137=\"\",\"\",IFERROR(INDEX(db_Domande!$D:$D,MATCH($D137,db_Domande!$C:$C,0),1),\"\"))","v":"L'azienda ha identificato eventuali rischi legali e di compliance che potrebbero evidenziarsi per l'inadempimento dei contratti di fornitura in essere?"},"R2_07_05"]
["D2_08_SI",2,"Supply Chain","D2_08",{"$f":"IF($B138=\"\",\"\",IFERROR(INDEX(db_Domande!$D:$D,MATCH($D138,db_Domande!$C:$C,0),1),\"\"))","v":"I fornitori dell'azienda si avvalgono di un piano di continuità operativa?"},"R2_08_01","SI","SI  ;  NO  ;  NON_APPLICABILE",3,1]
["D2_08_NO",2,"Supply Chain","D2_08",{"$f":"IF($B139=\"\",\"\",IFERROR(INDEX(db_Domande!$D:$D,MATCH($D139,db_Domande!$C:$C,0),1),\"\"))","v":"I fornitori dell'azienda si avvalgono di un piano di continuità operativa?"},"R2_08_02","NO",null,null,0]
["D2_08_NON_APPLICABILE",2,"Supply Chain","D2_08",{"$f":"IF($B140=\"\",\"\",IFERROR(INDEX(db_Domande!$D:$D,MATCH($D140,db_Domande!$C:$C,0),1),\"\"))","v":"I fornitori dell'azienda si avvalgono di un piano di continuità operativa?"},"R2_08_03","NON_APPLICABILE",null,null,0]
["D2_08_",2,"Supply Chain","D2_08",{"$f":"IF($B141=\"\",\"\",IFERROR(INDEX(db_Domande!$D:$D,MATCH($D141,db_Domande!$C:$C,0),1),\"\"))","v":"I fornitori dell'azienda si avvalgono di un piano di continuità operativa?"},"R2_08_04"]
["D2_08_",2,"Supply Chain","D2_08",{"$f":"IF($B142=\"\",\"\",IFERROR(INDEX(db_Domande!$D:$D,MATCH($D142,db_Domande!$C:$C,0),1),\"\"))","v":"I fornitori dell'azienda si avvalgono di un piano di continuità operativa?"},"R2_08_05"]
["D2_09_SI",2,"Supply Chain","D2_09",{"$f":"IF($B143=\"\",\"\",IFERROR(INDEX(db_Domande!$D:$D,MATCH($D143,db_Domande!$C:$C,0),1),\"\"))","v":"Avete visibilità sulla salute dei vostri fornitori chiave, sui propri subfornitori e sulla capacità degli stessi di continuare ad operare sul mercato?"},"R2_09_01","SI","SI  ;  NO  ;  NON_APPLICABILE",3,1]
["D2_09_NO",2,"Supply Chain","D2_09",{"$f":"IF($B144=\"\",\"\",IFERROR(INDEX(db_Domande!$D:$D,MATCH($D144,db_Domande!$C:$C,0),1),\"\"))","v":"Avete visibilità sulla salute dei vostri fornitori chiave, sui propri subfornitori e sulla capacità degli stessi di continuare ad operare sul mercato?"},"R2_09_02","NO",null,null,0]
["D2_09_NON_APPLICABILE",2,"Supply Chain","D2_09",{"$f":"IF($B145=\"\",\"\",IFERROR(INDEX(db_Domande!$D:$D,MATCH($D145,db_Domande!$C:$C,0),1),\"\"))","v":"Avete visibilità sulla salute dei vostri fornitori chiave, sui propri subfornitori e sulla capacità degli stessi di continuare ad operare sul mercato?"},"R2_09_03","NON_APPLICABILE",null,null,0]
["D2_09_",2,"Supply Chain","D2_09",{"$f":"IF($B146=\"\",\"\",IFERROR(INDEX(db_Domande!$D:$D,MATCH($D146,db_Domande!$C:$C,0),1),\"\"))","v":"Avete visibilità sulla salute dei vostri fornitori chiave, sui propri subfornitori e sulla capacità degli stessi di continuare ad operare sul mercato?"},"R2_09_04"]
["D2_09_",2,"Supply Chain","D2_09",{"$f":"IF($B147=\"\",\"\",IFERROR(INDEX(db_Domande!$D:$D,MATCH($D147,db_Domande!$C:$C,0),1),\"\"))","v":"Avete visibilità sulla salute dei vostri fornitori chiave, sui propri subfornitori e sulla capacità degli stessi di continuare ad operare sul mercato?"},"R2_09_05"]
["D2_10_SI",2,"Supply Chain","D2_10",{"$f":"IF($B148=\"\",\"\",IFERROR(INDEX(db_Domande!$D:$D,MATCH($D148,db_Domande!$C:$C,0),1),\"\"))","v":"Avete revisionato i contratti con i fornitori alla luce della situazione odierna, introducendo o verificando la presenza di clausole a vostra tutela, o connesse al tema delle c.d. “cause di forza maggiore” ed “eccessiva onerosità sopravvenuta”?"},"R2_10_01","SI","SI  ;  NO  ;  NON_APPLICABILE",3,1]
["D2_10_NO",2,"Supply Chain","D2_10",{"$f":"IF($B149=\"\",\"\",IFERROR(INDEX(db_Domande!$D:$D,MATCH($D149,db_Domande!$C:$C,0),1),\"\"))","v":"Avete revisionato i contratti con i fornitori alla luce della situazione odierna, introducendo o verificando la presenza di clausole a vostra tutela, o connesse al tema delle c.d. “cause di forza maggiore” ed “eccessiva onerosità sopravvenuta”?"},"R2_10_02","NO",null,null,0]
["D2_10_NON_APPLICABILE",2,"Supply Chain","D2_10",{"$f":"IF($B150=\"\",\"\",IFERROR(INDEX(db_Domande!$D:$D,MATCH($D150,db_Domande!$C:$C,0),1),\"\"))","v":"Avete revisionato i contratti con i fornitori alla luce della situazione odierna, introducendo o verificando la presenza di clausole a vostra tutela, o connesse al tema delle c.d. “cause di forza maggiore” ed “eccessiva onerosità sopravvenuta”?"},"R2_10_03","NON_APPLICABILE",null,null,0]
["D2_10_",2,"Supply Chain","D2_10",{"$f":"IF($B151=\"\",\"\",IFERROR(INDEX(db_Domande!$D:$D,MATCH($D151,db_Domande!$C:$C,0),1),\"\"))","v":"Avete revisionato i contratti con i fornitori alla luce della situazione odierna, introducendo o verificando la presenza di clausole a vostra tutela, o connesse al tema delle c.d. “cause di forza maggiore” ed “eccessiva onerosità sopravvenuta”?"},"R2_10_04"]
["D2_10_",2,"Supply Chain","D2_10",{"$f":"IF($B152=\"\",\"\",IFERROR(INDEX(db_Domande!$D:$D,MATCH($D152,db_Domande!$C:$C,0),1),\"\"))","v":"Avete revisionato i contratti con i fornitori alla luce della situazione odierna, introducendo o verificando la presenza di clausole a vostra tutela, o connesse al tema delle c.d. “cause di forza maggiore” ed “eccessiva onerosità sopravvenuta”?"},"R2_10_05"]
["D2_11_SI",2,"Supply Chain","D2_11",{"$f":"IF($B153=\"\",\"\",IFERROR(INDEX(db_Domande!$D:$D,MATCH($D153,db_Domande!$C:$C,0),1),\"\"))","v":"Avete in essere claim/contenziosi con i vostri fornitori su temi connessi all’applicazione di clausole di “forza maggiore” od “eccessiva onerosità sopravvenuta”?"},"R2_11_01","SI","SI  ;  NO  ;  NON_APPLICABILE",3,1]
["D2_11_NO",2,"Supply Chain","D2_11",{"$f":"IF($B154=\"\",\"\",IFERROR(INDEX(db_Domande!$D:$D,MATCH($D154,db_Domande!$C:$C,0),1),\"\"))","v":"Avete in essere claim/contenziosi con i vostri fornitori su temi connessi all’applicazione di clausole di “forza maggiore” od “eccessiva onerosità sopravvenuta”?"},"R2_11_02","NO",null,null,0]
["D2_11_NON_APPLICABILE",2,"Supply Chain","D2_11",{"$f":"IF($B155=\"\",\"\",IFERROR(INDEX(db_Domande!$D:$D,MATCH($D155,db_Domande!$C:$C,0),1),\"\"))","v":"Avete in essere claim/contenziosi con i vostri fornitori su temi connessi all’applicazione di clausole di “forza maggiore” od “eccessiva onerosità sopravvenuta”?"},"R2_11_03","NON_APPLICABILE",null,null,0]
["D2_11_",2,"Supply Chain","D2_11",{"$f":"IF($B156=\"\",\"\",IFERROR(INDEX(db_Domande!$D:$D,MATCH($D156,db_Domande!$C:$C,0),1),\"\"))","v":"Avete in essere claim/contenziosi con i vostri fornitori su temi connessi all’applicazione di clausole di “forza maggiore” od “eccessiva onerosità sopravvenuta”?"},"R2_11_04"]
["D2_11_",2,"Supply Chain","D2_11",{"$f":"IF($B157=\"\",\"\",IFERROR(INDEX(db_Domande!$D:$D,MATCH($D157,db_Domande!$C:$C,0),1),\"\"))","v":"Avete in essere claim/contenziosi con i vostri fornitori su temi connessi all’applicazione di clausole di “forza maggiore” od “eccessiva onerosità sopravvenuta”?"},"R2_11_05"]
["D2_12_SI",2,"Supply Chain","D2_12",{"$f":"IF($B158=\"\",\"\",IFERROR(INDEX(db_Domande!$D:$D,MATCH($D158,db_Domande!$C:$C,0),1),\"\"))","v":"Avete previsto, precedentemente alla crisi, l’immagazzinamento di scorte dei prodotti potenzialmente “critici” per clienti e fornitori?"},"R2_12_01","SI","SI  ;  NO  ;  NON_APPLICABILE",3,1]
["D2_12_NO",2,"Supply Chain","D2_12",{"$f":"IF($B159=\"\",\"\",IFERROR(INDEX(db_Domande!$D:$D,MATCH($D159,db_Domande!$C:$C,0),1),\"\"))","v":"Avete previsto, precedentemente alla crisi, l’immagazzinamento di scorte dei prodotti potenzialmente “critici” per clienti e fornitori?"},"R2_12_02","NO",null,null,0]
["D2_12_NON_APPLICABILE",2,"Supply Chain","D2_12",{"$f":"IF($B160=\"\",\"\",IFERROR(INDEX(db_Domande!$D:$D,MATCH($D160,db_Domande!$C:$C,0),1),\"\"))","v":"Avete previsto, precedentemente alla crisi, l’immagazzinamento di scorte dei prodotti potenzialmente “critici” per clienti e fornitori?"},"R2_12_03","NON_APPLICABILE",null,null,0]
["D2_12_",2,"Supply Chain","D2_12",{"$f":"IF($B161=\"\",\"\",IFERROR(INDEX(db_Domande!$D:$D,MATCH($D161,db_Domande!$C:$C,0),1),\"\"))","v":"Avete previsto, precedentemente alla crisi, l’immagazzinamento di scorte dei prodotti potenzialmente “critici” per clienti e fornitori?"},"R2_12_04"]
["D2_12_",2,"Supply Chain","D2_12",{"$f":"IF($B162=\"\",\"\",IFERROR(INDEX(db_Domande!$D:$D,MATCH($D162,db_Domande!$C:$C,0),1),\"\"))","v":"Avete previsto, precedentemente alla crisi, l’immagazzinamento di scorte dei prodotti potenzialmente “critici” per clienti e fornitori?"},"R2_12_05"]
["D2_13_SI",2,"Supply Chain","D2_13",{"$f":"IF($B163=\"\",\"\",IFERROR(INDEX(db_Domande!$D:$D,MATCH($D163,db_Domande!$C:$C,0),1),\"\"))","v":"L'azienda ha un sistema di qualifica dei fornitori che tiene in considerazione gli aspetti ambientali e sociali, diritti umani e altri aspetti di sostenibilità significativi per il settore?"},"R2_13_01","SI","SI  ;  NO  ;  NON_APPLICABILE",3,1]
["D2_13_NO",2,"Supply Chain","D2_13",{"$f":"IF($B164=\"\",\"\",IFERROR(INDEX(db_Domande!$D:$D,MATCH($D164,db_Domande!$C:$C,0),1),\"\"))","v":"L'azienda ha un sistema di qualifica dei fornitori che tiene in considerazione gli aspetti ambientali e sociali, diritti umani e altri aspetti di sostenibilità significativi per il settore?"},"R2_13_02","NO",null,null,0]
["D2_13_NON_APPLICABILE",2,"Supply Chain","D2_13",{"$f":"IF($B165=\"\",\"\",IFERROR(INDEX(db_Domande!$D:$D,MATCH($D165,db_Domande!$C:$C,0),1),\"\"))","v":"L'azienda ha un sistema di qualifica dei fornitori che tiene in considerazione gli aspetti ambientali e sociali, diritti umani e altri aspetti di sostenibilità significativi per il settore?"},"R2_13_03","NON_APPLICABILE",null,null,0]
["D2_13_",2,"Supply Chain","D2_13",{"$f":"IF($B166=\"\",\"\",IFERROR(INDEX(db_Domande!$D:$D,MATCH($D166,db_Domande!$C:$C,0),1),\"\"))","v":"L'azienda ha un sistema di qualifica dei fornitori che tiene in considerazione gli aspetti ambientali e sociali, diritti umani e altri aspetti di sostenibilità significativi per il settore?"},"R2_13_04"]
["D2_13_",2,"Supply Chain","D2_13",{"$f":"IF($B167=\"\",\"\",IFERROR(INDEX(db_Domande!$D:$D,MATCH($D167,db_Domande!$C:$C,0),1),\"\"))","v":"L'azienda ha un sistema di qualifica dei fornitori che tiene in considerazione gli aspetti ambientali e sociali, diritti umani e altri aspetti di sostenibilità significativi per il settore?"},"R2_13_05"]
["D2_14_SI",2,"Supply Chain","D2_14",{"$f":"IF($B168=\"\",\"\",IFERROR(INDEX(db_Domande!$D:$D,MATCH($D168,db_Domande!$C:$C,0),1),\"\"))","v":"L'azienda ha identificato le variabili chiave di sostenibilità dei propri fornitori che consentono di aumentare la propria competitività o profittabilità? "},"R2_14_01","SI","SI  ;  NO  ;  NON_APPLICABILE",3,1]
["D2_14_NO",2,"Supply Chain","D2_14",{"$f":"IF($B169=\"\",\"\",IFERROR(INDEX(db_Domande!$D:$D,MATCH($D169,db_Domande!$C:$C,0),1),\"\"))","v":"L'azienda ha identificato le variabili chiave di sostenibilità dei propri fornitori che consentono di aumentare la propria competitività o profittabilità? "},"R2_14_02","NO",null,null,0]
["D2_14_NON_APPLICABILE",2,"Supply Chain","D2_14",{"$f":"IF($B170=\"\",\"\",IFERROR(INDEX(db_Domande!$D:$D,MATCH($D170,db_Domande!$C:$C,0),1),\"\"))","v":"L'azienda ha identificato le variabili chiave di sostenibilità dei propri fornitori che consentono di aumentare la propria competitività o profittabilità? "},"R2_14_03","NON_APPLICABILE",null,null,0]
["D2_14_",2,"Supply Chain","D2_14",{"$f":"IF($B171=\"\",\"\",IFERROR(INDEX(db_Domande!$D:$D,MATCH($D171,db_Domande!$C:$C,0),1),\"\"))","v":"L'azienda ha identificato le variabili chiave di sostenibilità dei propri fornitori che consentono di aumentare la propria competitività o profittabilità? "},"R2_14_04"]
["D2_14_",2,"Supply Chain","D2_14",{"$f":"IF($B172=\"\",\"\",IFERROR(INDEX(db_Domande!$D:$D,MATCH($D172,db_Domande!$C:$C,0),1),\"\"))","v":"L'azienda ha identificato le variabili chiave di sostenibilità dei propri fornitori che consentono di aumentare la propria competitività o profittabilità? "},"R2_14_05"]
["D2_15_",2,"Supply Chain","D2_15",{"$f":"IF($B173=\"\",\"\",IFERROR(INDEX(db_Domande!$D:$D,MATCH($D173,db_Domande!$C:$C,0),1),\"\"))","v":""},"R2_15_01"]
["D2_15_",2,"Supply Chain","D2_15",{"$f":"IF($B174=\"\",\"\",IFERROR(INDEX(db_Domande!$D:$D,MATCH($D174,db_Domande!$C:$C,0),1),\"\"))","v":""},"R2_15_02"]
["D2_15_",2,"Supply Chain","D2_15",{"$f":"IF($B175=\"\",\"\",IFERROR(INDEX(db_Domande!$D:$D,MATCH($D175,db_Domande!$C:$C,0),1),\"\"))","v":""},"R2_15_03"]
["D2_15_",2,"Supply Chain","D2_15",{"$f":"IF($B176=\"\",\"\",IFERROR(INDEX(db_Domande!$D:$D,MATCH($D176,db_Domande!$C:$C,0),1),\"\"))","v":""},"R2_15_04"]
["D2_15_",2,"Supply Chain","D2_15",{"$f":"IF($B177=\"\",\"\",IFERROR(INDEX(db_Domande!$D:$D,MATCH($D177,db_Domande!$C:$C,0),1),\"\"))","v":""},"R2_15_05"]
["D2_16_",2,"Supply Chain","D2_16",{"$f":"IF($B178=\"\",\"\",IFERROR(INDEX(db_Domande!$D:$D,MATCH($D178,db_Domande!$C:$C,0),1),\"\"))","v":""},"R2_16_01"]
["D2_16_",2,"Supply Chain","D2_16",{"$f":"IF($B179=\"\",\"\",IFERROR(INDEX(db_Domande!$D:$D,MATCH($D179,db_Domande!$C:$C,0),1),\"\"))","v":""},"R2_16_02"]
["D2_16_",2,"Supply Chain","D2_16",{"$f":"IF($B180=\"\",\"\",IFERROR(INDEX(db_Domande!$D:$D,MATCH($D180,db_Domande!$C:$C,0),1),\"\"))","v":""},"R2_16_03"]
["D2_16_",2,"Supply Chain","D2_16",{"$f":"IF($B181=\"\",\"\",IFERROR(INDEX(db_Domande!$D:$D,MATCH($D181,db_Domande!$C:$C,0),1),\"\"))","v":""},"R2_16_04"]
["D2_16_",2,"Supply Chain","D2_16",{"$f":"IF($B182=\"\",\"\",IFERROR(INDEX(db_Domande!$D:$D,MATCH($D182,db_Domande!$C:$C,0),1),\"\"))","v":""},"R2_16_05"]
["D2_17_",2,"Supply Chain","D2_17",{"$f":"IF($B183=\"\",\"\",IFERROR(INDEX(db_Domande!$D:$D,MATCH($D183,db_Domande!$C:$C,0),1),\"\"))","v":""},"R2_17_01"]
["D2_17_",2,"Supply Chain","D2_17",{"$f":"IF($B184=\"\",\"\",IFERROR(INDEX(db_Domande!$D:$D,MATCH($D184,db_Domande!$C:$C,0),1),\"\"))","v":""},"R2_17_02"]
["D2_17_",2,"Supply Chain","D2_17",{"$f":"IF($B185=\"\",\"\",IFERROR(INDEX(db_Domande!$D:$D,MATCH($D185,db_Domande!$C:$C,0),1),\"\"))","v":""},"R2_17_03"]
["D2_17_",2,"Supply Chain","D2_17",{"$f":"IF($B186=\"\",\"\",IFERROR(INDEX(db_Domande!$D:$D,MATCH($D186,db_Domande!$C:$C,0),1),\"\"))","v":""},"R2_17_04"]
["D2_17_",2,"Supply Chain","D2_17",{"$f":"IF($B187=\"\",\"\",IFERROR(INDEX(db_Domande!$D:$D,MATCH($D187,db_Domande!$C:$C,0),1),\"\"))","v":""},"R2_17_05"]
["D2_18_",2,"Supply Chain","D2_18",{"$f":"IF($B188=\"\",\"\",IFERROR(INDEX(db_Domande!$D:$D,MATCH($D188,db_Domande!$C:$C,0),1),\"\"))","v":""},"R2_18_01"]
["D2_18_",2,"Supply Chain","D2_18",{"$f":"IF($B189=\"\",\"\",IFERROR(INDEX(db_Domande!$D:$D,MATCH($D189,db_Domande!$C:$C,0),1),\"\"))","v":""},"R2_18_02"]
["D2_18_",2,"Supply Chain","D2_18",{"$f":"IF($B190=\"\",\"\",IFERROR(INDEX(db_Domande!$D:$D,MATCH($D190,db_Domande!$C:$C,0),1),\"\"))","v":""},"R2_18_03"]
["D2_18_",2,"Supply Chain","D2_18",{"$f":"IF($B191=\"\",\"\",IFERROR(INDEX(db_Domande!$D:$D,MATCH($D191,db_Domande!$C:$C,0),1),\"\"))","v":""},"R2_18_04"]
["D2_18_",2,"Supply Chain","D2_18",{"$f":"IF($B192=\"\",\"\",IFERROR(INDEX(db_Domande!$D:$D,MATCH($D192,db_Domande!$C:$C,0),1),\"\"))","v":""},"R2_18_05"]
["D2_19_",2,"Supply Chain","D2_19",{"$f":"IF($B193=\"\",\"\",IFERROR(INDEX(db_Domande!$D:$D,MATCH($D193,db_Domande!$C:$C,0),1),\"\"))","v":""},"R2_19_01"]
["D2_19_",2,"Supply Chain","D2_19",{"$f":"IF($B194=\"\",\"\",IFERROR(INDEX(db_Domande!$D:$D,MATCH($D194,db_Domande!$C:$C,0),1),\"\"))","v":""},{"$f":"IF($B194=\"\",\"\",\"R\"&RIGHT($D194,4)&\"_\"&TEXT(ROW()-MATCH($D194,$D:$D,0)+1,\"00\"))","v":"R2_19_02"}]
[{"$f":"IF($B195=\"\",\"\",$D195&\"_\"&$G195)","v":"D2_19_"},2,"Supply Chain","D2_19",{"$f":"IF($B195=\"\",\"\",IFERROR(INDEX(db_Domande!$D:$D,MATCH($D195,db_Domande!$C:$C,0),1),\"\"))","v":""},"R2_19_03"]
["D2_19_",2,"Supply Chain","D2_19",{"$f":"IF($B196=\"\",\"\",IFERROR(INDEX(db_Domande!$D:$D,MATCH($D196,db_Domande!$C:$C,0),1),\"\"))","v":""},"R2_19_04"]
["D2_19_",2,"Supply Chain","D2_19",{"$f":"IF($B197=\"\",\"\",IFERROR(INDEX(db_Domande!$D:$D,MATCH($D197,db_Domande!$C:$C,0),1),\"\"))","v":""},"R2_19_05"]
["D2_20_",2,"Supply Chain","D2_20",{"$f":"IF($B198=\"\",\"\",IFERROR(INDEX(db_Domande!$D:$D,MATCH($D198,db_Domande!$C:$C,0),1),\"\"))","v":""},"R2_20_01"]
["D2_20_",2,"Supply Chain","D2_20",{"$f":"IF($B199=\"\",\"\",IFERROR(INDEX(db_Domande!$D:$D,MATCH($D199,db_Domande!$C:$C,0),1),\"\"))","v":""},"R2_20_02"]
["D2_20_",2,"Supply Chain","D2_20",{"$f":"IF($B200=\"\",\"\",IFERROR(INDEX(db_Domande!$D:$D,MATCH($D200,db_Domande!$C:$C,0),1),\"\"))","v":""},"R2_20_03"]
["D2_20_",2,"Supply Chain","D2_20",{"$f":"IF($B201=\"\",\"\",IFERROR(INDEX(db_Domande!$D:$D,MATCH($D201,db_Domande!$C:$C,0),1),\"\"))","v":""},"R2_20_04"]
["D2_20_",2,"Supply Chain","D2_20",{"$f":"IF($B202=\"\",\"\",IFERROR(INDEX(db_Domande!$D:$D,MATCH($D202,db_Domande!$C:$C,0),1),\"\"))","v":""},"R2_20_05"]
["",null,null,null,{"$f":"IF($B203=\"\",\"\",IFERROR(INDEX(db_Domande!$D:$D,MATCH($D203,db_Domande!$C:$C,0),1),\"\"))","v":""},""]
["D3_01_SI",3,"Operations","D3_01",{"$f":"IF($B204=\"\",\"\",IFERROR(INDEX(db_Domande!$D:$D,MATCH($D204,db_Domande!$C:$C,0),1),\"\"))","v":"L'azienda ha individuato le attività produttive critiche e fondamentali per garantire l'operatività durante l'emergenza?"},"R3_01_01","SI","SI  ;  NO  ;  NON_APPLICABILE",3,1]
["D3_01_NO",3,"Operations","D3_01",{"$f":"IF($B205=\"\",\"\",IFERROR(INDEX(db_Domande!$D:$D,MATCH($D205,db_Domande!$C:$C,0),1),\"\"))","v":"L'azienda ha individuato le attività produttive critiche e fondamentali per garantire l'operatività durante l'emergenza?"},"R3_01_02","NO",null,null,0]
["D3_01_NON_APPLICABILE",3,"Operations","D3_01",{"$f":"IF($B206=\"\",\"\",IFERROR(INDEX(db_Domande!$D:$D,MATCH($D206,db_Domande!$C:$C,0),1),\"\"))","v":"L'azienda ha individuato le attività produttive critiche e fondamentali per garantire l'operatività durante l'emergenza?"},"R3_01_03","NON_APPLICABILE",null,null,0]
["D3_01_",3,"Operations","D3_01",{"$f":"IF($B207=\"\",\"\",IFERROR(INDEX(db_Domande!$D:$D,MATCH($D207,db_Domande!$C:$C,0),1),\"\"))","v":"L'azienda ha individuato le attività produttive critiche e fondamentali per garantire l'operatività durante l'emergenza?"},"R3_01_04"]
["D3_01_",3,"Operations","D3_01",{"$f":"IF($B208=\"\",\"\",IFERROR(INDEX(db_Domande!$D:$D,MATCH($D208,db_Domande!$C:$C,0),1),\"\"))","v":"L'azienda ha individuato le attività produttive critiche e fondamentali per garantire l'operatività durante l'emergenza?"},"R3_01_05"]
["D3_02_SI",3,"Operations","D3_02",{"$f":"IF($B209=\"\",\"\",IFERROR(INDEX(db_Domande!$D:$D,MATCH($D209,db_Domande!$C:$C,0),1),\"\"))","v":"L'azienda ha definito strumenti di pianificazione e riorganizzazione del personale che permettano una maggior flessibilità organizzativa?"},"R3_02_01","SI","SI  ;  NO  ;  NON_APPLICABILE",3,1]
["D3_02_NO",3,"Operations","D3_02",{"$f":"IF($B210=\"\",\"\",IFERROR(INDEX(db_Domande!$D:$D,MATCH($D210,db_Domande!$C:$C,0),1),\"\"))","v":"L'azienda ha definito strumenti di pianificazione e riorganizzazione del personale che permettano una maggior flessibilità organizzativa?"},"R3_02_02","NO",null,null,0]
["D3_02_NON_APPLICABILE",3,"Operations","D3_02",{"$f":"IF($B211=\"\",\"\",IFERROR(INDEX(db_Domande!$D:$D,MATCH($D211,db_Domande!$C:$C,0),1),\"\"))","v":"L'azienda ha definito strumenti di pianificazione e riorganizzazione del personale che permettano una maggior flessibilità organizzativa?"},"R3_02_03","NON_APPLICABILE",null,null,0]
["D3_02_",3,"Operations","D3_02",{"$f":"IF($B212=\"\",\"\",IFERROR(INDEX(db_Domande!$D:$D,MATCH($D212,db_Domande!$C:$C,0),1),\"\"))","v":"L'azienda ha definito strumenti di pianificazione e riorganizzazione del personale che permettano una maggior flessibilità organizzativa?"},"R3_02_04"]
["D3_02_",3,"Operations","D3_02",{"$f":"IF($B213=\"\",\"\",IFERROR(INDEX(db_Domande!$D:$D,MATCH($D213,db_Domande!$C:$C,0),1),\"\"))","v":"L'azienda ha definito strumenti di pianificazione e riorganizzazione del personale che permettano una maggior flessibilità organizzativa?"},"R3_02_05"]
["D3_03_SI",3,"Operations","D3_03",{"$f":"IF($B214=\"\",\"\",IFERROR(INDEX(db_Domande!$D:$D,MATCH($D214,db_Domande!$C:$C,0),1),\"\"))","v":"L'azienda ha rivisto le proprie modalità operative al fine di garantire una maggior sicurezza degli operatori sulle postazioni di lavoro?"},"R3_03_01","SI","SI  ;  NO  ;  NON_APPLICABILE",3,1]
["D3_03_NO",3,"Operations","D3_03",{"$f":"IF($B215=\"\",\"\",IFERROR(INDEX(db_Domande!$D:$D,MATCH($D215,db_Domande!$C:$C,0),1),\"\"))","v":"L'azienda ha rivisto le proprie modalità operative al fine di garantire una maggior sicurezza degli operatori sulle postazioni di lavoro?"},"R3_03_02","NO",null,null,0]
["D3_03_NON_APPLICABILE",3,"Operations","D3_03",{"$f":"IF($B216=\"\",\"\",IFERROR(INDEX(db_Domande!$D:$D,MATCH($D216,db_Domande!$C:$C,0),1),\"\"))","v":"L'azienda ha rivisto le proprie modalità operative al fine di garantire una maggior sicurezza degli operatori sulle postazioni di lavoro?"},"R3_03_03","NON_APPLICABILE",null,null,0]
["D3_03_",3,"Operations","D3_03",{"$f":"IF($B217=\"\",\"\",IFERROR(INDEX(db_Domande!$D:$D,MATCH($D217,db_Domande!$C:$C,0),1),\"\"))","v":"L'azienda ha rivisto le proprie modalità operative al fine di garantire una maggior sicurezza degli operatori sulle postazioni di lavoro?"},"R3_03_04"]
["D3_03_",3,"Operations","D3_03",{"$f":"IF($B218=\"\",\"\",IFERROR(INDEX(db_Domande!$D:$D,MATCH($D218,db_Domande!$C:$C,0),1),\"\"))","v":"L'azienda ha rivisto le proprie modalità operative al fine di garantire una maggior sicurezza degli operatori sulle postazioni di lavoro?"},"R3_03_05"]
["D3_04_SI",3,"Operations","D3_04",{"$f":"IF($B219=\"\",\"\",IFERROR(INDEX(db_Domande!$D:$D,MATCH($D219,db_Domande!$C:$C,0),1),\"\"))","v":"L'azienda ha valutato l'impatto di un'eventuale chiusura o limitazione della propria linea produttiva?"},"R3_04_01","SI","SI  ;  NO  ;  NON_APPLICABILE",3,1]
["D3_04_NO",3,"Operations","D3_04",{"$f":"IF($B220=\"\",\"\",IFERROR(INDEX(db_Domande!$D:$D,MATCH($D220,db_Domande!$C:$C,0),1),\"\"))","v":"L'azienda ha valutato l'impatto di un'eventuale chiusura o limitazione della propria linea produttiva?"},"R3_04_02","NO",null,null,0]
["D3_04_NON_APPLICABILE",3,"Operations","D3_04",{"$f":"IF($B221=\"\",\"\",IFERROR(INDEX(db_Domande!$D:$D,MATCH($D221,db_Domande!$C:$C,0),1),\"\"))","v":"L'azienda ha valutato l'impatto di un'eventuale chiusura o limitazione della propria linea produttiva?"},"R3_04_03","NON_APPLICABILE",null,null,0]
["D3_04_",3,"Operations","D3_04",{"$f":"IF($B222=\"\",\"\",IFERROR(INDEX(db_Domande!$D:$D,MATCH($D222,db_Domande!$C:$C,0),1),\"\"))","v":"L'azienda ha valutato l'impatto di un'eventuale chiusura o limitazione della propria linea produttiva?"},"R3_04_04"]
["D3_04_",3,"Operations","D3_04",{"$f":"IF($B223=\"\",\"\",IFERROR(INDEX(db_Domande!$D:$D,MATCH($D223,db_Domande!$C:$C,0),1),\"\"))","v":"L'azienda ha valutato l'impatto di un'eventuale chiusura o limitazione della propria linea produttiva?"},"R3_04_05"]
["D3_05_SI",3,"Operations","D3_05",{"$f":"IF($B224=\"\",\"\",IFERROR(INDEX(db_Domande!$D:$D,MATCH($D224,db_Domande!$C:$C,0),1),\"\"))","v":"L'azienda ha definito protocolli e responsabilità di comunicazione con le funzioni interne (manutenzioni, sicurezza, qualità ecc.), che garantiscono la corretta comunicazione delle informazioni anche nell’attuale situazione di emergenza?"},"R3_05_01","SI","SI  ;  NO  ;  NON_APPLICABILE",3,1]
["D3_05_NO",3,"Operations","D3_05",{"$f":"IF($B225=\"\",\"\",IFERROR(INDEX(db_Domande!$D:$D,MATCH($D225,db_Domande!$C:$C,0),1),\"\"))","v":"L'azienda ha definito protocolli e responsabilità di comunicazione con le funzioni interne (manutenzioni, sicurezza, qualità ecc.), che garantiscono la corretta comunicazione delle informazioni anche nell’attuale situazione di emergenza?"},"R3_05_02","NO",null,null,0]
["D3_05_NON_APPLICABILE",3,"Operations","D3_05",{"$f":"IF($B226=\"\",\"\",IFERROR(INDEX(db_Domande!$D:$D,MATCH($D226,db_Domande!$C:$C,0),1),\"\"))","v":"L'azienda ha definito protocolli e responsabilità di comunicazione con le funzioni interne (manutenzioni, sicurezza, qualità ecc.), che garantiscono la corretta comunicazione delle informazioni anche nell’attuale situazione di emergenza?"},"R3_05_03","NON_APPLICABILE",null,null,0]
["D3_05_",3,"Operations","D3_05",{"$f":"IF($B227=\"\",\"\",IFERROR(INDEX(db_Domande!$D:$D,MATCH($D227,db_Domande!$C:$C,0),1),\"\"))","v":"L'azienda ha definito protocolli e responsabilità di comunicazione con le funzioni interne (manutenzioni, sicurezza, qualità ecc.), che garantiscono la corretta comunicazione delle informazioni anche nell’attuale situazione di emergenza?"},"R3_05_04"]
["D3_05_",3,"Operations","D3_05",{"$f":"IF($B228=\"\",\"\",IFERROR(INDEX(db_Domande!$D:$D,MATCH($D228,db_Domande!$C:$C,0),1),\"\"))","v":"L'azienda ha definito protocolli e responsabilità di comunicazione con le funzioni interne (manutenzioni, sicurezza, qualità ecc.), che garantiscono la corretta comunicazione delle informazioni anche nell’attuale situazione di emergenza?"},"R3_05_05"]
["D3_06_SI",3,"Operations","D3_06",{"$f":"IF($B229=\"\",\"\",IFERROR(INDEX(db_Domande!$D:$D,MATCH($D229,db_Domande!$C:$C,0),1),\"\"))","v":"L'azienda ha identificato piani strutturati (es. procedure processi interni, trasferimento di competenze, ecc.) di continuità operativa per rispondere all'emergenza in corso?"},"R3_06_01","SI","SI  ;  NO  ;  NON_APPLICABILE",3,1]
["D3_06_NO",3,"Operations","D3_06",{"$f":"IF($B230=\"\",\"\",IFERROR(INDEX(db_Domande!$D:$D,MATCH($D230,db_Domande!$C:$C,0),1),\"\"))","v":"L'azienda ha identificato piani strutturati (es. procedure processi interni, trasferimento di competenze, ecc.) di continuità operativa per rispondere all'emergenza in corso?"},"R3_06_02","NO",null,null,0]
["D3_06_NON_APPLICABILE",3,"Operations","D3_06",{"$f":"IF($B231=\"\",\"\",IFERROR(INDEX(db_Domande!$D:$D,MATCH($D231,db_Domande!$C:$C,0),1),\"\"))","v":"L'azienda ha identificato piani strutturati (es. procedure processi interni, trasferimento di competenze, ecc.) di continuità operativa per rispondere all'emergenza in corso?"},"R3_06_03","NON_APPLICABILE",null,null,0]
["D3_06_",3,"Operations","D3_06",{"$f":"IF($B232=\"\",\"\",IFERROR(INDEX(db_Domande!$D:$D,MATCH($D232,db_Domande!$C:$C,0),1),\"\"))","v":"L'azienda ha identificato piani strutturati (es. procedure processi interni, trasferimento di competenze, ecc.) di continuità operativa per rispondere all'emergenza in corso?"},"R3_06_04"]
["D3_06_",3,"Operations","D3_06",{"$f":"IF($B233=\"\",\"\",IFERROR(INDEX(db_Domande!$D:$D,MATCH($D233,db_Domande!$C:$C,0),1),\"\"))","v":"L'azienda ha identificato piani strutturati (es. procedure processi interni, trasferimento di competenze, ecc.) di continuità operativa per rispondere all'emergenza in corso?"},"R3_06_05"]
["D3_07_SI",3,"Operations","D3_07",{"$f":"IF($B234=\"\",\"\",IFERROR(INDEX(db_Domande!$D:$D,MATCH($D234,db_Domande!$C:$C,0),1),\"\"))","v":"L'azienda si è dotata di nuove metodologie di Visual Management per facilitare il trasferimento delle informazioni nei vari reparti?"},"R3_07_01","SI","SI  ;  NO  ;  NON_APPLICABILE",3,1]
["D3_07_NO",3,"Operations","D3_07",{"$f":"IF($B235=\"\",\"\",IFERROR(INDEX(db_Domande!$D:$D,MATCH($D235,db_Domande!$C:$C,0),1),\"\"))","v":"L'azienda si è dotata di nuove metodologie di Visual Management per facilitare il trasferimento delle informazioni nei vari reparti?"},"R3_07_02","NO",null,null,0]
["D3_07_NON_APPLICABILE",3,"Operations","D3_07",{"$f":"IF($B236=\"\",\"\",IFERROR(INDEX(db_Domande!$D:$D,MATCH($D236,db_Domande!$C:$C,0),1),\"\"))","v":"L'azienda si è dotata di nuove metodologie di Visual Management per facilitare il trasferimento delle informazioni nei vari reparti?"},"R3_07_03","NON_APPLICABILE",null,null,0]
["D3_07_",3,"Operations","D3_07",{"$f":"IF($B237=\"\",\"\",IFERROR(INDEX(db_Domande!$D:$D,MATCH($D237,db_Domande!$C:$C,0),1),\"\"))","v":"L'azienda si è dotata di nuove metodologie di Visual Management per facilitare il trasferimento delle informazioni nei vari reparti?"},"R3_07_04"]
["D3_07_",3,"Operations","D3_07",{"$f":"IF($B238=\"\",\"\",IFERROR(INDEX(db_Domande!$D:$D,MATCH($D238,db_Domande!$C:$C,0),1),\"\"))","v":"L'azienda si è dotata di nuove metodologie di Visual Management per facilitare il trasferimento delle informazioni nei vari reparti?"},"R3_07_05"]
["D3_08_SI",3,"Operations","D3_08",{"$f":"IF($B239=\"\",\"\",IFERROR(INDEX(db_Domande!$D:$D,MATCH($D239,db_Domande!$C:$C,0),1),\"\"))","v":"L'azienda si è dotata di strumenti di misurazione in grado di evidenziare la reale performance anche in situazione di emergenza?"},"R3_08_01","SI","SI  ;  NO  ;  NON_APPLICABILE",3,1]
["D3_08_NO",3,"Operations","D3_08",{"$f":"IF($B240=\"\",\"\",IFERROR(INDEX(db_Domande!$D:$D,MATCH($D240,db_Domande!$C:$C,0),1),\"\"))","v":"L'azienda si è dotata di strumenti di misurazione in grado di evidenziare la reale performance anche in situazione di emergenza?"},"R3_08_02","NO",null,null,0]
["D3_08_NON_APPLICABILE",3,"Operations","D3_08",{"$f":"IF($B241=\"\",\"\",IFERROR(INDEX(db_Domande!$D:$D,MATCH($D241,db_Domande!$C:$C,0),1),\"\"))","v":"L'azienda si è dotata di strumenti di misurazione in grado di evidenziare la reale performance anche in situazione di emergenza?"},"R3_08_03","NON_APPLICABILE",null,null,0]
["D3_08_",3,"Operations","D3_08",{"$f":"IF($B242=\"\",\"\",IFERROR(INDEX(db_Domande!$D:$D,MATCH($D242,db_Domande!$C:$C,0),1),\"\"))","v":"L'azienda si è dotata di strumenti di misurazione in grado di evidenziare la reale performance anche in situazione di emergenza?"},"R3_08_04"]
["D3_08_",3,"Operations","D3_08",{"$f":"IF($B243=\"\",\"\",IFERROR(INDEX(db_Domande!$D:$D,MATCH($D243,db_Domande!$C:$C,0),1),\"\"))","v":"L'azienda si è dotata di strumenti di misurazione in grado di evidenziare la reale performance anche in situazione di emergenza?"},"R3_08_05"]
["D3_09_SI",3,"Operations","D3_09",{"$f":"IF($B244=\"\",\"\",IFERROR(INDEX(db_Domande!$D:$D,MATCH($D244,db_Domande!$C:$C,0),1),\"\"))","v":"L'azienda tiene in considerazione l'evoluzione dei rischi ambientali e sociali nella gestione e sviluppo delle sue operations (es. robotizzazione e rischi di emergenze sanitarie globali, oppure rischi derivanti dal cambiamento climatico)?"},"R3_09_01","SI","SI  ;  NO  ;  NON_APPLICABILE",3,1]
["D3_09_NO",3,"Operations","D3_09",{"$f":"IF($B245=\"\",\"\",IFERROR(INDEX(db_Domande!$D:$D,MATCH($D245,db_Domande!$C:$C,0),1),\"\"))","v":"L'azienda tiene in considerazione l'evoluzione dei rischi ambientali e sociali nella gestione e sviluppo delle sue operations (es. robotizzazione e rischi di emergenze sanitarie globali, oppure rischi derivanti dal cambiamento climatico)?"},"R3_09_02","NO",null,null,0]
["D3_09_NON_APPLICABILE",3,"Operations","D3_09",{"$f":"IF($B246=\"\",\"\",IFERROR(INDEX(db_Domande!$D:$D,MATCH($D246,db_Domande!$C:$C,0),1),\"\"))","v":"L'azienda tiene in considerazione l'evoluzione dei rischi ambientali e sociali nella gestione e sviluppo delle sue operations (es. robotizzazione e rischi di emergenze sanitarie globali, oppure rischi derivanti dal cambiamento climatico)?"},"R3_09_03","NON_APPLICABILE",null,null,0]
["D3_09_",3,"Operations","D3_09",{"$f":"IF($B247=\"\",\"\",IFERROR(INDEX(db_Domande!$D:$D,MATCH($D247,db_Domande!$C:$C,0),1),\"\"))","v":"L'azienda tiene in considerazione l'evoluzione dei rischi ambientali e sociali nella gestione e sviluppo delle sue operations (es. robotizzazione e rischi di emergenze sanitarie globali, oppure rischi derivanti dal cambiamento climatico)?"},"R3_09_04"]
["D3_09_",3,"Operations","D3_09",{"$f":"IF($B248=\"\",\"\",IFERROR(INDEX(db_Domande!$D:$D,MATCH($D248,db_Domande!$C:$C,0),1),\"\"))","v":"L'azienda tiene in considerazione l'evoluzione dei rischi ambientali e sociali nella gestione e sviluppo delle sue operations (es. robotizzazione e rischi di emergenze sanitarie globali, oppure rischi derivanti dal cambiamento climatico)?"},"R3_09_05"]
["D3_10_",3,"Operations","D3_10",{"$f":"IF($B249=\"\",\"\",IFERROR(INDEX(db_Domande!$D:$D,MATCH($D249,db_Domande!$C:$C,0),1),\"\"))","v":""},"R3_10_01",null,null,null,1]
["D3_10_",3,"Operations","D3_10",{"$f":"IF($B250=\"\",\"\",IFERROR(INDEX(db_Domande!$D:$D,MATCH($D250,db_Domande!$C:$C,0),1),\"\"))","v":""},"R3_10_02",null,null,null,0]
["D3_10_",3,"Operations","D3_10",{"$f":"IF($B251=\"\",\"\",IFERROR(INDEX(db_Domande!$D:$D,MATCH($D251,db_Domande!$C:$C,0),1),\"\"))","v":""},"R3_10_03"]
["D3_10_",3,"Operations","D3_10",{"$f":"IF($B252=\"\",\"\",IFERROR(INDEX(db_Domande!$D:$D,MATCH($D252,db_Domande!$C:$C,0),1),\"\"))","v":""},"R3_10_04"]
["D3_10_",3,"Operations","D3_10",{"$f":"IF($B253=\"\",\"\",IFERROR(INDEX(db_Domande!$D:$D,MATCH($D253,db_Domande!$C:$C,0),1),\"\"))","v":""},"R3_10_05"]
["D3_11_",3,"Operations","D3_11",{"$f":"IF($B254=\"\",\"\",IFERROR(INDEX(db_Domande!$D:$D,MATCH($D254,db_Domande!$C:$C,0),1),\"\"))","v":""},"R3_11_01"]
["D3_11_",3,"Operations","D3_11",{"$f":"IF($B255=\"\",\"\",IFERROR(INDEX(db_Domande!$D:$D,MATCH($D255,db_Domande!$C:$C,0),1),\"\"))","v":""},"R3_11_02"]
["D3_11_",3,"Operations","D3_11",{"$f":"IF($B256=\"\",\"\",IFERROR(INDEX(db_Domande!$D:$D,MATCH($D256,db_Domande!$C:$C,0),1),\"\"))","v":""},"R3_11_03"]
["D3_11_",3,"Operations","D3_11",{"$f":"IF($B257=\"\",\"\",IFERROR(INDEX(db_Domande!$D:$D,MATCH($D257,db_Domande!$C:$C,0),1),\"\"))","v":""},"R3_11_04"]
["D3_11_",3,"Operations","D3_11",{"$f":"IF($B258=\"\",\"\",IFERROR(INDEX(db_Domande!$D:$D,MATCH($D258,db_Domande!$C:$C,0),1),\"\"))","v":""},{"$f":"IF($B258=\"\",\"\",\"R\"&RIGHT($D258,4)&\"_\"&TEXT(ROW()-MATCH($D258,$D:$D,0)+1,\"00\"))","v":"R3_11_05"}]
[{"$f":"IF($B259=\"\",\"\",$D259&\"_\"&$G259)","v":"D3_12_"},3,"Operations","D3_12",{"$f":"IF($B259=\"\",\"\",IFERROR(INDEX(db_Domande!$D:$D,MATCH($D259,db_Domande!$C:$C,0),1),\"\"))","v":""},"R3_12_01"]
["D3_12_",3,"Operations","D3_12",{"$f":"IF($B260=\"\",\"\",IFERROR(INDEX(db_Domande!$D:$D,MATCH($D260,db_Domande!$C:$C,0),1),\"\"))","v":""},"R3_12_02"]
["D3_12_",3,"Operations","D3_12",{"$f":"IF($B261=\"\",\"\",IFERROR(INDEX(db_Domande!$D:$D,MATCH($D261,db_Domande!$C:$C,0),1),\"\"))","v":""},"R3_12_03"]
["D3_12_",3,"Operations","D3_12",{"$f":"IF($B262=\"\",\"\",IFERROR(INDEX(db_Domande!$D:$D,MATCH($D262,db_Domande!$C:$C,0),1),\"\"))","v":""},"R3_12_04"]
["D3_12_",3,"Operations","D3_12",{"$f":"IF($B263=\"\",\"\",IFERROR(INDEX(db_Domande!$D:$D,MATCH($D263,db_Domande!$C:$C,0),1),\"\"))","v":""},"R3_12_05"]
["D3_13_",3,"Operations","D3_13",{"$f":"IF($B264=\"\",\"\",IFERROR(INDEX(db_Domande!$D:$D,MATCH($D264,db_Domande!$C:$C,0),1),\"\"))","v":""},"R3_13_01"]
["D3_13_",3,"Operations","D3_13",{"$f":"IF($B265=\"\",\"\",IFERROR(INDEX(db_Domande!$D:$D,MATCH($D265,db_Domande!$C:$C,0),1),\"\"))","v":""},"R3_13_02"]
["D3_13_",3,"Operations","D3_13",{"$f":"IF($B266=\"\",\"\",IFERROR(INDEX(db_Domande!$D:$D,MATCH($D266,db_Domande!$C:$C,0),1),\"\"))","v":""},"R3_13_03"]
["D3_13_",3,"Operations","D3_13",{"$f":"IF($B267=\"\",\"\",IFERROR(INDEX(db_Domande!$D:$D,MATCH($D267,db_Domande!$C:$C,0),1),\"\"))","v":""},"R3_13_04"]
["D3_13_",3,"Operations","D3_13",{"$f":"IF($B268=\"\",\"\",IFERROR(INDEX(db_Domande!$D:$D,MATCH($D268,db_Domande!$C:$C,0),1),\"\"))","v":""},"R3_13_05"]
["D3_14_",3,"Operations","D3_14",{"$f":"IF($B269=\"\",\"\",IFERROR(INDEX(db_Domande!$D:$D,MATCH($D269,db_Domande!$C:$C,0),1),\"\"))","v":""},"R3_14_01"]
["D3_14_",3,"Operations","D3_14",{"$f":"IF($B270=\"\",\"\",IFERROR(INDEX(db_Domande!$D:$D,MATCH($D270,db_Domande!$C:$C,0),1),\"\"))","v":""},"R3_14_02"]
["D3_14_",3,"Operations","D3_14",{"$f":"IF($B271=\"\",\"\",IFERROR(INDEX(db_Domande!$D:$D,MATCH($D271,db_Domande!$C:$C,0),1),\"\"))","v":""},"R3_14_03"]
["D3_14_",3,"Operations","D3_14",{"$f":"IF($B272=\"\",\"\",IFERROR(INDEX(db_Domande!$D:$D,MATCH($D272,db_Domande!$C:$C,0),1),\"\"))","v":""},"R3_14_04"]
["D3_14_",3,"Operations","D3_14",{"$f":"IF($B273=\"\",\"\",IFERROR(INDEX(db_Domande!$D:$D,MATCH($D273,db_Domande!$C:$C,0),1),\"\"))","v":""},"R3_14_05"]
["D3_15_",3,"Operations","D3_15",{"$f":"IF($B274=\"\",\"\",IFERROR(INDEX(db_Domande!$D:$D,MATCH($D274,db_Domande!$C:$C,0),1),\"\"))","v":""},"R3_15_01"]
["D3_15_",3,"Operations","D3_15",{"$f":"IF($B275=\"\",\"\",IFERROR(INDEX(db_Domande!$D:$D,MATCH($D275,db_Domande!$C:$C,0),1),\"\"))","v":""},"R3_15_02"]
["D3_15_",3,"Operations","D3_15",{"$f":"IF($B276=\"\",\"\",IFERROR(INDEX(db_Domande!$D:$D,MATCH($D276,db_Domande!$C:$C,0),1),\"\"))","v":""},"R3_15_03"]
["D3_15_",3,"Operations","D3_15",{"$f":"IF($B277=\"\",\"\",IFERROR(INDEX(db_Domande!$D:$D,MATCH($D277,db_Domande!$C:$C,0),1),\"\"))","v":""},"R3_15_04"]
["D3_15_",3,"Operations","D3_15",{"$f":"IF($B278=\"\",\"\",IFERROR(INDEX(db_Domande!$D:$D,MATCH($D278,db_Domande!$C:$C,0),1),\"\"))","v":""},"R3_15_05"]
["D3_16_",3,"Operations","D3_16",{"$f":"IF($B279=\"\",\"\",IFERROR(INDEX(db_Domande!$D:$D,MATCH($D279,db_Domande!$C:$C,0),1),\"\"))","v":""},"R3_16_01"]
["D3_16_",3,"Operations","D3_16",{"$f":"IF($B280=\"\",\"\",IFERROR(INDEX(db_Domande!$D:$D,MATCH($D280,db_Domande!$C:$C,0),1),\"\"))","v":""},"R3_16_02"]
["D3_16_",3,"Operations","D3_16",{"$f":"IF($B281=\"\",\"\",IFERROR(INDEX(db_Domande!$D:$D,MATCH($D281,db_Domande!$C:$C,0),1),\"\"))","v":""},"R3_16_03"]
["D3_16_",3,"Operations","D3_16",{"$f":"IF($B282=\"\",\"\",IFERROR(INDEX(db_Domande!$D:$D,MATCH($D282,db_Domande!$C:$C,0),1),\"\"))","v":""},"R3_16_04"]
["D3_16_",3,"Operations","D3_16",{"$f":"IF($B283=\"\",\"\",IFERROR(INDEX(db_Domande!$D:$D,MATCH($D283,db_Domande!$C:$C,0),1),\"\"))","v":""},"R3_16_05"]
["D3_17_",3,"Operations","D3_17",{"$f":"IF($B284=\"\",\"\",IFERROR(INDEX(db_Domande!$D:$D,MATCH($D284,db_Domande!$C:$C,0),1),\"\"))","v":""},"R3_17_01"]
["D3_17_",3,"Operations","D3_17",{"$f":"IF($B285=\"\",\"\",IFERROR(INDEX(db_Domande!$D:$D,MATCH($D285,db_Domande!$C:$C,0),1),\"\"))","v":""},"R3_17_02"]
["D3_17_",3,"Operations","D3_17",{"$f":"IF($B286=\"\",\"\",IFERROR(INDEX(db_Domande!$D:$D,MATCH($D286,db_Domande!$C:$C,0),1),\"\"))","v":""},"R3_17_03"]
["D3_17_",3,"Operations","D3_17",{"$f":"IF($B287=\"\",\"\",IFERROR(INDEX(db_Domande!$D:$D,MATCH($D287,db_Domande!$C:$C,0),1),\"\"))","v":""},"R3_17_04"]
["D3_17_",3,"Operations","D3_17",{"$f":"IF($B288=\"\",\"\",IFERROR(INDEX(db_Domande!$D:$D,MATCH($D288,db_Domande!$C:$C,0),1),\"\"))","v":""},"R3_17_05"]
["D3_18_",3,"Operations","D3_18",{"$f":"IF($B289=\"\",\"\",IFERROR(INDEX(db_Domande!$D:$D,MATCH($D289,db_Domande!$C:$C,0),1),\"\"))","v":""},"R3_18_01"]
["D3_18_",3,"Operations","D3_18",{"$f":"IF($B290=\"\",\"\",IFERROR(INDEX(db_Domande!$D:$D,MATCH($D290,db_Domande!$C:$C,0),1),\"\"))","v":""},"R3_18_02"]
["D3_18_",3,"Operations","D3_18",{"$f":"IF($B291=\"\",\"\",IFERROR(INDEX(db_Domande!$D:$D,MATCH($D291,db_Domande!$C:$C,0),1),\"\"))","v":""},"R3_18_03"]
["D3_18_",3,"Operations","D3_18",{"$f":"IF($B292=\"\",\"\",IFERROR(INDEX(db_Domande!$D:$D,MATCH($D292,db_Domande!$C:$C,0),1),\"\"))","v":""},"R3_18_04"]
["D3_18_",3,"Operations","D3_18",{"$f":"IF($B293=\"\",\"\",IFERROR(INDEX(db_Domande!$D:$D,MATCH($D293,db_Domande!$C:$C,0),1),\"\"))","v":""},"R3_18_05"]
["D3_19_",3,"Operations","D3_19",{"$f":"IF($B294=\"\",\"\",IFERROR(INDEX(db_Domande!$D:$D,MATCH($D294,db_Domande!$C:$C,0),1),\"\"))","v":""},"R3_19_01"]
["D3_19_",3,"Operations","D3_19",{"$f":"IF($B295=\"\",\"\",IFERROR(INDEX(db_Domande!$D:$D,MATCH($D295,db_Domande!$C:$C,0),1),\"\"))","v":""},"R3_19_02"]
["D3_19_",3,"Operations","D3_19",{"$f":"IF($B296=\"\",\"\",IFERROR(INDEX(db_Domande!$D:$D,MATCH($D296,db_Domande!$C:$C,0),1),\"\"))","v":""},"R3_19_03"]
["D3_19_",3,"Operations","D3_19",{"$f":"IF($B297=\"\",\"\",IFERROR(INDEX(db_Domande!$D:$D,MATCH($D297,db_Domande!$C:$C,0),1),\"\"))","v":""},"R3_19_04"]
["D3_19_",3,"Operations","D3_19",{"$f":"IF($B298=\"\",\"\",IFERROR(INDEX(db_Domande!$D:$D,MATCH($D298,db_Domande!$C:$C,0),1),\"\"))","v":""},"R3_19_05"]
["D3_20_",3,"Operations","D3_20",{"$f":"IF($B299=\"\",\"\",IFERROR(INDEX(db_Domande!$D:$D,MATCH($D299,db_Domande!$C:$C,0),1),\"\"))","v":""},"R3_20_01"]
["D3_20_",3,"Operations","D3_20",{"$f":"IF($B300=\"\",\"\",IFERROR(INDEX(db_Domande!$D:$D,MATCH($D300,db_Domande!$C:$C,0),1),\"\"))","v":""},"R3_20_02"]
["D3_20_",3,"Operations","D3_20",{"$f":"IF($B301=\"\",\"\",IFERROR(INDEX(db_Domande!$D:$D,MATCH($D301,db_Domande!$C:$C,0),1),\"\"))","v":""},"R3_20_03"]
["D3_20_",3,"Operations","D3_20",{"$f":"IF($B302=\"\",\"\",IFERROR(INDEX(db_Domande!$D:$D,MATCH($D302,db_Domande!$C:$C,0),1),\"\"))","v":""},"R3_20_04"]
["D3_20_",3,"Operations","D3_20",{"$f":"IF($B303=\"\",\"\",IFERROR(INDEX(db_Domande!$D:$D,MATCH($D303,db_Domande!$C:$C,0),1),\"\"))","v":""},"R3_20_05"]
["",null,null,null,{"$f":"IF($B304=\"\",\"\",IFERROR(INDEX(db_Domande!$D:$D,MATCH($D304,db_Domande!$C:$C,0),1),\"\"))","v":""},""]
["D4_01_SI",4,"People & Organization","D4_01",{"$f":"IF($B305=\"\",\"\",IFERROR(INDEX(db_Domande!$D:$D,MATCH($D305,db_Domande!$C:$C,0),1),\"\"))","v":"Avete aggiornato il Modello dei processi aziendali e il sistema delle deleghe per i rischi aziendali?"},"R4_01_01","SI","SI  ;  NO  ;  NON_APPLICABILE",3,1]
["D4_01_NO",4,"People & Organization","D4_01",{"$f":"IF($B306=\"\",\"\",IFERROR(INDEX(db_Domande!$D:$D,MATCH($D306,db_Domande!$C:$C,0),1),\"\"))","v":"Avete aggiornato il Modello dei processi aziendali e il sistema delle deleghe per i rischi aziendali?"},"R4_01_02","NO",null,null,0]
["D4_01_NON_APPLICABILE",4,"People & Organization","D4_01",{"$f":"IF($B307=\"\",\"\",IFERROR(INDEX(db_Domande!$D:$D,MATCH($D307,db_Domande!$C:$C,0),1),\"\"))","v":"Avete aggiornato il Modello dei processi aziendali e il sistema delle deleghe per i rischi aziendali?"},"R4_01_03","NON_APPLICABILE",null,null,0]
["D4_01_",4,"People & Organization","D4_01",{"$f":"IF($B308=\"\",\"\",IFERROR(INDEX(db_Domande!$D:$D,MATCH($D308,db_Domande!$C:$C,0),1),\"\"))","v":"Avete aggiornato il Modello dei processi aziendali e il sistema delle deleghe per i rischi aziendali?"},"R4_01_04"]
["D4_01_",4,"People & Organization","D4_01",{"$f":"IF($B309=\"\",\"\",IFERROR(INDEX(db_Domande!$D:$D,MATCH($D309,db_Domande!$C:$C,0),1),\"\"))","v":"Avete aggiornato il Modello dei processi aziendali e il sistema delle deleghe per i rischi aziendali?"},"R4_01_05"]
["D4_02_SI",4,"People & Organization","D4_02",{"$f":"IF($B310=\"\",\"\",IFERROR(INDEX(db_Domande!$D:$D,MATCH($D310,db_Domande!$C:$C,0),1),\"\"))","v":"Avete aggiornato Mansionari/Job Description?"},"R4_02_01","SI","SI  ;  NO  ;  NON_APPLICABILE",3,1]
["D4_02_NO",4,"People & Organization","D4_02",{"$f":"IF($B311=\"\",\"\",IFERROR(INDEX(db_Domande!$D:$D,MATCH($D311,db_Domande!$C:$C,0),1),\"\"))","v":"Avete aggiornato Mansionari/Job Description?"},"R4_02_02","NO",null,null,0]
["D4_02_NON_APPLICABILE",4,"People & Organization","D4_02",{"$f":"IF($B312=\"\",\"\",IFERROR(INDEX(db_Domande!$D:$D,MATCH($D312,db_Domande!$C:$C,0),1),\"\"))","v":"Avete aggiornato Mansionari/Job Description?"},"R4_02_03","NON_APPLICABILE",null,null,0]
["D4_02_",4,"People & Organization","D4_02",{"$f":"IF($B313=\"\",\"\",IFERROR(INDEX(db_Domande!$D:$D,MATCH($D313,db_Domande!$C:$C,0),1),\"\"))","v":"Avete aggiornato Mansionari/Job Description?"},"R4_02_04"]
["D4_02_",4,"People & Organization","D4_02",{"$f":"IF($B314=\"\",\"\",IFERROR(INDEX(db_Domande!$D:$D,MATCH($D314,db_Domande!$C:$C,0),1),\"\"))","v":"Avete aggiornato Mansionari/Job Description?"},"R4_02_05"]
["D4_03_SI",4,"People & Organization","D4_03",{"$f":"IF($B315=\"\",\"\",IFERROR(INDEX(db_Domande!$D:$D,MATCH($D315,db_Domande!$C:$C,0),1),\"\"))","v":"Avete adeguato le vostre policy di controlli interni per evitare o diminuire il rischio di azioni fraudolente da parte dei collaboratori?"},"R4_03_01","SI","SI  ;  NO  ;  NON_APPLICABILE",3,1]
["D4_03_NO",4,"People & Organization","D4_03",{"$f":"IF($B316=\"\",\"\",IFERROR(INDEX(db_Domande!$D:$D,MATCH($D316,db_Domande!$C:$C,0),1),\"\"))","v":"Avete adeguato le vostre policy di controlli interni per evitare o diminuire il rischio di azioni fraudolente da parte dei collaboratori?"},"R4_03_02","NO",null,null,0]
["D4_03_NON_APPLICABILE",4,"People & Organization","D4_03",{"$f":"IF($B317=\"\",\"\",IFERROR(INDEX(db_Domande!$D:$D,MATCH($D317,db_Domande!$C:$C,0),1),\"\"))","v":"Avete adeguato le vostre policy di controlli interni per evitare o diminuire il rischio di azioni fraudolente da parte dei collaboratori?"},"R4_03_03","NON_APPLICABILE",null,null,0]
["D4_03_",4,"People & Organization","D4_03",{"$f":"IF($B318=\"\",\"\",IFERROR(INDEX(db_Domande!$D:$D,MATCH($D318,db_Domande!$C:$C,0),1),\"\"))","v":"Avete adeguato le vostre policy di controlli interni per evitare o diminuire il rischio di azioni fraudolente da parte dei collaboratori?"},"R4_03_04"]
["D4_03_",4,"People & Organization","D4_03",{"$f":"IF($B319=\"\",\"\",IFERROR(INDEX(db_Domande!$D:$D,MATCH($D319,db_Domande!$C:$C,0),1),\"\"))","v":"Avete adeguato le vostre policy di controlli interni per evitare o diminuire il rischio di azioni fraudolente da parte dei collaboratori?"},"R4_03_05"]
["D4_04_SI",4,"People & Organization","D4_04",{"$f":"IF($B320=\"\",\"\",IFERROR(INDEX(db_Domande!$D:$D,MATCH($D320,db_Domande!$C:$C,0),1),\"\"))","v":"Nel corso della recente crisi avete avuto la percezione di aver ridotto il vostro controllo sulla segregation of duties o sull’operato del management?"},"R4_04_01","SI","SI  ;  NO  ;  NON_APPLICABILE",3,1]
["D4_04_NO",4,"People & Organization","D4_04",{"$f":"IF($B321=\"\",\"\",IFERROR(INDEX(db_Domande!$D:$D,MATCH($D321,db_Domande!$C:$C,0),1),\"\"))","v":"Nel corso della recente crisi avete avuto la percezione di aver ridotto il vostro controllo sulla segregation of duties o sull’operato del management?"},"R4_04_02","NO",null,null,0]
["D4_04_NON_APPLICABILE",4,"People & Organization","D4_04",{"$f":"IF($B322=\"\",\"\",IFERROR(INDEX(db_Domande!$D:$D,MATCH($D322,db_Domande!$C:$C,0),1),\"\"))","v":"Nel corso della recente crisi avete avuto la percezione di aver ridotto il vostro controllo sulla segregation of duties o sull’operato del management?"},{"$f":"IF($B322=\"\",\"\",\"R\"&RIGHT($D322,4)&\"_\"&TEXT(ROW()-MATCH($D322,$D:$D,0)+1,\"00\"))","v":"R4_04_03"},"NON_APPLICABILE",null,null,0]
[{"$f":"IF($B323=\"\",\"\",$D323&\"_\"&$G323)","v":"D4_04_"},4,"People & Organization","D4_04",{"$f":"IF($B323=\"\",\"\",IFERROR(INDEX(db_Domande!$D:$D,MATCH($D323,db_Domande!$C:$C,0),1),\"\"))","v":"Nel corso della recente crisi avete avuto la percezione di aver ridotto il vostro controllo sulla segregation of duties o sull’operato del management?"},"R4_04_04"]
["D4_04_",4,"People & Organization","D4_04",{"$f":"IF($B324=\"\",\"\",IFERROR(INDEX(db_Domande!$D:$D,MATCH($D324,db_Domande!$C:$C,0),1),\"\"))","v":"Nel corso della recente crisi avete avuto la percezione di aver ridotto il vostro controllo sulla segregation of duties o sull’operato del management?"},"R4_04_05"]
["D4_05_SI",4,"People & Organization","D4_05",{"$f":"IF($B325=\"\",\"\",IFERROR(INDEX(db_Domande!$D:$D,MATCH($D325,db_Domande!$C:$C,0),1),\"\"))","v":"Avete nuove esigenze formative e/o mappato gap di competenze?"},"R4_05_01","SI","SI  ;  NO  ;  NON_APPLICABILE",3,1]
["D4_05_NO",4,"People & Organization","D4_05",{"$f":"IF($B326=\"\",\"\",IFERROR(INDEX(db_Domande!$D:$D,MATCH($D326,db_Domande!$C:$C,0),1),\"\"))","v":"Avete nuove esigenze formative e/o mappato gap di competenze?"},"R4_05_02","NO",null,null,0]
["D4_05_NON_APPLICABILE",4,"People & Organization","D4_05",{"$f":"IF($B327=\"\",\"\",IFERROR(INDEX(db_Domande!$D:$D,MATCH($D327,db_Domande!$C:$C,0),1),\"\"))","v":"Avete nuove esigenze formative e/o mappato gap di competenze?"},"R4_05_03","NON_APPLICABILE",null,null,0]
["D4_05_",4,"People & Organization","D4_05",{"$f":"IF($B328=\"\",\"\",IFERROR(INDEX(db_Domande!$D:$D,MATCH($D328,db_Domande!$C:$C,0),1),\"\"))","v":"Avete nuove esigenze formative e/o mappato gap di competenze?"},"R4_05_04"]
["D4_05_",4,"People & Organization","D4_05",{"$f":"IF($B329=\"\",\"\",IFERROR(INDEX(db_Domande!$D:$D,MATCH($D329,db_Domande!$C:$C,0),1),\"\"))","v":"Avete nuove esigenze formative e/o mappato gap di competenze?"},"R4_05_05"]
["D4_06_SI",4,"People & Organization","D4_06",{"$f":"IF($B330=\"\",\"\",IFERROR(INDEX(db_Domande!$D:$D,MATCH($D330,db_Domande!$C:$C,0),1),\"\"))","v":"Avete differito tutti gli eventi formativi, i programmi formativi su larga scala e le riunioni interne?"},"R4_06_01","SI","SI  ;  NO  ;  NON_APPLICABILE",3,1]
["D4_06_NO",4,"People & Organization","D4_06",{"$f":"IF($B331=\"\",\"\",IFERROR(INDEX(db_Domande!$D:$D,MATCH($D331,db_Domande!$C:$C,0),1),\"\"))","v":"Avete differito tutti gli eventi formativi, i programmi formativi su larga scala e le riunioni interne?"},"R4_06_02","NO",null,null,0]
["D4_06_NON_APPLICABILE",4,"People & Organization","D4_06",{"$f":"IF($B332=\"\",\"\",IFERROR(INDEX(db_Domande!$D:$D,MATCH($D332,db_Domande!$C:$C,0),1),\"\"))","v":"Avete differito tutti gli eventi formativi, i programmi formativi su larga scala e le riunioni interne?"},"R4_06_03","NON_APPLICABILE",null,null,0]
["D4_06_",4,"People & Organization","D4_06",{"$f":"IF($B333=\"\",\"\",IFERROR(INDEX(db_Domande!$D:$D,MATCH($D333,db_Domande!$C:$C,0),1),\"\"))","v":"Avete differito tutti gli eventi formativi, i programmi formativi su larga scala e le riunioni interne?"},"R4_06_04"]
["D4_06_",4,"People & Organization","D4_06",{"$f":"IF($B334=\"\",\"\",IFERROR(INDEX(db_Domande!$D:$D,MATCH($D334,db_Domande!$C:$C,0),1),\"\"))","v":"Avete differito tutti gli eventi formativi, i programmi formativi su larga scala e le riunioni interne?"},"R4_06_05"]
["D4_07_SI",4,"People & Organization","D4_07",{"$f":"IF($B335=\"\",\"\",IFERROR(INDEX(db_Domande!$D:$D,MATCH($D335,db_Domande!$C:$C,0),1),\"\"))","v":"Avete abilitato il lavoro a distanza nella propria regione e per filiali uffici esteri?"},"R4_07_01","SI","SI  ;  NO  ;  NON_APPLICABILE",3,1]
["D4_07_NO",4,"People & Organization","D4_07",{"$f":"IF($B336=\"\",\"\",IFERROR(INDEX(db_Domande!$D:$D,MATCH($D336,db_Domande!$C:$C,0),1),\"\"))","v":"Avete abilitato il lavoro a distanza nella propria regione e per filiali uffici esteri?"},"R4_07_02","NO",null,null,0]
["D4_07_NON_APPLICABILE",4,"People & Organization","D4_07",{"$f":"IF($B337=\"\",\"\",IFERROR(INDEX(db_Domande!$D:$D,MATCH($D337,db_Domande!$C:$C,0),1),\"\"))","v":"Avete abilitato il lavoro a distanza nella propria regione e per filiali uffici esteri?"},"R4_07_03","NON_APPLICABILE",null,null,0]
["D4_07_",4,"People & Organization","D4_07",{"$f":"IF($B338=\"\",\"\",IFERROR(INDEX(db_Domande!$D:$D,MATCH($D338,db_Domande!$C:$C,0),1),\"\"))","v":"Avete abilitato il lavoro a distanza nella propria regione e per filiali uffici esteri?"},"R4_07_04"]
["D4_07_",4,"People & Organization","D4_07",{"$f":"IF($B339=\"\",\"\",IFERROR(INDEX(db_Domande!$D:$D,MATCH($D339,db_Domande!$C:$C,0),1),\"\"))","v":"Avete abilitato il lavoro a distanza nella propria regione e per filiali uffici esteri?"},"R4_07_05"]
["D4_08_SI",4,"People & Organization","D4_08",{"$f":"IF($B340=\"\",\"\",IFERROR(INDEX(db_Domande!$D:$D,MATCH($D340,db_Domande!$C:$C,0),1),\"\"))","v":"Sono state definite linee guida che impongono restrizioni di viaggi e trasferte, sia internazionali che nazionali in linea con le linee guida nazionali e locali?"},"R4_08_01","SI","SI  ;  NO  ;  NON_APPLICABILE",3,1]
["D4_08_NO",4,"People & Organization","D4_08",{"$f":"IF($B341=\"\",\"\",IFERROR(INDEX(db_Domande!$D:$D,MATCH($D341,db_Domande!$C:$C,0),1),\"\"))","v":"Sono state definite linee guida che impongono restrizioni di viaggi e trasferte, sia internazionali che nazionali in linea con le linee guida nazionali e locali?"},"R4_08_02","NO",null,null,0]
["D4_08_NON_APPLICABILE",4,"People & Organization","D4_08",{"$f":"IF($B342=\"\",\"\",IFERROR(INDEX(db_Domande!$D:$D,MATCH($D342,db_Domande!$C:$C,0),1),\"\"))","v":"Sono state definite linee guida che impongono restrizioni di viaggi e trasferte, sia internazionali che nazionali in linea con le linee guida nazionali e locali?"},"R4_08_03","NON_APPLICABILE",null,null,0]
["D4_08_",4,"People & Organization","D4_08",{"$f":"IF($B343=\"\",\"\",IFERROR(INDEX(db_Domande!$D:$D,MATCH($D343,db_Domande!$C:$C,0),1),\"\"))","v":"Sono state definite linee guida che impongono restrizioni di viaggi e trasferte, sia internazionali che nazionali in linea con le linee guida nazionali e locali?"},"R4_08_04"]
["D4_08_",4,"People & Organization","D4_08",{"$f":"IF($B344=\"\",\"\",IFERROR(INDEX(db_Domande!$D:$D,MATCH($D344,db_Domande!$C:$C,0),1),\"\"))","v":"Sono state definite linee guida che impongono restrizioni di viaggi e trasferte, sia internazionali che nazionali in linea con le linee guida nazionali e locali?"},"R4_08_05"]
["D4_09_SI",4,"People & Organization","D4_09",{"$f":"IF($B345=\"\",\"\",IFERROR(INDEX(db_Domande!$D:$D,MATCH($D345,db_Domande!$C:$C,0),1),\"\"))","v":"Avete individuato e formato delle piattaforme di smart working e canali appropriati di comunicazione per i propri dipendenti?"},"R4_09_01","SI","SI  ;  NO  ;  NON_APPLICABILE",3,1]
["D4_09_NO",4,"People & Organization","D4_09",{"$f":"IF($B346=\"\",\"\",IFERROR(INDEX(db_Domande!$D:$D,MATCH($D346,db_Domande!$C:$C,0),1),\"\"))","v":"Avete individuato e formato delle piattaforme di smart working e canali appropriati di comunicazione per i propri dipendenti?"},"R4_09_02","NO",null,null,0]
["D4_09_NON_APPLICABILE",4,"People & Organization","D4_09",{"$f":"IF($B347=\"\",\"\",IFERROR(INDEX(db_Domande!$D:$D,MATCH($D347,db_Domande!$C:$C,0),1),\"\"))","v":"Avete individuato e formato delle piattaforme di smart working e canali appropriati di comunicazione per i propri dipendenti?"},"R4_09_03","NON_APPLICABILE",null,null,0]
["D4_09_",4,"People & Organization","D4_09",{"$f":"IF($B348=\"\",\"\",IFERROR(INDEX(db_Domande!$D:$D,MATCH($D348,db_Domande!$C:$C,0),1),\"\"))","v":"Avete individuato e formato delle piattaforme di smart working e canali appropriati di comunicazione per i propri dipendenti?"},"R4_09_04"]
["D4_09_",4,"People & Organization","D4_09",{"$f":"IF($B349=\"\",\"\",IFERROR(INDEX(db_Domande!$D:$D,MATCH($D349,db_Domande!$C:$C,0),1),\"\"))","v":"Avete individuato e formato delle piattaforme di smart working e canali appropriati di comunicazione per i propri dipendenti?"},"R4_09_05"]
["D4_10_SI",4,"People & Organization","D4_10",{"$f":"IF($B350=\"\",\"\",IFERROR(INDEX(db_Domande!$D:$D,MATCH($D350,db_Domande!$C:$C,0),1),\"\"))","v":"Avete un programma a rotazione per provare/testare lo smart working?"},"R4_10_01","SI","SI  ;  NO  ;  NON_APPLICABILE",3,1]
["D4_10_NO",4,"People & Organization","D4_10",{"$f":"IF($B351=\"\",\"\",IFERROR(INDEX(db_Domande!$D:$D,MATCH($D351,db_Domande!$C:$C,0),1),\"\"))","v":"Avete un programma a rotazione per provare/testare lo smart working?"},"R4_10_02","NO",null,null,0]
["D4_10_NON_APPLICABILE",4,"People & Organization","D4_10",{"$f":"IF($B352=\"\",\"\",IFERROR(INDEX(db_Domande!$D:$D,MATCH($D352,db_Domande!$C:$C,0),1),\"\"))","v":"Avete un programma a rotazione per provare/testare lo smart working?"},"R4_10_03","NON_APPLICABILE",null,null,0]
["D4_10_",4,"People & Organization","D4_10",{"$f":"IF($B353=\"\",\"\",IFERROR(INDEX(db_Domande!$D:$D,MATCH($D353,db_Domande!$C:$C,0),1),\"\"))","v":"Avete un programma a rotazione per provare/testare lo smart working?"},"R4_10_04"]
["D4_10_",4,"People & Organization","D4_10",{"$f":"IF($B354=\"\",\"\",IFERROR(INDEX(db_Domande!$D:$D,MATCH($D354,db_Domande!$C:$C,0),1),\"\"))","v":"Avete un programma a rotazione per provare/testare lo smart working?"},"R4_10_05"]
["D4_11_SI",4,"People & Organization","D4_11",{"$f":"IF($B355=\"\",\"\",IFERROR(INDEX(db_Domande!$D:$D,MATCH($D355,db_Domande!$C:$C,0),1),\"\"))","v":"Garantite una comunicazione positiva e proattiva in merito alle misure adottate per promuovere il benessere dei dipendenti e il contenimento delle malattie?"},"R4_11_01","SI","SI  ;  NO  ;  NON_APPLICABILE",3,1]
["D4_11_NO",4,"People & Organization","D4_11",{"$f":"IF($B356=\"\",\"\",IFERROR(INDEX(db_Domande!$D:$D,MATCH($D356,db_Domande!$C:$C,0),1),\"\"))","v":"Garantite una comunicazione positiva e proattiva in merito alle misure adottate per promuovere il benessere dei dipendenti e il contenimento delle malattie?"},"R4_11_02","NO",null,null,0]
["D4_11_NON_APPLICABILE",4,"People & Organization","D4_11",{"$f":"IF($B357=\"\",\"\",IFERROR(INDEX(db_Domande!$D:$D,MATCH($D357,db_Domande!$C:$C,0),1),\"\"))","v":"Garantite una comunicazione positiva e proattiva in merito alle misure adottate per promuovere il benessere dei dipendenti e il contenimento delle malattie?"},"R4_11_03","NON_APPLICABILE",null,null,0]
["D4_11_",4,"People & Organization","D4_11",{"$f":"IF($B358=\"\",\"\",IFERROR(INDEX(db_Domande!$D:$D,MATCH($D358,db_Domande!$C:$C,0),1),\"\"))","v":"Garantite una comunicazione positiva e proattiva in merito alle misure adottate per promuovere il benessere dei dipendenti e il contenimento delle malattie?"},"R4_11_04"]
["D4_11_",4,"People & Organization","D4_11",{"$f":"IF($B359=\"\",\"\",IFERROR(INDEX(db_Domande!$D:$D,MATCH($D359,db_Domande!$C:$C,0),1),\"\"))","v":"Garantite una comunicazione positiva e proattiva in merito alle misure adottate per promuovere il benessere dei dipendenti e il contenimento delle malattie?"},"R4_11_05"]
["D4_12_SI",4,"People & Organization","D4_12",{"$f":"IF($B360=\"\",\"\",IFERROR(INDEX(db_Domande!$D:$D,MATCH($D360,db_Domande!$C:$C,0),1),\"\"))","v":"Avete creato un meccanismo per rispondere a domande o dubbi dei dipendenti sull’emergenza in corso?"},"R4_12_01","SI","SI  ;  NO  ;  NON_APPLICABILE",3,1]
["D4_12_NO",4,"People & Organization","D4_12",{"$f":"IF($B361=\"\",\"\",IFERROR(INDEX(db_Domande!$D:$D,MATCH($D361,db_Domande!$C:$C,0),1),\"\"))","v":"Avete creato un meccanismo per rispondere a domande o dubbi dei dipendenti sull’emergenza in corso?"},"R4_12_02","NO",null,null,0]
["D4_12_NON_APPLICABILE",4,"People & Organization","D4_12",{"$f":"IF($B362=\"\",\"\",IFERROR(INDEX(db_Domande!$D:$D,MATCH($D362,db_Domande!$C:$C,0),1),\"\"))","v":"Avete creato un meccanismo per rispondere a domande o dubbi dei dipendenti sull’emergenza in corso?"},"R4_12_03","NON_APPLICABILE",null,null,0]
["D4_12_",4,"People & Organization","D4_12",{"$f":"IF($B363=\"\",\"\",IFERROR(INDEX(db_Domande!$D:$D,MATCH($D363,db_Domande!$C:$C,0),1),\"\"))","v":"Avete creato un meccanismo per rispondere a domande o dubbi dei dipendenti sull’emergenza in corso?"},"R4_12_04"]
["D4_12_",4,"People & Organization","D4_12",{"$f":"IF($B364=\"\",\"\",IFERROR(INDEX(db_Domande!$D:$D,MATCH($D364,db_Domande!$C:$C,0),1),\"\"))","v":"Avete creato un meccanismo per rispondere a domande o dubbi dei dipendenti sull’emergenza in corso?"},"R4_12_05"]
["D4_13_SI",4,"People & Organization","D4_13",{"$f":"IF($B365=\"\",\"\",IFERROR(INDEX(db_Domande!$D:$D,MATCH($D365,db_Domande!$C:$C,0),1),\"\"))","v":"Avete inserito un supporto coaching ai vostri dipendenti e collaboratori sulla gestione dell'emotività in situazioni di emergenza?"},"R4_13_01","SI","SI  ;  NO  ;  NON_APPLICABILE",3,1]
["D4_13_NO",4,"People & Organization","D4_13",{"$f":"IF($B366=\"\",\"\",IFERROR(INDEX(db_Domande!$D:$D,MATCH($D366,db_Domande!$C:$C,0),1),\"\"))","v":"Avete inserito un supporto coaching ai vostri dipendenti e collaboratori sulla gestione dell'emotività in situazioni di emergenza?"},"R4_13_02","NO",null,null,0]
["D4_13_NON_APPLICABILE",4,"People & Organization","D4_13",{"$f":"IF($B367=\"\",\"\",IFERROR(INDEX(db_Domande!$D:$D,MATCH($D367,db_Domande!$C:$C,0),1),\"\"))","v":"Avete inserito un supporto coaching ai vostri dipendenti e collaboratori sulla gestione dell'emotività in situazioni di emergenza?"},"R4_13_03","NON_APPLICABILE",null,null,0]
["D4_13_",4,"People & Organization","D4_13",{"$f":"IF($B368=\"\",\"\",IFERROR(INDEX(db_Domande!$D:$D,MATCH($D368,db_Domande!$C:$C,0),1),\"\"))","v":"Avete inserito un supporto coaching ai vostri dipendenti e collaboratori sulla gestione dell'emotività in situazioni di emergenza?"},"R4_13_04"]
["D4_13_",4,"People & Organization","D4_13",{"$f":"IF($B369=\"\",\"\",IFERROR(INDEX(db_Domande!$D:$D,MATCH($D369,db_Domande!$C:$C,0),1),\"\"))","v":"Avete inserito un supporto coaching ai vostri dipendenti e collaboratori sulla gestione dell'emotività in situazioni di emergenza?"},"R4_13_05"]
["D4_14_",4,"People & Organization","D4_14",{"$f":"IF($B370=\"\",\"\",IFERROR(INDEX(db_Domande!$D:$D,MATCH($D370,db_Domande!$C:$C,0),1),\"\"))","v":""},"R4_14_01"]
["D4_14_",4,"People & Organization","D4_14",{"$f":"IF($B371=\"\",\"\",IFERROR(INDEX(db_Domande!$D:$D,MATCH($D371,db_Domande!$C:$C,0),1),\"\"))","v":""},"R4_14_02"]
["D4_14_",4,"People & Organization","D4_14",{"$f":"IF($B372=\"\",\"\",IFERROR(INDEX(db_Domande!$D:$D,MATCH($D372,db_Domande!$C:$C,0),1),\"\"))","v":""},"R4_14_03"]
["D4_14_",4,"People & Organization","D4_14",{"$f":"IF($B373=\"\",\"\",IFERROR(INDEX(db_Domande!$D:$D,MATCH($D373,db_Domande!$C:$C,0),1),\"\"))","v":""},"R4_14_04"]
["D4_14_",4,"People & Organization","D4_14",{"$f":"IF($B374=\"\",\"\",IFERROR(INDEX(db_Domande!$D:$D,MATCH($D374,db_Domande!$C:$C,0),1),\"\"))","v":""},"R4_14_05"]
["D4_15_",4,"People & Organization","D4_15",{"$f":"IF($B375=\"\",\"\",IFERROR(INDEX(db_Domande!$D:$D,MATCH($D375,db_Domande!$C:$C,0),1),\"\"))","v":""},"R4_15_01"]
["D4_15_",4,"People & Organization","D4_15",{"$f":"IF($B376=\"\",\"\",IFERROR(INDEX(db_Domande!$D:$D,MATCH($D376,db_Domande!$C:$C,0),1),\"\"))","v":""},"R4_15_02"]
["D4_15_",4,"People & Organization","D4_15",{"$f":"IF($B377=\"\",\"\",IFERROR(INDEX(db_Domande!$D:$D,MATCH($D377,db_Domande!$C:$C,0),1),\"\"))","v":""},"R4_15_03"]
["D4_15_",4,"People & Organization","D4_15",{"$f":"IF($B378=\"\",\"\",IFERROR(INDEX(db_Domande!$D:$D,MATCH($D378,db_Domande!$C:$C,0),1),\"\"))","v":""},"R4_15_04"]
["D4_15_",4,"People & Organization","D4_15",{"$f":"IF($B379=\"\",\"\",IFERROR(INDEX(db_Domande!$D:$D,MATCH($D379,db_Domande!$C:$C,0),1),\"\"))","v":""},"R4_15_05"]
["D4_16_",4,"People & Organization","D4_16",{"$f":"IF($B380=\"\",\"\",IFERROR(INDEX(db_Domande!$D:$D,MATCH($D380,db_Domande!$C:$C,0),1),\"\"))","v":""},"R4_16_01"]
["D4_16_",4,"People & Organization","D4_16",{"$f":"IF($B381=\"\",\"\",IFERROR(INDEX(db_Domande!$D:$D,MATCH($D381,db_Domande!$C:$C,0),1),\"\"))","v":""},"R4_16_02"]
["D4_16_",4,"People & Organization","D4_16",{"$f":"IF($B382=\"\",\"\",IFERROR(INDEX(db_Domande!$D:$D,MATCH($D382,db_Domande!$C:$C,0),1),\"\"))","v":""},"R4_16_03"]
["D4_16_",4,"People & Organization","D4_16",{"$f":"IF($B383=\"\",\"\",IFERROR(INDEX(db_Domande!$D:$D,MATCH($D383,db_Domande!$C:$C,0),1),\"\"))","v":""},"R4_16_04"]
["D4_16_",4,"People & Organization","D4_16",{"$f":"IF($B384=\"\",\"\",IFERROR(INDEX(db_Domande!$D:$D,MATCH($D384,db_Domande!$C:$C,0),1),\"\"))","v":""},"R4_16_05"]
["D4_17_",4,"People & Organization","D4_17",{"$f":"IF($B385=\"\",\"\",IFERROR(INDEX(db_Domande!$D:$D,MATCH($D385,db_Domande!$C:$C,0),1),\"\"))","v":""},"R4_17_01"]
["D4_17_",4,"People & Organization","D4_17",{"$f":"IF($B386=\"\",\"\",IFERROR(INDEX(db_Domande!$D:$D,MATCH($D386,db_Domande!$C:$C,0),1),\"\"))","v":""},{"$f":"IF($B386=\"\",\"\",\"R\"&RIGHT($D386,4)&\"_\"&TEXT(ROW()-MATCH($D386,$D:$D,0)+1,\"00\"))","v":"R4_17_02"}]
[{"$f":"IF($B387=\"\",\"\",$D387&\"_\"&$G387)","v":"D4_17_"},4,"People & Organization","D4_17",{"$f":"IF($B387=\"\",\"\",IFERROR(INDEX(db_Domande!$D:$D,MATCH($D387,db_Domande!$C:$C,0),1),\"\"))","v":""},"R4_17_03"]
["D4_17_",4,"People & Organization","D4_17",{"$f":"IF($B388=\"\",\"\",IFERROR(INDEX(db_Domande!$D:$D,MATCH($D388,db_Domande!$C:$C,0),1),\"\"))","v":""},"R4_17_04"]
["D4_17_",4,"People & Organization","D4_17",{"$f":"IF($B389=\"\",\"\",IFERROR(INDEX(db_Domande!$D:$D,MATCH($D389,db_Domande!$C:$C,0),1),\"\"))","v":""},"R4_17_05"]
["D4_18_",4,"People & Organization","D4_18",{"$f":"IF($B390=\"\",\"\",IFERROR(INDEX(db_Domande!$D:$D,MATCH($D390,db_Domande!$C:$C,0),1),\"\"))","v":""},"R4_18_01"]
["D4_18_",4,"People & Organization","D4_18",{"$f":"IF($B391=\"\",\"\",IFERROR(INDEX(db_Domande!$D:$D,MATCH($D391,db_Domande!$C:$C,0),1),\"\"))","v":""},"R4_18_02"]
["D4_18_",4,"People & Organization","D4_18",{"$f":"IF($B392=\"\",\"\",IFERROR(INDEX(db_Domande!$D:$D,MATCH($D392,db_Domande!$C:$C,0),1),\"\"))","v":""},"R4_18_03"]
["D4_18_",4,"People & Organization","D4_18",{"$f":"IF($B393=\"\",\"\",IFERROR(INDEX(db_Domande!$D:$D,MATCH($D393,db_Domande!$C:$C,0),1),\"\"))","v":""},"R4_18_04"]
["D4_18_",4,"People & Organization","D4_18",{"$f":"IF($B394=\"\",\"\",IFERROR(INDEX(db_Domande!$D:$D,MATCH($D394,db_Domande!$C:$C,0),1),\"\"))","v":""},"R4_18_05"]
["D4_19_",4,"People & Organization","D4_19",{"$f":"IF($B395=\"\",\"\",IFERROR(INDEX(db_Domande!$D:$D,MATCH($D395,db_Domande!$C:$C,0),1),\"\"))","v":""},"R4_19_01"]
["D4_19_",4,"People & Organization","D4_19",{"$f":"IF($B396=\"\",\"\",IFERROR(INDEX(db_Domande!$D:$D,MATCH($D396,db_Domande!$C:$C,0),1),\"\"))","v":""},"R4_19_02"]
["D4_19_",4,"People & Organization","D4_19",{"$f":"IF($B397=\"\",\"\",IFERROR(INDEX(db_Domande!$D:$D,MATCH($D397,db_Domande!$C:$C,0),1),\"\"))","v":""},"R4_19_03"]
["D4_19_",4,"People & Organization","D4_19",{"$f":"IF($B398=\"\",\"\",IFERROR(INDEX(db_Domande!$D:$D,MATCH($D398,db_Domande!$C:$C,0),1),\"\"))","v":""},"R4_19_04"]
["D4_19_",4,"People & Organization","D4_19",{"$f":"IF($B399=\"\",\"\",IFERROR(INDEX(db_Domande!$D:$D,MATCH($D399,db_Domande!$C:$C,0),1),\"\"))","v":""},"R4_19_05"]
["D4_20_",4,"People & Organization","D4_20",{"$f":"IF($B400=\"\",\"\",IFERROR(INDEX(db_Domande!$D:$D,MATCH($D400,db_Domande!$C:$C,0),1),\"\"))","v":""},"R4_20_01"]
["D4_20_",4,"People & Organization","D4_20",{"$f":"IF($B401=\"\",\"\",IFERROR(INDEX(db_Domande!$D:$D,MATCH($D401,db_Domande!$C:$C,0),1),\"\"))","v":""},"R4_20_02"]
["D4_20_",4,"People & Organization","D4_20",{"$f":"IF($B402=\"\",\"\",IFERROR(INDEX(db_Domande!$D:$D,MATCH($D402,db_Domande!$C:$C,0),1),\"\"))","v":""},"R4_20_03"]
["D4_20_",4,"People & Organization","D4_20",{"$f":"IF($B403=\"\",\"\",IFERROR(INDEX(db_Domande!$D:$D,MATCH($D403,db_Domande!$C:$C,0),1),\"\"))","v":""},"R4_20_04"]
["D4_20_",4,"People & Organization","D4_20",{"$f":"IF($B404=\"\",\"\",IFERROR(INDEX(db_Domande!$D:$D,MATCH($D404,db_Domande!$C:$C,0),1),\"\"))","v":""},"R4_20_05"]
["",null,null,null,{"$f":"IF($B405=\"\",\"\",IFERROR(INDEX(db_Domande!$D:$D,MATCH($D405,db_Domande!$C:$C,0),1),\"\"))","v":""},""]
["D5_01_SI",5,"Health & Safety","D5_01",{"$f":"IF($B406=\"\",\"\",IFERROR(INDEX(db_Domande!$D:$D,MATCH($D406,db_Domande!$C:$C,0),1),\"\"))","v":"L’azienda ha previsto una adeguata informativa a tutti i lavoratori e chiunque entri in azienda circa le disposizioni aggiornate delle Autorità, consegnando e/o affiggendo all’ingresso e nei luoghi maggiormente visibili dei locali aziendali, appositi depliants informativi? "},"R5_01_01","SI","SI  ;  NO  ;  NON_APPLICABILE",3,1]
["D5_01_NO",5,"Health & Safety","D5_01",{"$f":"IF($B407=\"\",\"\",IFERROR(INDEX(db_Domande!$D:$D,MATCH($D407,db_Domande!$C:$C,0),1),\"\"))","v":"L’azienda ha previsto una adeguata informativa a tutti i lavoratori e chiunque entri in azienda circa le disposizioni aggiornate delle Autorità, consegnando e/o affiggendo all’ingresso e nei luoghi maggiormente visibili dei locali aziendali, appositi depliants informativi? "},"R5_01_02","NO",null,1,0]
["D5_01_NON_APPLICABILE",5,"Health & Safety","D5_01",{"$f":"IF($B408=\"\",\"\",IFERROR(INDEX(db_Domande!$D:$D,MATCH($D408,db_Domande!$C:$C,0),1),\"\"))","v":"L’azienda ha previsto una adeguata informativa a tutti i lavoratori e chiunque entri in azienda circa le disposizioni aggiornate delle Autorità, consegnando e/o affiggendo all’ingresso e nei luoghi maggiormente visibili dei locali aziendali, appositi depliants informativi? "},"R5_01_03","NON_APPLICABILE",null,null,0]
["D5_01_",5,"Health & Safety","D5_01",{"$f":"IF($B409=\"\",\"\",IFERROR(INDEX(db_Domande!$D:$D,MATCH($D409,db_Domande!$C:$C,0),1),\"\"))","v":"L’azienda ha previsto una adeguata informativa a tutti i lavoratori e chiunque entri in azienda circa le disposizioni aggiornate delle Autorità, consegnando e/o affiggendo all’ingresso e nei luoghi maggiormente visibili dei locali aziendali, appositi depliants informativi? "},"R5_01_04"]
["D5_01_",5,"Health & Safety","D5_01",{"$f":"IF($B410=\"\",\"\",IFERROR(INDEX(db_Domande!$D:$D,MATCH($D410,db_Domande!$C:$C,0),1),\"\"))","v":"L’azienda ha previsto una adeguata informativa a tutti i lavoratori e chiunque entri in azienda circa le disposizioni aggiornate delle Autorità, consegnando e/o affiggendo all’ingresso e nei luoghi maggiormente visibili dei locali aziendali, appositi depliants informativi? "},"R5_01_05"]
["D5_02_SI",5,"Health & Safety","D5_02",{"$f":"IF($B411=\"\",\"\",IFERROR(INDEX(db_Domande!$D:$D,MATCH($D411,db_Domande!$C:$C,0),1),\"\"))","v":"L’Azienda ha definito una procedura per le modalità di accesso in azienda di personale interno, fornitori e visitatori esterni? "},"R5_02_01","SI","SI  ;  NO  ;  NON_APPLICABILE",3,1]
["D5_02_NO",5,"Health & Safety","D5_02",{"$f":"IF($B412=\"\",\"\",IFERROR(INDEX(db_Domande!$D:$D,MATCH($D412,db_Domande!$C:$C,0),1),\"\"))","v":"L’Azienda ha definito una procedura per le modalità di accesso in azienda di personale interno, fornitori e visitatori esterni? "},"R5_02_02","NO",null,1,0]
["D5_02_NON_APPLICABILE",5,"Health & Safety","D5_02",{"$f":"IF($B413=\"\",\"\",IFERROR(INDEX(db_Domande!$D:$D,MATCH($D413,db_Domande!$C:$C,0),1),\"\"))","v":"L’Azienda ha definito una procedura per le modalità di accesso in azienda di personale interno, fornitori e visitatori esterni? "},"R5_02_03","NON_APPLICABILE",null,null,0]
["D5_02_",5,"Health & Safety","D5_02",{"$f":"IF($B414=\"\",\"\",IFERROR(INDEX(db_Domande!$D:$D,MATCH($D414,db_Domande!$C:$C,0),1),\"\"))","v":"L’Azienda ha definito una procedura per le modalità di accesso in azienda di personale interno, fornitori e visitatori esterni? "},"R5_02_04"]
["D5_02_",5,"Health & Safety","D5_02",{"$f":"IF($B415=\"\",\"\",IFERROR(INDEX(db_Domande!$D:$D,MATCH($D415,db_Domande!$C:$C,0),1),\"\"))","v":"L’Azienda ha definito una procedura per le modalità di accesso in azienda di personale interno, fornitori e visitatori esterni? "},"R5_02_05"]
["D5_03_SI",5,"Health & Safety","D5_03",{"$f":"IF($B416=\"\",\"\",IFERROR(INDEX(db_Domande!$D:$D,MATCH($D416,db_Domande!$C:$C,0),1),\"\"))","v":"L’Azienda ha definito le corrette modalità di pulizia e sanificazione degli ambienti, compresi i sistemi di aerazione, anche mediante revisione dei contratti con le ditte terze?"},"R5_03_01","SI","SI  ;  NO  ;  NON_APPLICABILE",3,1]
["D5_03_NO",5,"Health & Safety","D5_03",{"$f":"IF($B417=\"\",\"\",IFERROR(INDEX(db_Domande!$D:$D,MATCH($D417,db_Domande!$C:$C,0),1),\"\"))","v":"L’Azienda ha definito le corrette modalità di pulizia e sanificazione degli ambienti, compresi i sistemi di aerazione, anche mediante revisione dei contratti con le ditte terze?"},"R5_03_02","NO",null,1,0]
["D5_03_NON_APPLICABILE",5,"Health & Safety","D5_03",{"$f":"IF($B418=\"\",\"\",IFERROR(INDEX(db_Domande!$D:$D,MATCH($D418,db_Domande!$C:$C,0),1),\"\"))","v":"L’Azienda ha definito le corrette modalità di pulizia e sanificazione degli ambienti, compresi i sistemi di aerazione, anche mediante revisione dei contratti con le ditte terze?"},"R5_03_03","NON_APPLICABILE",null,null,0]
["D5_03_",5,"Health & Safety","D5_03",{"$f":"IF($B419=\"\",\"\",IFERROR(INDEX(db_Domande!$D:$D,MATCH($D419,db_Domande!$C:$C,0),1),\"\"))","v":"L’Azienda ha definito le corrette modalità di pulizia e sanificazione degli ambienti, compresi i sistemi di aerazione, anche mediante revisione dei contratti con le ditte terze?"},"R5_03_04"]
["D5_03_",5,"Health & Safety","D5_03",{"$f":"IF($B420=\"\",\"\",IFERROR(INDEX(db_Domande!$D:$D,MATCH($D420,db_Domande!$C:$C,0),1),\"\"))","v":"L’Azienda ha definito le corrette modalità di pulizia e sanificazione degli ambienti, compresi i sistemi di aerazione, anche mediante revisione dei contratti con le ditte terze?"},"R5_03_05"]
["D5_04_SI",5,"Health & Safety","D5_04",{"$f":"IF($B421=\"\",\"\",IFERROR(INDEX(db_Domande!$D:$D,MATCH($D421,db_Domande!$C:$C,0),1),\"\"))","v":"L’Azienda ha definito una procedura per la scelta, consegna, e formazione sull’utilizzo dei Dispositivi di Protezione Individuale? "},"R5_04_01","SI","SI  ;  NO  ;  NON_APPLICABILE",3,1]
["D5_04_NO",5,"Health & Safety","D5_04",{"$f":"IF($B422=\"\",\"\",IFERROR(INDEX(db_Domande!$D:$D,MATCH($D422,db_Domande!$C:$C,0),1),\"\"))","v":"L’Azienda ha definito una procedura per la scelta, consegna, e formazione sull’utilizzo dei Dispositivi di Protezione Individuale? "},"R5_04_02","NO",null,1,0]
["D5_04_NON_APPLICABILE",5,"Health & Safety","D5_04",{"$f":"IF($B423=\"\",\"\",IFERROR(INDEX(db_Domande!$D:$D,MATCH($D423,db_Domande!$C:$C,0),1),\"\"))","v":"L’Azienda ha definito una procedura per la scelta, consegna, e formazione sull’utilizzo dei Dispositivi di Protezione Individuale? "},"R5_04_03","NON_APPLICABILE",null,null,0]
["D5_04_",5,"Health & Safety","D5_04",{"$f":"IF($B424=\"\",\"\",IFERROR(INDEX(db_Domande!$D:$D,MATCH($D424,db_Domande!$C:$C,0),1),\"\"))","v":"L’Azienda ha definito una procedura per la scelta, consegna, e formazione sull’utilizzo dei Dispositivi di Protezione Individuale? "},"R5_04_04"]
["D5_04_",5,"Health & Safety","D5_04",{"$f":"IF($B425=\"\",\"\",IFERROR(INDEX(db_Domande!$D:$D,MATCH($D425,db_Domande!$C:$C,0),1),\"\"))","v":"L’Azienda ha definito una procedura per la scelta, consegna, e formazione sull’utilizzo dei Dispositivi di Protezione Individuale? "},"R5_04_05"]
["D5_05_SI",5,"Health & Safety","D5_05",{"$f":"IF($B426=\"\",\"\",IFERROR(INDEX(db_Domande!$D:$D,MATCH($D426,db_Domande!$C:$C,0),1),\"\"))","v":"L’Azienda ha definito una procedura per la gestione degli spazi comuni? (mensa, spogliatoi, aree bevande ecc.) "},"R5_05_01","SI","SI  ;  NO  ;  NON_APPLICABILE",3,1]
["D5_05_NO",5,"Health & Safety","D5_05",{"$f":"IF($B427=\"\",\"\",IFERROR(INDEX(db_Domande!$D:$D,MATCH($D427,db_Domande!$C:$C,0),1),\"\"))","v":"L’Azienda ha definito una procedura per la gestione degli spazi comuni? (mensa, spogliatoi, aree bevande ecc.) "},"R5_05_02","NO",null,1,0]
["D5_05_NON_APPLICABILE",5,"Health & Safety","D5_05",{"$f":"IF($B428=\"\",\"\",IFERROR(INDEX(db_Domande!$D:$D,MATCH($D428,db_Domande!$C:$C,0),1),\"\"))","v":"L’Azienda ha definito una procedura per la gestione degli spazi comuni? (mensa, spogliatoi, aree bevande ecc.) "},"R5_05_03","NON_APPLICABILE",null,null,0]
["D5_05_",5,"Health & Safety","D5_05",{"$f":"IF($B429=\"\",\"\",IFERROR(INDEX(db_Domande!$D:$D,MATCH($D429,db_Domande!$C:$C,0),1),\"\"))","v":"L’Azienda ha definito una procedura per la gestione degli spazi comuni? (mensa, spogliatoi, aree bevande ecc.) "},"R5_05_04"]
["D5_05_",5,"Health & Safety","D5_05",{"$f":"IF($B430=\"\",\"\",IFERROR(INDEX(db_Domande!$D:$D,MATCH($D430,db_Domande!$C:$C,0),1),\"\"))","v":"L’Azienda ha definito una procedura per la gestione degli spazi comuni? (mensa, spogliatoi, aree bevande ecc.) "},"R5_05_05"]
["D5_06_SI",5,"Health & Safety","D5_06",{"$f":"IF($B431=\"\",\"\",IFERROR(INDEX(db_Domande!$D:$D,MATCH($D431,db_Domande!$C:$C,0),1),\"\"))","v":"L’Azienda ha definito una procedura per la gestione delle trasferte del personale? "},"R5_06_01","SI","SI  ;  NO  ;  NON_APPLICABILE",3,1]
["D5_06_NO",5,"Health & Safety","D5_06",{"$f":"IF($B432=\"\",\"\",IFERROR(INDEX(db_Domande!$D:$D,MATCH($D432,db_Domande!$C:$C,0),1),\"\"))","v":"L’Azienda ha definito una procedura per la gestione delle trasferte del personale? "},"R5_06_02","NO",null,1,0]
["D5_06_NON_APPLICABILE",5,"Health & Safety","D5_06",{"$f":"IF($B433=\"\",\"\",IFERROR(INDEX(db_Domande!$D:$D,MATCH($D433,db_Domande!$C:$C,0),1),\"\"))","v":"L’Azienda ha definito una procedura per la gestione delle trasferte del personale? "},"R5_06_03","NON_APPLICABILE",null,null,0]
["D5_06_",5,"Health & Safety","D5_06",{"$f":"IF($B434=\"\",\"\",IFERROR(INDEX(db_Domande!$D:$D,MATCH($D434,db_Domande!$C:$C,0),1),\"\"))","v":"L’Azienda ha definito una procedura per la gestione delle trasferte del personale? "},"R5_06_04"]
["D5_06_",5,"Health & Safety","D5_06",{"$f":"IF($B435=\"\",\"\",IFERROR(INDEX(db_Domande!$D:$D,MATCH($D435,db_Domande!$C:$C,0),1),\"\"))","v":"L’Azienda ha definito una procedura per la gestione delle trasferte del personale? "},"R5_06_05"]
["D5_07_SI",5,"Health & Safety","D5_07",{"$f":"IF($B436=\"\",\"\",IFERROR(INDEX(db_Domande!$D:$D,MATCH($D436,db_Domande!$C:$C,0),1),\"\"))","v":"L’Azienda ha definito una procedura per la gestione di spostamenti interni, formazione, riunioni ed eventi? "},"R5_07_01","SI","SI  ;  NO  ;  NON_APPLICABILE",3,1]
["D5_07_NO",5,"Health & Safety","D5_07",{"$f":"IF($B437=\"\",\"\",IFERROR(INDEX(db_Domande!$D:$D,MATCH($D437,db_Domande!$C:$C,0),1),\"\"))","v":"L’Azienda ha definito una procedura per la gestione di spostamenti interni, formazione, riunioni ed eventi? "},"R5_07_02","NO",null,1,0]
["D5_07_NON_APPLICABILE",5,"Health & Safety","D5_07",{"$f":"IF($B438=\"\",\"\",IFERROR(INDEX(db_Domande!$D:$D,MATCH($D438,db_Domande!$C:$C,0),1),\"\"))","v":"L’Azienda ha definito una procedura per la gestione di spostamenti interni, formazione, riunioni ed eventi? "},"R5_07_03","NON_APPLICABILE",null,null,0]
["D5_07_",5,"Health & Safety","D5_07",{"$f":"IF($B439=\"\",\"\",IFERROR(INDEX(db_Domande!$D:$D,MATCH($D439,db_Domande!$C:$C,0),1),\"\"))","v":"L’Azienda ha definito una procedura per la gestione di spostamenti interni, formazione, riunioni ed eventi? "},"R5_07_04"]
["D5_07_",5,"Health & Safety","D5_07",{"$f":"IF($B440=\"\",\"\",IFERROR(INDEX(db_Domande!$D:$D,MATCH($D440,db_Domande!$C:$C,0),1),\"\"))","v":"L’Azienda ha definito una procedura per la gestione di spostamenti interni, formazione, riunioni ed eventi? "},"R5_07_05"]
["D5_08_SI",5,"Health & Safety","D5_08",{"$f":"IF($B441=\"\",\"\",IFERROR(INDEX(db_Domande!$D:$D,MATCH($D441,db_Domande!$C:$C,0),1),\"\"))","v":"L’Azienda ha definito le misure di primo soccorso ed emergenza connesse ad eventuali eventi infortunistici/sintomi di contagio? "},"R5_08_01","SI","SI  ;  NO  ;  NON_APPLICABILE",3,1]
["D5_08_NO",5,"Health & Safety","D5_08",{"$f":"IF($B442=\"\",\"\",IFERROR(INDEX(db_Domande!$D:$D,MATCH($D442,db_Domande!$C:$C,0),1),\"\"))","v":"L’Azienda ha definito le misure di primo soccorso ed emergenza connesse ad eventuali eventi infortunistici/sintomi di contagio? "},"R5_08_02","NO",null,1,0]
["D5_08_NON_APPLICABILE",5,"Health & Safety","D5_08",{"$f":"IF($B443=\"\",\"\",IFERROR(INDEX(db_Domande!$D:$D,MATCH($D443,db_Domande!$C:$C,0),1),\"\"))","v":"L’Azienda ha definito le misure di primo soccorso ed emergenza connesse ad eventuali eventi infortunistici/sintomi di contagio? "},"R5_08_03","NON_APPLICABILE",null,null,0]
["D5_08_",5,"Health & Safety","D5_08",{"$f":"IF($B444=\"\",\"\",IFERROR(INDEX(db_Domande!$D:$D,MATCH($D444,db_Domande!$C:$C,0),1),\"\"))","v":"L’Azienda ha definito le misure di primo soccorso ed emergenza connesse ad eventuali eventi infortunistici/sintomi di contagio? "},"R5_08_04"]
["D5_08_",5,"Health & Safety","D5_08",{"$f":"IF($B445=\"\",\"\",IFERROR(INDEX(db_Domande!$D:$D,MATCH($D445,db_Domande!$C:$C,0),1),\"\"))","v":"L’Azienda ha definito le misure di primo soccorso ed emergenza connesse ad eventuali eventi infortunistici/sintomi di contagio? "},"R5_08_05"]
["D5_09_SI",5,"Health & Safety","D5_09",{"$f":"IF($B446=\"\",\"\",IFERROR(INDEX(db_Domande!$D:$D,MATCH($D446,db_Domande!$C:$C,0),1),\"\"))","v":"L’Azienda ha definito le modalità di svolgimento della sorveglianza sanitaria ed il coordinamento con il medico competente? "},"R5_09_01","SI","SI  ;  NO  ;  NON_APPLICABILE",3,1]
["D5_09_NO",5,"Health & Safety","D5_09",{"$f":"IF($B447=\"\",\"\",IFERROR(INDEX(db_Domande!$D:$D,MATCH($D447,db_Domande!$C:$C,0),1),\"\"))","v":"L’Azienda ha definito le modalità di svolgimento della sorveglianza sanitaria ed il coordinamento con il medico competente? "},"R5_09_02","NO",null,1,0]
["D5_09_NON_APPLICABILE",5,"Health & Safety","D5_09",{"$f":"IF($B448=\"\",\"\",IFERROR(INDEX(db_Domande!$D:$D,MATCH($D448,db_Domande!$C:$C,0),1),\"\"))","v":"L’Azienda ha definito le modalità di svolgimento della sorveglianza sanitaria ed il coordinamento con il medico competente? "},"R5_09_03","NON_APPLICABILE",null,null,0]
["D5_09_",5,"Health & Safety","D5_09",{"$f":"IF($B449=\"\",\"\",IFERROR(INDEX(db_Domande!$D:$D,MATCH($D449,db_Domande!$C:$C,0),1),\"\"))","v":"L’Azienda ha definito le modalità di svolgimento della sorveglianza sanitaria ed il coordinamento con il medico competente? "},"R5_09_04"]
["D5_09_",5,"Health & Safety","D5_09",{"$f":"IF($B450=\"\",\"\",IFERROR(INDEX(db_Domande!$D:$D,MATCH($D450,db_Domande!$C:$C,0),1),\"\"))","v":"L’Azienda ha definito le modalità di svolgimento della sorveglianza sanitaria ed il coordinamento con il medico competente? "},{"$f":"IF($B450=\"\",\"\",\"R\"&RIGHT($D450,4)&\"_\"&TEXT(ROW()-MATCH($D450,$D:$D,0)+1,\"00\"))","v":"R5_09_05"}]
[{"$f":"IF($B451=\"\",\"\",$D451&\"_\"&$G451)","v":"D5_10_SI"},5,"Health & Safety","D5_10",{"$f":"IF($B451=\"\",\"\",IFERROR(INDEX(db_Domande!$D:$D,MATCH($D451,db_Domande!$C:$C,0),1),\"\"))","v":"L’Azienda ha istituito un Comitato di Sicurezza? "},"R5_10_01","SI","SI  ;  NO  ;  NON_APPLICABILE",3,1]
["D5_10_NO",5,"Health & Safety","D5_10",{"$f":"IF($B452=\"\",\"\",IFERROR(INDEX(db_Domande!$D:$D,MATCH($D452,db_Domande!$C:$C,0),1),\"\"))","v":"L’Azienda ha istituito un Comitato di Sicurezza? "},"R5_10_02","NO",null,1,0]
["D5_10_NON_APPLICABILE",5,"Health & Safety","D5_10",{"$f":"IF($B453=\"\",\"\",IFERROR(INDEX(db_Domande!$D:$D,MATCH($D453,db_Domande!$C:$C,0),1),\"\"))","v":"L’Azienda ha istituito un Comitato di Sicurezza? "},"R5_10_03","NON_APPLICABILE",null,null,0]
["D5_10_",5,"Health & Safety","D5_10",{"$f":"IF($B454=\"\",\"\",IFERROR(INDEX(db_Domande!$D:$D,MATCH($D454,db_Domande!$C:$C,0),1),\"\"))","v":"L’Azienda ha istituito un Comitato di Sicurezza? "},"R5_10_04"]
["D5_10_",5,"Health & Safety","D5_10",{"$f":"IF($B455=\"\",\"\",IFERROR(INDEX(db_Domande!$D:$D,MATCH($D455,db_Domande!$C:$C,0),1),\"\"))","v":"L’Azienda ha istituito un Comitato di Sicurezza? "},"R5_10_05"]
["D5_11_SI",5,"Health & Safety","D5_11",{"$f":"IF($B456=\"\",\"\",IFERROR(INDEX(db_Domande!$D:$D,MATCH($D456,db_Domande!$C:$C,0),1),\"\"))","v":"L’Azienda ha verificato la necessità di modifica del layout e delle postazioni di lavoro? "},"R5_11_01","SI","SI  ;  NO  ;  NON_APPLICABILE",3,1]
["D5_11_NO",5,"Health & Safety","D5_11",{"$f":"IF($B457=\"\",\"\",IFERROR(INDEX(db_Domande!$D:$D,MATCH($D457,db_Domande!$C:$C,0),1),\"\"))","v":"L’Azienda ha verificato la necessità di modifica del layout e delle postazioni di lavoro? "},"R5_11_02","NO",null,1,0]
["D5_11_NON_APPLICABILE",5,"Health & Safety","D5_11",{"$f":"IF($B458=\"\",\"\",IFERROR(INDEX(db_Domande!$D:$D,MATCH($D458,db_Domande!$C:$C,0),1),\"\"))","v":"L’Azienda ha verificato la necessità di modifica del layout e delle postazioni di lavoro? "},"R5_11_03","NON_APPLICABILE",null,null,0]
["D5_11_",5,"Health & Safety","D5_11",{"$f":"IF($B459=\"\",\"\",IFERROR(INDEX(db_Domande!$D:$D,MATCH($D459,db_Domande!$C:$C,0),1),\"\"))","v":"L’Azienda ha verificato la necessità di modifica del layout e delle postazioni di lavoro? "},"R5_11_04"]
["D5_11_",5,"Health & Safety","D5_11",{"$f":"IF($B460=\"\",\"\",IFERROR(INDEX(db_Domande!$D:$D,MATCH($D460,db_Domande!$C:$C,0),1),\"\"))","v":"L’Azienda ha verificato la necessità di modifica del layout e delle postazioni di lavoro? "},"R5_11_05"]
["D5_12_SI",5,"Health & Safety","D5_12",{"$f":"IF($B461=\"\",\"\",IFERROR(INDEX(db_Domande!$D:$D,MATCH($D461,db_Domande!$C:$C,0),1),\"\"))","v":"L’Azienda ha valutato i nuovi rischi per la salute e sicurezza derivanti dalle modifiche organizzative e li ha recepiti nel DVR aziendale?  "},"R5_12_01","SI","SI  ;  NO  ;  NON_APPLICABILE",3,1]
["D5_12_NO",5,"Health & Safety","D5_12",{"$f":"IF($B462=\"\",\"\",IFERROR(INDEX(db_Domande!$D:$D,MATCH($D462,db_Domande!$C:$C,0),1),\"\"))","v":"L’Azienda ha valutato i nuovi rischi per la salute e sicurezza derivanti dalle modifiche organizzative e li ha recepiti nel DVR aziendale?  "},"R5_12_02","NO",null,1,0]
["D5_12_NON_APPLICABILE",5,"Health & Safety","D5_12",{"$f":"IF($B463=\"\",\"\",IFERROR(INDEX(db_Domande!$D:$D,MATCH($D463,db_Domande!$C:$C,0),1),\"\"))","v":"L’Azienda ha valutato i nuovi rischi per la salute e sicurezza derivanti dalle modifiche organizzative e li ha recepiti nel DVR aziendale?  "},"R5_12_03","NON_APPLICABILE",null,null,0]
["D5_12_",5,"Health & Safety","D5_12",{"$f":"IF($B464=\"\",\"\",IFERROR(INDEX(db_Domande!$D:$D,MATCH($D464,db_Domande!$C:$C,0),1),\"\"))","v":"L’Azienda ha valutato i nuovi rischi per la salute e sicurezza derivanti dalle modifiche organizzative e li ha recepiti nel DVR aziendale?  "},"R5_12_04"]
["D5_12_",5,"Health & Safety","D5_12",{"$f":"IF($B465=\"\",\"\",IFERROR(INDEX(db_Domande!$D:$D,MATCH($D465,db_Domande!$C:$C,0),1),\"\"))","v":"L’Azienda ha valutato i nuovi rischi per la salute e sicurezza derivanti dalle modifiche organizzative e li ha recepiti nel DVR aziendale?  "},"R5_12_05"]
["D5_13_SI",5,"Health & Safety","D5_13",{"$f":"IF($B466=\"\",\"\",IFERROR(INDEX(db_Domande!$D:$D,MATCH($D466,db_Domande!$C:$C,0),1),\"\"))","v":"L’Azienda ha verificato eventuali rischi legali e di compliance dei processi interni che potrebbero evidenziarsi per l'emergenza? "},"R5_13_01","SI","SI  ;  NO  ;  NON_APPLICABILE",3,1]
["D5_13_NO",5,"Health & Safety","D5_13",{"$f":"IF($B467=\"\",\"\",IFERROR(INDEX(db_Domande!$D:$D,MATCH($D467,db_Domande!$C:$C,0),1),\"\"))","v":"L’Azienda ha verificato eventuali rischi legali e di compliance dei processi interni che potrebbero evidenziarsi per l'emergenza? "},"R5_13_02","NO",null,1,0]
["D5_13_NON_APPLICABILE",5,"Health & Safety","D5_13",{"$f":"IF($B468=\"\",\"\",IFERROR(INDEX(db_Domande!$D:$D,MATCH($D468,db_Domande!$C:$C,0),1),\"\"))","v":"L’Azienda ha verificato eventuali rischi legali e di compliance dei processi interni che potrebbero evidenziarsi per l'emergenza? "},"R5_13_03","NON_APPLICABILE",null,null,0]
["D5_13_",5,"Health & Safety","D5_13",{"$f":"IF($B469=\"\",\"\",IFERROR(INDEX(db_Domande!$D:$D,MATCH($D469,db_Domande!$C:$C,0),1),\"\"))","v":"L’Azienda ha verificato eventuali rischi legali e di compliance dei processi interni che potrebbero evidenziarsi per l'emergenza? "},"R5_13_04"]
["D5_13_",5,"Health & Safety","D5_13",{"$f":"IF($B470=\"\",\"\",IFERROR(INDEX(db_Domande!$D:$D,MATCH($D470,db_Domande!$C:$C,0),1),\"\"))","v":"L’Azienda ha verificato eventuali rischi legali e di compliance dei processi interni che potrebbero evidenziarsi per l'emergenza? "},"R5_13_05"]
["D5_14_SI",5,"Health & Safety","D5_14",{"$f":"IF($B471=\"\",\"\",IFERROR(INDEX(db_Domande!$D:$D,MATCH($D471,db_Domande!$C:$C,0),1),\"\"))","v":"L’Azienda ha verificato la necessità di aggiornamento delle parti speciali del MOG 231, con particolare riferimento ai reati connessi alla salute e sicurezza nei luoghi di lavoro? "},"R5_14_01","SI","SI  ;  NO  ;  NON_APPLICABILE",3,1]
["D5_14_NO",5,"Health & Safety","D5_14",{"$f":"IF($B472=\"\",\"\",IFERROR(INDEX(db_Domande!$D:$D,MATCH($D472,db_Domande!$C:$C,0),1),\"\"))","v":"L’Azienda ha verificato la necessità di aggiornamento delle parti speciali del MOG 231, con particolare riferimento ai reati connessi alla salute e sicurezza nei luoghi di lavoro? "},"R5_14_02","NO",null,1,0]
["D5_14_NON_APPLICABILE",5,"Health & Safety","D5_14",{"$f":"IF($B473=\"\",\"\",IFERROR(INDEX(db_Domande!$D:$D,MATCH($D473,db_Domande!$C:$C,0),1),\"\"))","v":"L’Azienda ha verificato la necessità di aggiornamento delle parti speciali del MOG 231, con particolare riferimento ai reati connessi alla salute e sicurezza nei luoghi di lavoro? "},"R5_14_03","NON_APPLICABILE",null,null,0]
["D5_14_",5,"Health & Safety","D5_14",{"$f":"IF($B474=\"\",\"\",IFERROR(INDEX(db_Domande!$D:$D,MATCH($D474,db_Domande!$C:$C,0),1),\"\"))","v":"L’Azienda ha verificato la necessità di aggiornamento delle parti speciali del MOG 231, con particolare riferimento ai reati connessi alla salute e sicurezza nei luoghi di lavoro? "},"R5_14_04"]
["D5_14_",5,"Health & Safety","D5_14",{"$f":"IF($B475=\"\",\"\",IFERROR(INDEX(db_Domande!$D:$D,MATCH($D475,db_Domande!$C:$C,0),1),\"\"))","v":"L’Azienda ha verificato la necessità di aggiornamento delle parti speciali del MOG 231, con particolare riferimento ai reati connessi alla salute e sicurezza nei luoghi di lavoro? "},"R5_14_05"]
["D5_15_SI",5,"Health & Safety","D5_15",{"$f":"IF($B476=\"\",\"\",IFERROR(INDEX(db_Domande!$D:$D,MATCH($D476,db_Domande!$C:$C,0),1),\"\"))","v":"L’Azienda ha implementato un sistema di controlli/audit interni per la verifica di completezza ed efficacia delle misure adottate? "},"R5_15_01","SI","SI  ;  NO  ;  NON_APPLICABILE",3,1]
["D5_15_NO",5,"Health & Safety","D5_15",{"$f":"IF($B477=\"\",\"\",IFERROR(INDEX(db_Domande!$D:$D,MATCH($D477,db_Domande!$C:$C,0),1),\"\"))","v":"L’Azienda ha implementato un sistema di controlli/audit interni per la verifica di completezza ed efficacia delle misure adottate? "},"R5_15_02","NO",null,1,0]
["D5_15_NON_APPLICABILE",5,"Health & Safety","D5_15",{"$f":"IF($B478=\"\",\"\",IFERROR(INDEX(db_Domande!$D:$D,MATCH($D478,db_Domande!$C:$C,0),1),\"\"))","v":"L’Azienda ha implementato un sistema di controlli/audit interni per la verifica di completezza ed efficacia delle misure adottate? "},"R5_15_03","NON_APPLICABILE",null,null,0]
["D5_15_",5,"Health & Safety","D5_15",{"$f":"IF($B479=\"\",\"\",IFERROR(INDEX(db_Domande!$D:$D,MATCH($D479,db_Domande!$C:$C,0),1),\"\"))","v":"L’Azienda ha implementato un sistema di controlli/audit interni per la verifica di completezza ed efficacia delle misure adottate? "},"R5_15_04"]
["D5_15_",5,"Health & Safety","D5_15",{"$f":"IF($B480=\"\",\"\",IFERROR(INDEX(db_Domande!$D:$D,MATCH($D480,db_Domande!$C:$C,0),1),\"\"))","v":"L’Azienda ha implementato un sistema di controlli/audit interni per la verifica di completezza ed efficacia delle misure adottate? "},"R5_15_05"]
["D5_16_",5,"Health & Safety","D5_16",{"$f":"IF($B481=\"\",\"\",IFERROR(INDEX(db_Domande!$D:$D,MATCH($D481,db_Domande!$C:$C,0),1),\"\"))","v":""},"R5_16_01",null,null,null,1]
["D5_16_",5,"Health & Safety","D5_16",{"$f":"IF($B482=\"\",\"\",IFERROR(INDEX(db_Domande!$D:$D,MATCH($D482,db_Domande!$C:$C,0),1),\"\"))","v":""},"R5_16_02",null,null,1,0]
["D5_16_",5,"Health & Safety","D5_16",{"$f":"IF($B483=\"\",\"\",IFERROR(INDEX(db_Domande!$D:$D,MATCH($D483,db_Domande!$C:$C,0),1),\"\"))","v":""},"R5_16_03"]
["D5_16_",5,"Health & Safety","D5_16",{"$f":"IF($B484=\"\",\"\",IFERROR(INDEX(db_Domande!$D:$D,MATCH($D484,db_Domande!$C:$C,0),1),\"\"))","v":""},"R5_16_04"]
["D5_16_",5,"Health & Safety","D5_16",{"$f":"IF($B485=\"\",\"\",IFERROR(INDEX(db_Domande!$D:$D,MATCH($D485,db_Domande!$C:$C,0),1),\"\"))","v":""},"R5_16_05"]
["D5_17_",5,"Health & Safety","D5_17",{"$f":"IF($B486=\"\",\"\",IFERROR(INDEX(db_Domande!$D:$D,MATCH($D486,db_Domande!$C:$C,0),1),\"\"))","v":""},"R5_17_01",null,null,null,1]
["D5_17_",5,"Health & Safety","D5_17",{"$f":"IF($B487=\"\",\"\",IFERROR(INDEX(db_Domande!$D:$D,MATCH($D487,db_Domande!$C:$C,0),1),\"\"))","v":""},"R5_17_02",null,null,1,0]
["D5_17_",5,"Health & Safety","D5_17",{"$f":"IF($B488=\"\",\"\",IFERROR(INDEX(db_Domande!$D:$D,MATCH($D488,db_Domande!$C:$C,0),1),\"\"))","v":""},"R5_17_03"]
["D5_17_",5,"Health & Safety","D5_17",{"$f":"IF($B489=\"\",\"\",IFERROR(INDEX(db_Domande!$D:$D,MATCH($D489,db_Domande!$C:$C,0),1),\"\"))","v":""},"R5_17_04"]
["D5_17_",5,"Health & Safety","D5_17",{"$f":"IF($B490=\"\",\"\",IFERROR(INDEX(db_Domande!$D:$D,MATCH($D490,db_Domande!$C:$C,0),1),\"\"))","v":""},"R5_17_05"]
["D5_18_",5,"Health & Safety","D5_18",{"$f":"IF($B491=\"\",\"\",IFERROR(INDEX(db_Domande!$D:$D,MATCH($D491,db_Domande!$C:$C,0),1),\"\"))","v":""},"R5_18_01",null,null,null,1]
["D5_18_",5,"Health & Safety","D5_18",{"$f":"IF($B492=\"\",\"\",IFERROR(INDEX(db_Domande!$D:$D,MATCH($D492,db_Domande!$C:$C,0),1),\"\"))","v":""},"R5_18_02",null,null,1,0]
["D5_18_",5,"Health & Safety","D5_18",{"$f":"IF($B493=\"\",\"\",IFERROR(INDEX(db_Domande!$D:$D,MATCH($D493,db_Domande!$C:$C,0),1),\"\"))","v":""},"R5_18_03"]
["D5_18_",5,"Health & Safety","D5_18",{"$f":"IF($B494=\"\",\"\",IFERROR(INDEX(db_Domande!$D:$D,MATCH($D494,db_Domande!$C:$C,0),1),\"\"))","v":""},"R5_18_04"]
["D5_18_",5,"Health & Safety","D5_18",{"$f":"IF($B495=\"\",\"\",IFERROR(INDEX(db_Domande!$D:$D,MATCH($D495,db_Domande!$C:$C,0),1),\"\"))","v":""},"R5_18_05"]
["D5_19_",5,"Health & Safety","D5_19",{"$f":"IF($B496=\"\",\"\",IFERROR(INDEX(db_Domande!$D:$D,MATCH($D496,db_Domande!$C:$C,0),1),\"\"))","v":""},"R5_19_01",null,null,null,1]
["D5_19_",5,"Health & Safety","D5_19",{"$f":"IF($B497=\"\",\"\",IFERROR(INDEX(db_Domande!$D:$D,MATCH($D497,db_Domande!$C:$C,0),1),\"\"))","v":""},"R5_19_02",null,null,1,0]
["D5_19_",5,"Health & Safety","D5_19",{"$f":"IF($B498=\"\",\"\",IFERROR(INDEX(db_Domande!$D:$D,MATCH($D498,db_Domande!$C:$C,0),1),\"\"))","v":""},"R5_19_03"]
["D5_19_",5,"Health & Safety","D5_19",{"$f":"IF($B499=\"\",\"\",IFERROR(INDEX(db_Domande!$D:$D,MATCH($D499,db_Domande!$C:$C,0),1),\"\"))","v":""},"R5_19_04"]
["D5_19_",5,"Health & Safety","D5_19",{"$f":"IF($B500=\"\",\"\",IFERROR(INDEX(db_Domande!$D:$D,MATCH($D500,db_Domande!$C:$C,0),1),\"\"))","v":""},"R5_19_05"]
["D5_20_",5,"Health & Safety","D5_20",{"$f":"IF($B501=\"\",\"\",IFERROR(INDEX(db_Domande!$D:$D,MATCH($D501,db_Domande!$C:$C,0),1),\"\"))","v":""},"R5_20_01"]
["D5_20_",5,"Health & Safety","D5_20",{"$f":"IF($B502=\"\",\"\",IFERROR(INDEX(db_Domande!$D:$D,MATCH($D502,db_Domande!$C:$C,0),1),\"\"))","v":""},"R5_20_02"]
["D5_20_",5,"Health & Safety","D5_20",{"$f":"IF($B503=\"\",\"\",IFERROR(INDEX(db_Domande!$D:$D,MATCH($D503,db_Domande!$C:$C,0),1),\"\"))","v":""},"R5_20_03"]
["D5_20_",5,"Health & Safety","D5_20",{"$f":"IF($B504=\"\",\"\",IFERROR(INDEX(db_Domande!$D:$D,MATCH($D504,db_Domande!$C:$C,0),1),\"\"))","v":""},"R5_20_04"]
["D5_20_",5,"Health & Safety","D5_20",{"$f":"IF($B505=\"\",\"\",IFERROR(INDEX(db_Domande!$D:$D,MATCH($D505,db_Domande!$C:$C,0),1),\"\"))","v":""},"R5_20_05"]
["",null,null,null,{"$f":"IF($B506=\"\",\"\",IFERROR(INDEX(db_Domande!$D:$D,MATCH($D506,db_Domande!$C:$C,0),1),\"\"))","v":""},""]
["D6_01_SI",6,"Information Technology","D6_01",{"$f":"IF($B507=\"\",\"\",IFERROR(INDEX(db_Domande!$D:$D,MATCH($D507,db_Domande!$C:$C,0),1),\"\"))","v":"L’azienda ha piani e strumenti per il Disaster Recovery?"},"R6_01_01","SI","SI  ;  NO  ;  NON_APPLICABILE",3,1]
["D6_01_NO",6,"Information Technology","D6_01",{"$f":"IF($B508=\"\",\"\",IFERROR(INDEX(db_Domande!$D:$D,MATCH($D508,db_Domande!$C:$C,0),1),\"\"))","v":"L’azienda ha piani e strumenti per il Disaster Recovery?"},"R6_01_02","NO",null,null,0]
["D6_01_NON_APPLICABILE",6,"Information Technology","D6_01",{"$f":"IF($B509=\"\",\"\",IFERROR(INDEX(db_Domande!$D:$D,MATCH($D509,db_Domande!$C:$C,0),1),\"\"))","v":"L’azienda ha piani e strumenti per il Disaster Recovery?"},"R6_01_03","NON_APPLICABILE",null,null,0]
["D6_01_",6,"Information Technology","D6_01",{"$f":"IF($B510=\"\",\"\",IFERROR(INDEX(db_Domande!$D:$D,MATCH($D510,db_Domande!$C:$C,0),1),\"\"))","v":"L’azienda ha piani e strumenti per il Disaster Recovery?"},"R6_01_04"]
["D6_01_",6,"Information Technology","D6_01",{"$f":"IF($B511=\"\",\"\",IFERROR(INDEX(db_Domande!$D:$D,MATCH($D511,db_Domande!$C:$C,0),1),\"\"))","v":"L’azienda ha piani e strumenti per il Disaster Recovery?"},"R6_01_05"]
["D6_02_SI",6,"Information Technology","D6_02",{"$f":"IF($B512=\"\",\"\",IFERROR(INDEX(db_Domande!$D:$D,MATCH($D512,db_Domande!$C:$C,0),1),\"\"))","v":"L'azienda ha identificato eventuali rischi legali e di compliance (es. GDPR) che potrebbero evidenziarsi per l'emergenza?"},"R6_02_01","SI","SI  ;  NO  ;  NON_APPLICABILE",3,1]
["D6_02_NO",6,"Information Technology","D6_02",{"$f":"IF($B513=\"\",\"\",IFERROR(INDEX(db_Domande!$D:$D,MATCH($D513,db_Domande!$C:$C,0),1),\"\"))","v":"L'azienda ha identificato eventuali rischi legali e di compliance (es. GDPR) che potrebbero evidenziarsi per l'emergenza?"},"R6_02_02","NO",null,null,0]
["D6_02_NON_APPLICABILE",6,"Information Technology","D6_02",{"$f":"IF($B514=\"\",\"\",IFERROR(INDEX(db_Domande!$D:$D,MATCH($D514,db_Domande!$C:$C,0),1),\"\"))","v":"L'azienda ha identificato eventuali rischi legali e di compliance (es. GDPR) che potrebbero evidenziarsi per l'emergenza?"},{"$f":"IF($B514=\"\",\"\",\"R\"&RIGHT($D514,4)&\"_\"&TEXT(ROW()-MATCH($D514,$D:$D,0)+1,\"00\"))","v":"R6_02_03"},"NON_APPLICABILE",null,null,0]
[{"$f":"IF($B515=\"\",\"\",$D515&\"_\"&$G515)","v":"D6_02_"},6,"Information Technology","D6_02",{"$f":"IF($B515=\"\",\"\",IFERROR(INDEX(db_Domande!$D:$D,MATCH($D515,db_Domande!$C:$C,0),1),\"\"))","v":"L'azienda ha identificato eventuali rischi legali e di compliance (es. GDPR) che potrebbero evidenziarsi per l'emergenza?"},"R6_02_04"]
["D6_02_",6,"Information Technology","D6_02",{"$f":"IF($B516=\"\",\"\",IFERROR(INDEX(db_Domande!$D:$D,MATCH($D516,db_Domande!$C:$C,0),1),\"\"))","v":"L'azienda ha identificato eventuali rischi legali e di compliance (es. GDPR) che potrebbero evidenziarsi per l'emergenza?"},"R6_02_05"]
["D6_03_SI",6,"Information Technology","D6_03",{"$f":"IF($B517=\"\",\"\",IFERROR(INDEX(db_Domande!$D:$D,MATCH($D517,db_Domande!$C:$C,0),1),\"\"))","v":"L'azienda ha definito policy interne per i dipendenti che chiariscono limiti e responsabilità nell’uso delle risorse informatiche?"},"R6_03_01","SI","SI  ;  NO  ;  NON_APPLICABILE",3,1]
["D6_03_NO",6,"Information Technology","D6_03",{"$f":"IF($B518=\"\",\"\",IFERROR(INDEX(db_Domande!$D:$D,MATCH($D518,db_Domande!$C:$C,0),1),\"\"))","v":"L'azienda ha definito policy interne per i dipendenti che chiariscono limiti e responsabilità nell’uso delle risorse informatiche?"},"R6_03_02","NO",null,null,0]
["D6_03_NON_APPLICABILE",6,"Information Technology","D6_03",{"$f":"IF($B519=\"\",\"\",IFERROR(INDEX(db_Domande!$D:$D,MATCH($D519,db_Domande!$C:$C,0),1),\"\"))","v":"L'azienda ha definito policy interne per i dipendenti che chiariscono limiti e responsabilità nell’uso delle risorse informatiche?"},"R6_03_03","NON_APPLICABILE",null,null,0]
["D6_03_",6,"Information Technology","D6_03",{"$f":"IF($B520=\"\",\"\",IFERROR(INDEX(db_Domande!$D:$D,MATCH($D520,db_Domande!$C:$C,0),1),\"\"))","v":"L'azienda ha definito policy interne per i dipendenti che chiariscono limiti e responsabilità nell’uso delle risorse informatiche?"},"R6_03_04"]
["D6_03_",6,"Information Technology","D6_03",{"$f":"IF($B521=\"\",\"\",IFERROR(INDEX(db_Domande!$D:$D,MATCH($D521,db_Domande!$C:$C,0),1),\"\"))","v":"L'azienda ha definito policy interne per i dipendenti che chiariscono limiti e responsabilità nell’uso delle risorse informatiche?"},"R6_03_05"]
["D6_04_SI",6,"Information Technology","D6_04",{"$f":"IF($B522=\"\",\"\",IFERROR(INDEX(db_Domande!$D:$D,MATCH($D522,db_Domande!$C:$C,0),1),\"\"))","v":"Ha piani di formazione/sensibilizzazione a riguardo?"},"R6_04_01","SI","SI  ;  NO  ;  NON_APPLICABILE",3,1]
["D6_04_NO",6,"Information Technology","D6_04",{"$f":"IF($B523=\"\",\"\",IFERROR(INDEX(db_Domande!$D:$D,MATCH($D523,db_Domande!$C:$C,0),1),\"\"))","v":"Ha piani di formazione/sensibilizzazione a riguardo?"},"R6_04_02","NO",null,null,0]
["D6_04_NON_APPLICABILE",6,"Information Technology","D6_04",{"$f":"IF($B524=\"\",\"\",IFERROR(INDEX(db_Domande!$D:$D,MATCH($D524,db_Domande!$C:$C,0),1),\"\"))","v":"Ha piani di formazione/sensibilizzazione a riguardo?"},"R6_04_03","NON_APPLICABILE",null,null,0]
["D6_04_",6,"Information Technology","D6_04",{"$f":"IF($B525=\"\",\"\",IFERROR(INDEX(db_Domande!$D:$D,MATCH($D525,db_Domande!$C:$C,0),1),\"\"))","v":"Ha piani di formazione/sensibilizzazione a riguardo?"},"R6_04_04"]
["D6_04_",6,"Information Technology","D6_04",{"$f":"IF($B526=\"\",\"\",IFERROR(INDEX(db_Domande!$D:$D,MATCH($D526,db_Domande!$C:$C,0),1),\"\"))","v":"Ha piani di formazione/sensibilizzazione a riguardo?"},"R6_04_05"]
["D6_05_SI",6,"Information Technology","D6_05",{"$f":"IF($B527=\"\",\"\",IFERROR(INDEX(db_Domande!$D:$D,MATCH($D527,db_Domande!$C:$C,0),1),\"\"))","v":"L’azienda ha un piano per procurarsi e fornire in tempi rapidi i dispositivi informatici necessari a lavorare da remoto (pc, telefono con connsessione intenet, ecc.) almeno per il personale reputato essenziale?"},"R6_05_01","SI","SI  ;  NO  ;  NON_APPLICABILE",3,1]
["D6_05_NO",6,"Information Technology","D6_05",{"$f":"IF($B528=\"\",\"\",IFERROR(INDEX(db_Domande!$D:$D,MATCH($D528,db_Domande!$C:$C,0),1),\"\"))","v":"L’azienda ha un piano per procurarsi e fornire in tempi rapidi i dispositivi informatici necessari a lavorare da remoto (pc, telefono con connsessione intenet, ecc.) almeno per il personale reputato essenziale?"},"R6_05_02","NO",null,null,0]
["D6_05_NON_APPLICABILE",6,"Information Technology","D6_05",{"$f":"IF($B529=\"\",\"\",IFERROR(INDEX(db_Domande!$D:$D,MATCH($D529,db_Domande!$C:$C,0),1),\"\"))","v":"L’azienda ha un piano per procurarsi e fornire in tempi rapidi i dispositivi informatici necessari a lavorare da remoto (pc, telefono con connsessione intenet, ecc.) almeno per il personale reputato essenziale?"},"R6_05_03","NON_APPLICABILE",null,null,0]
["D6_05_",6,"Information Technology","D6_05",{"$f":"IF($B530=\"\",\"\",IFERROR(INDEX(db_Domande!$D:$D,MATCH($D530,db_Domande!$C:$C,0),1),\"\"))","v":"L’azienda ha un piano per procurarsi e fornire in tempi rapidi i dispositivi informatici necessari a lavorare da remoto (pc, telefono con connsessione intenet, ecc.) almeno per il personale reputato essenziale?"},"R6_05_04"]
["D6_05_",6,"Information Technology","D6_05",{"$f":"IF($B531=\"\",\"\",IFERROR(INDEX(db_Domande!$D:$D,MATCH($D531,db_Domande!$C:$C,0),1),\"\"))","v":"L’azienda ha un piano per procurarsi e fornire in tempi rapidi i dispositivi informatici necessari a lavorare da remoto (pc, telefono con connsessione intenet, ecc.) almeno per il personale reputato essenziale?"},"R6_05_05"]
["D6_06_SI",6,"Information Technology","D6_06",{"$f":"IF($B532=\"\",\"\",IFERROR(INDEX(db_Domande!$D:$D,MATCH($D532,db_Domande!$C:$C,0),1),\"\"))","v":"L'azienda ha un responsabile della sicurezza informatica distinto dal responsabile IT?"},"R6_06_01","SI","SI  ;  NO  ;  NON_APPLICABILE",3,1]
["D6_06_NO",6,"Information Technology","D6_06",{"$f":"IF($B533=\"\",\"\",IFERROR(INDEX(db_Domande!$D:$D,MATCH($D533,db_Domande!$C:$C,0),1),\"\"))","v":"L'azienda ha un responsabile della sicurezza informatica distinto dal responsabile IT?"},"R6_06_02","NO",null,null,0]
["D6_06_NON_APPLICABILE",6,"Information Technology","D6_06",{"$f":"IF($B534=\"\",\"\",IFERROR(INDEX(db_Domande!$D:$D,MATCH($D534,db_Domande!$C:$C,0),1),\"\"))","v":"L'azienda ha un responsabile della sicurezza informatica distinto dal responsabile IT?"},"R6_06_03","NON_APPLICABILE",null,null,0]
["D6_06_",6,"Information Technology","D6_06",{"$f":"IF($B535=\"\",\"\",IFERROR(INDEX(db_Domande!$D:$D,MATCH($D535,db_Domande!$C:$C,0),1),\"\"))","v":"L'azienda ha un responsabile della sicurezza informatica distinto dal responsabile IT?"},"R6_06_04"]
["D6_06_",6,"Information Technology","D6_06",{"$f":"IF($B536=\"\",\"\",IFERROR(INDEX(db_Domande!$D:$D,MATCH($D536,db_Domande!$C:$C,0),1),\"\"))","v":"L'azienda ha un responsabile della sicurezza informatica distinto dal responsabile IT?"},"R6_06_05"]
["D6_07_SI",6,"Information Technology","D6_07",{"$f":"IF($B537=\"\",\"\",IFERROR(INDEX(db_Domande!$D:$D,MATCH($D537,db_Domande!$C:$C,0),1),\"\"))","v":" L’azienda effettua assessment periodici di terze parti per la valutazione della bontà del proprio sistema di sicurezza?"},"R6_07_01","SI","SI  ;  NO  ;  NON_APPLICABILE",3,1]
["D6_07_NO",6,"Information Technology","D6_07",{"$f":"IF($B538=\"\",\"\",IFERROR(INDEX(db_Domande!$D:$D,MATCH($D538,db_Domande!$C:$C,0),1),\"\"))","v":" L’azienda effettua assessment periodici di terze parti per la valutazione della bontà del proprio sistema di sicurezza?"},"R6_07_02","NO",null,null,0]
["D6_07_NON_APPLICABILE",6,"Information Technology","D6_07",{"$f":"IF($B539=\"\",\"\",IFERROR(INDEX(db_Domande!$D:$D,MATCH($D539,db_Domande!$C:$C,0),1),\"\"))","v":" L’azienda effettua assessment periodici di terze parti per la valutazione della bontà del proprio sistema di sicurezza?"},"R6_07_03","NON_APPLICABILE",null,null,0]
["D6_07_",6,"Information Technology","D6_07",{"$f":"IF($B540=\"\",\"\",IFERROR(INDEX(db_Domande!$D:$D,MATCH($D540,db_Domande!$C:$C,0),1),\"\"))","v":" L’azienda effettua assessment periodici di terze parti per la valutazione della bontà del proprio sistema di sicurezza?"},"R6_07_04"]
["D6_07_",6,"Information Technology","D6_07",{"$f":"IF($B541=\"\",\"\",IFERROR(INDEX(db_Domande!$D:$D,MATCH($D541,db_Domande!$C:$C,0),1),\"\"))","v":" L’azienda effettua assessment periodici di terze parti per la valutazione della bontà del proprio sistema di sicurezza?"},"R6_07_05"]
["D6_08_SI",6,"Information Technology","D6_08",{"$f":"IF($B542=\"\",\"\",IFERROR(INDEX(db_Domande!$D:$D,MATCH($D542,db_Domande!$C:$C,0),1),\"\"))","v":"L’accesso da remoto dei dipendenti avviene con sistemi di autenticazione forte?"},"R6_08_01","SI","SI  ;  NO  ;  NON_APPLICABILE",3,1]
["D6_08_NO",6,"Information Technology","D6_08",{"$f":"IF($B543=\"\",\"\",IFERROR(INDEX(db_Domande!$D:$D,MATCH($D543,db_Domande!$C:$C,0),1),\"\"))","v":"L’accesso da remoto dei dipendenti avviene con sistemi di autenticazione forte?"},"R6_08_02","NO",null,null,0]
["D6_08_NON_APPLICABILE",6,"Information Technology","D6_08",{"$f":"IF($B544=\"\",\"\",IFERROR(INDEX(db_Domande!$D:$D,MATCH($D544,db_Domande!$C:$C,0),1),\"\"))","v":"L’accesso da remoto dei dipendenti avviene con sistemi di autenticazione forte?"},"R6_08_03","NON_APPLICABILE",null,null,0]
["D6_08_",6,"Information Technology","D6_08",{"$f":"IF($B545=\"\",\"\",IFERROR(INDEX(db_Domande!$D:$D,MATCH($D545,db_Domande!$C:$C,0),1),\"\"))","v":"L’accesso da remoto dei dipendenti avviene con sistemi di autenticazione forte?"},"R6_08_04"]
["D6_08_",6,"Information Technology","D6_08",{"$f":"IF($B546=\"\",\"\",IFERROR(INDEX(db_Domande!$D:$D,MATCH($D546,db_Domande!$C:$C,0),1),\"\"))","v":"L’accesso da remoto dei dipendenti avviene con sistemi di autenticazione forte?"},"R6_08_05"]
["D6_09_SI",6,"Information Technology","D6_09",{"$f":"IF($B547=\"\",\"\",IFERROR(INDEX(db_Domande!$D:$D,MATCH($D547,db_Domande!$C:$C,0),1),\"\"))","v":"I fornitori accedono alla rete aziendale da remoto?"},"R6_09_01","SI","SI  ;  NO  ;  NON_APPLICABILE",3,1]
["D6_09_NO",6,"Information Technology","D6_09",{"$f":"IF($B548=\"\",\"\",IFERROR(INDEX(db_Domande!$D:$D,MATCH($D548,db_Domande!$C:$C,0),1),\"\"))","v":"I fornitori accedono alla rete aziendale da remoto?"},"R6_09_02","NO",null,null,0]
["D6_09_NON_APPLICABILE",6,"Information Technology","D6_09",{"$f":"IF($B549=\"\",\"\",IFERROR(INDEX(db_Domande!$D:$D,MATCH($D549,db_Domande!$C:$C,0),1),\"\"))","v":"I fornitori accedono alla rete aziendale da remoto?"},"R6_09_03","NON_APPLICABILE",null,null,0]
["D6_09_",6,"Information Technology","D6_09",{"$f":"IF($B550=\"\",\"\",IFERROR(INDEX(db_Domande!$D:$D,MATCH($D550,db_Domande!$C:$C,0),1),\"\"))","v":"I fornitori accedono alla rete aziendale da remoto?"},"R6_09_04"]
["D6_09_",6,"Information Technology","D6_09",{"$f":"IF($B551=\"\",\"\",IFERROR(INDEX(db_Domande!$D:$D,MATCH($D551,db_Domande!$C:$C,0),1),\"\"))","v":"I fornitori accedono alla rete aziendale da remoto?"},"R6_09_05"]
["D6_10_SI",6,"Information Technology","D6_10",{"$f":"IF($B552=\"\",\"\",IFERROR(INDEX(db_Domande!$D:$D,MATCH($D552,db_Domande!$C:$C,0),1),\"\"))","v":"Sono presenti procedure formalizzate di backup dei sistemi?"},"R6_10_01","SI","SI  ;  NO  ;  NON_APPLICABILE",3,1]
["D6_10_NO",6,"Information Technology","D6_10",{"$f":"IF($B553=\"\",\"\",IFERROR(INDEX(db_Domande!$D:$D,MATCH($D553,db_Domande!$C:$C,0),1),\"\"))","v":"Sono presenti procedure formalizzate di backup dei sistemi?"},"R6_10_02","NO",null,null,0]
["D6_10_NON_APPLICABILE",6,"Information Technology","D6_10",{"$f":"IF($B554=\"\",\"\",IFERROR(INDEX(db_Domande!$D:$D,MATCH($D554,db_Domande!$C:$C,0),1),\"\"))","v":"Sono presenti procedure formalizzate di backup dei sistemi?"},"R6_10_03","NON_APPLICABILE",null,null,0]
["D6_10_",6,"Information Technology","D6_10",{"$f":"IF($B555=\"\",\"\",IFERROR(INDEX(db_Domande!$D:$D,MATCH($D555,db_Domande!$C:$C,0),1),\"\"))","v":"Sono presenti procedure formalizzate di backup dei sistemi?"},"R6_10_04"]
["D6_10_",6,"Information Technology","D6_10",{"$f":"IF($B556=\"\",\"\",IFERROR(INDEX(db_Domande!$D:$D,MATCH($D556,db_Domande!$C:$C,0),1),\"\"))","v":"Sono presenti procedure formalizzate di backup dei sistemi?"},"R6_10_05"]
["D6_11_SI",6,"Information Technology","D6_11",{"$f":"IF($B557=\"\",\"\",IFERROR(INDEX(db_Domande!$D:$D,MATCH($D557,db_Domande!$C:$C,0),1),\"\"))","v":"L’azienda ha un meccanismo di verifica periodica della sicurezza dei propri fornitori IT presso cui sono mantenute informazioni dell’azienda?"},"R6_11_01","SI","SI  ;  NO  ;  NON_APPLICABILE",3,1]
["D6_11_NO",6,"Information Technology","D6_11",{"$f":"IF($B558=\"\",\"\",IFERROR(INDEX(db_Domande!$D:$D,MATCH($D558,db_Domande!$C:$C,0),1),\"\"))","v":"L’azienda ha un meccanismo di verifica periodica della sicurezza dei propri fornitori IT presso cui sono mantenute informazioni dell’azienda?"},"R6_11_02","NO",null,null,0]
["D6_11_NON_APPLICABILE",6,"Information Technology","D6_11",{"$f":"IF($B559=\"\",\"\",IFERROR(INDEX(db_Domande!$D:$D,MATCH($D559,db_Domande!$C:$C,0),1),\"\"))","v":"L’azienda ha un meccanismo di verifica periodica della sicurezza dei propri fornitori IT presso cui sono mantenute informazioni dell’azienda?"},"R6_11_03","NON_APPLICABILE",null,null,0]
["D6_11_",6,"Information Technology","D6_11",{"$f":"IF($B560=\"\",\"\",IFERROR(INDEX(db_Domande!$D:$D,MATCH($D560,db_Domande!$C:$C,0),1),\"\"))","v":"L’azienda ha un meccanismo di verifica periodica della sicurezza dei propri fornitori IT presso cui sono mantenute informazioni dell’azienda?"},"R6_11_04"]
["D6_11_",6,"Information Technology","D6_11",{"$f":"IF($B561=\"\",\"\",IFERROR(INDEX(db_Domande!$D:$D,MATCH($D561,db_Domande!$C:$C,0),1),\"\"))","v":"L’azienda ha un meccanismo di verifica periodica della sicurezza dei propri fornitori IT presso cui sono mantenute informazioni dell’azienda?"},"R6_11_05"]
["D6_12_SI",6,"Information Technology","D6_12",{"$f":"IF($B562=\"\",\"\",IFERROR(INDEX(db_Domande!$D:$D,MATCH($D562,db_Domande!$C:$C,0),1),\"\"))","v":"L'azienda gestisce in modo strutturato e formalizzato l’on boarding e l’off boarding dei dipendenti e collaboratori?"},"R6_12_01","SI","SI  ;  NO  ;  NON_APPLICABILE",3,1]
["D6_12_NO",6,"Information Technology","D6_12",{"$f":"IF($B563=\"\",\"\",IFERROR(INDEX(db_Domande!$D:$D,MATCH($D563,db_Domande!$C:$C,0),1),\"\"))","v":"L'azienda gestisce in modo strutturato e formalizzato l’on boarding e l’off boarding dei dipendenti e collaboratori?"},"R6_12_02","NO",null,null,0]
["D6_12_NON_APPLICABILE",6,"Information Technology","D6_12",{"$f":"IF($B564=\"\",\"\",IFERROR(INDEX(db_Domande!$D:$D,MATCH($D564,db_Domande!$C:$C,0),1),\"\"))","v":"L'azienda gestisce in modo strutturato e formalizzato l’on boarding e l’off boarding dei dipendenti e collaboratori?"},"R6_12_03","NON_APPLICABILE",null,null,0]
["D6_12_",6,"Information Technology","D6_12",{"$f":"IF($B565=\"\",\"\",IFERROR(INDEX(db_Domande!$D:$D,MATCH($D565,db_Domande!$C:$C,0),1),\"\"))","v":"L'azienda gestisce in modo strutturato e formalizzato l’on boarding e l’off boarding dei dipendenti e collaboratori?"},"R6_12_04"]
["D6_12_",6,"Information Technology","D6_12",{"$f":"IF($B566=\"\",\"\",IFERROR(INDEX(db_Domande!$D:$D,MATCH($D566,db_Domande!$C:$C,0),1),\"\"))","v":"L'azienda gestisce in modo strutturato e formalizzato l’on boarding e l’off boarding dei dipendenti e collaboratori?"},"R6_12_05"]
["D6_13_SI",6,"Information Technology","D6_13",{"$f":"IF($B567=\"\",\"\",IFERROR(INDEX(db_Domande!$D:$D,MATCH($D567,db_Domande!$C:$C,0),1),\"\"))","v":"L’azienda ha un piano di gestione degli incidenti?"},"R6_13_01","SI","SI  ;  NO  ;  NON_APPLICABILE",3,1]
["D6_13_NO",6,"Information Technology","D6_13",{"$f":"IF($B568=\"\",\"\",IFERROR(INDEX(db_Domande!$D:$D,MATCH($D568,db_Domande!$C:$C,0),1),\"\"))","v":"L’azienda ha un piano di gestione degli incidenti?"},"R6_13_02","NO",null,null,0]
["D6_13_NON_APPLICABILE",6,"Information Technology","D6_13",{"$f":"IF($B569=\"\",\"\",IFERROR(INDEX(db_Domande!$D:$D,MATCH($D569,db_Domande!$C:$C,0),1),\"\"))","v":"L’azienda ha un piano di gestione degli incidenti?"},"R6_13_03","NON_APPLICABILE",null,null,0]
["D6_13_",6,"Information Technology","D6_13",{"$f":"IF($B570=\"\",\"\",IFERROR(INDEX(db_Domande!$D:$D,MATCH($D570,db_Domande!$C:$C,0),1),\"\"))","v":"L’azienda ha un piano di gestione degli incidenti?"},"R6_13_04"]
["D6_13_",6,"Information Technology","D6_13",{"$f":"IF($B571=\"\",\"\",IFERROR(INDEX(db_Domande!$D:$D,MATCH($D571,db_Domande!$C:$C,0),1),\"\"))","v":"L’azienda ha un piano di gestione degli incidenti?"},"R6_13_05"]
["D6_14_SI",6,"Information Technology","D6_14",{"$f":"IF($B572=\"\",\"\",IFERROR(INDEX(db_Domande!$D:$D,MATCH($D572,db_Domande!$C:$C,0),1),\"\"))","v":"Si è mai trovata a gestire un incidente?"},"R6_14_01","SI","SI  ;  NO  ;  NON_APPLICABILE",3,1]
["D6_14_NO",6,"Information Technology","D6_14",{"$f":"IF($B573=\"\",\"\",IFERROR(INDEX(db_Domande!$D:$D,MATCH($D573,db_Domande!$C:$C,0),1),\"\"))","v":"Si è mai trovata a gestire un incidente?"},"R6_14_02","NO",null,null,0]
["D6_14_NON_APPLICABILE",6,"Information Technology","D6_14",{"$f":"IF($B574=\"\",\"\",IFERROR(INDEX(db_Domande!$D:$D,MATCH($D574,db_Domande!$C:$C,0),1),\"\"))","v":"Si è mai trovata a gestire un incidente?"},"R6_14_03","NON_APPLICABILE",null,null,0]
["D6_14_",6,"Information Technology","D6_14",{"$f":"IF($B575=\"\",\"\",IFERROR(INDEX(db_Domande!$D:$D,MATCH($D575,db_Domande!$C:$C,0),1),\"\"))","v":"Si è mai trovata a gestire un incidente?"},"R6_14_04"]
["D6_14_",6,"Information Technology","D6_14",{"$f":"IF($B576=\"\",\"\",IFERROR(INDEX(db_Domande!$D:$D,MATCH($D576,db_Domande!$C:$C,0),1),\"\"))","v":"Si è mai trovata a gestire un incidente?"},"R6_14_05"]
["D6_15_SI",6,"Information Technology","D6_15",{"$f":"IF($B577=\"\",\"\",IFERROR(INDEX(db_Domande!$D:$D,MATCH($D577,db_Domande!$C:$C,0),1),\"\"))","v":"La distribuzione e l’aggiornamento dell’antivirus è centralizzato?"},"R6_15_01","SI","SI  ;  NO  ;  NON_APPLICABILE",3,1]
["D6_15_NO",6,"Information Technology","D6_15",{"$f":"IF($B578=\"\",\"\",IFERROR(INDEX(db_Domande!$D:$D,MATCH($D578,db_Domande!$C:$C,0),1),\"\"))","v":"La distribuzione e l’aggiornamento dell’antivirus è centralizzato?"},{"$f":"IF($B578=\"\",\"\",\"R\"&RIGHT($D578,4)&\"_\"&TEXT(ROW()-MATCH($D578,$D:$D,0)+1,\"00\"))","v":"R6_15_02"},"NO",null,null,0]
[{"$f":"IF($B579=\"\",\"\",$D579&\"_\"&$G579)","v":"D6_15_NON_APPLICABILE"},6,"Information Technology","D6_15",{"$f":"IF($B579=\"\",\"\",IFERROR(INDEX(db_Domande!$D:$D,MATCH($D579,db_Domande!$C:$C,0),1),\"\"))","v":"La distribuzione e l’aggiornamento dell’antivirus è centralizzato?"},"R6_15_03","NON_APPLICABILE",null,null,0]
["D6_15_",6,"Information Technology","D6_15",{"$f":"IF($B580=\"\",\"\",IFERROR(INDEX(db_Domande!$D:$D,MATCH($D580,db_Domande!$C:$C,0),1),\"\"))","v":"La distribuzione e l’aggiornamento dell’antivirus è centralizzato?"},"R6_15_04"]
["D6_15_",6,"Information Technology","D6_15",{"$f":"IF($B581=\"\",\"\",IFERROR(INDEX(db_Domande!$D:$D,MATCH($D581,db_Domande!$C:$C,0),1),\"\"))","v":"La distribuzione e l’aggiornamento dell’antivirus è centralizzato?"},"R6_15_05"]
["D6_16_",6,"Information Technology","D6_16",{"$f":"IF($B582=\"\",\"\",IFERROR(INDEX(db_Domande!$D:$D,MATCH($D582,db_Domande!$C:$C,0),1),\"\"))","v":""},"R6_16_01",null,null,null,1]
["D6_16_",6,"Information Technology","D6_16",{"$f":"IF($B583=\"\",\"\",IFERROR(INDEX(db_Domande!$D:$D,MATCH($D583,db_Domande!$C:$C,0),1),\"\"))","v":""},"R6_16_02",null,null,null,0]
["D6_16_",6,"Information Technology","D6_16",{"$f":"IF($B584=\"\",\"\",IFERROR(INDEX(db_Domande!$D:$D,MATCH($D584,db_Domande!$C:$C,0),1),\"\"))","v":""},"R6_16_03"]
["D6_16_",6,"Information Technology","D6_16",{"$f":"IF($B585=\"\",\"\",IFERROR(INDEX(db_Domande!$D:$D,MATCH($D585,db_Domande!$C:$C,0),1),\"\"))","v":""},"R6_16_04"]
["D6_16_",6,"Information Technology","D6_16",{"$f":"IF($B586=\"\",\"\",IFERROR(INDEX(db_Domande!$D:$D,MATCH($D586,db_Domande!$C:$C,0),1),\"\"))","v":""},"R6_16_05"]
["D6_17_",6,"Information Technology","D6_17",{"$f":"IF($B587=\"\",\"\",IFERROR(INDEX(db_Domande!$D:$D,MATCH($D587,db_Domande!$C:$C,0),1),\"\"))","v":""},"R6_17_01",null,null,null,1]
["D6_17_",6,"Information Technology","D6_17",{"$f":"IF($B588=\"\",\"\",IFERROR(INDEX(db_Domande!$D:$D,MATCH($D588,db_Domande!$C:$C,0),1),\"\"))","v":""},"R6_17_02",null,null,null,0]
["D6_17_",6,"Information Technology","D6_17",{"$f":"IF($B589=\"\",\"\",IFERROR(INDEX(db_Domande!$D:$D,MATCH($D589,db_Domande!$C:$C,0),1),\"\"))","v":""},"R6_17_03"]
["D6_17_",6,"Information Technology","D6_17",{"$f":"IF($B590=\"\",\"\",IFERROR(INDEX(db_Domande!$D:$D,MATCH($D590,db_Domande!$C:$C,0),1),\"\"))","v":""},"R6_17_04"]
["D6_17_",6,"Information Technology","D6_17",{"$f":"IF($B591=\"\",\"\",IFERROR(INDEX(db_Domande!$D:$D,MATCH($D591,db_Domande!$C:$C,0),1),\"\"))","v":""},"R6_17_05"]
["D6_18_",6,"Information Technology","D6_18",{"$f":"IF($B592=\"\",\"\",IFERROR(INDEX(db_Domande!$D:$D,MATCH($D592,db_Domande!$C:$C,0),1),\"\"))","v":""},"R6_18_01",null,null,null,1]
["D6_18_",6,"Information Technology","D6_18",{"$f":"IF($B593=\"\",\"\",IFERROR(INDEX(db_Domande!$D:$D,MATCH($D593,db_Domande!$C:$C,0),1),\"\"))","v":""},"R6_18_02",null,null,null,0]
["D6_18_",6,"Information Technology","D6_18",{"$f":"IF($B594=\"\",\"\",IFERROR(INDEX(db_Domande!$D:$D,MATCH($D594,db_Domande!$C:$C,0),1),\"\"))","v":""},"R6_18_03"]
["D6_18_",6,"Information Technology","D6_18",{"$f":"IF($B595=\"\",\"\",IFERROR(INDEX(db_Domande!$D:$D,MATCH($D595,db_Domande!$C:$C,0),1),\"\"))","v":""},"R6_18_04"]
["D6_18_",6,"Information Technology","D6_18",{"$f":"IF($B596=\"\",\"\",IFERROR(INDEX(db_Domande!$D:$D,MATCH($D596,db_Domande!$C:$C,0),1),\"\"))","v":""},"R6_18_05"]
["D6_19_",6,"Information Technology","D6_19",{"$f":"IF($B597=\"\",\"\",IFERROR(INDEX(db_Domande!$D:$D,MATCH($D597,db_Domande!$C:$C,0),1),\"\"))","v":""},"R6_19_01",null,null,null,1]
["D6_19_",6,"Information Technology","D6_19",{"$f":"IF($B598=\"\",\"\",IFERROR(INDEX(db_Domande!$D:$D,MATCH($D598,db_Domande!$C:$C,0),1),\"\"))","v":""},"R6_19_02",null,null,null,0]
["D6_19_",6,"Information Technology","D6_19",{"$f":"IF($B599=\"\",\"\",IFERROR(INDEX(db_Domande!$D:$D,MATCH($D599,db_Domande!$C:$C,0),1),\"\"))","v":""},"R6_19_03"]
["D6_19_",6,"Information Technology","D6_19",{"$f":"IF($B600=\"\",\"\",IFERROR(INDEX(db_Domande!$D:$D,MATCH($D600,db_Domande!$C:$C,0),1),\"\"))","v":""},"R6_19_04"]
["D6_19_",6,"Information Technology","D6_19",{"$f":"IF($B601=\"\",\"\",IFERROR(INDEX(db_Domande!$D:$D,MATCH($D601,db_Domande!$C:$C,0),1),\"\"))","v":""},"R6_19_05"]
["D6_20_",6,"Information Technology","D6_20",{"$f":"IF($B602=\"\",\"\",IFERROR(INDEX(db_Domande!$D:$D,MATCH($D602,db_Domande!$C:$C,0),1),\"\"))","v":""},"R6_20_01",null,null,null,1]
["D6_20_",6,"Information Technology","D6_20",{"$f":"IF($B603=\"\",\"\",IFERROR(INDEX(db_Domande!$D:$D,MATCH($D603,db_Domande!$C:$C,0),1),\"\"))","v":""},"R6_20_02",null,null,null,0]
["D6_20_",6,"Information Technology","D6_20",{"$f":"IF($B604=\"\",\"\",IFERROR(INDEX(db_Domande!$D:$D,MATCH($D604,db_Domande!$C:$C,0),1),\"\"))","v":""},"R6_20_03"]
["D6_20_",6,"Information Technology","D6_20",{"$f":"IF($B605=\"\",\"\",IFERROR(INDEX(db_Domande!$D:$D,MATCH($D605,db_Domande!$C:$C,0),1),\"\"))","v":""},"R6_20_04"]
["D6_20_",6,"Information Technology","D6_20",{"$f":"IF($B606=\"\",\"\",IFERROR(INDEX(db_Domande!$D:$D,MATCH($D606,db_Domande!$C:$C,0),1),\"\"))","v":""},"R6_20_05"]
["",null,null,null,{"$f":"IF($B607=\"\",\"\",IFERROR(INDEX(db_Domande!$D:$D,MATCH($D607,db_Domande!$C:$C,0),1),\"\"))","v":""},""]
["D7_01_SI",7,"Cash & Liquidity","D7_01",{"$f":"IF($B608=\"\",\"\",IFERROR(INDEX(db_Domande!$D:$D,MATCH($D608,db_Domande!$C:$C,0),1),\"\"))","v":"La finanza aziendale rappresenta un area critica per l’azienda anche prima del Coronavirus?"},"R7_01_01","SI","SI  ;  NO  ;  NON_APPLICABILE",3,0]
["D7_01_NO",7,"Cash & Liquidity","D7_01",{"$f":"IF($B609=\"\",\"\",IFERROR(INDEX(db_Domande!$D:$D,MATCH($D609,db_Domande!$C:$C,0),1),\"\"))","v":"La finanza aziendale rappresenta un area critica per l’azienda anche prima del Coronavirus?"},"R7_01_02","NO",null,null,1]
["D7_01_NON_APPLICABILE",7,"Cash & Liquidity","D7_01",{"$f":"IF($B610=\"\",\"\",IFERROR(INDEX(db_Domande!$D:$D,MATCH($D610,db_Domande!$C:$C,0),1),\"\"))","v":"La finanza aziendale rappresenta un area critica per l’azienda anche prima del Coronavirus?"},"R7_01_03","NON_APPLICABILE",null,null,0]
["D7_01_",7,"Cash & Liquidity","D7_01",{"$f":"IF($B611=\"\",\"\",IFERROR(INDEX(db_Domande!$D:$D,MATCH($D611,db_Domande!$C:$C,0),1),\"\"))","v":"La finanza aziendale rappresenta un area critica per l’azienda anche prima del Coronavirus?"},"R7_01_04"]
["D7_01_",7,"Cash & Liquidity","D7_01",{"$f":"IF($B612=\"\",\"\",IFERROR(INDEX(db_Domande!$D:$D,MATCH($D612,db_Domande!$C:$C,0),1),\"\"))","v":"La finanza aziendale rappresenta un area critica per l’azienda anche prima del Coronavirus?"},"R7_01_05"]
["D7_02_0 - 30 %",7,"Cash & Liquidity","D7_02",{"$f":"IF($B613=\"\",\"\",IFERROR(INDEX(db_Domande!$D:$D,MATCH($D613,db_Domande!$C:$C,0),1),\"\"))","v":"A quanto ammonta l'incidenza dei debiti bancari a M/L periodo sul fatturato al 31/12/2019?  (risposta  a sezioni multiple)"},"R7_02_01","0 - 30 %","0 - 30 %  ;  31 -70 %  ;  71 - 100 %  ;  NON_APPLICABILE",4,2]
["D7_02_31 -70 %",7,"Cash & Liquidity","D7_02",{"$f":"IF($B614=\"\",\"\",IFERROR(INDEX(db_Domande!$D:$D,MATCH($D614,db_Domande!$C:$C,0),1),\"\"))","v":"A quanto ammonta l'incidenza dei debiti bancari a M/L periodo sul fatturato al 31/12/2019?  (risposta  a sezioni multiple)"},"R7_02_02","31 -70 %",null,null,1]
["D7_02_71 - 100 %",7,"Cash & Liquidity","D7_02",{"$f":"IF($B615=\"\",\"\",IFERROR(INDEX(db_Domande!$D:$D,MATCH($D615,db_Domande!$C:$C,0),1),\"\"))","v":"A quanto ammonta l'incidenza dei debiti bancari a M/L periodo sul fatturato al 31/12/2019?  (risposta  a sezioni multiple)"},"R7_02_03","71 - 100 %",null,null,0]
["D7_02_NON_APPLICABILE",7,"Cash & Liquidity","D7_02",{"$f":"IF($B616=\"\",\"\",IFERROR(INDEX(db_Domande!$D:$D,MATCH($D616,db_Domande!$C:$C,0),1),\"\"))","v":"A quanto ammonta l'incidenza dei debiti bancari a M/L periodo sul fatturato al 31/12/2019?  (risposta  a sezioni multiple)"},"R7_02_04","NON_APPLICABILE",null,null,0]
["D7_02_",7,"Cash & Liquidity","D7_02",{"$f":"IF($B617=\"\",\"\",IFERROR(INDEX(db_Domande!$D:$D,MATCH($D617,db_Domande!$C:$C,0),1),\"\"))","v":"A quanto ammonta l'incidenza dei debiti bancari a M/L periodo sul fatturato al 31/12/2019?  (risposta  a sezioni multiple)"},"R7_02_05"]
["D7_03_0 - 30 %",7,"Cash & Liquidity","D7_03",{"$f":"IF($B618=\"\",\"\",IFERROR(INDEX(db_Domande!$D:$D,MATCH($D618,db_Domande!$C:$C,0),1),\"\"))","v":"A quanto ammonta l'incidenza dei debiti bancari complessivi sul fatturato al 31/12/2019?  (risposta a sezioni  multiple)"},"R7_03_01","0 - 30 %","0 - 30 %  ;  31 -70 %  ;  71 - 100 %  ;  NON_APPLICABILE",4,2]
["D7_03_31 -70 %",7,"Cash & Liquidity","D7_03",{"$f":"IF($B619=\"\",\"\",IFERROR(INDEX(db_Domande!$D:$D,MATCH($D619,db_Domande!$C:$C,0),1),\"\"))","v":"A quanto ammonta l'incidenza dei debiti bancari complessivi sul fatturato al 31/12/2019?  (risposta a sezioni  multiple)"},"R7_03_02","31 -70 %",null,null,1]
["D7_03_71 - 100 %",7,"Cash & Liquidity","D7_03",{"$f":"IF($B620=\"\",\"\",IFERROR(INDEX(db_Domande!$D:$D,MATCH($D620,db_Domande!$C:$C,0),1),\"\"))","v":"A quanto ammonta l'incidenza dei debiti bancari complessivi sul fatturato al 31/12/2019?  (risposta a sezioni  multiple)"},"R7_03_03","71 - 100 %",null,null,0]
["D7_03_NON_APPLICABILE",7,"Cash & Liquidity","D7_03",{"$f":"IF($B621=\"\",\"\",IFERROR(INDEX(db_Domande!$D:$D,MATCH($D621,db_Domande!$C:$C,0),1),\"\"))","v":"A quanto ammonta l'incidenza dei debiti bancari complessivi sul fatturato al 31/12/2019?  (risposta a sezioni  multiple)"},"R7_03_04","NON_APPLICABILE",null,null,0]
["D7_03_",7,"Cash & Liquidity","D7_03",{"$f":"IF($B622=\"\",\"\",IFERROR(INDEX(db_Domande!$D:$D,MATCH($D622,db_Domande!$C:$C,0),1),\"\"))","v":"A quanto ammonta l'incidenza dei debiti bancari complessivi sul fatturato al 31/12/2019?  (risposta a sezioni  multiple)"},"R7_03_05"]
["D7_04_SI",7,"Cash & Liquidity","D7_04",{"$f":"IF($B623=\"\",\"\",IFERROR(INDEX(db_Domande!$D:$D,MATCH($D623,db_Domande!$C:$C,0),1),\"\"))","v":"L'azienda ha richiesto l'attivazione delle misure di sostegno previste dal Decreto Cura Italia (in termini di moratorie e conferma degli affidamenti ) ?"},"R7_04_01","SI","SI  ;  NO  ;  NON_APPLICABILE",3,0]
["D7_04_NO",7,"Cash & Liquidity","D7_04",{"$f":"IF($B624=\"\",\"\",IFERROR(INDEX(db_Domande!$D:$D,MATCH($D624,db_Domande!$C:$C,0),1),\"\"))","v":"L'azienda ha richiesto l'attivazione delle misure di sostegno previste dal Decreto Cura Italia (in termini di moratorie e conferma degli affidamenti ) ?"},"R7_04_02","NO",null,null,1]
["D7_04_NON_APPLICABILE",7,"Cash & Liquidity","D7_04",{"$f":"IF($B625=\"\",\"\",IFERROR(INDEX(db_Domande!$D:$D,MATCH($D625,db_Domande!$C:$C,0),1),\"\"))","v":"L'azienda ha richiesto l'attivazione delle misure di sostegno previste dal Decreto Cura Italia (in termini di moratorie e conferma degli affidamenti ) ?"},"R7_04_03","NON_APPLICABILE",null,null,0]
["D7_04_",7,"Cash & Liquidity","D7_04",{"$f":"IF($B626=\"\",\"\",IFERROR(INDEX(db_Domande!$D:$D,MATCH($D626,db_Domande!$C:$C,0),1),\"\"))","v":"L'azienda ha richiesto l'attivazione delle misure di sostegno previste dal Decreto Cura Italia (in termini di moratorie e conferma degli affidamenti ) ?"},"R7_04_04"]
["D7_04_",7,"Cash & Liquidity","D7_04",{"$f":"IF($B627=\"\",\"\",IFERROR(INDEX(db_Domande!$D:$D,MATCH($D627,db_Domande!$C:$C,0),1),\"\"))","v":"L'azienda ha richiesto l'attivazione delle misure di sostegno previste dal Decreto Cura Italia (in termini di moratorie e conferma degli affidamenti ) ?"},"R7_04_05"]
["D7_05_0 - 30 %",7,"Cash & Liquidity","D7_05",{"$f":"IF($B628=\"\",\"\",IFERROR(INDEX(db_Domande!$D:$D,MATCH($D628,db_Domande!$C:$C,0),1),\"\"))","v":"Quanto prevedete possa impattare l'emergenza in corso in termini di incremento della percentuale di insoluto dei clienti rispetto agli standard ?  (risposta a sezioni  multiple)"},"R7_05_01","0 - 30 %","0 - 30 %  ;  31 -70 %  ;  71 - 100 %  ;  NON_APPLICABILE",4,2]
["D7_05_31 -70 %",7,"Cash & Liquidity","D7_05",{"$f":"IF($B629=\"\",\"\",IFERROR(INDEX(db_Domande!$D:$D,MATCH($D629,db_Domande!$C:$C,0),1),\"\"))","v":"Quanto prevedete possa impattare l'emergenza in corso in termini di incremento della percentuale di insoluto dei clienti rispetto agli standard ?  (risposta a sezioni  multiple)"},"R7_05_02","31 -70 %",null,null,1]
["D7_05_71 - 100 %",7,"Cash & Liquidity","D7_05",{"$f":"IF($B630=\"\",\"\",IFERROR(INDEX(db_Domande!$D:$D,MATCH($D630,db_Domande!$C:$C,0),1),\"\"))","v":"Quanto prevedete possa impattare l'emergenza in corso in termini di incremento della percentuale di insoluto dei clienti rispetto agli standard ?  (risposta a sezioni  multiple)"},"R7_05_03","71 - 100 %",null,null,0]
["D7_05_NON_APPLICABILE",7,"Cash & Liquidity","D7_05",{"$f":"IF($B631=\"\",\"\",IFERROR(INDEX(db_Domande!$D:$D,MATCH($D631,db_Domande!$C:$C,0),1),\"\"))","v":"Quanto prevedete possa impattare l'emergenza in corso in termini di incremento della percentuale di insoluto dei clienti rispetto agli standard ?  (risposta a sezioni  multiple)"},"R7_05_04","NON_APPLICABILE",null,null,0]
["D7_05_",7,"Cash & Liquidity","D7_05",{"$f":"IF($B632=\"\",\"\",IFERROR(INDEX(db_Domande!$D:$D,MATCH($D632,db_Domande!$C:$C,0),1),\"\"))","v":"Quanto prevedete possa impattare l'emergenza in corso in termini di incremento della percentuale di insoluto dei clienti rispetto agli standard ?  (risposta a sezioni  multiple)"},"R7_05_05"]
["D7_06_SI",7,"Cash & Liquidity","D7_06",{"$f":"IF($B633=\"\",\"\",IFERROR(INDEX(db_Domande!$D:$D,MATCH($D633,db_Domande!$C:$C,0),1),\"\"))","v":"L'azienda ritiene di aver la necessità di richiedere nuovi finanziamenti per sopperire nel 2020 a crisi di liquidità ?"},"R7_06_01","SI","SI  ;  NO  ;  NON_APPLICABILE",3,0]
["D7_06_NO",7,"Cash & Liquidity","D7_06",{"$f":"IF($B634=\"\",\"\",IFERROR(INDEX(db_Domande!$D:$D,MATCH($D634,db_Domande!$C:$C,0),1),\"\"))","v":"L'azienda ritiene di aver la necessità di richiedere nuovi finanziamenti per sopperire nel 2020 a crisi di liquidità ?"},"R7_06_02","NO",null,null,1]
["D7_06_NON_APPLICABILE",7,"Cash & Liquidity","D7_06",{"$f":"IF($B635=\"\",\"\",IFERROR(INDEX(db_Domande!$D:$D,MATCH($D635,db_Domande!$C:$C,0),1),\"\"))","v":"L'azienda ritiene di aver la necessità di richiedere nuovi finanziamenti per sopperire nel 2020 a crisi di liquidità ?"},"R7_06_03","NON_APPLICABILE",null,null,0]
["D7_06_",7,"Cash & Liquidity","D7_06",{"$f":"IF($B636=\"\",\"\",IFERROR(INDEX(db_Domande!$D:$D,MATCH($D636,db_Domande!$C:$C,0),1),\"\"))","v":"L'azienda ritiene di aver la necessità di richiedere nuovi finanziamenti per sopperire nel 2020 a crisi di liquidità ?"},"R7_06_04"]
["D7_06_",7,"Cash & Liquidity","D7_06",{"$f":"IF($B637=\"\",\"\",IFERROR(INDEX(db_Domande!$D:$D,MATCH($D637,db_Domande!$C:$C,0),1),\"\"))","v":"L'azienda ritiene di aver la necessità di richiedere nuovi finanziamenti per sopperire nel 2020 a crisi di liquidità ?"},"R7_06_05"]
["D7_07_SI",7,"Cash & Liquidity","D7_07",{"$f":"IF($B638=\"\",\"\",IFERROR(INDEX(db_Domande!$D:$D,MATCH($D638,db_Domande!$C:$C,0),1),\"\"))","v":"L'azienda ha segnalazioni in centrale rischi per posizioni in sofferenza/posizioni scadute ?  "},"R7_07_01","SI","SI  ;  NO  ;  NON_APPLICABILE",3,0]
["D7_07_NO",7,"Cash & Liquidity","D7_07",{"$f":"IF($B639=\"\",\"\",IFERROR(INDEX(db_Domande!$D:$D,MATCH($D639,db_Domande!$C:$C,0),1),\"\"))","v":"L'azienda ha segnalazioni in centrale rischi per posizioni in sofferenza/posizioni scadute ?  "},"R7_07_02","NO",null,null,1]
["D7_07_NON_APPLICABILE",7,"Cash & Liquidity","D7_07",{"$f":"IF($B640=\"\",\"\",IFERROR(INDEX(db_Domande!$D:$D,MATCH($D640,db_Domande!$C:$C,0),1),\"\"))","v":"L'azienda ha segnalazioni in centrale rischi per posizioni in sofferenza/posizioni scadute ?  "},"R7_07_03","NON_APPLICABILE",null,null,0]
["D7_07_",7,"Cash & Liquidity","D7_07",{"$f":"IF($B641=\"\",\"\",IFERROR(INDEX(db_Domande!$D:$D,MATCH($D641,db_Domande!$C:$C,0),1),\"\"))","v":"L'azienda ha segnalazioni in centrale rischi per posizioni in sofferenza/posizioni scadute ?  "},"R7_07_04"]
["D7_07_",7,"Cash & Liquidity","D7_07",{"$f":"IF($B642=\"\",\"\",IFERROR(INDEX(db_Domande!$D:$D,MATCH($D642,db_Domande!$C:$C,0),1),\"\"))","v":"L'azienda ha segnalazioni in centrale rischi per posizioni in sofferenza/posizioni scadute ?  "},{"$f":"IF($B642=\"\",\"\",\"R\"&RIGHT($D642,4)&\"_\"&TEXT(ROW()-MATCH($D642,$D:$D,0)+1,\"00\"))","v":"R7_07_05"}]
[{"$f":"IF($B643=\"\",\"\",$D643&\"_\"&$G643)","v":"D7_08_SI"},7,"Cash & Liquidity","D7_08",{"$f":"IF($B643=\"\",\"\",IFERROR(INDEX(db_Domande!$D:$D,MATCH($D643,db_Domande!$C:$C,0),1),\"\"))","v":"L'azienda ha un plafond residuo presso Medio Credito Centrale? "},"R7_08_01","SI","SI  ;  NO  ;  NON_APPLICABILE",3,1]
["D7_08_NO",7,"Cash & Liquidity","D7_08",{"$f":"IF($B644=\"\",\"\",IFERROR(INDEX(db_Domande!$D:$D,MATCH($D644,db_Domande!$C:$C,0),1),\"\"))","v":"L'azienda ha un plafond residuo presso Medio Credito Centrale? "},"R7_08_02","NO",null,null,0]
["D7_08_NON_APPLICABILE",7,"Cash & Liquidity","D7_08",{"$f":"IF($B645=\"\",\"\",IFERROR(INDEX(db_Domande!$D:$D,MATCH($D645,db_Domande!$C:$C,0),1),\"\"))","v":"L'azienda ha un plafond residuo presso Medio Credito Centrale? "},"R7_08_03","NON_APPLICABILE",null,null,0]
["D7_08_",7,"Cash & Liquidity","D7_08",{"$f":"IF($B646=\"\",\"\",IFERROR(INDEX(db_Domande!$D:$D,MATCH($D646,db_Domande!$C:$C,0),1),\"\"))","v":"L'azienda ha un plafond residuo presso Medio Credito Centrale? "},"R7_08_04"]
["D7_08_",7,"Cash & Liquidity","D7_08",{"$f":"IF($B647=\"\",\"\",IFERROR(INDEX(db_Domande!$D:$D,MATCH($D647,db_Domande!$C:$C,0),1),\"\"))","v":"L'azienda ha un plafond residuo presso Medio Credito Centrale? "},"R7_08_05"]
["D7_09_SI",7,"Cash & Liquidity","D7_09",{"$f":"IF($B648=\"\",\"\",IFERROR(INDEX(db_Domande!$D:$D,MATCH($D648,db_Domande!$C:$C,0),1),\"\"))","v":"L'azienda prevede di apportare capitale proprio nel breve periodo?   "},"R7_09_01","SI","SI  ;  NO  ;  NON_APPLICABILE",3,1]
["D7_09_NO",7,"Cash & Liquidity","D7_09",{"$f":"IF($B649=\"\",\"\",IFERROR(INDEX(db_Domande!$D:$D,MATCH($D649,db_Domande!$C:$C,0),1),\"\"))","v":"L'azienda prevede di apportare capitale proprio nel breve periodo?   "},"R7_09_02","NO",null,null,0]
["D7_09_NON_APPLICABILE",7,"Cash & Liquidity","D7_09",{"$f":"IF($B650=\"\",\"\",IFERROR(INDEX(db_Domande!$D:$D,MATCH($D650,db_Domande!$C:$C,0),1),\"\"))","v":"L'azienda prevede di apportare capitale proprio nel breve periodo?   "},"R7_09_03","NON_APPLICABILE",null,null,0]
["D7_09_",7,"Cash & Liquidity","D7_09",{"$f":"IF($B651=\"\",\"\",IFERROR(INDEX(db_Domande!$D:$D,MATCH($D651,db_Domande!$C:$C,0),1),\"\"))","v":"L'azienda prevede di apportare capitale proprio nel breve periodo?   "},"R7_09_04"]
["D7_09_",7,"Cash & Liquidity","D7_09",{"$f":"IF($B652=\"\",\"\",IFERROR(INDEX(db_Domande!$D:$D,MATCH($D652,db_Domande!$C:$C,0),1),\"\"))","v":"L'azienda prevede di apportare capitale proprio nel breve periodo?   "},"R7_09_05"]
["D7_10_SI",7,"Cash & Liquidity","D7_10",{"$f":"IF($B653=\"\",\"\",IFERROR(INDEX(db_Domande!$D:$D,MATCH($D653,db_Domande!$C:$C,0),1),\"\"))","v":"L'azienda ha un sistema di gestione della tesoreria integrato nel/con il gestionale aziendale o gestisce la tesoreria con strumenti excel based?"},"R7_10_01","SI","SI  ;  NO  ;  NON_APPLICABILE",3,1]
["D7_10_NO",7,"Cash & Liquidity","D7_10",{"$f":"IF($B654=\"\",\"\",IFERROR(INDEX(db_Domande!$D:$D,MATCH($D654,db_Domande!$C:$C,0),1),\"\"))","v":"L'azienda ha un sistema di gestione della tesoreria integrato nel/con il gestionale aziendale o gestisce la tesoreria con strumenti excel based?"},"R7_10_02","NO",null,null,0]
["D7_10_NON_APPLICABILE",7,"Cash & Liquidity","D7_10",{"$f":"IF($B655=\"\",\"\",IFERROR(INDEX(db_Domande!$D:$D,MATCH($D655,db_Domande!$C:$C,0),1),\"\"))","v":"L'azienda ha un sistema di gestione della tesoreria integrato nel/con il gestionale aziendale o gestisce la tesoreria con strumenti excel based?"},"R7_10_03","NON_APPLICABILE",null,null,0]
["D7_10_",7,"Cash & Liquidity","D7_10",{"$f":"IF($B656=\"\",\"\",IFERROR(INDEX(db_Domande!$D:$D,MATCH($D656,db_Domande!$C:$C,0),1),\"\"))","v":"L'azienda ha un sistema di gestione della tesoreria integrato nel/con il gestionale aziendale o gestisce la tesoreria con strumenti excel based?"},"R7_10_04"]
["D7_10_",7,"Cash & Liquidity","D7_10",{"$f":"IF($B657=\"\",\"\",IFERROR(INDEX(db_Domande!$D:$D,MATCH($D657,db_Domande!$C:$C,0),1),\"\"))","v":"L'azienda ha un sistema di gestione della tesoreria integrato nel/con il gestionale aziendale o gestisce la tesoreria con strumenti excel based?"},"R7_10_05"]
["D7_11_SI",7,"Cash & Liquidity","D7_11",{"$f":"IF($B658=\"\",\"\",IFERROR(INDEX(db_Domande!$D:$D,MATCH($D658,db_Domande!$C:$C,0),1),\"\"))","v":"L'azienda ha un budget economico - finanziario per il 2020 ?"},"R7_11_01","SI","SI  ;  NO  ;  NON_APPLICABILE",3,1]
["D7_11_NO",7,"Cash & Liquidity","D7_11",{"$f":"IF($B659=\"\",\"\",IFERROR(INDEX(db_Domande!$D:$D,MATCH($D659,db_Domande!$C:$C,0),1),\"\"))","v":"L'azienda ha un budget economico - finanziario per il 2020 ?"},"R7_11_02","NO",null,null,0]
["D7_11_NON_APPLICABILE",7,"Cash & Liquidity","D7_11",{"$f":"IF($B660=\"\",\"\",IFERROR(INDEX(db_Domande!$D:$D,MATCH($D660,db_Domande!$C:$C,0),1),\"\"))","v":"L'azienda ha un budget economico - finanziario per il 2020 ?"},"R7_11_03","NON_APPLICABILE",null,null,0]
["D7_11_",7,"Cash & Liquidity","D7_11",{"$f":"IF($B661=\"\",\"\",IFERROR(INDEX(db_Domande!$D:$D,MATCH($D661,db_Domande!$C:$C,0),1),\"\"))","v":"L'azienda ha un budget economico - finanziario per il 2020 ?"},"R7_11_04"]
["D7_11_",7,"Cash & Liquidity","D7_11",{"$f":"IF($B662=\"\",\"\",IFERROR(INDEX(db_Domande!$D:$D,MATCH($D662,db_Domande!$C:$C,0),1),\"\"))","v":"L'azienda ha un budget economico - finanziario per il 2020 ?"},"R7_11_05"]
["D7_12_SI",7,"Cash & Liquidity","D7_12",{"$f":"IF($B663=\"\",\"\",IFERROR(INDEX(db_Domande!$D:$D,MATCH($D663,db_Domande!$C:$C,0),1),\"\"))","v":"L’azienda  utilizza sistemi di  previsione della Tesorieria a scenari  multipli? "},"R7_12_01","SI","SI  ;  NO  ;  NON_APPLICABILE",3,1]
["D7_12_NO",7,"Cash & Liquidity","D7_12",{"$f":"IF($B664=\"\",\"\",IFERROR(INDEX(db_Domande!$D:$D,MATCH($D664,db_Domande!$C:$C,0),1),\"\"))","v":"L’azienda  utilizza sistemi di  previsione della Tesorieria a scenari  multipli? "},"R7_12_02","NO",null,null,0]
["D7_12_NON_APPLICABILE",7,"Cash & Liquidity","D7_12",{"$f":"IF($B665=\"\",\"\",IFERROR(INDEX(db_Domande!$D:$D,MATCH($D665,db_Domande!$C:$C,0),1),\"\"))","v":"L’azienda  utilizza sistemi di  previsione della Tesorieria a scenari  multipli? "},"R7_12_03","NON_APPLICABILE",null,null,0]
["D7_12_",7,"Cash & Liquidity","D7_12",{"$f":"IF($B666=\"\",\"\",IFERROR(INDEX(db_Domande!$D:$D,MATCH($D666,db_Domande!$C:$C,0),1),\"\"))","v":"L’azienda  utilizza sistemi di  previsione della Tesorieria a scenari  multipli? "},"R7_12_04"]
["D7_12_",7,"Cash & Liquidity","D7_12",{"$f":"IF($B667=\"\",\"\",IFERROR(INDEX(db_Domande!$D:$D,MATCH($D667,db_Domande!$C:$C,0),1),\"\"))","v":"L’azienda  utilizza sistemi di  previsione della Tesorieria a scenari  multipli? "},"R7_12_05"]
["D7_13_alta",7,"Cash & Liquidity","D7_13",{"$f":"IF($B668=\"\",\"\",IFERROR(INDEX(db_Domande!$D:$D,MATCH($D668,db_Domande!$C:$C,0),1),\"\"))","v":"Il livello di comprimibilità dei costi fissi aziendali è ?  (risposta a sezioni multiple) "},"R7_13_01","alta","alta  ;  media  ;  bassa  ;  NON_APPLICABILE",4,2]
["D7_13_media",7,"Cash & Liquidity","D7_13",{"$f":"IF($B669=\"\",\"\",IFERROR(INDEX(db_Domande!$D:$D,MATCH($D669,db_Domande!$C:$C,0),1),\"\"))","v":"Il livello di comprimibilità dei costi fissi aziendali è ?  (risposta a sezioni multiple) "},"R7_13_02","media",null,null,1]
["D7_13_bassa",7,"Cash & Liquidity","D7_13",{"$f":"IF($B670=\"\",\"\",IFERROR(INDEX(db_Domande!$D:$D,MATCH($D670,db_Domande!$C:$C,0),1),\"\"))","v":"Il livello di comprimibilità dei costi fissi aziendali è ?  (risposta a sezioni multiple) "},"R7_13_03","bassa",null,null,0]
["D7_13_NON_APPLICABILE",7,"Cash & Liquidity","D7_13",{"$f":"IF($B671=\"\",\"\",IFERROR(INDEX(db_Domande!$D:$D,MATCH($D671,db_Domande!$C:$C,0),1),\"\"))","v":"Il livello di comprimibilità dei costi fissi aziendali è ?  (risposta a sezioni multiple) "},"R7_13_04","NON_APPLICABILE",null,null,0]
["D7_13_",7,"Cash & Liquidity","D7_13",{"$f":"IF($B672=\"\",\"\",IFERROR(INDEX(db_Domande!$D:$D,MATCH($D672,db_Domande!$C:$C,0),1),\"\"))","v":"Il livello di comprimibilità dei costi fissi aziendali è ?  (risposta a sezioni multiple) "},"R7_13_05"]
["D7_14_",7,"Cash & Liquidity","D7_14",{"$f":"IF($B673=\"\",\"\",IFERROR(INDEX(db_Domande!$D:$D,MATCH($D673,db_Domande!$C:$C,0),1),\"\"))","v":""},"R7_14_01"]
["D7_14_",7,"Cash & Liquidity","D7_14",{"$f":"IF($B674=\"\",\"\",IFERROR(INDEX(db_Domande!$D:$D,MATCH($D674,db_Domande!$C:$C,0),1),\"\"))","v":""},"R7_14_02"]
["D7_14_",7,"Cash & Liquidity","D7_14",{"$f":"IF($B675=\"\",\"\",IFERROR(INDEX(db_Domande!$D:$D,MATCH($D675,db_Domande!$C:$C,0),1),\"\"))","v":""},"R7_14_03"]
["D7_14_",7,"Cash & Liquidity","D7_14",{"$f":"IF($B676=\"\",\"\",IFERROR(INDEX(db_Domande!$D:$D,MATCH($D676,db_Domande!$C:$C,0),1),\"\"))","v":""},"R7_14_04"]
["D7_14_",7,"Cash & Liquidity","D7_14",{"$f":"IF($B677=\"\",\"\",IFERROR(INDEX(db_Domande!$D:$D,MATCH($D677,db_Domande!$C:$C,0),1),\"\"))","v":""},"R7_14_05"]
["D7_15_",7,"Cash & Liquidity","D7_15",{"$f":"IF($B678=\"\",\"\",IFERROR(INDEX(db_Domande!$D:$D,MATCH($D678,db_Domande!$C:$C,0),1),\"\"))","v":""},"R7_15_01"]
["D7_15_",7,"Cash & Liquidity","D7_15",{"$f":"IF($B679=\"\",\"\",IFERROR(INDEX(db_Domande!$D:$D,MATCH($D679,db_Domande!$C:$C,0),1),\"\"))","v":""},"R7_15_02"]
["D7_15_",7,"Cash & Liquidity","D7_15",{"$f":"IF($B680=\"\",\"\",IFERROR(INDEX(db_Domande!$D:$D,MATCH($D680,db_Domande!$C:$C,0),1),\"\"))","v":""},"R7_15_03"]
["D7_15_",7,"Cash & Liquidity","D7_15",{"$f":"IF($B681=\"\",\"\",IFERROR(INDEX(db_Domande!$D:$D,MATCH($D681,db_Domande!$C:$C,0),1),\"\"))","v":""},"R7_15_04"]
["D7_15_",7,"Cash & Liquidity","D7_15",{"$f":"IF($B682=\"\",\"\",IFERROR(INDEX(db_Domande!$D:$D,MATCH($D682,db_Domande!$C:$C,0),1),\"\"))","v":""},"R7_15_05"]
["D7_16_",7,"Cash & Liquidity","D7_16",{"$f":"IF($B683=\"\",\"\",IFERROR(INDEX(db_Domande!$D:$D,MATCH($D683,db_Domande!$C:$C,0),1),\"\"))","v":""},"R7_16_01"]
["D7_16_",7,"Cash & Liquidity","D7_16",{"$f":"IF($B684=\"\",\"\",IFERROR(INDEX(db_Domande!$D:$D,MATCH($D684,db_Domande!$C:$C,0),1),\"\"))","v":""},"R7_16_02"]
["D7_16_",7,"Cash & Liquidity","D7_16",{"$f":"IF($B685=\"\",\"\",IFERROR(INDEX(db_Domande!$D:$D,MATCH($D685,db_Domande!$C:$C,0),1),\"\"))","v":""},"R7_16_03"]
["D7_16_",7,"Cash & Liquidity","D7_16",{"$f":"IF($B686=\"\",\"\",IFERROR(INDEX(db_Domande!$D:$D,MATCH($D686,db_Domande!$C:$C,0),1),\"\"))","v":""},"R7_16_04"]
["D7_16_",7,"Cash & Liquidity","D7_16",{"$f":"IF($B687=\"\",\"\",IFERROR(INDEX(db_Domande!$D:$D,MATCH($D687,db_Domande!$C:$C,0),1),\"\"))","v":""},"R7_16_05"]
["D7_17_",7,"Cash & Liquidity","D7_17",{"$f":"IF($B688=\"\",\"\",IFERROR(INDEX(db_Domande!$D:$D,MATCH($D688,db_Domande!$C:$C,0),1),\"\"))","v":""},"R7_17_01"]
["D7_17_",7,"Cash & Liquidity","D7_17",{"$f":"IF($B689=\"\",\"\",IFERROR(INDEX(db_Domande!$D:$D,MATCH($D689,db_Domande!$C:$C,0),1),\"\"))","v":""},"R7_17_02"]
["D7_17_",7,"Cash & Liquidity","D7_17",{"$f":"IF($B690=\"\",\"\",IFERROR(INDEX(db_Domande!$D:$D,MATCH($D690,db_Domande!$C:$C,0),1),\"\"))","v":""},"R7_17_03"]
["D7_17_",7,"Cash & Liquidity","D7_17",{"$f":"IF($B691=\"\",\"\",IFERROR(INDEX(db_Domande!$D:$D,MATCH($D691,db_Domande!$C:$C,0),1),\"\"))","v":""},"R7_17_04"]
["D7_17_",7,"Cash & Liquidity","D7_17",{"$f":"IF($B692=\"\",\"\",IFERROR(INDEX(db_Domande!$D:$D,MATCH($D692,db_Domande!$C:$C,0),1),\"\"))","v":""},"R7_17_05"]
["D7_18_",7,"Cash & Liquidity","D7_18",{"$f":"IF($B693=\"\",\"\",IFERROR(INDEX(db_Domande!$D:$D,MATCH($D693,db_Domande!$C:$C,0),1),\"\"))","v":""},"R7_18_01"]
["D7_18_",7,"Cash & Liquidity","D7_18",{"$f":"IF($B694=\"\",\"\",IFERROR(INDEX(db_Domande!$D:$D,MATCH($D694,db_Domande!$C:$C,0),1),\"\"))","v":""},"R7_18_02"]
["D7_18_",7,"Cash & Liquidity","D7_18",{"$f":"IF($B695=\"\",\"\",IFERROR(INDEX(db_Domande!$D:$D,MATCH($D695,db_Domande!$C:$C,0),1),\"\"))","v":""},"R7_18_03"]
["D7_18_",7,"Cash & Liquidity","D7_18",{"$f":"IF($B696=\"\",\"\",IFERROR(INDEX(db_Domande!$D:$D,MATCH($D696,db_Domande!$C:$C,0),1),\"\"))","v":""},"R7_18_04"]
["D7_18_",7,"Cash & Liquidity","D7_18",{"$f":"IF($B697=\"\",\"\",IFERROR(INDEX(db_Domande!$D:$D,MATCH($D697,db_Domande!$C:$C,0),1),\"\"))","v":""},"R7_18_05"]
["D7_19_",7,"Cash & Liquidity","D7_19",{"$f":"IF($B698=\"\",\"\",IFERROR(INDEX(db_Domande!$D:$D,MATCH($D698,db_Domande!$C:$C,0),1),\"\"))","v":""},"R7_19_01"]
["D7_19_",7,"Cash & Liquidity","D7_19",{"$f":"IF($B699=\"\",\"\",IFERROR(INDEX(db_Domande!$D:$D,MATCH($D699,db_Domande!$C:$C,0),1),\"\"))","v":""},"R7_19_02"]
["D7_19_",7,"Cash & Liquidity","D7_19",{"$f":"IF($B700=\"\",\"\",IFERROR(INDEX(db_Domande!$D:$D,MATCH($D700,db_Domande!$C:$C,0),1),\"\"))","v":""},"R7_19_03"]
["D7_19_",7,"Cash & Liquidity","D7_19",{"$f":"IF($B701=\"\",\"\",IFERROR(INDEX(db_Domande!$D:$D,MATCH($D701,db_Domande!$C:$C,0),1),\"\"))","v":""},"R7_19_04"]
["D7_19_",7,"Cash & Liquidity","D7_19",{"$f":"IF($B702=\"\",\"\",IFERROR(INDEX(db_Domande!$D:$D,MATCH($D702,db_Domande!$C:$C,0),1),\"\"))","v":""},"R7_19_05"]
["D7_20_",7,"Cash & Liquidity","D7_20",{"$f":"IF($B703=\"\",\"\",IFERROR(INDEX(db_Domande!$D:$D,MATCH($D703,db_Domande!$C:$C,0),1),\"\"))","v":""},"R7_20_01"]
["D7_20_",7,"Cash & Liquidity","D7_20",{"$f":"IF($B704=\"\",\"\",IFERROR(INDEX(db_Domande!$D:$D,MATCH($D704,db_Domande!$C:$C,0),1),\"\"))","v":""},"R7_20_02"]
["D7_20_",7,"Cash & Liquidity","D7_20",{"$f":"IF($B705=\"\",\"\",IFERROR(INDEX(db_Domande!$D:$D,MATCH($D705,db_Domande!$C:$C,0),1),\"\"))","v":""},"R7_20_03"]
["D7_20_",7,"Cash & Liquidity","D7_20",{"$f":"IF($B706=\"\",\"\",IFERROR(INDEX(db_Domande!$D:$D,MATCH($D706,db_Domande!$C:$C,0),1),\"\"))","v":""},{"$f":"IF($B706=\"\",\"\",\"R\"&RIGHT($D706,4)&\"_\"&TEXT(ROW()-MATCH($D706,$D:$D,0)+1,\"00\"))","v":"R7_20_04"}]
[{"$f":"IF($B707=\"\",\"\",$D707&\"_\"&$G707)","v":"D7_20_"},7,"Cash & Liquidity","D7_20",{"$f":"IF($B707=\"\",\"\",IFERROR(INDEX(db_Domande!$D:$D,MATCH($D707,db_Domande!$C:$C,0),1),\"\"))","v":""},"R7_20_05"]
["",null,null,null,{"$f":"IF($B708=\"\",\"\",IFERROR(INDEX(db_Domande!$D:$D,MATCH($D708,db_Domande!$C:$C,0),1),\"\"))","v":""},""]
["D8_01_SI",8,"Investments","D8_01",{"$f":"IF($B709=\"\",\"\",IFERROR(INDEX(db_Domande!$D:$D,MATCH($D709,db_Domande!$C:$C,0),1),\"\"))","v":"L'azienda ha fatto recentemente acquisizioni di società e/o rami d'azienda?  "},"R8_01_01","SI","SI  ;  NO  ;  NON_APPLICABILE",3,0]
["D8_01_NO",8,"Investments","D8_01",{"$f":"IF($B710=\"\",\"\",IFERROR(INDEX(db_Domande!$D:$D,MATCH($D710,db_Domande!$C:$C,0),1),\"\"))","v":"L'azienda ha fatto recentemente acquisizioni di società e/o rami d'azienda?  "},"R8_01_02","NO",null,null,1]
["D8_01_NON_APPLICABILE",8,"Investments","D8_01",{"$f":"IF($B711=\"\",\"\",IFERROR(INDEX(db_Domande!$D:$D,MATCH($D711,db_Domande!$C:$C,0),1),\"\"))","v":"L'azienda ha fatto recentemente acquisizioni di società e/o rami d'azienda?  "},"R8_01_03","NON_APPLICABILE",null,null,0]
["D8_01_",8,"Investments","D8_01",{"$f":"IF($B712=\"\",\"\",IFERROR(INDEX(db_Domande!$D:$D,MATCH($D712,db_Domande!$C:$C,0),1),\"\"))","v":"L'azienda ha fatto recentemente acquisizioni di società e/o rami d'azienda?  "},"R8_01_04"]
["D8_01_",8,"Investments","D8_01",{"$f":"IF($B713=\"\",\"\",IFERROR(INDEX(db_Domande!$D:$D,MATCH($D713,db_Domande!$C:$C,0),1),\"\"))","v":"L'azienda ha fatto recentemente acquisizioni di società e/o rami d'azienda?  "},"R8_01_05"]
["D8_02_0 - 30 %",8,"Investments","D8_02",{"$f":"IF($B714=\"\",\"\",IFERROR(INDEX(db_Domande!$D:$D,MATCH($D714,db_Domande!$C:$C,0),1),\"\"))","v":"In che percentuale del fatturato l'azienda intende effettuare investimenti nell'esercizio in corso?  (risposta  multipla) "},"R8_02_01","0 - 30 %","0 - 30 %  ;  31 -70 %  ;  71 - 100 %  ;  NON_APPLICABILE",4,1]
["D8_02_31 -70 %",8,"Investments","D8_02",{"$f":"IF($B715=\"\",\"\",IFERROR(INDEX(db_Domande!$D:$D,MATCH($D715,db_Domande!$C:$C,0),1),\"\"))","v":"In che percentuale del fatturato l'azienda intende effettuare investimenti nell'esercizio in corso?  (risposta  multipla) "},"R8_02_02","31 -70 %",null,null,1]
["D8_02_71 - 100 %",8,"Investments","D8_02",{"$f":"IF($B716=\"\",\"\",IFERROR(INDEX(db_Domande!$D:$D,MATCH($D716,db_Domande!$C:$C,0),1),\"\"))","v":"In che percentuale del fatturato l'azienda intende effettuare investimenti nell'esercizio in corso?  (risposta  multipla) "},"R8_02_03","71 - 100 %",null,null,1]
["D8_02_NON_APPLICABILE",8,"Investments","D8_02",{"$f":"IF($B717=\"\",\"\",IFERROR(INDEX(db_Domande!$D:$D,MATCH($D717,db_Domande!$C:$C,0),1),\"\"))","v":"In che percentuale del fatturato l'azienda intende effettuare investimenti nell'esercizio in corso?  (risposta  multipla) "},"R8_02_04","NON_APPLICABILE",null,null,0]
["D8_02_",8,"Investments","D8_02",{"$f":"IF($B718=\"\",\"\",IFERROR(INDEX(db_Domande!$D:$D,MATCH($D718,db_Domande!$C:$C,0),1),\"\"))","v":"In che percentuale del fatturato l'azienda intende effettuare investimenti nell'esercizio in corso?  (risposta  multipla) "},"R8_02_05"]
["D8_03_SI",8,"Investments","D8_03",{"$f":"IF($B719=\"\",\"\",IFERROR(INDEX(db_Domande!$D:$D,MATCH($D719,db_Domande!$C:$C,0),1),\"\"))","v":"L’azienda ha investimenti nell'esercizio in corso di importi significativi?"},"R8_03_01","SI","SI  ;  NO  ;  NON_APPLICABILE",3,0]
["D8_03_NO",8,"Investments","D8_03",{"$f":"IF($B720=\"\",\"\",IFERROR(INDEX(db_Domande!$D:$D,MATCH($D720,db_Domande!$C:$C,0),1),\"\"))","v":"L’azienda ha investimenti nell'esercizio in corso di importi significativi?"},"R8_03_02","NO",null,null,1]
["D8_03_NON_APPLICABILE",8,"Investments","D8_03",{"$f":"IF($B721=\"\",\"\",IFERROR(INDEX(db_Domande!$D:$D,MATCH($D721,db_Domande!$C:$C,0),1),\"\"))","v":"L’azienda ha investimenti nell'esercizio in corso di importi significativi?"},"R8_03_03","NON_APPLICABILE",null,null,0]
["D8_03_",8,"Investments","D8_03",{"$f":"IF($B722=\"\",\"\",IFERROR(INDEX(db_Domande!$D:$D,MATCH($D722,db_Domande!$C:$C,0),1),\"\"))","v":"L’azienda ha investimenti nell'esercizio in corso di importi significativi?"},"R8_03_04"]
["D8_03_",8,"Investments","D8_03",{"$f":"IF($B723=\"\",\"\",IFERROR(INDEX(db_Domande!$D:$D,MATCH($D723,db_Domande!$C:$C,0),1),\"\"))","v":"L’azienda ha investimenti nell'esercizio in corso di importi significativi?"},"R8_03_05"]
["D8_04_SI",8,"Investments","D8_04",{"$f":"IF($B724=\"\",\"\",IFERROR(INDEX(db_Domande!$D:$D,MATCH($D724,db_Domande!$C:$C,0),1),\"\"))","v":"L’azienda  deve sostenere  investimenti  ricorrenti  per  garantire  la continuità del business?  "},"R8_04_01","SI","SI  ;  NO  ;  NON_APPLICABILE",3,0]
["D8_04_NO",8,"Investments","D8_04",{"$f":"IF($B725=\"\",\"\",IFERROR(INDEX(db_Domande!$D:$D,MATCH($D725,db_Domande!$C:$C,0),1),\"\"))","v":"L’azienda  deve sostenere  investimenti  ricorrenti  per  garantire  la continuità del business?  "},"R8_04_02","NO",null,null,1]
["D8_04_NON_APPLICABILE",8,"Investments","D8_04",{"$f":"IF($B726=\"\",\"\",IFERROR(INDEX(db_Domande!$D:$D,MATCH($D726,db_Domande!$C:$C,0),1),\"\"))","v":"L’azienda  deve sostenere  investimenti  ricorrenti  per  garantire  la continuità del business?  "},"R8_04_03","NON_APPLICABILE",null,null,0]
["D8_04_",8,"Investments","D8_04",{"$f":"IF($B727=\"\",\"\",IFERROR(INDEX(db_Domande!$D:$D,MATCH($D727,db_Domande!$C:$C,0),1),\"\"))","v":"L’azienda  deve sostenere  investimenti  ricorrenti  per  garantire  la continuità del business?  "},"R8_04_04"]
["D8_04_",8,"Investments","D8_04",{"$f":"IF($B728=\"\",\"\",IFERROR(INDEX(db_Domande!$D:$D,MATCH($D728,db_Domande!$C:$C,0),1),\"\"))","v":"L’azienda  deve sostenere  investimenti  ricorrenti  per  garantire  la continuità del business?  "},"R8_04_05"]
["D8_05_SI",8,"Investments","D8_05",{"$f":"IF($B729=\"\",\"\",IFERROR(INDEX(db_Domande!$D:$D,MATCH($D729,db_Domande!$C:$C,0),1),\"\"))","v":"Negli SPA sottoscritti, o in via di sottoscrizione, sono previste clausole di price adjustment che tengano conto dei possibili effetti derivanti dall’evoluzione del fenomeno Covid 19? "},"R8_05_01","SI","SI  ;  NO  ;  NON_APPLICABILE",3,1]
["D8_05_NO",8,"Investments","D8_05",{"$f":"IF($B730=\"\",\"\",IFERROR(INDEX(db_Domande!$D:$D,MATCH($D730,db_Domande!$C:$C,0),1),\"\"))","v":"Negli SPA sottoscritti, o in via di sottoscrizione, sono previste clausole di price adjustment che tengano conto dei possibili effetti derivanti dall’evoluzione del fenomeno Covid 19? "},"R8_05_02","NO",null,null,0]
["D8_05_NON_APPLICABILE",8,"Investments","D8_05",{"$f":"IF($B731=\"\",\"\",IFERROR(INDEX(db_Domande!$D:$D,MATCH($D731,db_Domande!$C:$C,0),1),\"\"))","v":"Negli SPA sottoscritti, o in via di sottoscrizione, sono previste clausole di price adjustment che tengano conto dei possibili effetti derivanti dall’evoluzione del fenomeno Covid 19? "},"R8_05_03","NON_APPLICABILE",null,null,0]
["D8_05_",8,"Investments","D8_05",{"$f":"IF($B732=\"\",\"\",IFERROR(INDEX(db_Domande!$D:$D,MATCH($D732,db_Domande!$C:$C,0),1),\"\"))","v":"Negli SPA sottoscritti, o in via di sottoscrizione, sono previste clausole di price adjustment che tengano conto dei possibili effetti derivanti dall’evoluzione del fenomeno Covid 19? "},"R8_05_04"]
["D8_05_",8,"Investments","D8_05",{"$f":"IF($B733=\"\",\"\",IFERROR(INDEX(db_Domande!$D:$D,MATCH($D733,db_Domande!$C:$C,0),1),\"\"))","v":"Negli SPA sottoscritti, o in via di sottoscrizione, sono previste clausole di price adjustment che tengano conto dei possibili effetti derivanti dall’evoluzione del fenomeno Covid 19? "},"R8_05_05"]
["D8_06_SI",8,"Investments","D8_06",{"$f":"IF($B734=\"\",\"\",IFERROR(INDEX(db_Domande!$D:$D,MATCH($D734,db_Domande!$C:$C,0),1),\"\"))","v":"E’ stata svolta una review contrattuale per verificare la presenza di eventuali clausole di price adjustment potenzialmente negative per i vostri investimenti? "},"R8_06_01","SI","SI  ;  NO  ;  NON_APPLICABILE",3,1]
["D8_06_NO",8,"Investments","D8_06",{"$f":"IF($B735=\"\",\"\",IFERROR(INDEX(db_Domande!$D:$D,MATCH($D735,db_Domande!$C:$C,0),1),\"\"))","v":"E’ stata svolta una review contrattuale per verificare la presenza di eventuali clausole di price adjustment potenzialmente negative per i vostri investimenti? "},"R8_06_02","NO",null,null,0]
["D8_06_NON_APPLICABILE",8,"Investments","D8_06",{"$f":"IF($B736=\"\",\"\",IFERROR(INDEX(db_Domande!$D:$D,MATCH($D736,db_Domande!$C:$C,0),1),\"\"))","v":"E’ stata svolta una review contrattuale per verificare la presenza di eventuali clausole di price adjustment potenzialmente negative per i vostri investimenti? "},"R8_06_03","NON_APPLICABILE",null,null,0]
["D8_06_",8,"Investments","D8_06",{"$f":"IF($B737=\"\",\"\",IFERROR(INDEX(db_Domande!$D:$D,MATCH($D737,db_Domande!$C:$C,0),1),\"\"))","v":"E’ stata svolta una review contrattuale per verificare la presenza di eventuali clausole di price adjustment potenzialmente negative per i vostri investimenti? "},"R8_06_04"]
["D8_06_",8,"Investments","D8_06",{"$f":"IF($B738=\"\",\"\",IFERROR(INDEX(db_Domande!$D:$D,MATCH($D738,db_Domande!$C:$C,0),1),\"\"))","v":"E’ stata svolta una review contrattuale per verificare la presenza di eventuali clausole di price adjustment potenzialmente negative per i vostri investimenti? "},"R8_06_05"]
["D8_07_SI",8,"Investments","D8_07",{"$f":"IF($B739=\"\",\"\",IFERROR(INDEX(db_Domande!$D:$D,MATCH($D739,db_Domande!$C:$C,0),1),\"\"))","v":"Gli investimenti definiti dall'azienda sono funzionali ad aumentare la sostenibilità del proprio modello di business? "},"R8_07_01","SI","SI  ;  NO  ;  NON_APPLICABILE",3,1]
["D8_07_NO",8,"Investments","D8_07",{"$f":"IF($B740=\"\",\"\",IFERROR(INDEX(db_Domande!$D:$D,MATCH($D740,db_Domande!$C:$C,0),1),\"\"))","v":"Gli investimenti definiti dall'azienda sono funzionali ad aumentare la sostenibilità del proprio modello di business? "},"R8_07_02","NO",null,null,0]
["D8_07_NON_APPLICABILE",8,"Investments","D8_07",{"$f":"IF($B741=\"\",\"\",IFERROR(INDEX(db_Domande!$D:$D,MATCH($D741,db_Domande!$C:$C,0),1),\"\"))","v":"Gli investimenti definiti dall'azienda sono funzionali ad aumentare la sostenibilità del proprio modello di business? "},"R8_07_03","NON_APPLICABILE",null,null,0]
["D8_07_",8,"Investments","D8_07",{"$f":"IF($B742=\"\",\"\",IFERROR(INDEX(db_Domande!$D:$D,MATCH($D742,db_Domande!$C:$C,0),1),\"\"))","v":"Gli investimenti definiti dall'azienda sono funzionali ad aumentare la sostenibilità del proprio modello di business? "},"R8_07_04"]
["D8_07_",8,"Investments","D8_07",{"$f":"IF($B743=\"\",\"\",IFERROR(INDEX(db_Domande!$D:$D,MATCH($D743,db_Domande!$C:$C,0),1),\"\"))","v":"Gli investimenti definiti dall'azienda sono funzionali ad aumentare la sostenibilità del proprio modello di business? "},"R8_07_05"]
["D8_08_SI",8,"Investments","D8_08",{"$f":"IF($B744=\"\",\"\",IFERROR(INDEX(db_Domande!$D:$D,MATCH($D744,db_Domande!$C:$C,0),1),\"\"))","v":"L'azienda ha valutato gli impatti economici, sociali e ambientali dei suoi investimenti?"},"R8_08_01","SI","SI  ;  NO  ;  NON_APPLICABILE",3,1]
["D8_08_NO",8,"Investments","D8_08",{"$f":"IF($B745=\"\",\"\",IFERROR(INDEX(db_Domande!$D:$D,MATCH($D745,db_Domande!$C:$C,0),1),\"\"))","v":"L'azienda ha valutato gli impatti economici, sociali e ambientali dei suoi investimenti?"},"R8_08_02","NO",null,null,0]
["D8_08_NON_APPLICABILE",8,"Investments","D8_08",{"$f":"IF($B746=\"\",\"\",IFERROR(INDEX(db_Domande!$D:$D,MATCH($D746,db_Domande!$C:$C,0),1),\"\"))","v":"L'azienda ha valutato gli impatti economici, sociali e ambientali dei suoi investimenti?"},"R8_08_03","NON_APPLICABILE",null,null,0]
["D8_08_",8,"Investments","D8_08",{"$f":"IF($B747=\"\",\"\",IFERROR(INDEX(db_Domande!$D:$D,MATCH($D747,db_Domande!$C:$C,0),1),\"\"))","v":"L'azienda ha valutato gli impatti economici, sociali e ambientali dei suoi investimenti?"},"R8_08_04"]
["D8_08_",8,"Investments","D8_08",{"$f":"IF($B748=\"\",\"\",IFERROR(INDEX(db_Domande!$D:$D,MATCH($D748,db_Domande!$C:$C,0),1),\"\"))","v":"L'azienda ha valutato gli impatti economici, sociali e ambientali dei suoi investimenti?"},"R8_08_05"]
["D8_09_SI",8,"Investments","D8_09",{"$f":"IF($B749=\"\",\"\",IFERROR(INDEX(db_Domande!$D:$D,MATCH($D749,db_Domande!$C:$C,0),1),\"\"))","v":"L'azienda ha tenuto in considerazione quanto gli investimenti concorrono positivamente nella comunità locale di riferimento?"},"R8_09_01","SI","SI  ;  NO  ;  NON_APPLICABILE",3,1]
["D8_09_NO",8,"Investments","D8_09",{"$f":"IF($B750=\"\",\"\",IFERROR(INDEX(db_Domande!$D:$D,MATCH($D750,db_Domande!$C:$C,0),1),\"\"))","v":"L'azienda ha tenuto in considerazione quanto gli investimenti concorrono positivamente nella comunità locale di riferimento?"},"R8_09_02","NO",null,null,0]
["D8_09_NON_APPLICABILE",8,"Investments","D8_09",{"$f":"IF($B751=\"\",\"\",IFERROR(INDEX(db_Domande!$D:$D,MATCH($D751,db_Domande!$C:$C,0),1),\"\"))","v":"L'azienda ha tenuto in considerazione quanto gli investimenti concorrono positivamente nella comunità locale di riferimento?"},"R8_09_03","NON_APPLICABILE",null,null,0]
["D8_09_",8,"Investments","D8_09",{"$f":"IF($B752=\"\",\"\",IFERROR(INDEX(db_Domande!$D:$D,MATCH($D752,db_Domande!$C:$C,0),1),\"\"))","v":"L'azienda ha tenuto in considerazione quanto gli investimenti concorrono positivamente nella comunità locale di riferimento?"},"R8_09_04"]
["D8_09_",8,"Investments","D8_09",{"$f":"IF($B753=\"\",\"\",IFERROR(INDEX(db_Domande!$D:$D,MATCH($D753,db_Domande!$C:$C,0),1),\"\"))","v":"L'azienda ha tenuto in considerazione quanto gli investimenti concorrono positivamente nella comunità locale di riferimento?"},"R8_09_05"]
["D8_10_SI",8,"Investments","D8_10",{"$f":"IF($B754=\"\",\"\",IFERROR(INDEX(db_Domande!$D:$D,MATCH($D754,db_Domande!$C:$C,0),1),\"\"))","v":"L’azienda ha identificato metriche adeguate per monitorare gli impatti dei suoi investimenti?"},"R8_10_01","SI","SI  ;  NO  ;  NON_APPLICABILE",3,1]
["D8_10_NO",8,"Investments","D8_10",{"$f":"IF($B755=\"\",\"\",IFERROR(INDEX(db_Domande!$D:$D,MATCH($D755,db_Domande!$C:$C,0),1),\"\"))","v":"L’azienda ha identificato metriche adeguate per monitorare gli impatti dei suoi investimenti?"},"R8_10_02","NO",null,null,0]
["D8_10_NON_APPLICABILE",8,"Investments","D8_10",{"$f":"IF($B756=\"\",\"\",IFERROR(INDEX(db_Domande!$D:$D,MATCH($D756,db_Domande!$C:$C,0),1),\"\"))","v":"L’azienda ha identificato metriche adeguate per monitorare gli impatti dei suoi investimenti?"},"R8_10_03","NON_APPLICABILE",null,null,0]
["D8_10_",8,"Investments","D8_10",{"$f":"IF($B757=\"\",\"\",IFERROR(INDEX(db_Domande!$D:$D,MATCH($D757,db_Domande!$C:$C,0),1),\"\"))","v":"L’azienda ha identificato metriche adeguate per monitorare gli impatti dei suoi investimenti?"},"R8_10_04"]
["D8_10_",8,"Investments","D8_10",{"$f":"IF($B758=\"\",\"\",IFERROR(INDEX(db_Domande!$D:$D,MATCH($D758,db_Domande!$C:$C,0),1),\"\"))","v":"L’azienda ha identificato metriche adeguate per monitorare gli impatti dei suoi investimenti?"},"R8_10_05"]
["D8_11_",8,"Investments","D8_11",{"$f":"IF($B759=\"\",\"\",IFERROR(INDEX(db_Domande!$D:$D,MATCH($D759,db_Domande!$C:$C,0),1),\"\"))","v":""},"R8_11_01"]
["D8_11_",8,"Investments","D8_11",{"$f":"IF($B760=\"\",\"\",IFERROR(INDEX(db_Domande!$D:$D,MATCH($D760,db_Domande!$C:$C,0),1),\"\"))","v":""},"R8_11_02"]
["D8_11_",8,"Investments","D8_11",{"$f":"IF($B761=\"\",\"\",IFERROR(INDEX(db_Domande!$D:$D,MATCH($D761,db_Domande!$C:$C,0),1),\"\"))","v":""},"R8_11_03"]
["D8_11_",8,"Investments","D8_11",{"$f":"IF($B762=\"\",\"\",IFERROR(INDEX(db_Domande!$D:$D,MATCH($D762,db_Domande!$C:$C,0),1),\"\"))","v":""},"R8_11_04"]
["D8_11_",8,"Investments","D8_11",{"$f":"IF($B763=\"\",\"\",IFERROR(INDEX(db_Domande!$D:$D,MATCH($D763,db_Domande!$C:$C,0),1),\"\"))","v":""},"R8_11_05"]
["D8_12_",8,"Investments","D8_12",{"$f":"IF($B764=\"\",\"\",IFERROR(INDEX(db_Domande!$D:$D,MATCH($D764,db_Domande!$C:$C,0),1),\"\"))","v":""},"R8_12_01"]
["D8_12_",8,"Investments","D8_12",{"$f":"IF($B765=\"\",\"\",IFERROR(INDEX(db_Domande!$D:$D,MATCH($D765,db_Domande!$C:$C,0),1),\"\"))","v":""},"R8_12_02"]
["D8_12_",8,"Investments","D8_12",{"$f":"IF($B766=\"\",\"\",IFERROR(INDEX(db_Domande!$D:$D,MATCH($D766,db_Domande!$C:$C,0),1),\"\"))","v":""},"R8_12_03"]
["D8_12_",8,"Investments","D8_12",{"$f":"IF($B767=\"\",\"\",IFERROR(INDEX(db_Domande!$D:$D,MATCH($D767,db_Domande!$C:$C,0),1),\"\"))","v":""},"R8_12_04"]
["D8_12_",8,"Investments","D8_12",{"$f":"IF($B768=\"\",\"\",IFERROR(INDEX(db_Domande!$D:$D,MATCH($D768,db_Domande!$C:$C,0),1),\"\"))","v":""},"R8_12_05"]
["D8_13_",8,"Investments","D8_13",{"$f":"IF($B769=\"\",\"\",IFERROR(INDEX(db_Domande!$D:$D,MATCH($D769,db_Domande!$C:$C,0),1),\"\"))","v":""},"R8_13_01"]
["D8_13_",8,"Investments","D8_13",{"$f":"IF($B770=\"\",\"\",IFERROR(INDEX(db_Domande!$D:$D,MATCH($D770,db_Domande!$C:$C,0),1),\"\"))","v":""},{"$f":"IF($B770=\"\",\"\",\"R\"&RIGHT($D770,4)&\"_\"&TEXT(ROW()-MATCH($D770,$D:$D,0)+1,\"00\"))","v":"R8_13_02"}]
[{"$f":"IF($B771=\"\",\"\",$D771&\"_\"&$G771)","v":"D8_13_"},8,"Investments","D8_13",{"$f":"IF($B771=\"\",\"\",IFERROR(INDEX(db_Domande!$D:$D,MATCH($D771,db_Domande!$C:$C,0),1),\"\"))","v":""},"R8_13_03"]
["D8_13_",8,"Investments","D8_13",{"$f":"IF($B772=\"\",\"\",IFERROR(INDEX(db_Domande!$D:$D,MATCH($D772,db_Domande!$C:$C,0),1),\"\"))","v":""},"R8_13_04"]
["D8_13_",8,"Investments","D8_13",{"$f":"IF($B773=\"\",\"\",IFERROR(INDEX(db_Domande!$D:$D,MATCH($D773,db_Domande!$C:$C,0),1),\"\"))","v":""},"R8_13_05"]
["D8_14_",8,"Investments","D8_14",{"$f":"IF($B774=\"\",\"\",IFERROR(INDEX(db_Domande!$D:$D,MATCH($D774,db_Domande!$C:$C,0),1),\"\"))","v":""},"R8_14_01"]
["D8_14_",8,"Investments","D8_14",{"$f":"IF($B775=\"\",\"\",IFERROR(INDEX(db_Domande!$D:$D,MATCH($D775,db_Domande!$C:$C,0),1),\"\"))","v":""},"R8_14_02"]
["D8_14_",8,"Investments","D8_14",{"$f":"IF($B776=\"\",\"\",IFERROR(INDEX(db_Domande!$D:$D,MATCH($D776,db_Domande!$C:$C,0),1),\"\"))","v":""},"R8_14_03"]
["D8_14_",8,"Investments","D8_14",{"$f":"IF($B777=\"\",\"\",IFERROR(INDEX(db_Domande!$D:$D,MATCH($D777,db_Domande!$C:$C,0),1),\"\"))","v":""},"R8_14_04"]
["D8_14_",8,"Investments","D8_14",{"$f":"IF($B778=\"\",\"\",IFERROR(INDEX(db_Domande!$D:$D,MATCH($D778,db_Domande!$C:$C,0),1),\"\"))","v":""},"R8_14_05"]
["D8_15_",8,"Investments","D8_15",{"$f":"IF($B779=\"\",\"\",IFERROR(INDEX(db_Domande!$D:$D,MATCH($D779,db_Domande!$C:$C,0),1),\"\"))","v":""},"R8_15_01"]
["D8_15_",8,"Investments","D8_15",{"$f":"IF($B780=\"\",\"\",IFERROR(INDEX(db_Domande!$D:$D,MATCH($D780,db_Domande!$C:$C,0),1),\"\"))","v":""},"R8_15_02"]
["D8_15_",8,"Investments","D8_15",{"$f":"IF($B781=\"\",\"\",IFERROR(INDEX(db_Domande!$D:$D,MATCH($D781,db_Domande!$C:$C,0),1),\"\"))","v":""},"R8_15_03"]
["D8_15_",8,"Investments","D8_15",{"$f":"IF($B782=\"\",\"\",IFERROR(INDEX(db_Domande!$D:$D,MATCH($D782,db_Domande!$C:$C,0),1),\"\"))","v":""},"R8_15_04"]
["D8_15_",8,"Investments","D8_15",{"$f":"IF($B783=\"\",\"\",IFERROR(INDEX(db_Domande!$D:$D,MATCH($D783,db_Domande!$C:$C,0),1),\"\"))","v":""},"R8_15_05"]
["D8_16_",8,"Investments","D8_16",{"$f":"IF($B784=\"\",\"\",IFERROR(INDEX(db_Domande!$D:$D,MATCH($D784,db_Domande!$C:$C,0),1),\"\"))","v":""},"R8_16_01"]
["D8_16_",8,"Investments","D8_16",{"$f":"IF($B785=\"\",\"\",IFERROR(INDEX(db_Domande!$D:$D,MATCH($D785,db_Domande!$C:$C,0),1),\"\"))","v":""},"R8_16_02"]
["D8_16_",8,"Investments","D8_16",{"$f":"IF($B786=\"\",\"\",IFERROR(INDEX(db_Domande!$D:$D,MATCH($D786,db_Domande!$C:$C,0),1),\"\"))","v":""},"R8_16_03"]
["D8_16_",8,"Investments","D8_16",{"$f":"IF($B787=\"\",\"\",IFERROR(INDEX(db_Domande!$D:$D,MATCH($D787,db_Domande!$C:$C,0),1),\"\"))","v":""},"R8_16_04"]
["D8_16_",8,"Investments","D8_16",{"$f":"IF($B788=\"\",\"\",IFERROR(INDEX(db_Domande!$D:$D,MATCH($D788,db_Domande!$C:$C,0),1),\"\"))","v":""},"R8_16_05"]
["D8_17_",8,"Investments","D8_17",{"$f":"IF($B789=\"\",\"\",IFERROR(INDEX(db_Domande!$D:$D,MATCH($D789,db_Domande!$C:$C,0),1),\"\"))","v":""},"R8_17_01"]
["D8_17_",8,"Investments","D8_17",{"$f":"IF($B790=\"\",\"\",IFERROR(INDEX(db_Domande!$D:$D,MATCH($D790,db_Domande!$C:$C,0),1),\"\"))","v":""},"R8_17_02"]
["D8_17_",8,"Investments","D8_17",{"$f":"IF($B791=\"\",\"\",IFERROR(INDEX(db_Domande!$D:$D,MATCH($D791,db_Domande!$C:$C,0),1),\"\"))","v":""},"R8_17_03"]
["D8_17_",8,"Investments","D8_17",{"$f":"IF($B792=\"\",\"\",IFERROR(INDEX(db_Domande!$D:$D,MATCH($D792,db_Domande!$C:$C,0),1),\"\"))","v":""},"R8_17_04"]
["D8_17_",8,"Investments","D8_17",{"$f":"IF($B793=\"\",\"\",IFERROR(INDEX(db_Domande!$D:$D,MATCH($D793,db_Domande!$C:$C,0),1),\"\"))","v":""},"R8_17_05"]
["D8_18_",8,"Investments","D8_18",{"$f":"IF($B794=\"\",\"\",IFERROR(INDEX(db_Domande!$D:$D,MATCH($D794,db_Domande!$C:$C,0),1),\"\"))","v":""},"R8_18_01"]
["D8_18_",8,"Investments","D8_18",{"$f":"IF($B795=\"\",\"\",IFERROR(INDEX(db_Domande!$D:$D,MATCH($D795,db_Domande!$C:$C,0),1),\"\"))","v":""},"R8_18_02"]
["D8_18_",8,"Investments","D8_18",{"$f":"IF($B796=\"\",\"\",IFERROR(INDEX(db_Domande!$D:$D,MATCH($D796,db_Domande!$C:$C,0),1),\"\"))","v":""},"R8_18_03"]
["D8_18_",8,"Investments","D8_18",{"$f":"IF($B797=\"\",\"\",IFERROR(INDEX(db_Domande!$D:$D,MATCH($D797,db_Domande!$C:$C,0),1),\"\"))","v":""},"R8_18_04"]
["D8_18_",8,"Investments","D8_18",{"$f":"IF($B798=\"\",\"\",IFERROR(INDEX(db_Domande!$D:$D,MATCH($D798,db_Domande!$C:$C,0),1),\"\"))","v":""},"R8_18_05"]
["D8_19_",8,"Investments","D8_19",{"$f":"IF($B799=\"\",\"\",IFERROR(INDEX(db_Domande!$D:$D,MATCH($D799,db_Domande!$C:$C,0),1),\"\"))","v":""},"R8_19_01"]
["D8_19_",8,"Investments","D8_19",{"$f":"IF($B800=\"\",\"\",IFERROR(INDEX(db_Domande!$D:$D,MATCH($D800,db_Domande!$C:$C,0),1),\"\"))","v":""},"R8_19_02"]
["D8_19_",8,"Investments","D8_19",{"$f":"IF($B801=\"\",\"\",IFERROR(INDEX(db_Domande!$D:$D,MATCH($D801,db_Domande!$C:$C,0),1),\"\"))","v":""},"R8_19_03"]
["D8_19_",8,"Investments","D8_19",{"$f":"IF($B802=\"\",\"\",IFERROR(INDEX(db_Domande!$D:$D,MATCH($D802,db_Domande!$C:$C,0),1),\"\"))","v":""},"R8_19_04"]
["D8_19_",8,"Investments","D8_19",{"$f":"IF($B803=\"\",\"\",IFERROR(INDEX(db_Domande!$D:$D,MATCH($D803,db_Domande!$C:$C,0),1),\"\"))","v":""},"R8_19_05"]
["D8_20_",8,"Investments","D8_20",{"$f":"IF($B804=\"\",\"\",IFERROR(INDEX(db_Domande!$D:$D,MATCH($D804,db_Domande!$C:$C,0),1),\"\"))","v":""},"R8_20_01"]
["D8_20_",8,"Investments","D8_20",{"$f":"IF($B805=\"\",\"\",IFERROR(INDEX(db_Domande!$D:$D,MATCH($D805,db_Domande!$C:$C,0),1),\"\"))","v":""},"R8_20_02"]
["D8_20_",8,"Investments","D8_20",{"$f":"IF($B806=\"\",\"\",IFERROR(INDEX(db_Domande!$D:$D,MATCH($D806,db_Domande!$C:$C,0),1),\"\"))","v":""},"R8_20_03"]
["D8_20_",8,"Investments","D8_20",{"$f":"IF($B807=\"\",\"\",IFERROR(INDEX(db_Domande!$D:$D,MATCH($D807,db_Domande!$C:$C,0),1),\"\"))","v":""},"R8_20_04"]
["D8_20_",8,"Investments","D8_20",{"$f":"IF($B808=\"\",\"\",IFERROR(INDEX(db_Domande!$D:$D,MATCH($D808,db_Domande!$C:$C,0),1),\"\"))","v":""},"R8_20_05"]

{"sheet":"DATABASE","index":7,"n_rows":300,"n_cols":14,"rows_kept":300,"cut":false,"hidden":true,"merged":[]}
[null,null,"formule >>",{"$f":"IF($C1=\"\",\"\",IFERROR(INDEX(db_Domande!$D:$D,MATCH($C1,db_Domande!$C:$C,0),1),\"\"))","v":""},{"$f":"IF($F1=\"\",\"\",IF(F1=\"Risposta_Mancante\",\"RM\",INDEX(db_Risposte!$F:$F,MATCH($C1&\"_\"&$F1,db_Risposte!$A:$A,0),1)))","v":""},{"$f":"IF(OR($A1=\"\",$D1=\"\"),\"\",IF(INDEX(Assessment!$F:$F,MATCH($C1,Assessment!$C:$C,0),1)=0,\"Risposta_Mancante\",INDEX(Assessment!$F:$F,MATCH($C1,Assessment!$C:$C,0),1)))","v":""},{"$f":"IF(OR($A1=\"\",$D1=\"\"),\"\",IF(F1=\"Risposta_Mancante\",\"\",INDEX(db_Risposte!$J:$J,MATCH($E1,db_Risposte!$F:$F,0),1)))","v":""},{"$f":"IF($D1=\"\",\"\",IF($F1=\"NON_APPLICABILE\",0,MAX(OFFSET(db_Risposte!$J:$J,MATCH($C1,db_Risposte!$D:$D,0)-1,0,COUNTIF(db_Risposte!$D:$D,$C1),1))))","v":""},{"$f":"IF($D1=\"\",\"\",IF(INDEX(db_Domande!$E:$E,MATCH($C1,db_Domande!$C:$C,0),1)=0,\"\",INDEX(db_Domande!$E:$E,MATCH($C1,db_Domande!$C:$C,0),1)))","v":""},{"$f":"IF($D1=\"\",\"\",IF(INDEX(db_Domande!$F:$F,MATCH($C1,db_Domande!$C:$C,0),1)=0,\"\",INDEX(db_Domande!$F:$F,MATCH($C1,db_Domande!$C:$C,0),1)))","v":""},{"$f":"IF($C1=\"\",\"\",IF(BCEP_Assessment!$D$3=\"\",\"\",BCEP_Assessment!$D$3))","v":""},{"$f":"IF($C1=\"\",\"\",IF(BCEP_Assessment!$D$5=\"\",\"\",BCEP_Assessment!$D$5)&\"_\"&IF(BCEP_Assessment!$D$4=\"\",\"\",BCEP_Assessment!$D$4))","v":"_"},{"$f":"IF($C1=\"\",\"\",IF(BCEP_Assessment!$D$6=\"\",\"\",BCEP_Assessment!$D$6))","v":""},{"$f":"IF($C1=\"\",\"\",IF(BCEP_Assessment!$D$7=\"\",\"\",BCEP_Assessment!$D$7))","v":""}]
[]
[]
["PILLAR_cod","PILLAR_desc","DOMANDA_cod","DOMANDA_desc","RISPOSTA_cod","RISPOSTA_desc","RISPOSTA_punteggio","RISPOSTA_punteggio_max","DOMANDA_L01","DOMANDA_L02","AZIENDA","COGNOME_NOME","RUOLO","E-mail"]
[1,"Market","D1_01","L'azienda ha attivato misure di monitoring sullo stato di salute dei suoi clienti?","R1_01_01","SI",1,1,"Emergency","","s","s_s","s","s"]
[1,"Market","D1_02","L'azienda ha valutato l'impatto nel tempo causato dagli effetti di una significativa diminuzione del proprio fatturato?","R1_02_01","SI",1,1,"Continuity","","s","s_s","s","s"]
[1,"Market","D1_03","L'azienda ha definito processi e responsabili incaricati di comunicare con i clienti, al fine di garantire lo scambio delle corrette informazioni anche nell’attuale situazione di emergenza? ","R1_03_01","SI",1,1,"Emergency","","s","s_s","s","s"]
[1,"Market","D1_04","L'azienda ha identificato piani strutturati di continuità operativa per rispondere all'emergenza in corso? ","R1_04_01","SI",1,1,"Continuity","","s","s_s","s","s"]
[1,"Market","D1_05","I piani includono la scelta dei business e delle attività fondamentali, incluse le attività di individuazione di clienti e partner strategici, nonché delle regole di comunicazione?  ","R1_05_01","SI",1,1,"Planning","","s","s_s","s","s"]
[1,"Market","D1_06","L'azienda ha pianificato un programma di verifica periodica dei piani di continuità operativa? ","R1_06_01","SI",1,1,"Monitoring","","s","s_s","s","s"]
[1,"Market","D1_07","Al termine delle verifiche sui piani di continuità, l'azienda effettua un riesame dei risultati al fine di valutare eventuali modifiche ai propri processi, anche in termini di necessità di formazione delle risorse coinvolte od aumento della consapevolezza di tutta la catena di continuità? ","R1_07_01","SI",1,1,"Monitoring","","s","s_s","s","s"]
[1,"Market","D1_08","L'azienda ha integrato i concetti di continuità operativa anche nella quotidiana gestione aziendale, in modo che tali aspetti siano sempre presi in considerazione dal management?","R1_08_01","SI",1,1,"Continuity","","s","s_s","s","s"]
[1,"Market","D1_09","L'azienda subirebbe in maniera significativa gli effetti derivanti da un eventuale fallimento di un suo cliente strategico?","R1_09_01","SI",1,1,"Continuity","","s","s_s","s","s"]
[1,"Market","D1_10","Avete revisionato i contratti con i clienti alla luce dell’attuale situazione di crisi, introducendo o verificando la presenza di eventuali clausole a vostra tutela?","R1_10_01","SI",1,1,"Planning","","s","s_s","s","s"]
[1,"Market","D1_11","Avete implementato un sistema per l’analisi, la gestione e la valutazione di eventuali reclami da parte della clientela? ","R1_11_01","SI",1,1,"Emergency","","s","s_s","s","s"]
[1,"Market","D1_12","","","","","","","","s","s_s","s","s"]
[1,"Market","D1_13","","","","","","","","s","s_s","s","s"]
[1,"Market","D1_14","","","","","","","","s","s_s","s","s"]
[1,"Market","D1_15","","","","","","","","s","s_s","s","s"]
[1,"Market","D1_16","","","","","","","","s","s_s","s","s"]
[1,"Market","D1_17","","","","","","","","s","s_s","s","s"]
[1,"Market","D1_18","","","","","","","","s","s_s","s","s"]
[1,"Market","D1_19","","","","","","","","s","s_s","s","s"]
[1,"Market","D1_20","","","","","","","","s","s_s","s","s"]
[2,"Supply Chain","D2_01","L'azienda ha attivato misure di monitoring constante sullo stato di salute dei suoi fornitori?","R2_01_01","SI",1,1,"Monitoring","","s","s_s","s","s"]
[2,"Supply Chain","D2_02","L'azienda ha valutato l'impatto di un'eventuale interruzione o limitazione della catena di fornitura aziendale?","R2_02_01","SI",1,1,"Emergency","","s","s_s","s","s"]
[2,"Supply Chain","D2_03","L'azienda ha definito dipendenze ed interdipendenze delle proprie attività critiche, incluse quelle legate a partner e fornitori?","R2_03_01","SI",1,1,"Emergency","","s","s_s","s","s"]
[2,"Supply Chain","D2_04","L'azienda sta pianificando azioni e contromisure per ridurre possibili effetti indesiderati causati dall'emergenza (es. Soluzioni di automazione industry 4.0, sistemi IT e di telecomunicazione per gestioni in remoto, forniture alternative, logistiche alternative, ecc.)?","R2_04_01","SI",1,1,"Planning","","s","s_s","s","s"]
[2,"Supply Chain","D2_05","L'azienda ha individuato le catene logistiche alternative per garantire la continuità del business nel breve-medio termine?","R2_05_01","SI",1,1,"Planning","","s","s_s","s","s"]
[2,"Supply Chain","D2_06","L'azienda ha definito processi e responsabili incaricati di comunicare con i fornitori, al fine di garantire lo scambio delle corrette informazioni anche nell’attuale situazione di emergenza?","R2_06_01","SI",1,1,"Emergency","","s","s_s","s","s"]
[2,"Supply Chain","D2_07","L'azienda ha identificato eventuali rischi legali e di compliance che potrebbero evidenziarsi per l'inadempimento dei contratti di fornitura in essere?","R2_07_01","SI",1,1,"Emergency","","s","s_s","s","s"]
[2,"Supply Chain","D2_08","I fornitori dell'azienda si avvalgono di un piano di continuità operativa?","R2_08_01","SI",1,1,"Continuity","","s","s_s","s","s"]
[2,"Supply Chain","D2_09","Avete visibilità sulla salute dei vostri fornitori chiave, sui propri subfornitori e sulla capacità degli stessi di continuare ad operare sul mercato?","R2_09_01","SI",1,1,"Continuity","","s","s_s","s","s"]
[2,"Supply Chain","D2_10","Avete revisionato i contratti con i fornitori alla luce della situazione odierna, introducendo o verificando la presenza di clausole a vostra tutela, o connesse al tema delle c.d. “cause di forza maggiore” ed “eccessiva onerosità sopravvenuta”?","R2_10_01","SI",1,1,"Planning","","s","s_s","s","s"]
[2,"Supply Chain","D2_11","Avete in essere claim/contenziosi con i vostri fornitori su temi connessi all’applicazione di clausole di “forza maggiore” od “eccessiva onerosità sopravvenuta”?","R2_11_01","SI",1,1,"Emergency","","s","s_s","s","s"]
[2,"Supply Chain","D2_12","Avete previsto, precedentemente alla crisi, l’immagazzinamento di scorte dei prodotti potenzialmente “critici” per clienti e fornitori?","R2_12_01","SI",1,1,"Continuity","","s","s_s","s","s"]
[2,"Supply Chain","D2_13","L'azienda ha un sistema di qualifica dei fornitori che tiene in considerazione gli aspetti ambientali e sociali, diritti umani e altri aspetti di sostenibilità significativi per il settore?","R2_13_01","SI",1,1,"Monitoring","","s","s_s","s","s"]
[2,"Supply Chain","D2_14","L'azienda ha identificato le variabili chiave di sostenibilità dei propri fornitori che consentono di aumentare la propria competitività o profittabilità? ","R2_14_01","SI",1,1,"Monitoring","","s","s_s","s","s"]
[2,"Supply Chain","D2_15","","","","","","","","s","s_s","s","s"]
[2,"Supply Chain","D2_16","","","","","","","","s","s_s","s","s"]
[2,"Supply Chain","D2_17","","","","","","","","s","s_s","s","s"]
[2,"Supply Chain","D2_18","","","","","","","","s","s_s","s","s"]
[2,"Supply Chain","D2_19","","","","","","","","s","s_s","s","s"]
[2,"Supply Chain","D2_20","","","","","","","","s","s_s","s","s"]
[3,"Operations","D3_01","L'azienda ha individuato le attività produttive critiche e fondamentali per garantire l'operatività durante l'emergenza?","R3_01_01","SI",1,1,"Emergency","","s","s_s","s","s"]
[3,"Operations","D3_02","L'azienda ha definito strumenti di pianificazione e riorganizzazione del personale che permettano una maggior flessibilità organizzativa?","R3_02_01","SI",1,1,"Planning","","s","s_s","s","s"]
[3,"Operations","D3_03","L'azienda ha rivisto le proprie modalità operative al fine di garantire una maggior sicurezza degli operatori sulle postazioni di lavoro?","R3_03_01","SI",1,1,"Continuity","","s","s_s","s","s"]
[3,"Operations","D3_04","L'azienda ha valutato l'impatto di un'eventuale chiusura o limitazione della propria linea produttiva?","R3_04_01","SI",1,1,"Emergency","","s","s_s","s","s"]
[3,"Operations","D3_05","L'azienda ha definito protocolli e responsabilità di comunicazione con le funzioni interne (manutenzioni, sicurezza, qualità ecc.), che garantiscono la corretta comunicazione delle informazioni anche nell’attuale situazione di emergenza?","R3_05_01","SI",1,1,"Planning","","s","s_s","s","s"]
[3,"Operations","D3_06","L'azienda ha identificato piani strutturati (es. procedure processi interni, trasferimento di competenze, ecc.) di continuità operativa per rispondere all'emergenza in corso?","R3_06_01","SI",1,1,"Planning","","s","s_s","s","s"]
[3,"Operations","D3_07","L'azienda si è dotata di nuove metodologie di Visual Management per facilitare il trasferimento delle informazioni nei vari reparti?","R3_07_01","SI",1,1,"Monitoring","","s","s_s","s","s"]
[3,"Operations","D3_08","L'azienda si è dotata di strumenti di misurazione in grado di evidenziare la reale performance anche in situazione di emergenza?","R3_08_01","SI",1,1,"Monitoring","","s","s_s","s","s"]
[3,"Operations","D3_09","L'azienda tiene in considerazione l'evoluzione dei rischi ambientali e sociali nella gestione e sviluppo delle sue operations (es. robotizzazione e rischi di emergenze sanitarie globali, oppure rischi derivanti dal cambiamento climatico)?","R3_09_01","SI",1,1,"Continuity","","s","s_s","s","s"]
[3,"Operations","D3_10","","","","","","","","s","s_s","s","s"]
[3,"Operations","D3_11","","","","","","","","s","s_s","s","s"]
[3,"Operations","D3_12","","","","","","","","s","s_s","s","s"]
[3,"Operations","D3_13","","","","","","","","s","s_s","s","s"]
[3,"Operations","D3_14","","","","","","","","s","s_s","s","s"]
[3,"Operations","D3_15","","","","","","","","s","s_s","s","s"]
[3,"Operations","D3_16","","","","","","","","s","s_s","s","s"]
[3,"Operations","D3_17","","","","","","","","s","s_s","s","s"]
[3,"Operations","D3_18","","","","","","","","s","s_s","s","s"]
[3,"Operations","D3_19","","","","","","","","s","s_s","s","s"]
[3,"Operations","D3_20","","","","","","","","s","s_s","s","s"]
[4,"People & Organization","D4_01","Avete aggiornato il Modello dei processi aziendali e il sistema delle deleghe per i rischi aziendali?","R4_01_01","SI",1,1,"Emergency","","s","s_s","s","s"]
[4,"People & Organization","D4_02","Avete aggiornato Mansionari/Job Description?","R4_02_01","SI",1,1,"Emergency","","s","s_s","s","s"]
[4,"People & Organization","D4_03","Avete adeguato le vostre policy di controlli interni per evitare o diminuire il rischio di azioni fraudolente da parte dei collaboratori?","R4_03_01","SI",1,1,"Emergency","","s","s_s","s","s"]
[4,"People & Organization","D4_04","Nel corso della recente crisi avete avuto la percezione di aver ridotto il vostro controllo sulla segregation of duties o sull’operato del management?","R4_04_01","SI",1,1,"Monitoring","","s","s_s","s","s"]
[4,"People & Organization","D4_05","Avete nuove esigenze formative e/o mappato gap di competenze?","R4_05_01","SI",1,1,"Planning","","s","s_s","s","s"]
[4,"People & Organization","D4_06","Avete differito tutti gli eventi formativi, i programmi formativi su larga scala e le riunioni interne?","R4_06_01","SI",1,1,"Planning","","s","s_s","s","s"]
[4,"People & Organization","D4_07","Avete abilitato il lavoro a distanza nella propria regione e per filiali uffici esteri?","R4_07_01","SI",1,1,"Continuity","","s","s_s","s","s"]
[4,"People & Organization","D4_08","Sono state definite linee guida che impongono restrizioni di viaggi e trasferte, sia internazionali che nazionali in linea con le linee guida nazionali e locali?","R4_08_01","SI",1,1,"Continuity","","s","s_s","s","s"]
[4,"People & Organization","D4_09","Avete individuato e formato delle piattaforme di smart working e canali appropriati di comunicazione per i propri dipendenti?","R4_09_01","SI",1,1,"Continuity","","s","s_s","s","s"]
[4,"People & Organization","D4_10","Avete un programma a rotazione per provare/testare lo smart working?","R4_10_01","SI",1,1,"Monitoring","","s","s_s","s","s"]
[4,"People & Organization","D4_11","Garantite una comunicazione positiva e proattiva in merito alle misure adottate per promuovere il benessere dei dipendenti e il contenimento delle malattie?","R4_11_01","SI",1,1,"Continuity","","s","s_s","s","s"]
[4,"People & Organization","D4_12","Avete creato un meccanismo per rispondere a domande o dubbi dei dipendenti sull’emergenza in corso?","R4_12_01","SI",1,1,"Monitoring","","s","s_s","s","s"]
[4,"People & Organization","D4_13","Avete inserito un supporto coaching ai vostri dipendenti e collaboratori sulla gestione dell'emotività in situazioni di emergenza?","R4_13_01","SI",1,1,"Planning","","s","s_s","s","s"]
[4,"People & Organization","D4_14","","","","","","","","s","s_s","s","s"]
[4,"People & Organization","D4_15","","","","","","","","s","s_s","s","s"]
[4,"People & Organization","D4_16","","","","","","","","s","s_s","s","s"]
[4,"People & Organization","D4_17","","","","","","","","s","s_s","s","s"]
[4,"People & Organization","D4_18","","","","","","","","s","s_s","s","s"]
[4,"People & Organization","D4_19","","","","","","","","s","s_s","s","s"]
[4,"People & Organization","D4_20","","","","","","","","s","s_s","s","s"]
[5,"Health & Safety","D5_01","L’azienda ha previsto una adeguata informativa a tutti i lavoratori e chiunque entri in azienda circa le disposizioni aggiornate delle Autorità, consegnando e/o affiggendo all’ingresso e nei luoghi maggiormente visibili dei locali aziendali, appositi depliants informativi? ","R5_01_01","SI",1,1,"Continuity","","s","s_s","s","s"]
[5,"Health & Safety","D5_02","L’Azienda ha definito una procedura per le modalità di accesso in azienda di personale interno, fornitori e visitatori esterni? ","R5_02_01","SI",1,1,"Continuity","","s","s_s","s","s"]
[5,"Health & Safety","D5_03","L’Azienda ha definito le corrette modalità di pulizia e sanificazione degli ambienti, compresi i sistemi di aerazione, anche mediante revisione dei contratti con le ditte terze?","R5_03_01","SI",1,1,"Continuity","","s","s_s","s","s"]
[5,"Health & Safety","D5_04","L’Azienda ha definito una procedura per la scelta, consegna, e formazione sull’utilizzo dei Dispositivi di Protezione Individuale? ","R5_04_01","SI",1,1,"Monitoring","","s","s_s","s","s"]
[5,"Health & Safety","D5_05","L’Azienda ha definito una procedura per la gestione degli spazi comuni? (mensa, spogliatoi, aree bevande ecc.) ","R5_05_01","SI",1,1,"Continuity","","s","s_s","s","s"]
[5,"Health & Safety","D5_06","L’Azienda ha definito una procedura per la gestione delle trasferte del personale? ","R5_06_01","SI",1,1,"Continuity","","s","s_s","s","s"]
[5,"Health & Safety","D5_07","L’Azienda ha definito una procedura per la gestione di spostamenti interni, formazione, riunioni ed eventi? ","R5_07_01","SI",1,1,"Continuity","","s","s_s","s","s"]
[5,"Health & Safety","D5_08","L’Azienda ha definito le misure di primo soccorso ed emergenza connesse ad eventuali eventi infortunistici/sintomi di contagio? ","R5_08_01","SI",1,1,"Continuity","","s","s_s","s","s"]
[5,"Health & Safety","D5_09","L’Azienda ha definito le modalità di svolgimento della sorveglianza sanitaria ed il coordinamento con il medico competente? ","R5_09_01","SI",1,1,"Emergency","","s","s_s","s","s"]
[5,"Health & Safety","D5_10","L’Azienda ha istituito un Comitato di Sicurezza? ","R5_10_01","SI",1,1,"Emergency","","s","s_s","s","s"]
[5,"Health & Safety","D5_11","L’Azienda ha verificato la necessità di modifica del layout e delle postazioni di lavoro? ","R5_11_01","SI",1,1,"Emergency","","s","s_s","s","s"]
[5,"Health & Safety","D5_12","L’Azienda ha valutato i nuovi rischi per la salute e sicurezza derivanti dalle modifiche organizzative e li ha recepiti nel DVR aziendale?  ","R5_12_01","SI",1,1,"Planning","","s","s_s","s","s"]
[5,"Health & Safety","D5_13","L’Azienda ha verificato eventuali rischi legali e di compliance dei processi interni che potrebbero evidenziarsi per l'emergenza? ","R5_13_01","SI",1,1,"Planning","","s","s_s","s","s"]
[5,"Health & Safety","D5_14","L’Azienda ha verificato la necessità di aggiornamento delle parti speciali del MOG 231, con particolare riferimento ai reati connessi alla salute e sicurezza nei luoghi di lavoro? ","R5_14_01","SI",1,1,"Planning","","s","s_s","s","s"]
[5,"Health & Safety","D5_15","L’Azienda ha implementato un sistema di controlli/audit interni per la verifica di completezza ed efficacia delle misure adottate? ","R5_15_01","SI",1,1,"Monitoring","","s","s_s","s","s"]
[5,"Health & Safety","D5_16","","","","","","","","s","s_s","s","s"]
[5,"Health & Safety","D5_17","","","","","","","","s","s_s","s","s"]
[5,"Health & Safety","D5_18","","","","","","","","s","s_s","s","s"]
[5,"Health & Safety","D5_19","","","","","","","","s","s_s","s","s"]
[5,"Health & Safety","D5_20","","","","","","","","s","s_s","s","s"]
[6,"Information Technology","D6_01","L’azienda ha piani e strumenti per il Disaster Recovery?","R6_01_01","SI",1,1,"Continuity","","s","s_s","s","s"]
[6,"Information Technology","D6_02","L'azienda ha identificato eventuali rischi legali e di compliance (es. GDPR) che potrebbero evidenziarsi per l'emergenza?","R6_02_01","SI",1,1,"Emergency","","s","s_s","s","s"]
[6,"Information Technology","D6_03","L'azienda ha definito policy interne per i dipendenti che chiariscono limiti e responsabilità nell’uso delle risorse informatiche?","R6_03_01","SI",1,1,"Planning","","s","s_s","s","s"]
[6,"Information Technology","D6_04","Ha piani di formazione/sensibilizzazione a riguardo?","R6_04_01","SI",1,1,"Planning","","s","s_s","s","s"]
[6,"Information Technology","D6_05","L’azienda ha un piano per procurarsi e fornire in tempi rapidi i dispositivi informatici necessari a lavorare da remoto (pc, telefono con connsessione intenet, ecc.) almeno per il personale reputato essenziale?","R6_05_01","SI",1,1,"Emergency","","s","s_s","s","s"]
[6,"Information Technology","D6_06","L'azienda ha un responsabile della sicurezza informatica distinto dal responsabile IT?","R6_06_01","SI",1,1,"Continuity","","s","s_s","s","s"]
[6,"Information Technology","D6_07"," L’azienda effettua assessment periodici di terze parti per la valutazione della bontà del proprio sistema di sicurezza?","R6_07_01","SI",1,1,"Monitoring","","s","s_s","s","s"]
[6,"Information Technology","D6_08","L’accesso da remoto dei dipendenti avviene con sistemi di autenticazione forte?","R6_08_01","SI",1,1,"Continuity","","s","s_s","s","s"]
[6,"Information Technology","D6_09","I fornitori accedono alla rete aziendale da remoto?","R6_09_01","SI",1,1,"Continuity","","s","s_s","s","s"]
[6,"Information Technology","D6_10","Sono presenti procedure formalizzate di backup dei sistemi?","R6_10_01","SI",1,1,"Planning","","s","s_s","s","s"]
[6,"Information Technology","D6_11","L’azienda ha un meccanismo di verifica periodica della sicurezza dei propri fornitori IT presso cui sono mantenute informazioni dell’azienda?","R6_11_01","SI",1,1,"Monitoring","","s","s_s","s","s"]
[6,"Information Technology","D6_12","L'azienda gestisce in modo strutturato e formalizzato l’on boarding e l’off boarding dei dipendenti e collaboratori?","R6_12_01","SI",1,1,"Planning","","s","s_s","s","s"]
[6,"Information Technology","D6_13","L’azienda ha un piano di gestione degli incidenti?","R6_13_01","SI",1,1,"Continuity","","s","s_s","s","s"]
[6,"Information Technology","D6_14","Si è mai trovata a gestire un incidente?","R6_14_01","SI",1,1,"Planning","","s","s_s","s","s"]
[6,"Information Technology","D6_15","La distribuzione e l’aggiornamento dell’antivirus è centralizzato?","R6_15_01","SI",1,1,"Continuity","","s","s_s","s","s"]
[6,"Information Technology","D6_16","","","","","","","","s","s_s","s","s"]
[6,"Information Technology","D6_17","","","","","","","","s","s_s","s","s"]
[6,"Information Technology","D6_18","","","","","","","","s","s_s","s","s"]
[6,"Information Technology","D6_19","","","","","","","","s","s_s","s","s"]
[6,"Information Technology","D6_20","","","","","","","","s","s_s","s","s"]
[7,"Cash & Liquidity","D7_01","La finanza aziendale rappresenta un area critica per l’azienda anche prima del Coronavirus?","R7_01_01","SI",0,1,"Emergency","","s","s_s","s","s"]
[7,"Cash & Liquidity","D7_02","A quanto ammonta l'incidenza dei debiti bancari a M/L periodo sul fatturato al 31/12/2019?  (risposta  a sezioni multiple)","R7_02_01","0 - 30 %",2,2,"Continuity","","s","s_s","s","s"]
[7,"Cash & Liquidity","D7_03","A quanto ammonta l'incidenza dei debiti bancari complessivi sul fatturato al 31/12/2019?  (risposta a sezioni  multiple)","R7_03_02","31 -70 %",1,2,"Continuity","","s","s_s","s","s"]
[7,"Cash & Liquidity","D7_04","L'azienda ha richiesto l'attivazione delle misure di sostegno previste dal Decreto Cura Italia (in termini di moratorie e conferma degli affidamenti ) ?","R7_04_01","SI",0,1,"Emergency","","s","s_s","s","s"]
[7,"Cash & Liquidity","D7_05","Quanto prevedete possa impattare l'emergenza in corso in termini di incremento della percentuale di insoluto dei clienti rispetto agli standard ?  (risposta a sezioni  multiple)","R7_05_03","71 - 100 %",0,2,"Emergency","","s","s_s","s","s"]
[7,"Cash & Liquidity","D7_06","L'azienda ritiene di aver la necessità di richiedere nuovi finanziamenti per sopperire nel 2020 a crisi di liquidità ?","R7_06_01","SI",0,1,"Planning","","s","s_s","s","s"]
[7,"Cash & Liquidity","D7_07","L'azienda ha segnalazioni in centrale rischi per posizioni in sofferenza/posizioni scadute ?  ","R7_07_01","SI",0,1,"Planning","","s","s_s","s","s"]
[7,"Cash & Liquidity","D7_08","L'azienda ha un plafond residuo presso Medio Credito Centrale? ","R7_08_01","SI",1,1,"Continuity","","s","s_s","s","s"]
[7,"Cash & Liquidity","D7_09","L'azienda prevede di apportare capitale proprio nel breve periodo?   ","R7_09_01","SI",1,1,"Planning","","s","s_s","s","s"]
[7,"Cash & Liquidity","D7_10","L'azienda ha un sistema di gestione della tesoreria integrato nel/con il gestionale aziendale o gestisce la tesoreria con strumenti excel based?","R7_10_01","SI",1,1,"Monitoring","","s","s_s","s","s"]
[7,"Cash & Liquidity","D7_11","L'azienda ha un budget economico - finanziario per il 2020 ?","R7_11_01","SI",1,1,"Planning","","s","s_s","s","s"]
[7,"Cash & Liquidity","D7_12","L’azienda  utilizza sistemi di  previsione della Tesorieria a scenari  multipli? ","R7_12_01","SI",1,1,"Monitoring","","s","s_s","s","s"]
[7,"Cash & Liquidity","D7_13","Il livello di comprimibilità dei costi fissi aziendali è ?  (risposta a sezioni multiple) ","R7_13_02","media",1,2,"Continuity","","s","s_s","s","s"]
[7,"Cash & Liquidity","D7_14","","","","","","","","s","s_s","s","s"]
[7,"Cash & Liquidity","D7_15","","","","","","","","s","s_s","s","s"]
[7,"Cash & Liquidity","D7_16","","","","","","","","s","s_s","s","s"]
[7,"Cash & Liquidity","D7_17","","","","","","","","s","s_s","s","s"]
[7,"Cash & Liquidity","D7_18","","","","","","","","s","s_s","s","s"]
[7,"Cash & Liquidity","D7_19","","","","","","","","s","s_s","s","s"]
[7,"Cash & Liquidity","D7_20","","","","","","","","s","s_s","s","s"]
[8,"Investments","D8_01","L'azienda ha fatto recentemente acquisizioni di società e/o rami d'azienda?  ","R8_01_01","SI",0,1,"Continuity","","s","s_s","s","s"]
[8,"Investments","D8_02","In che percentuale del fatturato l'azienda intende effettuare investimenti nell'esercizio in corso?  (risposta  multipla) ","R8_02_04","NON_APPLICABILE",0,0,"Emergency","","s","s_s","s","s"]
[8,"Investments","D8_03","L’azienda ha investimenti nell'esercizio in corso di importi significativi?","R8_03_01","SI",0,1,"Planning","","s","s_s","s","s"]
[8,"Investments","D8_04","L’azienda  deve sostenere  investimenti  ricorrenti  per  garantire  la continuità del business?  ","R8_04_01","SI",0,1,"Continuity","","s","s_s","s","s"]
[8,"Investments","D8_05","Negli SPA sottoscritti, o in via di sottoscrizione, sono previste clausole di price adjustment che tengano conto dei possibili effetti derivanti dall’evoluzione del fenomeno Covid 19? ","R8_05_01","SI",1,1,"Emergency","","s","s_s","s","s"]
[8,"Investments","D8_06","E’ stata svolta una review contrattuale per verificare la presenza di eventuali clausole di price adjustment potenzialmente negative per i vostri investimenti? ","R8_06_01","SI",1,1,"Planning","","s","s_s","s","s"]
[8,"Investments","D8_07","Gli investimenti definiti dall'azienda sono funzionali ad aumentare la sostenibilità del proprio modello di business? ","R8_07_01","SI",1,1,"Planning","","s","s_s","s","s"]
[8,"Investments","D8_08","L'azienda ha valutato gli impatti economici, sociali e ambientali dei suoi investimenti?","R8_08_01","SI",1,1,"Monitoring","","s","s_s","s","s"]
[8,"Investments","D8_09","L'azienda ha tenuto in considerazione quanto gli investimenti concorrono positivamente nella comunità locale di riferimento?","R8_09_01","SI",1,1,"Monitoring","","s","s_s","s","s"]
[8,"Investments","D8_10","L’azienda ha identificato metriche adeguate per monitorare gli impatti dei suoi investimenti?","R8_10_01","SI",1,1,"Monitoring","","s","s_s","s","s"]
[8,"Investments","D8_11","","","","","","","","s","s_s","s","s"]
[8,"Investments","D8_12","","","","","","","","s","s_s","s","s"]
[8,"Investments","D8_13","","","","","","","","s","s_s","s","s"]
[8,"Investments","D8_14","","","","","","","","s","s_s","s","s"]
[8,"Investments","D8_15","","","","","","","","s","s_s","s","s"]
[8,"Investments","D8_16","","","","","","","","s","s_s","s","s"]
[8,"Investments","D8_17","","","","","","","","s","s_s","s","s"]
[8,"Investments","D8_18","","","","","","","","s","s_s","s","s"]
[8,"Investments","D8_19","","","","","","","","s","s_s","s","s"]
[8,"Investments","D8_20","","","","","","","","s","s_s","s","s"]
[null,null,null,"","","","","","","","","","",""]
[null,null,null,"","","","","","","","","","",""]
[null,null,null,"","","","","","","","","","",""]
[null,null,null,"","","","","","","","","","",""]
[null,null,null,"","","","","","","","","","",""]
[null,null,null,"","","","","","","","","","",""]
[null,null,null,"","","","","","","","","","",""]
[null,null,null,"","","","","","","","","","",""]
[null,null,null,"","","","","","","","","","",""]
[null,null,null,"","","","","","","","","","",""]
[null,null,null,"","","","","","","","","","",""]
[null,null,null,"","","","","","","","","","",""]
[null,null,null,"","","","","","","","","","",""]
[null,null,null,"","","","","","","","","","",""]
[null,null,null,"","","","","","","","","","",""]
[null,null,null,"","","","","","","","","","",""]
[null,null,null,"","","","","","","","","","",""]
[null,null,null,"","","","","","","","","","",""]
[null,null,null,"","","","","","","","","","",""]
[null,null,null,"","","","","","","","","","",""]
[null,null,null,"","","","","","","","","","",""]
[null,null,null,"","","","","","","","","","",""]
[null,null,null,"","","","","","","","","","",""]
[null,null,null,"","","","","","","","","","",""]
[null,null,null,"","","","","","","","","","",""]
[null,null,null,"","","","","","","","","","",""]
[null,null,null,"","","","","","","","","","",""]
[null,null,null,"","","","","","","","","","",""]
[null,null,null,"","","","","","","","","","",""]
[null,null,null,"","","","","","","","","","",""]
[null,null,null,"","","","","","","","","","",""]
[null,null,null,"","","","","","","","","","",""]
[null,null,null,"","","","","","","","","","",""]
[null,null,null,"","","","","","","","","","",""]
[null,null,null,"","","","","","","","","","",""]
[null,null,null,"","","","","","","","","","",""]
[null,null,null,"","","","","","","","","","",""]
[null,null,null,"","","","","","","","","","",""]
[null,null,null,"","","","","","","","","","",""]
[null,null,null,"","","","","","","","","","",""]
[null,null,null,"","","","","","","","","","",""]
[null,null,null,"","","","","","","","","","",""]
[null,null,null,"","","","","","","","","","",""]
[null,null,null,"","","","","","","","","","",""]
[null,null,null,"","","","","","","","","","",""]
[null,null,null,"","","","","","","","","","",""]
[null,null,null,"","","","","","","","","","",""]
[null,null,null,"","","","","","","","","","",""]
[null,null,null,"","","","","","","","","","",""]
[null,null,null,"","","","","","","","","","",""]
[null,null,null,"","","","","","","","","","",""]
[null,null,null,"","","","","","","","","","",""]
[null,null,null,"","","","","","","","","","",""]
[null,null,null,"","","","","","","","","","",""]
[null,null,null,"","","","","","","","","","",""]
[null,null,null,"","","","","","","","","","",""]
[null,null,null,"","","","","","","","","","",""]
[null,null,null,"","","","","","","","","","",""]
[null,null,null,"","","","","","","","","","",""]
[null,null,null,"","","","","","","","","","",""]
[null,null,null,"","","","","","","","","","",""]
[null,null,null,"","","","","","","","","","",""]
[null,null,null,"","","","","","","","","","",""]
[null,null,null,"","","","","","","","","","",""]
[null,null,null,"","","","","","","","","","",""]
[null,null,null,"","","","","","","","","","",""]
[null,null,null,"","","","","","","","","","",""]
[null,null,null,"","","","","","","","","","",""]
[null,null,null,"","","","","","","","","","",""]
[null,null,null,"","","","","","","","","","",""]
[null,null,null,"","","","","","","","","","",""]
[null,null,null,"","","","","","","","","","",""]
[null,null,null,"","","","","","","","","","",""]
[null,null,null,"","","","","","","","","","",""]
[null,null,null,"","","","","","","","","","",""]
[null,null,null,"","","","","","","","","","",""]
[null,null,null,"","","","","","","","","","",""]
[null,null,null,"","","","","","","","","","",""]
[null,null,null,"","","","","","","","","","",""]
[null,null,null,"","","","","","","","","","",""]
[null,null,null,"","","","","","","","","","",""]
[null,null,null,"","","","","","","","","","",""]
[null,null,null,"","","","","","","","","","",""]
[null,null,null,"","","","","","","","","","",""]
[null,null,null,"","","","","","","","","","",""]
[null,null,null,"","","","","","","","","","",""]
[null,null,null,"","","","","","","","","","",""]
[null,null,null,"","","","","","","","","","",""]
[null,null,null,"","","","","","","","","","",""]
[null,null,null,"","","","","","","","","","",""]
[null,null,null,"","","","","","","","","","",""]
[null,null,null,"","","","","","","","","","",""]
[null,null,null,"","","","","","","","","","",""]
[null,null,null,"","","","","","","","","","",""]
[null,null,null,"","","","","","","","","","",""]
[null,null,null,"","","","","","","","","","",""]
[null,null,null,"","","","","","","","","","",""]
[null,null,null,"","","","","","","","","","",""]
[null,null,null,"","","","","","","","","","",""]
[null,null,null,"","","","","","","","","","",""]
[null,null,null,"","","","","","","","","","",""]
[null,null,null,"","","","","","","","","","",""]
[null,null,null,"","","","","","","","","","",""]
[null,null,null,"","","","","","","","","","",""]
[null,null,null,"","","","","","","","","","",""]
[null,null,null,"","","","","","","","","","",""]
[null,null,null,"","","","","","","","","","",""]
[null,null,null,"","","","","","","","","","",""]
[null,null,null,"","","","","","","","","","",""]
[null,null,null,"","","","","","","","","","",""]
[null,null,null,"","","","","","","","","","",""]
[null,null,null,"","","","","","","","","","",""]
[null,null,null,"","","","","","","","","","",""]
[null,null,null,"","","","","","","","","","",""]
[null,null,null,"","","","","","","","","","",""]
[null,null,null,"","","","","","","","","","",""]
[null,null,null,"","","","","","","","","","",""]
[null,null,null,"","","","","","","","","","",""]
[null,null,null,"","","","","","","","","","",""]
[null,null,null,"","","","","","","","","","",""]
[null,null,null,"","","","","","","","","","",""]
[null,null,null,"","","","","","","","","","",""]
[null,null,null,"","","","","","","","","","",""]
[null,null,null,"","","","","","","","","","",""]
[null,null,null,"","","","","","","","","","",""]
[null,null,null,"","","","","","","","","","",""]
[null,null,null,"","","","","","","","","","",""]
[null,null,null,"","","","","","","","","","",""]
[null,null,null,"","","","","","","","","","",""]
[null,null,null,"","","","","","","","","","",""]
[null,null,null,"","","","","","","","","","",""]
[null,null,null,"","","","","","","","","","",""]
[null,null,null,"","","","","","","","","","",""]
[null,null,null,"","","","","","","","","","",""]
[null,null,null,"","","","","","","","","","",""]
[null,null,null,"","","","","","","","","","",""]

{"sheet":"db_etichette","index":8,"n_rows":20,"n_cols":6,"rows_kept":20,"cut":false,"hidden":true,"merged":[]}
["DOMANDA_L01",null,null,null,null,"DOMANDA_L02"]
["Continuity"]
["Emergency"]
["Monitoring"]
["Planning"]
[]
[]
[]
[]
[]
[]
[]
[]
[]
[]
[]
[]
[]
[]
[">> ff <<",null,null,null,null,">> ff <<"]

{"sheet":"CONTROLLO","index":9,"n_rows":15,"n_cols":16,"rows_kept":15,"cut":false,"hidden":true,"merged":[]}
[null,"BCEP - Controllo"]
["01","definisco DOMANDE:","identificare l'elenco delle DOMANDE",null,null,null,null,null,null,null,null,null,null,null,"foglio rif:","db_Domande"]
[null,"popolare i cluster per raggruppare le domande in \"db_Etichette\""]
["02","definire RISPOSTE:","inserire le RISPOSTE desiderate, il PUNTEGGIO",null,null,null,null,null,null,null,null,null,null,null,"foglio rif:","db_Risposte"]
[null,"le risposte generano i MENU a TENDINA del foglio Audit e l'etichetta delle POSSIBILI RISPOSTE"]
["03","generare ASSESSMENT:","generare il foglio ASSESSMENT ovvero quello che sarà compilato dall'utente",null,null,null,null,null,null,null,null,null,null,null,"foglio rif:","Assessment"]
[]
[]
[]
[]
[]
["04","popolamento DATABASE:","popolamento del DATABASE in base alle risposta dell'ASSESSMENT",null,null,null,null,null,null,null,null,null,null,null,"foglio rif:","DATABASE"]
[null,"copia/incolla le formule e poi copia/incolla i valori"]
["04","aggiornamento GRAFICI:","generazione foglio finale dei GRAFICI",null,null,null,null,null,null,null,null,null,null,null,"foglio rif:","db_GRAFICI | GRAFICI"]
[null,"aggiorna le pivot presenti nel foglio db_GRAFICI in cui sono riportati i valori necessari per generare i grafici"]